Workbook

Sheet Inputs
A1: Inputs Worksheet
A3: Total Cost of EB Model (w/o excess local contribution)
B5: ='State Summary Table'!H16+'State Summary Table'!H27 -> 9400055792 | C5: Total
B6: =B5/SUM('State Summary Table'!F7:F8) -> 13129.59596 | C6: Per Pupil
A8: Increase from SEEK (No Recapture)
B10: =SUM('PK-12 District Comparison'!P3:P176) -> 2440307327 | C10: =B10/B5 -> 0.2596056216
A12: Simulation Difference in Cost of Model
B14: ='State Summary Table'!H16+'State Summary Table'!H27-9400055792 -> -0.1485042572
B17: press ctrl-r to refresh pivot tables
A30: Simulation Parameters
A33: Student Counts
A35: Pre-Kindergarten
A36: Full Day/Half Day | B36: 1 | C36: (1=Full-Day K, 2=Half-Day K)
A37: Age | B37: 1 | C37: (1=3 and 4 year olds, 2=4 year olds)
A38: Actual/Universal | B38: 2 | C38: (1=Actual, 2=Universal)
A39: Perecent membership | B39: 0.5 | C39: (Percent of students)
A40: Poverty Level | B40: 0 | C40: (1=low income only))
A42: Kindergarten
A43: Full Day/Half Day | B43: 1 | C43: (1=Full-Day K, .5=Half-Day K)
A44: Actual/Universal | B44: 2 | C44: (1=Actual, 2=Universal)
A45: Perecent membership | B45: 1 | C45: (Percent of students)
A47: Student Counts
A48: Formula | B48: 1 | C48: (1=prior year and 3 year average--greater of, 2=current year
A49: Enrollment, ADM, AADA | B49: 1 | C49: (1=ADM, 2=AADA)
A53: Specialist Teachers
A55: Elementary School | B55: 0.2 | C55: % over Core Teachers
A56: Middle School | B56: 0.2 | C56: % over Core Teachers
A57: High School | B57: 0.3333 | C57: % over Core Teachers
A59: FRL-FRPL
A61: Method | B61: 1 | C61: (1=FRPL, 2=FL)
A63: Summer School
A65: Grades Served | B65: K-12
A66: % of At-Risk | B66: 0.5 | C66: (enter any fraction)
A67: Class Size | B67: 15 | C67: (enter any class size)
A69: Extended Day
A71: Grades Served | B71: K-12
A72: % of At-Risk | B72: 0.5 | C72: (enter any fraction)
A73: Class Size | B73: 15 | C73: (enter any class size)
A75: Extra PD Days
A77: # of Days | B77: 6
A78: # Days in Teacher Contract | B78: 182
A80: Class Sizes
A82: PK | B82: 15
A83: Kindergarten | B83: 15
A84: 1st Grade | B84: 15
A85: 2nd Grade | B85: 15
A86: 3rd Grade | B86: 15
A87: 4th Grade | B87: 25
A88: 5th Grade | B88: 25
A89: 6th Grade | B89: 25
A90: 7th Grade | B90: 25
A91: 8th Grade | B91: 25
A92: 9th Grade | B92: 25
A93: 10th Grade | B93: 25
A94: 11th Grade | B94: 25
A95: 12th Grade | B95: 25
A96: Alternative Schools | B96: 7
A97: Necessarily Small Schools | B97: 7
A101: Salaries
B103: Job Code | C103: # of Positions | D103: 2012-13 Avg Salary | E103: Additional PD Days | F103: Benefits | G103: Total Comp
A104: School Level
A105: Principal | B105: 1010 | C105: ='kY Job codes and Salaries'!C39 -> 1264.6576 | D105: ='kY Job codes and Salaries'!B39 -> 57625.66033 | F105: =SUM(D105:E105)*$B$126 -> 18193.57348 | G105: =SUM(D105:F105) -> 75819.2338
A106: Asst. principal | B106: 1020 | C106: ='kY Job codes and Salaries'!C40 -> 931.0276 | D106: ='kY Job codes and Salaries'!B40 -> 56520.79684 | F106: =SUM(D106:E106)*$B$126 -> 17844.74598 | G106: 74365.54282
A107: Teacher | B107: 2010,2030, 2040, 2050, 2060, 2070,2018 | C107: =SUM('kY Job codes and Salaries'!C47:C53)-'kY Job codes and Salaries'!C48 -> 35006.77612 | D107: ='kY Job codes and Salaries'!G49 -> 49265.38541 | E107: =D107/182*6 -> 1624.133585 | F107: =SUM(D107:E107)*$B$126 -> 16066.83894 | G107: 66956.35793
A109: Guidance Counselor | B109: 1050 | C109: ='kY Job codes and Salaries'!C43 -> 1442.7144 | D109: ='kY Job codes and Salaries'!B43 -> 56383.05073 | E109: =D109/182*6 -> 1858.781892 | F109: =SUM(D109:E109)*$B$126 -> 18388.11139 | G109: 76629.94401
A110: Media Librarian | B110: 1060 | C110: ='kY Job codes and Salaries'!C44 -> 1068.9076 | D110: =AVERAGE('kY Job codes and Salaries'!B220,'kY Job codes and Salaries'!B221,'kY Job codes and Salaries'!B222,'kY Job codes and Salaries'!B223,'kY Job codes and Salaries'!B224,'kY Job codes and Salaries'!B225,'kY Job codes and Salaries'!B226,'kY Job codes and Salaries'!B227,'kY Job codes and Salaries'!B228) -> 47731.18019 | E110: =D110/182*6 -> 1573.555391 | F110: =SUM(D110:E110)*$B$127 -> 32215.22118 | G110: 81519.95676
A111: School Nurse | B111: 7262 | C111: ='kY Job codes and Salaries'!C119 -> 44.2306968 | D111: ='kY Job codes and Salaries'!B119 -> 32610.49211 | F111: =SUM(D111:E111)*$B$126 -> 10295.78457 | G111: 42906.27668
A112: =A120 -> Secretary/Clerical | B112: =B120 -> 7732,7761,7762,7765,7771,7772,7773,7774,7775.7776,7777,7778,7781,7782,7783,7784 | C112: ='kY Job codes and Salaries'!F299 -> 4414.46838 | D112: =D120 -> 22592.8162 | F112: =SUM(D112:E112)*$B$127 -> 14761.92018 | G112: 37354.73638
A113: Supervisory/Instruct Aide | B113: 7316,7317,7318,7319,7320,7321 | C113: =SUM('kY Job codes and Salaries'!C136:C141) -> 12405.57551 | D113: ='kY Job codes and Salaries'!G136 -> 15116.4702 | F113: =SUM(D113:E113)*$B$127 -> 9876.950466 | G113: 24993.42067
A114: District Level
A115: Superintendent | B115: 10 | C115: ='kY Job codes and Salaries'!C4 -> 172.6 | D115: 119970.86 | F115: =SUM(D115:E115)*$B$126 -> 37877.19992 | G115: =SUM(D115:F115) -> 157848.0599
A116: Asst. Superintendent | B116: 20,30 | C116: =SUM('kY Job codes and Salaries'!C5:C6) -> 90.2387 | D116: ='kY Job codes and Salaries'!G5 -> 58579.24804 | F116: =SUM(D116:E116)*$B$126 -> 18494.64019 | G116: 77073.88823
A117: Directors | B117: 40,100,280,80,50,120,190,90 | C117: 656 | D117: 55763.4609 | F117: =SUM(D117:D117)*$B$126 -> 17605.63988 | G117: 73369.10078
A118: Accounting Clerk | B118: 7176,7177,7178,7179,7180 | C118: =SUM('kY Job codes and Salaries'!C88:C92) -> 697.7497646 | D118: ='kY Job codes and Salaries'!F88 -> 29537.94642 | F118: =SUM(D118:E118)*$B$127 -> 19299.79881 | G118: 48837.74524
A119: Accounts Payable | B119: 7191,7192 | C119: ='kY Job codes and Salaries'!C103+'kY Job codes and Salaries'!C104 -> 117.6425612 | D119: ='kY Job codes and Salaries'!G103 -> 36231.51929 | F119: 23673.31239 | G119: 59904.83168
A120: Secretary/Clerical | B120: ='kY Job codes and Salaries'!F301 -> 7732,7761,7762,7765,7771,7772,7773,7774,7775.7776,7777,7778,7781,7782,7783,7784 | C120: =C112 -> 4414.46838 | D120: ='kY Job codes and Salaries'!F300 -> 22592.8162 | F120: 14761.92018 | G120: 37354.73638
A121: Custodian | B121: 7602,7602,7604,7605,7606,7607,7608 | C121: =SUM('kY Job codes and Salaries'!C250:C255) -> 4993.998748 | D121: ='kY Job codes and Salaries'!G250 -> 23109.07475 | F121: 15099.23835 | G121: 38208.3131
A122: Groundskeeper | B122: 7621,7622,7623,7624,7625,7626,7627.7628 | C122: =SUM('kY Job codes and Salaries'!C261:C264) -> 77.4780226 | D122: ='kY Job codes and Salaries'!G261 -> 27916.7177 | F122: 18240.50418 | G122: 46157.22188
A123: Maintenance | B123: 7631,7632,7633,7634,7641 | C123: =SUM('kY Job codes and Salaries'!C265:C269) -> 71.52212806 | D123: ='kY Job codes and Salaries'!G265 -> 32204.38519 | F123: 21042.02324 | G123: 53246.40844
B125: Rate
A126: Classified Benefit Rate | B126: 0.31572
A127: Non-Classified Benefit Rate | B127: 0.65339
A130: Personnel Resources
B132: PK | C132: Elementary (K-5) | D132: Middle (6-8) | E132: HS (9-12)
A133: Elective Teachers (above core) | B133: 0.2 | C133: 0.2 | D133: 0.2 | E133: 0.3333333333
A134: Instructional Facilitators (1 per __ students) | B134: 200 | C134: 200 | D134: 200 | E134: 200
A135: Tutor (1 per__ non-FRPL student) | B135: 0 | C135: 450 | D135: 450 | E135: 600
A136: Substitute Teachers | B136: 0.05 | C136: 0.05 | D136: 0.05 | E136: 0.05
A137: Counselors (1 per ___ students) | B137: 0 | C137: 450 | D137: 250 | E137: 250
A138: Supervisory Aides (1 per ___ students) | B138: 200 | C138: 225 | D138: 225 | E138: 200
A139: Instructional Aides (1 per ___ students) | B139: 15 | C139: 0 | D139: 0 | E139: 0
A140: Media Librarians (1 per __ students) | B140: 0 | C140: 450 | D140: 450 | E140: 600
A141: Nurses (1 per ___ students) | B141: 750 | C141: 750 | D141: 750 | E141: 750
A142: Principals (1 per __ students) | B142: 0 | C142: 450 | D142: 450 | E142: 600
A143: Assistant Principals/Program Coord (1 per __ students) | B143: 0 | C143: 0 | D143: 0 | E143: 600
A144: School Secretary (1 per __ students) | B144: 0 | C144: 225 | D144: 225 | E144: 200
A145: Special Education Teacher (1 per __ students) | B145: 0 | C145: 150 | D145: 150 | E145: 150
A146: Special Education Aide (1 per __ students) | B146: 0 | C146: 150 | D146: 150 | E146: 150
A147: Pupil Support ( 1 __ FRL Student) | B147: 0 | C147: 120 | D147: 120 | E147: 120
A148: Summer School Teacher ( 1 __ FRL Student) | B148: 0 | C148: 120 | D148: 120 | E148: 120
A149: Extended Day Teacher ( 1 __ FRL Student) | B149: 0 | C149: 120 | D149: 120 | E149: 120
A150: Tutor (1 per__ FRPL student) | C150: 120 | D150: 120 | E150: 120
A152: Per-Pupil Resources
B154: 2012-13
A155: Materials (PK) | B155: 140
A156: Materials (elem) | B156: 140
A157: Materials (middle) | B157: 140
A158: Materials (high) | B158: 175
A159: Equip/Tech | B159: 250
A160: GATE | B160: 25
A161: PD | B161: 100
A162: Formative Assessment | B162: 25
A163: Student Activities | B163: 250
A164: Central Office Misc. Exp | B164: 350
A165: Materials (special needs per program) | B165: 10
A167: Cost Adjustment
A169: Regional Cost Adjustment | B169: 1 | C169: 1=Taylor CWI
A171: % Adjusted for PK Prototype | B171: =(SUM('PK Model Prototype'!D9:D12)+'PK Model Prototype'!D16)/('PK Model Prototype'!D28*'PK Model Prototype'!B5) -> 0.6127242562
A172: % Adjusted for CO | B172: =SUM('Central Office'!E10,'Central Office'!E14,'Central Office'!E15,'Central Office'!E21,'Central Office'!E22,'Central Office'!E23,'Central Office'!E24,'Central Office'!E28,'Central Office'!E33)/'Central Office'!E40 -> 0.2933393401
A173: % Adjusted for Small Districts | B173: =SUM('Small District Prototype'!F8:F15,'Small District Prototype'!J8:J15,'Small District Prototype'!N8:N15,'Small District Prototype'!F20,'Small District Prototype'!J20,'Small District Prototype'!N20,'Small District Prototype'!F22:F24,'Small District Prototype'!J22:J24,'Small District Prototype'!N22:N24,'Small District Prototype'!F36,'Small District Prototype'!J36,'Small District Prototype'!N36+'Small District Prototype'!F16+'Small District Prototype'!J16+'Small District Prototype'!N16+'Small District Prototype'!F18+'Small District Prototype'!J18+'Small District Prototype'!N18)/('Small District Prototype'!F47*'Small District Prototype'!D4+'Small District Prototype'!H4*'Small District Prototype'!J47+'Small District Prototype'!N47*'Small District Prototype'!L4) -> 0.7265614427
A176: Small School/District Adjustments
A178: Small School Adjustments | B178: 1 | C178: 1=on, 0=off
A179: Small School Designation | B179: 50 | C179: or fewer students
A181: Small District Adjustment | B181: 1 | C181: 1=on, 0=off

Sheet District Summary Tables
A2: =D7 -> 275 Jefferson County
A5: Total Funding | D5: =F18+F30 -> 1340045750
D6: Students | F6: Resources
C7: District | D7: 275 Jefferson County
C9: Values | E9: Values
A10: Evidence-Based Funding Model | B10: Total K-12 | C10: Sum of Students-Total K-12 | D10: 96165.796 | E10: Sum of Final Base EB Allocation $ | F10: 678010404.5
B11: Pre-K | C11: Sum of Pk Student Count | D11: 7710.563333 | E11: Sum of PK EB Model $ | F11: 77240959.18
B12: Special Education | C12: Sum of Spec Needs-SPED | D12: 11830 | E12: Sum of Final SPED $ | F12: 67887738.63
B13: Low Income | C13: Sum of Spec Needs-Low Income | D13: 59325 | E13: Sum of Final Low Income $ | F13: 159383195.7
B14: English Learners | C14: Sum of Spec Needs-EL | D14: 6484 | E14: Sum of Final EL Total $ | F14: 5211417.257
B15: Small School Adjustment | E15: Sum of Small/Alt Total $ | F15: 5722557.589
B16: Central Office | E16: Sum of Central Office | F16: 62918853.17
B17: Maintenance & Operations | E17: Sum of M&O | F17: 69696458.53
B18: Total | F18: =SUM(F10:F17) -> 1126071585
B22: Food Service | E22: Values
A23: Carry Forwards | B23: Carry Forwards | E23: Sum of Food Service | F23: 9798861.04
B24: Community Services | E24: Sum of Community Services | F24: 9680515
B25: Adult Education Operations | E25: Sum of Adult Education Operations | F25: 0
B26: Facilities | E26: Sum of Facilities | F26: 910053.11
B27: Debt Service | E27: Sum of Debt Service | F27: 49246651.76
B28: Fund Transfers | E28: Sum of Fund Transfers | F28: 68167022.91
B29: Transportation | E29: Sum of Transportation | F29: 76171061.43
B30: Total | F30: =SUM(F23:F29) -> 213974165.2
A32: Evidence-Based Model Resources
D33: FTE | F33: Resources
C34: Sum of Core Teachers Total FTE | E34: Values
A35: Core Instruction | B35: Core Classroom Teachers | C35: 4649.279191 | D35: =GETPIVOTDATA("Core Teachers Total FTE",$C$34) -> 4649.279191 | E35: Sum of Teacher Total $ | F35: 351566499.7
B36: Substitutes | E36: Sum of Teachers-Subs $ | F36: 17578324.98
B37: Total | D37: =SUM(D35:D36) -> 4649.279191 | F37: =SUM(F35:F36) -> 369144824.6
C38: Sum of Specialist Teachers Total FTE | E38: Values
A39: Specialist Teachers | B39: Specialist Teachers | C39: 1078.319209 | D39: =GETPIVOTDATA("Specialist Teachers Total FTE",$C$38) -> 1078.319209 | E39: Sum of Specialist Teacher $ | F39: 81539717.08
B40: Substitutes | E40: Sum of Specialist Teacher-Subs $ | F40: 4076985.854
B41: Total | D41: =SUM(D39:D40) -> 1078.319209 | F41: =SUM(F39:F40) -> 85616702.93
C42: Values | E42: Values
A43: Teacher and Pupil Supports | B43: Instructional Facilitators | C43: Sum of IF FTE | D43: 478.93576 | E43: Sum of IF $ | F43: 36215886.76
B44: Tutors | C44: Sum of Tutors FTE | D44: 197.3915361 | E44: Sum of Tutors $ | F44: 14926238.79
B45: Guidance Counselors | C45: Sum of Guid. Couns. FTE | D45: 301.774301 | E45: Sum of Guid Couns $ | F45: 26116248.79
B46: Supervisory Aides | C46: Sum of Sup Aides FTE | D46: 441.1894772 | E46: Sum of Sup Aides $ | F46: 11026834.2
B47: Librarians | C47: Sum of Librarians Total FTE | D47: 197.3915361 | E47: Sum of Library Total Cost $ | F47: 18172827.47
B48: Substitutes | E48: Sum of Teacher and Pupil Support-Subs $ | F48: 2557106.278
B49: Total | D49: =SUM(D43:D48) -> 1616.68261 | F49: =SUM(F43:F48) -> 109015142.3
C50: Values | E50: Values
A51: School Administration | B51: Principals | C51: Sum of Principals Total FTE | D51: 197.3915361 | E51: Sum of Principal Total Cost $ | F51: 16901994.43
B52: Assistant Principals | C52: Sum of AP Total FTE | D52: 46.406405 | E52: Sum of AP Total $ | F52: 3897442.48
B53: Secreterial/Clerical | C53: Sum of Secretaries Total FTE | D53: 441.1894772 | E53: Sum of Secretary Total $ | F53: 16480516.62
B54: Total | D54: =SUM(D51:D53) -> 684.9874183 | F54: =SUM(F51:F53) -> 37279953.52
E55: Values
A56: Per Pupil Resources | B56: Materials | E56: Sum of Materials $ | F56: 14446013.73
B57: Equipment/Technology | E57: Sum of Equip/Tech $ | F57: 24041449
B58: Gifted & Talented | E58: Sum of GATE $ | F58: 2404144.9
B59: Professional Development | E59: Sum of PD $ | F59: 9616579.6
B60: Assessments | E60: Sum of Assess $ | F60: 2404144.9
B61: Student Activities | E61: Sum of Activities $ | F61: 24041449
B62: Total | F62: =SUM(F56:F61) -> 76953781.13
C63: Values | E63: Values
A64: Special Education | B64: Teachers | C64: Sum of SPED Teachers FTE | D64: 641.1053067 | E64: Sum of SPED Teacher Cost $ | F64: 48478729.56
B65: Aides | C65: Sum of SPED Aides FTE | D65: 641.1053067 | E65: Sum of SPED Aide Cost $ | F65: 16023414.62
B66: Substitutes | E66: Sum of SPED Subs $ | F66: 2423936.478
B67: Materials | E67: Sum of SPED Materials $ | F67: 961657.96
B68: Total | D68: =SUM(D64:D67) -> 1282.210613 | F68: =SUM(F64:F67) -> 67887738.63
C69: Values | E69: Values
A70: Low Income | B70: Pupil Support | C70: Sum of Low Income Pupil Sup FTE | D70: 494.375 | E70: Sum of Low Income Pupil Sup $ | F70: 37383362.26
B71: Summer School | C71: Sum of Low Income Sum Sch FTE | D71: 494.375 | E71: Sum of Low Income Sum Sch $ | F71: 37383362.26
B72: Extended Day | C72: Sum of Low Income Ext Day FTE | D72: 494.375 | E72: Sum of Low Income Ext Day $ | F72: 37383362.26
B73: Tutors | C73: Sum of Low Income Tutor FTE | D73: 494.375 | E73: Sum of Low Income Tutor $ | F73: 37383362.26
B74: Substitutes | E74: Sum of Low Income Sub $ | F74: 7476746.609
B75: Materials | E75: Sum of Low Income Materials $ | F75: 2373000
B76: Total | D76: =SUM(D70:D75) -> 1977.5 | F76: =SUM(F70:F75) -> 159383195.7
C77: Sum of EL Teacher FTE | E77: Values
A78: English Learners | B78: Teachers | C78: 64.82 | D78: =GETPIVOTDATA("EL Teacher FTE",$C$77) -> 64.82 | E78: Sum of EL Teacher Cost $ | F78: 4901521.197
B79: Substitutes | E79: Sum of EL Subs $ | F79: 245076.0599
B80: Materials | E80: Sum of EL Materials $ | F80: 64820
B81: Total | D81: =SUM(D78:D80) -> 64.82 | F81: =SUM(F78:F80) -> 5211417.257
C82: Values | E82: Values
A83: Small School Adjustment | B83: Principals | C83: Sum of Small/Alt AP FTE | D83: 17 | E83: Sum of Small/Alt AP $ | F83: 1427745.204
B84: Teachers | C84: Sum of Small/Alt Teacher FTE | D84: 54.092 | E84: Sum of Small/Alt Teacher $ | F84: 4090297.51
B85: Substitutes | E85: Sum of Small/Alt Teacher-Subs $ | F85: 204514.8755
B86: Total | D86: =SUM(D83:D85) -> 71.092 | F86: =SUM(F83:F85) -> 5722557.589

Sheet School Summary Tables
A1: =F6 -> Jefferson County
A2: =F7 -> Auburndale Elementary School
C4: Total Funding | F4: =H15 -> 6367203.339
F5: Students | H5: Resources
E6: District | F6: Jefferson County | G6: District | H6: Jefferson County
E7: School | F7: Auburndale Elementary School | G7: School | H7: Auburndale Elementary School
E9: Values | G9: Values
C10: Evidence-Based Funding Model | D10: Total K-12 | E10: Sum of Students-Total K-12 | F10: 585.08 | G10: Sum of Final Base EB Allocation $ | H10: 4554939.575
D11: Special Education | E11: Sum of Spec Needs-SPED | F11: 62 | G11: Sum of Final SPED $ | H11: 413034.1532
D12: Low Income | E12: Sum of Spec Needs-Low Income | F12: 487 | G12: Sum of Final Low Income $ | H12: 1308379.541
D13: English Learners | E13: Sum of Spec Needs-EL | F13: 113 | G13: Sum of Final EL Total $ | H13: 90850.06943
D14: Small School Adjustment | G14: Sum of Small/Alt Total $ | H14: 0
D15: Total | H15: =SUM(H10:H14) -> 6367203.339
C18: Evidence-Based Model Resources
F19: FTE | H19: Resources
E21: District | F21: Jefferson County | G21: District | H21: Jefferson County
E22: School | F22: Auburndale Elementary School | G22: School | H22: Auburndale Elementary School
E24: Sum of Core Teachers Total FTE | G24: Values
C25: Core Instruction | D25: Core Classroom Teachers | E25: 34.12693333 | F25: =GETPIVOTDATA("Core Teachers Total FTE",$E$24) -> 34.12693333 | G25: Sum of Teacher Total $ | H25: 2580590.669
D26: Substitutes | G26: Sum of Teachers-Subs $ | H26: 129029.5334
D27: Total | F27: =SUM(F25:F26) -> 34.12693333 | H27: =SUM(H25:H26) -> 2709620.202
E31: District | F31: Jefferson County | G31: District | H31: Jefferson County
E32: School | F32: Auburndale Elementary School | G32: School | H32: Auburndale Elementary School
C34: Specialist Teachers | E34: Sum of Specialist Teachers Total FTE | G34: Values
D35: Specialist Teachers | E35: 6.825386667 | F35: =GETPIVOTDATA("Specialist Teachers Total FTE",$E$34) -> 6.825386667 | G35: Sum of Specialist Teacher $ | H35: 516118.1337
D36: Substitutes | G36: Sum of Specialist Teacher-Subs $ | H36: 25805.90669
D37: Total | F37: =SUM(F35:F36) -> 6.825386667 | H37: =SUM(H35:H36) -> 541924.0404
E39: District | F39: Jefferson County | G39: District | H39: Jefferson County
E40: School | F40: Auburndale Elementary School | G40: School | H40: Auburndale Elementary School
E42: Values | G42: Values
C43: Teacher and Pupil Supports | D43: Instructional Facilitators | E43: Sum of IF FTE | F43: 2.9254 | G43: Sum of IF $ | H43: 221211.202
D44: Tutors | E44: Sum of Tutors FTE | F44: 1.300177778 | G44: Sum of Tutors $ | H44: 98316.08976
D45: Guidance Counselors | E45: Sum of Guid. Couns. FTE | F45: 1.300177778 | G45: Sum of Guid Couns $ | H45: 112520.4041
D46: Supervisory Aides | E46: Sum of Sup Aides FTE | F46: 2.600355556 | G46: Sum of Sup Aides $ | H46: 64991.78029
D47: Librarians | E47: Sum of Librarians Total FTE | F47: 1.300177778 | G47: Sum of Library Total Cost $ | H47: 119700.707
D48: Substitutes | G48: Sum of Teacher and Pupil Support-Subs $ | H48: 15976.36459
D49: Total | F49: =SUM(F43:F47) -> 9.426288889 | H49: =SUM(H43:H48) -> 632716.5478
E52: District | F52: Jefferson County | G52: District | H52: Jefferson County
E53: School | F53: Auburndale Elementary School | G53: School | H53: Auburndale Elementary School
E55: Values | G55: Values
C56: School Administration | D56: Principals | E56: Sum of Principals Total FTE | F56: 1.300177778 | G56: Sum of Principal Total Cost $ | H56: 111329.9891
D57: Assistant Principals | E57: Sum of AP Total FTE | F57: 0 | G57: Sum of AP Total $ | H57: 0
D58: Secreterial/Clerical | E58: Sum of Secretaries Total FTE | F58: 2.600355556 | G58: Sum of Secretary Total $ | H58: 97135.59628
D59: Total | F59: =SUM(F56:F58) -> 3.900533333 | H59: =SUM(H56:H58) -> 208465.5853
G61: District | H61: Jefferson County
G62: School | H62: Auburndale Elementary School
G64: Values
C65: Per Pupil Resources | D65: Materials | G65: Sum of Materials $ | H65: 81911.2
D66: Equipment/Technology | G66: Sum of Equip/Tech $ | H66: 146270
D67: Gifted & Talented | G67: Sum of GATE $ | H67: 14627
D68: Professional Development | G68: Sum of PD $ | H68: 58508
D69: Assessments | G69: Sum of Assess $ | H69: 14627
D70: Student Activities | G70: Sum of Activities $ | H70: 146270
D71: Total | H71: =SUM(H65:H70) -> 462213.2
E73: District | F73: Jefferson County | G73: District | H73: Jefferson County
E74: School | F74: Auburndale Elementary School | G74: School | H74: Auburndale Elementary School
E76: Values | G76: Values
C77: Special Education | D77: Teachers | E77: Sum of SPED Teachers FTE | F77: 3.900533333 | G77: Sum of SPED Teacher Cost $ | H77: 294948.2693
D78: Aides | E78: Sum of SPED Aides FTE | F78: 3.900533333 | G78: Sum of SPED Aide Cost $ | H78: 97487.67044
D79: Substitutes | G79: Sum of SPED Subs $ | H79: 14747.41346
D80: Materials | G80: Sum of SPED Materials $ | H80: 5850.8
D81: Total | F81: =SUM(F77:F78) -> 7.801066667 | H81: =SUM(H77:H80) -> 413034.1532
E82: District | F82: Jefferson County | G82: District | H82: Jefferson County
E83: School | F83: Auburndale Elementary School | G83: School | H83: Auburndale Elementary School
E85: Values | G85: Values
C86: Low Income | D86: Pupil Support | E86: Sum of Low Income Pupil Sup FTE | F86: 4.058333333 | G86: Sum of Low Income Pupil Sup $ | H86: 306880.6982
D87: Summer School | E87: Sum of Low Income Sum Sch FTE | F87: 4.058333333 | G87: Sum of Low Income Sum Sch $ | H87: 306880.6982
D88: Extended Day | E88: Sum of Low Income Ext Day FTE | F88: 4.058333333 | G88: Sum of Low Income Ext Day $ | H88: 306880.6982
D89: Tutors | E89: Sum of Low Income Tutor FTE | F89: 4.058333333 | G89: Sum of Low Income Tutor $ | H89: 306880.6982
D90: Substitutes | G90: Sum of Low Income Sub $ | H90: 61376.7484
D91: Materials | G91: Sum of Low Income Materials $ | H91: 19480
D92: Total | F92: =SUM(F86:F89) -> 16.23333333 | H92: =SUM(H86:H91) -> 1308379.541
E93: District | F93: Jefferson County | G93: District | H93: Jefferson County
E94: School | F94: Auburndale Elementary School | G94: School | H94: Auburndale Elementary School
E96: Sum of EL Teacher FTE | G96: Values
C97: English Learners | D97: Teachers | E97: 1.13 | F97: =GETPIVOTDATA("EL Teacher FTE",$E$96) -> 1.13 | G97: Sum of EL Teacher Cost $ | H97: 85447.68517
D98: Substitutes | G98: Sum of EL Subs $ | H98: 4272.384259
D99: Materials | G99: Sum of EL Materials $ | H99: 1130
D100: Total | F100: =SUM(F97:F98) -> 1.13 | H100: =SUM(H97:H99) -> 90850.06943
E102: District | F102: Jefferson County | G102: District | H102: Jefferson County
E103: School | F103: Auburndale Elementary School | G103: School | H103: Auburndale Elementary School
E105: Values | G105: Values
C106: Small School Adjustment | D106: Principals | E106: Sum of Small/Alt AP FTE | F106: 0 | G106: Sum of Small/Alt AP $ | H106: 0
D107: Teachers | E107: Sum of Small/Alt Teacher FTE | F107: 0 | G107: Sum of Small/Alt Teacher $ | H107: 0
D108: Substitutes | G108: Sum of Small/Alt Teacher-Subs $ | H108: 0
D109: Total | F109: =SUM(F106:F107) -> 0 | H109: =SUM(H106:H108) -> 0

Sheet State Summary Table
C1: KENTUCKY STATE TOTALS
C4: Total Funding | F4: =H16+H27 -> 9400055792
F5: Students | H5: Resources
E6: Values | G6: Values | U6: =F7 -> 662864.0205 | V6: =H7 -> 4338114934 | X6: 662864.0205 | Y6: 4338114934 | AA6: =X6-U6 -> 0 | AB6: =Y6-V6 -> 0
C7: Evidence-Based Funding Model | D7: Total K-12 | E7: Sum of Students-Total K-12 | F7: 662864.0205 | G7: Sum of Final Base EB Allocation $ | H7: 4338114934 | U7: =F8 -> 53080.00533 | V7: =H8 -> 572235126.8 | X7: 53080.00533 | Y7: 571122555 | AA7: =X7-U7 -> 0 | AB7: =Y7-V7 -> -1112571.813
D8: Pre-K | E8: Sum of Pk Student Count | F8: 53080.00533 | G8: Sum of PK EB Model $ | H8: 572235126.8 | U8: 86018 | V8: 438158594.2 | X8: 86018 | Y8: 438158594.2 | AA8: 0 | AB8: 0
D9: Special Education | E9: Sum of Spec Needs-SPED | F9: 86018 | G9: Sum of Final SPED $ | H9: 438158594.2 | U9: 376295 | V9: 916697860.7 | X9: 376295 | Y9: 916697860.7 | AA9: 0 | AB9: 0
D10: Low Income | E10: Sum of Spec Needs-Low Income | F10: 376295 | G10: Sum of Final Low Income $ | H10: 916697860.7 | U10: 20211 | V10: 15474423.21 | X10: 20211 | Y10: 15474423.21 | AA10: 0 | AB10: 0
D11: English Learners | E11: Sum of Spec Needs-EL | F11: 20211 | G11: Sum of Final EL Total $ | H11: 15474423.21 | U11: 0 | V11: 40434547.56 | X11: 0 | Y11: 40434547.56 | AA11: 0 | AB11: 0
D12: Small School Adjustment | G12: Sum of Small/Alt Total $ | H12: 40434547.56 | U12: 0 | V12: 10703977.04 | X12: 0 | Y12: 0 | AA12: 0 | AB12: -10703977.04
D13: Small District Adjustment | G13: Sum of Small District Adjustment | H13: 10703977.04 | U13: 0 | V13: 433695198.4 | X13: 0 | Y13: 419801382.4 | AA13: 0 | AB13: -13893815.96
D14: Central Office | G14: Sum of Central Office | H14: 433695198.4 | U14: 0 | V14: 480412752.1 | X14: 0 | Y14: 480412752.1 | AA14: 0 | AB14: 0
D15: Maintenance & Operations | G15: Sum of M&O | H15: 480412752.1 | U15: 0 | V15: 7245927414 | X15: 0 | Y15: 7220217049 | AA15: 0 | AB15: -25710364.81
D16: Total | H16: =SUM(H7:H15) -> 7245927414 | U16: 0 | V16: 0 | X16: 0 | Y16: 0 | AA16: 0 | AB16: 0
G17: Values | U17: 0 | V17: 347932132.3 | X17: 0 | Y17: 359009474 | AA17: 0 | AB17: 11077341.68
C18: Carry Forwards | D18: Food Service | G18: Sum of Food Service | H18: 347932132.3 | U18: 0 | V18: 60861321.9 | X18: 0 | Y18: 62419857 | AA18: 0 | AB18: 1558535.1
D19: Community Services | G19: Sum of Community Services | H19: 60861321.9 | U19: 0 | V19: 287214.59 | X19: 0 | Y19: 537219 | AA19: 0 | AB19: 250004.41
D20: Adult Education Operations | G20: Sum of Adult Education Operations | H20: 287214.59 | U20: 0 | V20: 6976258.6 | X20: 0 | Y20: 6797968 | AA20: 0 | AB20: -178290.6
D21: Facilities | G21: Sum of Facilities | H21: 6976258.6 | U21: 0 | V21: 715849097.2 | X21: 0 | Y21: 558445106 | AA21: 0 | AB21: -157403991.2
D22: Debt Service | G22: Sum of Debt Service | H22: 715849097.2 | U22: 0 | V22: 566478696.5 | X22: 0 | Y22: 570254097 | AA22: 0 | AB22: 3775400.49
D23: Fund Transfers | G23: Sum of Fund Transfers | H23: 566478696.5 | U23: 0 | V23: 418656456.5 | X23: 0 | Y23: 378339176 | AA23: 0 | AB23: -40317280.55
D24: Transportation | G24: Sum of Transportation | H24: 418656456.5 | U24: 0 | V24: 20951500 | X24: 0 | Y24: 20951500 | AA24: 0 | AB24: 0
D25: Kentucky Dept of Education Operations | H25: 20951500 | U25: 0 | V25: 16135700 | X25: 0 | Y25: 16135700 | AA25: 0 | AB25: 0
D26: Kentucky School for the Blind /Deaf General Fund Allocation | H26: 16135700 | U26: 0 | V26: 2154128378 | X26: 0 | Y26: 1972890097 | AA26: 0 | AB26: -181238280.6
D27: Total | H27: =SUM(H18:H26) -> 2154128378 | U27: 0 | V27: 0 | X27: 0 | Y27: 0 | AA27: 0 | AB27: 0
U28: 0 | V28: 0 | X28: 0 | Y28: 0 | AA28: 0 | AB28: 0
C29: Evidence-Based Model Resources | U29: FTE | V29: Resources | X29: FTE | Y29: Resources
F30: FTE | H30: Resources | U30: 0 | V30: 0 | X30: 0 | Y30: 0 | AA30: 0 | AB30: 0
E31: Sum of Core Teachers Total FTE | G31: Values | U31: 32060.0544 | V31: 2218565522 | X31: 32060.0544 | Y31: 2218565522 | AA31: 0 | AB31: 0
C32: Core Instruction | D32: Core Classroom Teachers | E32: 32060.0544 | F32: =GETPIVOTDATA("Core Teachers Total FTE",$E$31) -> 32060.0544 | G32: Sum of Teacher Total $ | H32: 2218565522 | U32: 0 | V32: 110928276.1 | X32: 0 | Y32: 110928276.1 | AA32: 0 | AB32: 0
D33: Substitutes | G33: Sum of Teachers-Subs $ | H33: 110928276.1 | U33: 32060.0544 | V33: 2329493799 | X33: 32060.0544 | Y33: 2329493799 | AA33: 0 | AB33: 0
D34: Total | F34: =SUM(F32:F33) -> 32060.0544 | H34: =SUM(H32:H33) -> 2329493799 | U34: 0 | V34: 0 | X34: 0 | Y34: 0 | AA34: 0 | AB34: 0
E35: Sum of Specialist Teachers Total FTE | G35: Values | U35: 7429.086053 | V35: 514117400 | X35: 7429.086053 | Y35: 514117400 | AA35: 0 | AB35: 0
C36: Specialist Teachers | D36: Specialist Teachers | E36: 7429.086053 | F36: =GETPIVOTDATA("Specialist Teachers Total FTE",$E$35) -> 7429.086053 | G36: Sum of Specialist Teacher $ | H36: 514117400 | U36: 0 | V36: 25705870 | X36: 0 | Y36: 25705870 | AA36: 0 | AB36: 0
D37: Substitutes | G37: Sum of Specialist Teacher-Subs $ | H37: 25705870 | U37: 7429.086053 | V37: 539823270 | X37: 7429.086053 | Y37: 539823270 | AA37: 0 | AB37: 0
D38: Total | F38: =SUM(F36:F37) -> 7429.086053 | H38: =SUM(H36:H37) -> 539823270 | U38: 0 | V38: 0 | X38: 0 | Y38: 0 | AA38: 0 | AB38: 0
E39: Values | G39: Values | U39: 3299.323126 | V39: 228327998.2 | X39: 3299.323126 | Y39: 228327998.2 | AA39: 0 | AB39: 0
C40: Teacher and Pupil Supports | D40: Instructional Facilitators | E40: Sum of IF FTE | F40: 3299.323126 | G40: Sum of IF $ | H40: 228327998.2 | U40: 1360.39401 | V40: 94143495.65 | X40: 1360.39401 | Y40: 94143495.65 | AA40: 0 | AB40: 0
D41: Tutors | E41: Sum of Tutors FTE | F41: 1360.39401 | G41: Sum of Tutors $ | H41: 94143495.65 | U41: 2079.153631 | V41: 164660266.9 | X41: 2079.153631 | Y41: 164660266.9 | AA41: 0 | AB41: 0
D42: Guidance Counselors | E42: Sum of Guid. Couns. FTE | F42: 2079.153631 | G42: Sum of Guid Couns $ | H42: 164660266.9 | U42: 3038.703491 | V42: 75947594.64 | X42: 3038.703491 | Y42: 75947594.64 | AA42: 0 | AB42: 0
D43: Supervisory Aides | E43: Sum of Sup Aides FTE | F43: 3038.703491 | G43: Sum of Sup Aides $ | H43: 75947594.64 | U43: 1360.39401 | V43: 114620536.9 | X43: 1360.39401 | Y43: 114620536.9 | AA43: 0 | AB43: 0
D44: Librarians | E44: Sum of Librarians Total FTE | F44: 1360.39401 | G44: Sum of Library Total Cost $ | H44: 114620536.9 | U44: 0 | V44: 16123574.69 | X44: 0 | Y44: 16123574.69 | AA44: 0 | AB44: 0
D45: Substitutes | G45: Sum of Teacher and Pupil Support-Subs $ | H45: 16123574.69 | U45: 11137.96827 | V45: 693823467 | X45: 11137.96827 | Y45: 693823467 | AA45: 0 | AB45: 0
D46: Total | F46: =SUM(F40:F45) -> 11137.96827 | H46: =SUM(H40:H45) -> 693823467 | U46: 0 | V46: 0 | X46: 0 | Y46: 0 | AA46: 0 | AB46: 0
E47: Values | G47: Values | U47: 1360.39401 | V47: 106605077.2 | X47: 1360.39401 | Y47: 106605077.2 | AA47: 0 | AB47: 0
C48: School Administration | D48: Principals | E48: Sum of Principals Total FTE | F48: 1360.39401 | G48: Sum of Principal Total Cost $ | H48: 106605077.2 | U48: 317.9154703 | V48: 24442053.81 | X48: 317.9154703 | Y48: 24442053.81 | AA48: 0 | AB48: 0
D49: Assistant Principals | E49: Sum of AP Total FTE | F49: 317.9154703 | G49: Sum of AP Total $ | H49: 24442053.81 | U49: 3038.703491 | V49: 113509967.8 | X49: 3038.703491 | Y49: 113509967.8 | AA49: 0 | AB49: 0
D50: Secreterial/Clerical | E50: Sum of Secretaries Total FTE | F50: 3038.703491 | G50: Sum of Secretary Total $ | H50: 113509967.8 | U50: 4717.012971 | V50: 244557098.9 | X50: 4717.012971 | Y50: 244557098.9 | AA50: 0 | AB50: 0
D51: Total | F51: =SUM(F48:F50) -> 4717.012971 | H51: =SUM(H48:H50) -> 244557098.9 | U51: 0 | V51: 0 | X51: 0 | Y51: 0 | AA51: 0 | AB51: 0
G52: Values | U52: 0 | V52: 99555686.46 | X52: 0 | Y52: 99555686.46 | AA52: 0 | AB52: 0
C53: Per Pupil Resources | D53: Materials | G53: Sum of Materials $ | H53: 99555686.46 | U53: 0 | V53: 165716005.1 | X53: 0 | Y53: 165716005.1 | AA53: 0 | AB53: 0
D54: Equipment/Technology | G54: Sum of Equip/Tech $ | H54: 165716005.1 | U54: 0 | V54: 16571600.51 | X54: 0 | Y54: 16571600.51 | AA54: 0 | AB54: 0
D55: Gifted & Talented | G55: Sum of GATE $ | H55: 16571600.51 | U55: 0 | V55: 66286402.05 | X55: 0 | Y55: 66286402.05 | AA55: 0 | AB55: 0
D56: Professional Development | G56: Sum of PD $ | H56: 66286402.05 | U56: 0 | V56: 16571600.51 | X56: 0 | Y56: 16571600.51 | AA56: 0 | AB56: 0
D57: Assessments | G57: Sum of Assess $ | H57: 16571600.51 | U57: 0 | V57: 165716005.1 | X57: 0 | Y57: 165716005.1 | AA57: 0 | AB57: 0
D58: Student Activities | G58: Sum of Activities $ | H58: 165716005.1 | U58: 0 | V58: 530417299.8 | X58: 0 | Y58: 530417299.8 | AA58: 0 | AB58: 0
D59: Total | H59: =SUM(H53:H58) -> 530417299.8 | U59: 0 | V59: 0 | X59: 0 | Y59: 0 | AA59: 0 | AB59: 0
E60: Values | G60: Values | U60: 4419.09347 | V60: 305792087.6 | X60: 4419.09347 | Y60: 305792087.6 | AA60: 0 | AB60: 0
C61: Special Education | D61: Teachers | E61: Sum of SPED Teachers FTE | F61: 4419.09347 | G61: Sum of SPED Teacher Cost $ | H61: 305792087.6 | U61: 4419.09347 | V61: 110448262.1 | X61: 4419.09347 | Y61: 110448262.1 | AA61: 0 | AB61: 0
D62: Aides | E62: Sum of SPED Aides FTE | F62: 4419.09347 | G62: Sum of SPED Aide Cost $ | H62: 110448262.1 | U62: 0 | V62: 15289604.38 | X62: 0 | Y62: 15289604.38 | AA62: 0 | AB62: 0
D63: Substitutes | G63: Sum of SPED Subs $ | H63: 15289604.38 | U63: 0 | V63: 6628640.205 | X63: 0 | Y63: 6628640.205 | AA63: 0 | AB63: 0
D64: Materials | G64: Sum of SPED Materials $ | H64: 6628640.205 | U64: 8838.18694 | V64: 438158594.2 | X64: 8838.18694 | Y64: 438158594.2 | AA64: 0 | AB64: 0
D65: Total | F65: =SUM(F61:F64) -> 8838.18694 | H65: =SUM(H61:H64) -> 438158594.2 | L65: =H65/GETPIVOTDATA("Sum of Students-Total K-12",$E$6) -> 661.0082622 | M65: SPED | U65: 0 | V65: 0 | X65: 0 | Y65: 0 | AA65: 0 | AB65: 0
E66: Values | G66: Values | U66: 3132.258333 | V66: 214681559.7 | X66: 3132.258333 | Y66: 214681559.7 | AA66: 0 | AB66: 0
C67: Low Income | D67: Pupil Support | E67: Sum of Low Income Pupil Sup FTE | F67: 3132.258333 | G67: Sum of Low Income Pupil Sup $ | H67: 214681559.7 | U67: 3132.258333 | V67: 214681559.7 | X67: 3132.258333 | Y67: 214681559.7 | AA67: 0 | AB67: 0
D68: Summer School | E68: Sum of Low Income Sum Sch FTE | F68: 3132.258333 | G68: Sum of Low Income Sum Sch $ | H68: 214681559.7 | U68: 3132.258333 | V68: 214681559.7 | X68: 3132.258333 | Y68: 214681559.7 | AA68: 0 | AB68: 0
D69: Extended Day | E69: Sum of Low Income Ext Day FTE | F69: 3132.258333 | G69: Sum of Low Income Ext Day $ | H69: 214681559.7 | U69: 3132.258333 | V69: 214681559.7 | X69: 3132.258333 | Y69: 214681559.7 | AA69: 0 | AB69: 0
D70: Tutors | E70: Sum of Low Income Tutor FTE | F70: 3132.258333 | G70: Sum of Low Income Tutor $ | H70: 214681559.7 | U70: 0 | V70: 42936781.79 | X70: 0 | Y70: 42936781.79 | AA70: 0 | AB70: 0
D71: Substitutes | G71: Sum of Low Income Sub $ | H71: 42936781.79 | U71: =F72 -> 0 | V71: =H72 -> 15034840 | X71: 0 | Y71: 15034840 | AA71: =X71-U71 -> 0 | AB71: =Y71-V71 -> 0
D72: Materials | G72: Sum of Low Income Materials $ | H72: 15034840 | U72: 12529.03333 | V72: 916697860.7 | X72: 12529.03333 | Y72: 916697860.7 | AA72: 0 | AB72: 0
D73: Total | F73: =SUM(F67:F72) -> 12529.03333 | H73: =SUM(H67:H72) -> 916697860.7 | L73: =H73/GETPIVOTDATA("Sum of Spec Needs-Low Income",$E$6) -> 2436.114912 | M73: Low Income | U73: 0 | V73: 0 | X73: 0 | Y73: 0 | AA73: 0 | AB73: 0
E74: Sum of EL Teacher FTE | G74: Values | U74: 201.7 | V74: 14545450.67 | X74: 201.7 | Y74: 14545450.67 | AA74: 0 | AB74: 0
C75: English Learners | D75: Teachers | E75: 201.7 | F75: =GETPIVOTDATA("EL Teacher FTE",$E$74) -> 201.7 | G75: Sum of EL Teacher Cost $ | H75: 14545450.67 | U75: 0 | V75: 727272.5337 | X75: 0 | Y75: 727272.5337 | AA75: 0 | AB75: 0
D76: Substitutes | G76: Sum of EL Subs $ | H76: 727272.5337 | U76: 0 | V76: 201700 | X76: 0 | Y76: 201700 | AA76: 0 | AB76: 0
D77: Materials | G77: Sum of EL Materials $ | H77: 201700 | U77: 201.7 | V77: 15474423.21 | X77: 201.7 | Y77: 15474423.21 | AA77: 0 | AB77: 0
D78: Total | F78: =SUM(F75:F77) -> 201.7 | H78: =SUM(H75:H77) -> 15474423.21 | L78: =H78/GETPIVOTDATA("Sum of Spec Needs-EL",$E$6) -> 765.6436202 | M78: EL | U78: 0 | V78: 0 | X78: 0 | Y78: 0 | AA78: 0 | AB78: 0
E79: Values | G79: Values | U79: 132 | V79: 9952524.361 | X79: 132 | Y79: 9952524.361 | AA79: 0 | AB79: 0
C80: Small School Adjustment | D80: Principals | E80: Sum of Small/Alt AP FTE | F80: 132 | G80: Sum of Small/Alt AP $ | H80: 9952524.361 | U80: 428.4850476 | V80: 29030498.29 | X80: 428.4850476 | Y80: 29030498.29 | AA80: 0 | AB80: 0
D81: Teachers | E81: Sum of Small/Alt Teacher FTE | F81: 428.4850476 | G81: Sum of Small/Alt Teacher $ | H81: 29030498.29 | U81: 0 | V81: 1451524.914 | X81: 0 | Y81: 1451524.914 | AA81: 0 | AB81: 0
D82: Substitutes | G82: Sum of Small/Alt Teacher-Subs $ | H82: 1451524.914 | U82: 560.4850476 | V82: =H83 -> 40434547.56 | X82: 0 | Y82: 1451524.914 | AA82: -560.4850476 | AB82: -38983022.65
D83: Total | F83: =SUM(F80:F82) -> 560.4850476 | H83: =SUM(H80:H82) -> 40434547.56 | U83: =F84 -> 0 | V83: =H84 -> 0 | X83: 0 | Y83: 1451524.914 | AA83: 0 | AB83: 1451524.914
U84: 0 | V84: 0 | X84: 0 | Y84: 1451524.914 | AA84: 0 | AB84: 1451524.914
U85: 0 | V85: 0 | X85: 0 | Y85: 1451524.914
U86: 0 | V86: 0 | X86: 0 | Y86: 1451524.914
U87: 0 | V87: 0 | X87: 0 | Y87: 1451524.914
U88: 0 | V88: 0 | X88: 0 | Y88: 1451524.914
U89: 0 | V89: 0 | X89: 0 | Y89: 1451524.914

Sheet K-12 School Resources
A1: K-12 School Resources Worksheet | D1: =IF(Inputs!B49=1,"Enrollment",IF(Inputs!B49=2,"ADM",IF(Inputs!B49=3,"AADA"))) -> Enrollment
A3: 1 | B3: 2 | C3: 3 | D3: 4 | E3: 5 | F3: 6 | G3: 7 | H3: 8 | I3: 9 | J3: 10 | K3: 11 | L3: 12 | M3: 13 | N3: 14 | O3: 15 | P3: 16 | Q3: 17 | R3: 18 | S3: 19 | T3: 20 | U3: 21 | V3: 22 | W3: 23 | X3: 24 | Y3: 25 | Z3: 26 | AA3: 27 | AB3: 28 | AC3: 29 | AD3: 30 | AE3: 31 | AF3: 32 | AG3: 33 | AH3: 34 | AI3: 35 | AJ3: 36 | AK3: 37 | AL3: 38 | AM3: 39 | AN3: 40 | AO3: 41 | AP3: 42 | AQ3: 43 | AR3: 44 | AS3: 45 | AT3: 46 | AU3: 47 | AV3: 48 | AW3: 49 | AX3: 50 | AY3: 51 | AZ3: 52 | BA3: 53 | BB3: 54 | BC3: 55 | BD3: 56 | BE3: 57 | BF3: 58 | BG3: 59 | BH3: 60 | BI3: 61 | BJ3: 62 | BK3: 63 | BL3: 64 | BM3: 65 | BN3: 66 | BO3: 67 | BP3: 68 | BQ3: 69 | BR3: 70 | BS3: 71 | BT3: 72 | BU3: 73 | BV3: 74 | BW3: 75 | BX3: 76 | BY3: 77 | BZ3: 78 | CA3: 79 | CB3: 80 | CC3: 81 | CD3: 82 | CE3: 83 | CF3: 84 | CG3: 85 | CH3: 86 | CJ3: 87 | CK3: 88 | CL3: 89 | CM3: 90 | CN3: 91 | CO3: 92 | CQ3: 93 | CR3: 94 | CS3: 95 | CT3: 96 | CU3: 97 | CV3: 98 | CW3: 99 | CX3: 100 | CY3: 101 | CZ3: 102 | DA3: 103 | DB3: 104 | DC3: 105 | DD3: 106 | DE3: 107 | DF3: 108 | DG3: 109 | DH3: 110 | DI3: 111 | DJ3: 112 | DK3: 113 | DL3: 114 | DM3: 115 | DN3: 116 | DO3: 117 | DP3: 118 | DQ3: 119 | DR3: 120 | DS3: 121 | DT3: 122 | DU3: 123 | DV3: 124 | DW3: 125 | DX3: 126 | DY3: 127 | DZ3: 128 | EA3: 129 | EB3: 130 | EC3: 131 | ED3: 132 | EE3: 133 | EF3: 134 | EG3: 135 | EH3: 136 | EI3: 137 | EJ3: 138 | EK3: 139 | EL3: 140 | EM3: 141 | EN3: 142 | EO3: 143 | EP3: 144 | EQ3: 145 | ER3: 146 | ES3: 147 | ET3: 148 | EU3: 149 | EV3: 150 | EW3: 151 | EX3: 152 | EY3: 153 | EZ3: 154 | FA3: 155 | FB3: 156 | FC3: 157 | FD3: 158 | FE3: 159 | FF3: 160 | FG3: 161 | FH3: 162 | FI3: 163 | FK3: 164 | FL3: 165 | FM3: 166 | FN3: 167 | FO3: 168 | FP3: 169 | FQ3: 170 | FR3: 171 | FS3: 172 | FT3: 173 | FU3: 174 | FV3: 175 | FW3: 176 | FX3: 177 | FY3: 178 | FZ3: 179 | GA3: 180 | GB3: 181 | GC3: 182 | GI3: 183
A4: District and School Information | J4: Reg Cost | L4: Student Counts | W4: Regular Classroom Teacher FTEs | AO4: Specialist Teacher FTEs | AT4: Library | AY4: Teacher and Student Support | BE4: Admin Staff FTEs | BS4: Regular Classroom Teacher Costs | CM4: Specialist Teacher Costs | CT4: Library Costs | CY4: Teacher and Pupil Support Costs | DF4: Administrative Staff Costs | DT4: Per-Student Costs | EB4: Special Education Resources (Low and Moderate Disability) | EK4: Low Income Resources | EX4: EL Resources | FE4: Small School Adjustments | FX4: Total School Resources
A5: =ADM!A5 -> ID | B5: =ADM!B5 -> District Number | C5: =ADM!C5 -> Sch ID | D5: =ADM!D5 -> District/School | E5: =ADM!E5 -> District | F5: =ADM!F5 -> School | G5: x1 | H5: leaid | I5: lea_name | J5: CWI | K5: x2 | L5: Students-Elem | M5: Students-Mid | N5: Students-High | O5: Students-Total K-12 | P5: x3 | Q5: Small/Alt Flag | R5: x4 | S5: Spec Needs-SPED | T5: Spec Needs-Low Income | U5: Spec Needs-EL | V5: x5 | W5: Teach K (EL) FTE | X5: Teach 1 FTE | Y5: Teach 2 FTE | Z5: Teach 3 FTE | AA5: Teach 4 FTE | AB5: Teach 5 FTE | AC5: Teach 6 FTE | AD5: Teach 7 FTE | AE5: Teach 8 FTE | AF5: Teach 9 FTE | AG5: Teach 10 FTE | AH5: Teach 11 FTE | AI5: Teach 12 + Teach 14 FTE | AJ5: Teach- Elem FTE | AK5: Teach-Mid FTE | AL5: Teach-High + Grade 14 FTE | AM5: Core Teachers Total FTE | AN5: x6 | AO5: Specialist-Elem FTE | AP5: Specialist-Mid FTE | AQ5: Specialist-High FTE | AR5: Specialist Teachers Total FTE | AS5: x7 | AT5: Library-Elem | AU5: Library-Mid | AV5: Library-High | AW5: Librarians Total FTE | AX5: x8 | AY5: IF FTE | AZ5: Tutors FTE | BA5: Guid. Couns. FTE | BB5: Sup Aides FTE | BC5: Teacher and Student Support Total FTE | BD5: x9 | BE5: Prin Elem FTE | BF5: Prin Mid FTE | BG5: Prin High FTE | BH5: Principals Total FTE | BI5: AP Elem FTE | BJ5: AP Mid FTE | BK5: AP High FTE | BL5: AP Total FTE | BM5: Sec Elem FTE | BN5: Sec Mid FTE | BO5: Sec High FTE | BP5: Secretaries Total FTE | BQ5: Admin Total FTE | BR5: x10 | BS5: Teach K (EL) $ | BT5: Teach 1 $ | BU5: Teach 2 $ | BV5: Teach 3 $ | BW5: Teach 4 $ | BX5: Teach 5 $ | BY5: Teach 6 $ | BZ5: Teach 7 $ | CA5: Teach 8 $ | CB5: Teach 9 $ | CC5: Teach 10 $ | CD5: Teach 11 $ | CE5: Teach 12 $ | CF5: Teach Elem $ | CG5: Teach Mid $ | CH5: Teach High $ | CI5: Teacher Total $ | CJ5: Teachers-Subs $ | CK5: Classroom Teacher Total Cost $ | CL5: x11 | CM5: Specialist Elem $ | CN5: Specialist Mid $ | CO5: Specialist High $ | CP5: Specialist Teacher $ | CQ5: Specialist Teacher-Subs $ | CR5: Specialist Teacher Cost $ | CS5: x12 | CT5: Library Elem $ | CU5: Library Mid $ | CV5: Library High $ | CW5: Library Total Cost $ | CX5: x13 | CY5: IF $ | CZ5: Tutors $ | DA5: Guid Couns $ | DB5: Sup Aides $ | DC5: Teacher and Pupil Support-Subs $ | DD5: Teacher and Pupil Support Total Cost $ | DE5: x14 | DF5: Prin Elem $ | DG5: Prin Mid $ | DH5: Prin-High $ | DI5: Principal Total Cost $ | DJ5: AP Elem $ | DK5: AP Mid $ | DL5: AP High $ | DM5: AP Total $ | DN5: Sec Elem $ | DO5: Sec Mid $ | DP5: Sec High $ | DQ5: Secretary Total $ | DR5: Admin Total Cost $ | DS5: x15 | DT5: Materials $ | DU5: Equip/Tech $ | DV5: GATE $ | DW5: PD $ | DX5: Assess $ | DY5: Activities $ | DZ5: Dollar Per-Student Total Cost $ | EA5: x16 | EB5: SPED Teachers FTE | EC5: SPED Aides FTE | ED5: SPED Teacher Cost $ | EE5: SPED Aide Cost $ | EF5: SPED Subs $ | EG5: SPED Materials $ | EH5: SPED Total FTE | EI5: SPED Total Cost (Low and Moderate Disability) $ | EJ5: x17 | EK5: Low Income Pupil Sup FTE | EL5: Low Income Sum Sch FTE | EM5: Low Income Ext Day FTE | EN5: Low Income Tutor FTE | EO5: Low Income Pupil Sup $ | EP5: Low Income Sum Sch $ | EQ5: Low Income Ext Day $ | ER5: Low Income Tutor $ | ES5: Low Income Sub $ | ET5: Low Income Materials $ | EU5: Low Income Total FTE | EV5: Low Income Total Cost $ | EW5: x18 | EX5: EL Teacher FTE | EY5: EL Teacher Cost $ | EZ5: EL Subs $ | FA5: EL Materials $ | FB5: EL Total FTE | FC5: EL Total Cost $ | FD5: x19 | FE5: Small/Alt AP FTE | FF5: Small/Alt Teacher FTE | FG5: Small/Alt AP $ | FH5: Small/Alt Teacher $ | FI5: Small/Alt Teacher-Subs $ | FJ5: Small/Alt Total FTE | FK5: Small/Alt Total Cost $ | FL5: x20 | FM5: x21 | FN5: x22 | FO5: x23 | FP5: x24 | FQ5: x25 | FR5: x26 | FS5: x27 | FT5: x28 | FU5: x29 | FV5: x30 | FW5: x31 | FX5: Final Base EB Allocation $ | FY5: Final SPED $ | FZ5: Final Low Income $ | GA5: Final EL Total $ | GB5: Small/Alt Total $ | GC5: Final K-12 Model Cost $ | GD5: Per Pupil Base EB $ | GE5: Per Pupil SPED $ | GF5: Per Pupil Low Income $ | GG5: Per Pupil EL $ | GH5: Per Pupil Small School $ | GI5: Final Per K-12 Student Cost $
A6: =ADM!A6 -> 001010 | B6: =ADM!B6 -> 001 | C6: =ADM!C6 -> 010 | D6: =ADM!D6 -> Adair County 001 - Adair County High School 010 AADA | E6: =ADM!E6 -> Adair County | F6: =ADM!F6 -> Adair County High School | H6: 2100030 | I6: ADAIR CO SCH DIST | J6: =IF(Inputs!$B$169<>1,1,K6) -> 0.8806509857 | K6: 0.8806509857 | L6: =SUM('Model Student Counts'!I6:N6) -> 0 | M6: =SUM('Model Student Counts'!O6:Q6) -> 0 | N6: =SUM('Model Student Counts'!R6:U6) -> 735.17 | O6: =SUM(L6:N6) -> 735.17 | Q6: =IF(Inputs!$B$178=1,IF(O6<Inputs!$B$179,1,0),0) -> 0 | S6: =IF(O6=0,0,VLOOKUP(A6,'Special Student Counts'!$A$5:$Q$1377,4,FALSE)) -> 76 | T6: =IF(Inputs!$B$61=1,VLOOKUP(A6,'Special Student Counts'!$A$5:$Q$1377,13),VLOOKUP(A6,'Special Student Counts'!$A$5:$Q$1377,9,FALSE)) -> 442 | U6: =IF(O6=0,0,VLOOKUP(A6,'Special Student Counts'!$A$5:$Q$1377,6,FALSE)) -> 6 | W6: =IF(Q6=1,0,'Model Student Counts'!I6/Inputs!$B$83) -> 0 | X6: =IF(Q6=1,0,'Model Student Counts'!J6/Inputs!$B$84) -> 0 | Y6: =IF(Q6=1,0,'Model Student Counts'!K6/Inputs!$B$85) -> 0 | Z6: =IF(Q6=1,0,'Model Student Counts'!L6/Inputs!$B$86) -> 0 | AA6: =IF(Q6=1,0,'Model Student Counts'!M6/Inputs!$B$87) -> 0 | AB6: =IF(Q6=1,0,'Model Student Counts'!N6/Inputs!$B$88) -> 0 | AC6: =IF(Q6=1,0,'Model Student Counts'!O6/Inputs!$B$89) -> 0 | AD6: =IF(Q6=1,0,'Model Student Counts'!P6/Inputs!$B$90) -> 0 | AE6: =IF(Q6=1,0,'Model Student Counts'!Q6/Inputs!$B$91) -> 0 | AF6: =IF(Q6=1,0,'Model Student Counts'!R6/Inputs!$B$92) -> 8.0124 | AG6: =IF(Q6=1,0,'Model Student Counts'!S6/Inputs!$B$93) -> 6.838 | AH6: =IF(Q6=1,0,'Model Student Counts'!T6/Inputs!$B$94) -> 7.6264 | AI6: =IF(Q6=1,0,'Model Student Counts'!U6/Inputs!$B$95) -> 6.93 | AJ6: =SUM(W6:AB6) -> 0 | AK6: =SUM(AC6:AE6) -> 0 | AL6: =SUM(AF6:AI6) -> 29.4068 | AM6: =SUM(AJ6:AL6) -> 29.4068 | AO6: =IF(Q6=1,0,Inputs!$B$55*AJ6) -> 0 | AP6: =IF(Q6=1,0,Inputs!$B$56*AK6) -> 0 | AQ6: =IF(Q6=1,0,Inputs!$B$57*AL6) -> 9.80128644 | AR6: =SUM(AO6:AQ6) -> 9.80128644 | AT6: =IF(Q6=1,0,L6/Inputs!$C$140) -> 0 | AU6: =IF(Q6=1,0,M6/Inputs!$D$140) -> 0 | AV6: =IF(Q6=1,0,N6/Inputs!$E$140) -> 1.225283333 | AW6: =SUM(AT6:AV6) -> 1.225283333 | AY6: =IF(Q6=1,0,(L6/Inputs!$C$134+M6/Inputs!$D$134+N6/Inputs!$E$134)) -> 3.67585 | AZ6: =IF(Q6=1,0,(L6/Inputs!$C$135+M6/Inputs!$D$135+N6/Inputs!$E$135)) -> 1.225283333 | BA6: =IF(Q6=1,0,L6/Inputs!$C$137+M6/Inputs!$D$137+N6/Inputs!$E$137) -> 2.94068 | BB6: =IF(Q6=1,0,L6/Inputs!$C$138+M6/Inputs!$D$138+N6/Inputs!$E$138) -> 3.67585 | BC6: =SUM(AY6:BB6) -> 11.51766333 | BE6: =IF(Q6=1,0,L6/Inputs!$C$142) -> 0 | BF6: =IF(Q6=1,0,M6/Inputs!$D$142) -> 0 | BG6: =IF(Q6=1,0,N6/Inputs!$E$142) -> 1.225283333 | BH6: =SUM(BE6:BG6) -> 1.225283333 | BI6: 0 | BJ6: 0 | BK6: =IF(Q6=1,0,N6/Inputs!$E$143) -> 1.225283333 | BL6: =SUM(BI6:BK6) -> 1.225283333 | BM6: =IF(Q6=1,0,L6/Inputs!$C$144) -> 0 | BN6: =IF(Q6=1,0,M6/Inputs!$D$144) -> 0 | BO6: =IF(Q6=1,0,N6/Inputs!$E$144) -> 3.67585 | BP6: =SUM(BM6:BO6) -> 3.67585 | BQ6: =BP6+BL6+BH6 -> 6.126416667 | BS6: =IF(Inputs!$B$169=1,Inputs!$G$107*W6*$J6,W6*Inputs!$G$107) -> 0 | BT6: =IF(Inputs!$B$169=1,Inputs!$G$107*X6*$J6,X6*Inputs!$G$107) -> 0 | BU6: =IF(Inputs!$B$169=1,Inputs!$G$107*Y6*$J6,Y6*Inputs!$G$107) -> 0 | BV6: =IF(Inputs!$B$169=1,Inputs!$G$107*Z6*$J6,Z6*Inputs!$G$107) -> 0 | BW6: =IF(Inputs!$B$169=1,Inputs!$G$107*AA6*$J6,AA6*Inputs!$G$107) -> 0 | BX6: =IF(Inputs!$B$169=1,Inputs!$G$107*AB6*$J6,AB6*Inputs!$G$107) -> 0 | BY6: =IF(Inputs!$B$169=1,Inputs!$G$107*AC6*$J6,AC6*Inputs!$G$107) -> 0 | BZ6: =IF(Inputs!$B$169=1,Inputs!$G$107*AD6*$J6,AD6*Inputs!$G$107) -> 0 | CA6: =IF(Inputs!$B$169=1,Inputs!$G$107*AE6*$J6,AE6*Inputs!$G$107) -> 0 | CB6: =IF(Inputs!$B$169=1,Inputs!$G$107*AF6*$J6,AF6*Inputs!$G$107) -> 472452.6291 | CC6: =IF(Inputs!$B$169=1,Inputs!$G$107*AG6*$J6,AG6*Inputs!$G$107) -> 403203.9187 | CD6: =IF(Inputs!$B$169=1,Inputs!$G$107*AH6*$J6,AH6*Inputs!$G$107) -> 449692.0686 | CE6: =IF(Inputs!$B$169=1,Inputs!$G$107*AI6*$J6,AI6*Inputs!$G$107) -> 408628.7155 | CF6: =SUM(BS6:BX6) -> 0 | CG6: =SUM(BY6:CA6) -> 0 | CH6: =SUM(CB6:CE6) -> 1733977.332 | CI6: =SUM(CF6:CH6) -> 1733977.332 | CJ6: =SUM(CF6:CH6)*Inputs!$E$136 -> 86698.8666 | CK6: =SUM(CF6:CH6,CJ6) -> 1820676.199 | CM6: =IF(Inputs!$B$169=1,Inputs!$G$107*AO6*$J6,AO6*Inputs!$G$107) -> 0 | CN6: =IF(Inputs!$B$169=1,Inputs!$G$107*AP6*$J6,AP6*Inputs!$G$107) -> 0 | CO6: =IF(Inputs!$B$169=1,Inputs!$G$107*AQ6*$J6,AQ6*Inputs!$G$107) -> 577934.6447 | CP6: =SUM(CM6:CO6) -> 577934.6447 | CQ6: =SUM(CM6:CO6)*Inputs!$E$136 -> 28896.73224 | CR6: =SUM(CM6:CO6,CQ6) -> 606831.377 | CT6: =IF(Inputs!$B$169=1,AT6*Inputs!$G$110*$J6,AT6*Inputs!$G$110) -> 0 | CU6: =IF(Inputs!$B$169=1,AU6*Inputs!$G$110*$J6,AU6*Inputs!$G$110) -> 0 | CV6: =IF(Inputs!$B$169=1,AV6*Inputs!$G$110*$J6,AV6*Inputs!$G$110) -> 87963.86276 | CW6: =SUM(CT6:CV6) -> 87963.86276 | CY6: =IF(Inputs!$B$169=1, AY6*Inputs!$G$107*$J6,AY6*Inputs!$G$107) -> 216747.1665 | CZ6: =IF(Inputs!$B$169=1, AZ6*Inputs!$G$107*$J6,AZ6*Inputs!$G$107) -> 72249.0555 | DA6: =IF(Inputs!$B$169=1, BA6*Inputs!$G$109*$J6,BA6*Inputs!$G$109) -> 198449.5423 | DB6: =IF(Q6=1,0,BB6*Inputs!$G$113) -> 91872.06537 | DC6: =SUM(CY6:CZ6)*Inputs!$E$136 -> 14449.8111 | DD6: =SUM(CY6:DC6) -> 593767.6408 | DF6: =IF(Inputs!$B$169=1,BE6*Inputs!$G$105*$J6, BE6*Inputs!$G$105) -> 0 | DG6: =IF(Inputs!$B$169=1, BF6*Inputs!$G$105*$J6, BF6*Inputs!$G$105) -> 0 | DH6: =IF(Inputs!$B$169=1,BG6*Inputs!$G$105*$J6,BG6*Inputs!$G$105) -> 81812.5149 | DI6: =SUM(DF6:DH6) -> 81812.5149 | DJ6: =IF(Inputs!$B$169=1, (BI6*SUM(Inputs!$D$106:$E$106)*$J6 + BI6*Inputs!$F$106), BI6*Inputs!$G$106) -> 0 | DK6: =IF(Inputs!$B$169=1, (BJ6*SUM(Inputs!$D$106:$E$106)*$J6 + BJ6*Inputs!$F$106), BJ6*Inputs!$G$106) -> 0 | DL6: =IF(Inputs!$B$169=1,BK6*Inputs!$G$106*$J6,BK6*Inputs!$G$106) -> 80243.91404 | DM6: =SUM(DJ6:DL6) -> 80243.91404 | DN6: =BM6*Inputs!$G$112 -> 0 | DO6: =BN6*Inputs!$G$112 -> 0 | DP6: =BO6*Inputs!$G$112 -> 137310.4077 | DQ6: =SUM(DN6:DP6) -> 137310.4077 | DR6: =DQ6+DM6+DI6 -> 299366.8367 | DT6: =Inputs!$B$156*L6+Inputs!$B$157*M6+Inputs!$B$158*N6 -> 128654.75 | DU6: =Inputs!$B$159*O6 -> 183792.5 | DV6: =Inputs!$B$160*$O6 -> 18379.25 | DW6: =Inputs!$B$161*$O6 -> 73517 | DX6: =Inputs!$B$162*$O6 -> 18379.25 | DY6: =O6*Inputs!$B$163 -> 183792.5 | DZ6: =SUM(DT6:DY6) -> 606515.25 | EB6: =O6/Inputs!$E$146 -> 4.901133333 | EC6: =O6/Inputs!$E$146 -> 4.901133333 | ED6: =IF(Inputs!$B$169=1,EB6*Inputs!$G$107*$J6,EB6*Inputs!$G$107) -> 288996.222 | EE6: =EC6*Inputs!$G$113 -> 122496.0872 | EF6: =ED6*Inputs!$E$136 -> 14449.8111 | EG6: =Inputs!$B$165*O6 -> 7351.7 | EH6: =EB6+EC6 -> 9.802266667 | EI6: =SUM(ED6:EG6) -> 433293.8203 | EK6: =IF(Q6=1,0,T6/Inputs!$E$147) -> 3.683333333 | EL6: =IF(Q6=1,0,T6/Inputs!$E$148) -> 3.683333333 | EM6: =IF(Q6=1,0,T6/Inputs!$E$149) -> 3.683333333 | EN6: =IF(Q6=1,0,T6/Inputs!$E$150) -> 3.683333333 | EO6: =IF(Inputs!$B$169=1, EK6*Inputs!$G$107*$J6,EK6*Inputs!$G$107) -> 217188.4226 | EP6: =IF(Inputs!$B$169=1,EL6*Inputs!$G$107*$J6,EL6*Inputs!$G$107) -> 217188.4226 | EQ6: =IF(Inputs!$B$169=1,EM6*Inputs!$G$107*$J6,EM6*Inputs!$G$107) -> 217188.4226 | ER6: =IF(Inputs!$B$169=1,EN6*Inputs!$G$107*$J6,EN6*Inputs!$G$107) -> 217188.4226 | ES6: =SUM(EL6:ER6)*Inputs!$E$136 -> 43438.23702 | ET6: =IF(Q6=1,0,IF(SUM(EK6:EN6)>0,T6*4*Inputs!$B$165,0)) -> 17680 | EU6: =SUM(EK6:EN6) -> 14.73333333 | EV6: =SUM(EO6:ET6) -> 929871.9275 | EX6: =IF(Q6=1,0,U6/100) -> 0.06 | EY6: =IF(Inputs!$B$169=1,EX6*Inputs!$G$107*$J6,EX6*Inputs!$G$107) -> 3537.910957 | EZ6: =EY6*Inputs!$E$136 -> 176.8955478 | FA6: =IF(Q6=1,0,U6*Inputs!$B$165) -> 60 | FB6: =EX6 -> 0.06 | FC6: =SUM(EY6:FA6) -> 3774.806504 | FE6: =IF(Q6=1,1,0) -> 0 | FF6: =IF(Q6=1,O6/Inputs!$B$97,0) -> 0 | FG6: =IF(Inputs!$B$169=1,FE6*Inputs!$G$106*$J6,FE6*Inputs!$G$106) -> 0 | FH6: =IF(Inputs!$B$169=1,FF6*Inputs!$G$107*$J6,FF6*Inputs!$G$107) -> 0 | FI6: =FH6*Inputs!$E$136 -> 0 | FJ6: =SUM(FE6:FF6) -> 0 | FK6: =SUM(FG6:FI6) -> 0 | FX6: =DZ6+DR6+DD6+CW6+CR6+CK6 -> 4015121.166 | FY6: =EI6 -> 433293.8203 | FZ6: =EV6 -> 929871.9275 | GA6: =FC6 -> 3774.806504 | GB6: =FK6 -> 0 | GC6: =FK6+FC6+EV6+EI6+DZ6+DR6+DD6+CW6+CR6+CK6 -> 5382061.72 | GD6: =IF($O6=0,0,(FX6/$O6)) -> 5461.486684 | GE6: 589.3790827 | GF6: 1264.839326 | GG6: 5.134603567 | GH6: 0 | GI6: =IF($O6=0,0,(GC6/$O6)) -> 7320.839697
A7: =ADM!A7 -> 001012 | B7: =ADM!B7 -> 001 | C7: =ADM!C7 -> 012 | D7: =ADM!D7 -> Adair County 001 - Adair Youth Development Center 012 AADA | E7: =ADM!E7 -> Adair County | F7: =ADM!F7 -> Adair Youth Development Center | H7: 2100030 | I7: ADAIR CO SCH DIST | J7: =IF(Inputs!$B$169<>1,1,K7) -> 0.8806509857 | K7: 0.8806509857 | L7: =SUM('Model Student Counts'!I7:N7) -> 0 | M7: =SUM('Model Student Counts'!O7:Q7) -> 2.25 | N7: =SUM('Model Student Counts'!R7:U7) -> 38.45 | O7: =SUM(L7:N7) -> 40.7 | Q7: =IF(Inputs!$B$178=1,IF(O7<Inputs!$B$179,1,0),0) -> 1 | S7: =IF(O7=0,0,VLOOKUP(A7,'Special Student Counts'!$A$5:$Q$1377,4,FALSE)) -> 16 | T7: =IF(Inputs!$B$61=1,VLOOKUP(A7,'Special Student Counts'!$A$5:$Q$1377,13),VLOOKUP(A7,'Special Student Counts'!$A$5:$Q$1377,9,FALSE)) -> 0 | U7: =IF(O7=0,0,VLOOKUP(A7,'Special Student Counts'!$A$5:$Q$1377,6,FALSE)) -> 0 | W7: =IF(Q7=1,0,'Model Student Counts'!I7/Inputs!$B$83) -> 0 | X7: =IF(Q7=1,0,'Model Student Counts'!J7/Inputs!$B$84) -> 0 | Y7: =IF(Q7=1,0,'Model Student Counts'!K7/Inputs!$B$85) -> 0 | Z7: =IF(Q7=1,0,'Model Student Counts'!L7/Inputs!$B$86) -> 0 | AA7: =IF(Q7=1,0,'Model Student Counts'!M7/Inputs!$B$87) -> 0 | AB7: =IF(Q7=1,0,'Model Student Counts'!N7/Inputs!$B$88) -> 0 | AC7: =IF(Q7=1,0,'Model Student Counts'!O7/Inputs!$B$89) -> 0 | AD7: =IF(Q7=1,0,'Model Student Counts'!P7/Inputs!$B$90) -> 0 | AE7: =IF(Q7=1,0,'Model Student Counts'!Q7/Inputs!$B$91) -> 0 | AF7: =IF(Q7=1,0,'Model Student Counts'!R7/Inputs!$B$92) -> 0 | AG7: =IF(Q7=1,0,'Model Student Counts'!S7/Inputs!$B$93) -> 0 | AH7: =IF(Q7=1,0,'Model Student Counts'!T7/Inputs!$B$94) -> 0 | AI7: =IF(Q7=1,0,'Model Student Counts'!U7/Inputs!$B$95) -> 0 | AJ7: =SUM(W7:AB7) -> 0 | AK7: =SUM(AC7:AE7) -> 0 | AL7: =SUM(AF7:AI7) -> 0 | AM7: =SUM(AJ7:AL7) -> 0 | AO7: =IF(Q7=1,0,Inputs!$B$55*AJ7) -> 0 | AP7: =IF(Q7=1,0,Inputs!$B$56*AK7) -> 0 | AQ7: =IF(Q7=1,0,Inputs!$B$57*AL7) -> 0 | AR7: =SUM(AO7:AQ7) -> 0 | AT7: =IF(Q7=1,0,L7/Inputs!$C$140) -> 0 | AU7: =IF(Q7=1,0,M7/Inputs!$D$140) -> 0 | AV7: =IF(Q7=1,0,N7/Inputs!$E$140) -> 0 | AW7: 0 | AY7: =IF(Q7=1,0,(L7/Inputs!$C$134+M7/Inputs!$D$134+N7/Inputs!$E$134)) -> 0 | AZ7: =IF(Q7=1,0,(L7/Inputs!$C$135+M7/Inputs!$D$135+N7/Inputs!$E$135)) -> 0 | BA7: =IF(Q7=1,0,L7/Inputs!$C$137+M7/Inputs!$D$137+N7/Inputs!$E$137) -> 0 | BB7: =IF(Q7=1,0,L7/Inputs!$C$138+M7/Inputs!$D$138+N7/Inputs!$E$138) -> 0 | BC7: 0 | BE7: =IF(Q7=1,0,L7/Inputs!$C$142) -> 0 | BF7: =IF(Q7=1,0,M7/Inputs!$D$142) -> 0 | BG7: =IF(Q7=1,0,N7/Inputs!$E$142) -> 0 | BH7: =SUM(BE7:BG7) -> 0 | BI7: 0 | BJ7: 0 | BK7: =IF(Q7=1,0,N7/Inputs!$E$143) -> 0 | BL7: =SUM(BI7:BK7) -> 0 | BM7: =IF(Q7=1,0,L7/Inputs!$C$144) -> 0 | BN7: =IF(Q7=1,0,M7/Inputs!$D$144) -> 0 | BO7: =IF(Q7=1,0,N7/Inputs!$E$144) -> 0 | BP7: =SUM(BM7:BO7) -> 0 | BQ7: =BP7+BL7+BH7 -> 0 | BS7: =IF(Inputs!$B$169=1,Inputs!$G$107*W7*$J7,W7*Inputs!$G$107) -> 0 | BT7: =IF(Inputs!$B$169=1,Inputs!$G$107*X7*$J7,X7*Inputs!$G$107) -> 0 | BU7: =IF(Inputs!$B$169=1,Inputs!$G$107*Y7*$J7,Y7*Inputs!$G$107) -> 0 | BV7: =IF(Inputs!$B$169=1,Inputs!$G$107*Z7*$J7,Z7*Inputs!$G$107) -> 0 | BW7: =IF(Inputs!$B$169=1,Inputs!$G$107*AA7*$J7,AA7*Inputs!$G$107) -> 0 | BX7: =IF(Inputs!$B$169=1,Inputs!$G$107*AB7*$J7,AB7*Inputs!$G$107) -> 0 | BY7: =IF(Inputs!$B$169=1,Inputs!$G$107*AC7*$J7,AC7*Inputs!$G$107) -> 0 | BZ7: =IF(Inputs!$B$169=1,Inputs!$G$107*AD7*$J7,AD7*Inputs!$G$107) -> 0 | CA7: =IF(Inputs!$B$169=1,Inputs!$G$107*AE7*$J7,AE7*Inputs!$G$107) -> 0 | CB7: =IF(Inputs!$B$169=1,Inputs!$G$107*AF7*$J7,AF7*Inputs!$G$107) -> 0 | CC7: =IF(Inputs!$B$169=1,Inputs!$G$107*AG7*$J7,AG7*Inputs!$G$107) -> 0 | CD7: =IF(Inputs!$B$169=1,Inputs!$G$107*AH7*$J7,AH7*Inputs!$G$107) -> 0 | CE7: =IF(Inputs!$B$169=1,Inputs!$G$107*AI7*$J7,AI7*Inputs!$G$107) -> 0 | CF7: =SUM(BS7:BX7) -> 0 | CG7: =SUM(BY7:CA7) -> 0 | CH7: =SUM(CB7:CE7) -> 0 | CI7: =SUM(CF7:CH7) -> 0 | CJ7: =SUM(CF7:CH7)*Inputs!$E$136 -> 0 | CK7: =SUM(CF7:CH7,CJ7) -> 0 | CM7: =IF(Inputs!$B$169=1,Inputs!$G$107*AO7*$J7,AO7*Inputs!$G$107) -> 0 | CN7: =IF(Inputs!$B$169=1,Inputs!$G$107*AP7*$J7,AP7*Inputs!$G$107) -> 0 | CO7: =IF(Inputs!$B$169=1,Inputs!$G$107*AQ7*$J7,AQ7*Inputs!$G$107) -> 0 | CP7: =SUM(CM7:CO7) -> 0 | CQ7: =SUM(CM7:CO7)*Inputs!$E$136 -> 0 | CR7: =SUM(CM7:CO7,CQ7) -> 0 | CT7: =IF(Inputs!$B$169=1,AT7*Inputs!$G$110*$J7,AT7*Inputs!$G$110) -> 0 | CU7: =IF(Inputs!$B$169=1,AU7*Inputs!$G$110*$J7,AU7*Inputs!$G$110) -> 0 | CV7: =IF(Inputs!$B$169=1,AV7*Inputs!$G$110*$J7,AV7*Inputs!$G$110) -> 0 | CW7: 0 | CY7: =IF(Inputs!$B$169=1, AY7*Inputs!$G$107*$J7,AY7*Inputs!$G$107) -> 0 | CZ7: =IF(Inputs!$B$169=1, AZ7*Inputs!$G$107*$J7,AZ7*Inputs!$G$107) -> 0 | DA7: =IF(Inputs!$B$169=1, BA7*Inputs!$G$109*$J7,BA7*Inputs!$G$109) -> 0 | DB7: =IF(Q7=1,0,BB7*Inputs!$G$113) -> 0 | DC7: =SUM(CY7:CZ7)*Inputs!$E$136 -> 0 | DD7: =SUM(CY7:DC7) -> 0 | DF7: =IF(Inputs!$B$169=1,BE7*Inputs!$G$105*$J7, BE7*Inputs!$G$105) -> 0 | DG7: =IF(Inputs!$B$169=1, BF7*Inputs!$G$105*$J7, BF7*Inputs!$G$105) -> 0 | DH7: =IF(Inputs!$B$169=1,BG7*Inputs!$G$105*$J7,BG7*Inputs!$G$105) -> 0 | DI7: =SUM(DF7:DH7) -> 0 | DJ7: =IF(Inputs!$B$169=1, (BI7*SUM(Inputs!$D$106:$E$106)*$J7 + BI7*Inputs!$F$106), BI7*Inputs!$G$106) -> 0 | DK7: =IF(Inputs!$B$169=1, (BJ7*SUM(Inputs!$D$106:$E$106)*$J7 + BJ7*Inputs!$F$106), BJ7*Inputs!$G$106) -> 0 | DL7: =IF(Inputs!$B$169=1,BK7*Inputs!$G$106*$J7,BK7*Inputs!$G$106) -> 0 | DM7: =SUM(DJ7:DL7) -> 0 | DN7: =BM7*Inputs!$G$112 -> 0 | DO7: =BN7*Inputs!$G$112 -> 0 | DP7: =BO7*Inputs!$G$112 -> 0 | DQ7: =SUM(DN7:DP7) -> 0 | DR7: =DQ7+DM7+DI7 -> 0 | DT7: =Inputs!$B$156*L7+Inputs!$B$157*M7+Inputs!$B$158*N7 -> 7043.75 | DU7: =Inputs!$B$159*O7 -> 10175 | DV7: =Inputs!$B$160*$O7 -> 1017.5 | DW7: =Inputs!$B$161*$O7 -> 4070 | DX7: =Inputs!$B$162*$O7 -> 1017.5 | DY7: =O7*Inputs!$B$163 -> 10175 | DZ7: =SUM(DT7:DY7) -> 33498.75 | EB7: =O7/Inputs!$E$146 -> 0.2713333333 | EC7: =O7/Inputs!$E$146 -> 0.2713333333 | ED7: =IF(Inputs!$B$169=1,EB7*Inputs!$G$107*$J7,EB7*Inputs!$G$107) -> 15999.21955 | EE7: =EC7*Inputs!$G$113 -> 6781.548142 | EF7: =ED7*Inputs!$E$136 -> 799.9609774 | EG7: =Inputs!$B$165*O7 -> 407 | EH7: =EB7+EC7 -> 0.5426666667 | EI7: =SUM(ED7:EG7) -> 23987.72867 | EK7: =IF(Q7=1,0,T7/Inputs!$E$147) -> 0 | EL7: =IF(Q7=1,0,T7/Inputs!$E$148) -> 0 | EM7: =IF(Q7=1,0,T7/Inputs!$E$149) -> 0 | EN7: =IF(Q7=1,0,T7/Inputs!$E$150) -> 0 | EO7: =IF(Inputs!$B$169=1, EK7*Inputs!$G$107*$J7,EK7*Inputs!$G$107) -> 0 | EP7: =IF(Inputs!$B$169=1,EL7*Inputs!$G$107*$J7,EL7*Inputs!$G$107) -> 0 | EQ7: =IF(Inputs!$B$169=1,EM7*Inputs!$G$107*$J7,EM7*Inputs!$G$107) -> 0 | ER7: =IF(Inputs!$B$169=1,EN7*Inputs!$G$107*$J7,EN7*Inputs!$G$107) -> 0 | ES7: =SUM(EL7:ER7)*Inputs!$E$136 -> 0 | ET7: =IF(Q7=1,0,IF(SUM(EK7:EN7)>0,T7*4*Inputs!$B$165,0)) -> 0 | EU7: =SUM(EK7:EN7) -> 0 | EV7: =SUM(EO7:ET7) -> 0 | EX7: 0 | EY7: =IF(Inputs!$B$169=1,EX7*Inputs!$G$107*$J7,EX7*Inputs!$G$107) -> 0 | EZ7: =EY7*Inputs!$E$136 -> 0 | FA7: =IF(Q7=1,0,U7*Inputs!$B$165) -> 0 | FB7: =EX7 -> 0 | FC7: =SUM(EY7:FA7) -> 0 | FE7: 1 | FF7: =IF(Q7=1,O7/Inputs!$B$97,0) -> 5.814285714 | FG7: =IF(Inputs!$B$169=1,FE7*Inputs!$G$106*$J7,FE7*Inputs!$G$106) -> 65490.08858 | FH7: =IF(Inputs!$B$169=1,FF7*Inputs!$G$107*$J7,FF7*Inputs!$G$107) -> 342840.4189 | FI7: =FH7*Inputs!$E$136 -> 17142.02094 | FJ7: =SUM(FE7:FF7) -> 6.814285714 | FK7: =SUM(FG7:FI7) -> 425472.5284 | FX7: =DZ7+DR7+DD7+CR7+CK7+CW7 -> 33498.75 | FY7: 23987.72867 | FZ7: 0 | GA7: 0 | GB7: 425472.5284 | GC7: =FK7+FC7+EV7+EI7+DZ7+DR7+DD7+CW7+CR7+CK7 -> 482959.0071 | GD7: =IF($O7=0,0,(FX7/$O7)) -> 823.0651106 | GE7: =IF($O7=0,0,(FY7/$O7)) -> 589.3790827 | GF7: =IF($O7=0,0,(FZ7/$O7)) -> 0 | GG7: =IF($O7=0,0,(GA7/$O7)) -> 0 | GH7: =IF($O7=0,0,(GB7/$O7)) -> 10453.87048 | GI7: =IF($O7=0,0,(GC7/$O7)) -> 11866.31467
A8: =ADM!A8 -> 001013 | B8: =ADM!B8 -> 001 | C8: =ADM!C8 -> 013 | D8: =ADM!D8 -> Adair County 001 - John Adair Intermediate School 013 AADA | E8: =ADM!E8 -> Adair County | F8: =ADM!F8 -> John Adair Intermediate School | H8: 2100030 | I8: ADAIR CO SCH DIST | J8: =IF(Inputs!$B$169<>1,1,K8) -> 0.8806509857 | K8: 0.8806509857 | L8: =SUM('Model Student Counts'!I8:N8) -> 367.21 | M8: =SUM('Model Student Counts'!O8:Q8) -> 0 | N8: =SUM('Model Student Counts'!R8:U8) -> 0 | O8: 367.21 | Q8: =IF(Inputs!$B$178=1,IF(O8<Inputs!$B$179,1,0),0) -> 0 | S8: =IF(O8=0,0,VLOOKUP(A8,'Special Student Counts'!$A$5:$Q$1377,4,FALSE)) -> 53 | T8: =IF(Inputs!$B$61=1,VLOOKUP(A8,'Special Student Counts'!$A$5:$Q$1377,13),VLOOKUP(A8,'Special Student Counts'!$A$5:$Q$1377,9,FALSE)) -> 252 | U8: =IF(O8=0,0,VLOOKUP(A8,'Special Student Counts'!$A$5:$Q$1377,6,FALSE)) -> 4 | W8: =IF(Q8=1,0,'Model Student Counts'!I8/Inputs!$B$83) -> 0 | X8: =IF(Q8=1,0,'Model Student Counts'!J8/Inputs!$B$84) -> 0 | Y8: =IF(Q8=1,0,'Model Student Counts'!K8/Inputs!$B$85) -> 0 | Z8: =IF(Q8=1,0,'Model Student Counts'!L8/Inputs!$B$86) -> 7.686 | AA8: =IF(Q8=1,0,'Model Student Counts'!M8/Inputs!$B$87) -> 5.2944 | AB8: =IF(Q8=1,0,'Model Student Counts'!N8/Inputs!$B$88) -> 4.7824 | AC8: =IF(Q8=1,0,'Model Student Counts'!O8/Inputs!$B$89) -> 0 | AD8: =IF(Q8=1,0,'Model Student Counts'!P8/Inputs!$B$90) -> 0 | AE8: =IF(Q8=1,0,'Model Student Counts'!Q8/Inputs!$B$91) -> 0 | AF8: =IF(Q8=1,0,'Model Student Counts'!R8/Inputs!$B$92) -> 0 | AG8: =IF(Q8=1,0,'Model Student Counts'!S8/Inputs!$B$93) -> 0 | AH8: =IF(Q8=1,0,'Model Student Counts'!T8/Inputs!$B$94) -> 0 | AI8: =IF(Q8=1,0,'Model Student Counts'!U8/Inputs!$B$95) -> 0 | AJ8: 17.7628 | AK8: 0 | AL8: 0 | AM8: 17.7628 | AO8: =IF(Q8=1,0,Inputs!$B$55*AJ8) -> 3.55256 | AP8: =IF(Q8=1,0,Inputs!$B$56*AK8) -> 0 | AQ8: =IF(Q8=1,0,Inputs!$B$57*AL8) -> 0 | AR8: 3.55256 | AT8: =IF(Q8=1,0,L8/Inputs!$C$140) -> 0.8160222222 | AU8: =IF(Q8=1,0,M8/Inputs!$D$140) -> 0 | AV8: =IF(Q8=1,0,N8/Inputs!$E$140) -> 0 | AW8: 0.8160222222 | AY8: =IF(Q8=1,0,(L8/Inputs!$C$134+M8/Inputs!$D$134+N8/Inputs!$E$134)) -> 1.83605 | AZ8: =IF(Q8=1,0,(L8/Inputs!$C$135+M8/Inputs!$D$135+N8/Inputs!$E$135)) -> 0.8160222222 | BA8: =IF(Q8=1,0,L8/Inputs!$C$137+M8/Inputs!$D$137+N8/Inputs!$E$137) -> 0.8160222222 | BB8: =IF(Q8=1,0,L8/Inputs!$C$138+M8/Inputs!$D$138+N8/Inputs!$E$138) -> 1.632044444 | BC8: 5.100138889 | BE8: =IF(Q8=1,0,L8/Inputs!$C$142) -> 0.8160222222 | BF8: =IF(Q8=1,0,M8/Inputs!$D$142) -> 0 | BG8: =IF(Q8=1,0,N8/Inputs!$E$142) -> 0 | BH8: 0.8160222222 | BI8: 0 | BJ8: 0 | BK8: =IF(Q8=1,0,N8/Inputs!$E$143) -> 0 | BL8: 0 | BM8: =IF(Q8=1,0,L8/Inputs!$C$144) -> 1.632044444 | BN8: =IF(Q8=1,0,M8/Inputs!$D$144) -> 0 | BO8: =IF(Q8=1,0,N8/Inputs!$E$144) -> 0 | BP8: 1.632044444 | BQ8: 2.448066667 | BS8: =IF(Inputs!$B$169=1,Inputs!$G$107*W8*$J8,W8*Inputs!$G$107) -> 0 | BT8: =IF(Inputs!$B$169=1,Inputs!$G$107*X8*$J8,X8*Inputs!$G$107) -> 0 | BU8: =IF(Inputs!$B$169=1,Inputs!$G$107*Y8*$J8,Y8*Inputs!$G$107) -> 0 | BV8: =IF(Inputs!$B$169=1,Inputs!$G$107*Z8*$J8,Z8*Inputs!$G$107) -> 453206.3935 | BW8: =IF(Inputs!$B$169=1,Inputs!$G$107*AA8*$J8,AA8*Inputs!$G$107) -> 312185.2628 | BX8: =IF(Inputs!$B$169=1,Inputs!$G$107*AB8*$J8,AB8*Inputs!$G$107) -> 281995.0893 | BY8: =IF(Inputs!$B$169=1,Inputs!$G$107*AC8*$J8,AC8*Inputs!$G$107) -> 0 | BZ8: =IF(Inputs!$B$169=1,Inputs!$G$107*AD8*$J8,AD8*Inputs!$G$107) -> 0 | CA8: =IF(Inputs!$B$169=1,Inputs!$G$107*AE8*$J8,AE8*Inputs!$G$107) -> 0 | CB8: =IF(Inputs!$B$169=1,Inputs!$G$107*AF8*$J8,AF8*Inputs!$G$107) -> 0 | CC8: =IF(Inputs!$B$169=1,Inputs!$G$107*AG8*$J8,AG8*Inputs!$G$107) -> 0 | CD8: =IF(Inputs!$B$169=1,Inputs!$G$107*AH8*$J8,AH8*Inputs!$G$107) -> 0 | CE8: =IF(Inputs!$B$169=1,Inputs!$G$107*AI8*$J8,AI8*Inputs!$G$107) -> 0 | CF8: 1047386.746 | CG8: 0 | CH8: 0 | CI8: 1047386.746 | CJ8: =SUM(CF8:CH8)*Inputs!$E$136 -> 52369.33728 | CK8: 1099756.083 | CM8: =IF(Inputs!$B$169=1,Inputs!$G$107*AO8*$J8,AO8*Inputs!$G$107) -> 209477.3491 | CN8: =IF(Inputs!$B$169=1,Inputs!$G$107*AP8*$J8,AP8*Inputs!$G$107) -> 0 | CO8: =IF(Inputs!$B$169=1,Inputs!$G$107*AQ8*$J8,AQ8*Inputs!$G$107) -> 0 | CP8: 209477.3491 | CQ8: =SUM(CM8:CO8)*Inputs!$E$136 -> 10473.86746 | CR8: 219951.2166 | CT8: =IF(Inputs!$B$169=1,AT8*Inputs!$G$110*$J8,AT8*Inputs!$G$110) -> 58582.74965 | CU8: =IF(Inputs!$B$169=1,AU8*Inputs!$G$110*$J8,AU8*Inputs!$G$110) -> 0 | CV8: =IF(Inputs!$B$169=1,AV8*Inputs!$G$110*$J8,AV8*Inputs!$G$110) -> 0 | CW8: 58582.74965 | CY8: =IF(Inputs!$B$169=1, AY8*Inputs!$G$107*$J8,AY8*Inputs!$G$107) -> 108263.0235 | CZ8: =IF(Inputs!$B$169=1, AZ8*Inputs!$G$107*$J8,AZ8*Inputs!$G$107) -> 48116.89935 | DA8: =IF(Inputs!$B$169=1, BA8*Inputs!$G$109*$J8,BA8*Inputs!$G$109) -> 55068.636 | DB8: =IF(Q8=1,0,BB8*Inputs!$G$113) -> 40790.37335 | DC8: =SUM(CY8:CZ8)*Inputs!$E$136 -> 7818.996144 | DD8: 260057.9284 | DF8: =IF(Inputs!$B$169=1,BE8*Inputs!$G$105*$J8, BE8*Inputs!$G$105) -> 54486.0347 | DG8: =IF(Inputs!$B$169=1, BF8*Inputs!$G$105*$J8, BF8*Inputs!$G$105) -> 0 | DH8: =IF(Inputs!$B$169=1,BG8*Inputs!$G$105*$J8,BG8*Inputs!$G$105) -> 0 | DI8: 54486.0347 | DJ8: =IF(Inputs!$B$169=1, (BI8*SUM(Inputs!$D$106:$E$106)*$J8 + BI8*Inputs!$F$106), BI8*Inputs!$G$106) -> 0 | DK8: =IF(Inputs!$B$169=1, (BJ8*SUM(Inputs!$D$106:$E$106)*$J8 + BJ8*Inputs!$F$106), BJ8*Inputs!$G$106) -> 0 | DL8: =IF(Inputs!$B$169=1,BK8*Inputs!$G$106*$J8,BK8*Inputs!$G$106) -> 0 | DM8: 0 | DN8: =BM8*Inputs!$G$112 -> 60964.58999 | DO8: =BN8*Inputs!$G$112 -> 0 | DP8: =BO8*Inputs!$G$112 -> 0 | DQ8: 60964.58999 | DR8: 115450.6247 | DT8: =Inputs!$B$156*L8+Inputs!$B$157*M8+Inputs!$B$158*N8 -> 51409.4 | DU8: =Inputs!$B$159*O8 -> 91802.5 | DV8: =Inputs!$B$160*$O8 -> 9180.25 | DW8: =Inputs!$B$161*$O8 -> 36721 | DX8: =Inputs!$B$162*$O8 -> 9180.25 | DY8: =O8*Inputs!$B$163 -> 91802.5 | DZ8: 290095.9 | EB8: =O8/Inputs!$E$146 -> 2.448066667 | EC8: =O8/Inputs!$E$146 -> 2.448066667 | ED8: =IF(Inputs!$B$169=1,EB8*Inputs!$G$107*$J8,EB8*Inputs!$G$107) -> 144350.698 | EE8: =EC8*Inputs!$G$113 -> 61185.56003 | EF8: =ED8*Inputs!$E$136 -> 7217.534902 | EG8: =Inputs!$B$165*O8 -> 3672.1 | EH8: 4.896133333 | EI8: 216425.893 | EK8: =IF(Q8=1,0,T8/Inputs!$E$147) -> 2.1 | EL8: =IF(Q8=1,0,T8/Inputs!$E$148) -> 2.1 | EM8: =IF(Q8=1,0,T8/Inputs!$E$149) -> 2.1 | EN8: =IF(Q8=1,0,T8/Inputs!$E$150) -> 2.1 | EO8: =IF(Inputs!$B$169=1, EK8*Inputs!$G$107*$J8,EK8*Inputs!$G$107) -> 123826.8835 | EP8: =IF(Inputs!$B$169=1,EL8*Inputs!$G$107*$J8,EL8*Inputs!$G$107) -> 123826.8835 | EQ8: =IF(Inputs!$B$169=1,EM8*Inputs!$G$107*$J8,EM8*Inputs!$G$107) -> 123826.8835 | ER8: =IF(Inputs!$B$169=1,EN8*Inputs!$G$107*$J8,EN8*Inputs!$G$107) -> 123826.8835 | ES8: =SUM(EL8:ER8)*Inputs!$E$136 -> 24765.6917 | ET8: =IF(Q8=1,0,IF(SUM(EK8:EN8)>0,T8*4*Inputs!$B$165,0)) -> 10080 | EU8: 8.4 | EV8: 530153.2256 | EX8: 0.04 | EY8: =IF(Inputs!$B$169=1,EX8*Inputs!$G$107*$J8,EX8*Inputs!$G$107) -> 2358.607304 | EZ8: =EY8*Inputs!$E$136 -> 117.9303652 | FA8: =IF(Q8=1,0,U8*Inputs!$B$165) -> 40 | FB8: 0.04 | FC8: 2516.53767 | FE8: 0 | FF8: =IF(Q8=1,O8/Inputs!$B$97,0) -> 0 | FG8: =IF(Inputs!$B$169=1,FE8*Inputs!$G$106*$J8,FE8*Inputs!$G$106) -> 0 | FH8: =IF(Inputs!$B$169=1,FF8*Inputs!$G$107*$J8,FF8*Inputs!$G$107) -> 0 | FI8: =FH8*Inputs!$E$136 -> 0 | FJ8: 0 | FK8: 0 | FX8: 2043894.502 | FY8: 216425.893 | FZ8: 530153.2256 | GA8: 2516.53767 | GB8: 0 | GC8: 2792990.158 | GD8: 5566.009919 | GE8: 589.3790827 | GF8: 1443.733084 | GG8: 6.853129462 | GH8: 0 | GI8: 7605.975214
A9: =ADM!A9 -> 001014 | B9: =ADM!B9 -> 001 | C9: =ADM!C9 -> 014 | D9: =ADM!D9 -> Adair County 001 - Adair County Middle School 014 AADA | E9: =ADM!E9 -> Adair County | F9: =ADM!F9 -> Adair County Middle School | H9: 2100030 | I9: ADAIR CO SCH DIST | J9: =IF(Inputs!$B$169<>1,1,K9) -> 0.8806509857 | K9: 0.8806509857 | L9: =SUM('Model Student Counts'!I9:N9) -> 0 | M9: =SUM('Model Student Counts'!O9:Q9) -> 400.01 | N9: =SUM('Model Student Counts'!R9:U9) -> 0 | O9: 400.01 | Q9: =IF(Inputs!$B$178=1,IF(O9<Inputs!$B$179,1,0),0) -> 0 | S9: =IF(O9=0,0,VLOOKUP(A9,'Special Student Counts'!$A$5:$Q$1377,4,FALSE)) -> 46 | T9: =IF(Inputs!$B$61=1,VLOOKUP(A9,'Special Student Counts'!$A$5:$Q$1377,13),VLOOKUP(A9,'Special Student Counts'!$A$5:$Q$1377,9,FALSE)) -> 267 | U9: =IF(O9=0,0,VLOOKUP(A9,'Special Student Counts'!$A$5:$Q$1377,6,FALSE)) -> 4 | W9: =IF(Q9=1,0,'Model Student Counts'!I9/Inputs!$B$83) -> 0 | X9: =IF(Q9=1,0,'Model Student Counts'!J9/Inputs!$B$84) -> 0 | Y9: =IF(Q9=1,0,'Model Student Counts'!K9/Inputs!$B$85) -> 0 | Z9: =IF(Q9=1,0,'Model Student Counts'!L9/Inputs!$B$86) -> 0 | AA9: =IF(Q9=1,0,'Model Student Counts'!M9/Inputs!$B$87) -> 0 | AB9: =IF(Q9=1,0,'Model Student Counts'!N9/Inputs!$B$88) -> 0 | AC9: =IF(Q9=1,0,'Model Student Counts'!O9/Inputs!$B$89) -> 0 | AD9: =IF(Q9=1,0,'Model Student Counts'!P9/Inputs!$B$90) -> 8.5752 | AE9: =IF(Q9=1,0,'Model Student Counts'!Q9/Inputs!$B$91) -> 7.4252 | AF9: =IF(Q9=1,0,'Model Student Counts'!R9/Inputs!$B$92) -> 0 | AG9: =IF(Q9=1,0,'Model Student Counts'!S9/Inputs!$B$93) -> 0 | AH9: =IF(Q9=1,0,'Model Student Counts'!T9/Inputs!$B$94) -> 0 | AI9: =IF(Q9=1,0,'Model Student Counts'!U9/Inputs!$B$95) -> 0 | AJ9: 0 | AK9: 16.0004 | AL9: 0 | AM9: 16.0004 | AO9: =IF(Q9=1,0,Inputs!$B$55*AJ9) -> 0 | AP9: =IF(Q9=1,0,Inputs!$B$56*AK9) -> 3.20008 | AQ9: =IF(Q9=1,0,Inputs!$B$57*AL9) -> 0 | AR9: 3.20008 | AT9: =IF(Q9=1,0,L9/Inputs!$C$140) -> 0 | AU9: =IF(Q9=1,0,M9/Inputs!$D$140) -> 0.8889111111 | AV9: =IF(Q9=1,0,N9/Inputs!$E$140) -> 0 | AW9: 0.8889111111 | AY9: =IF(Q9=1,0,(L9/Inputs!$C$134+M9/Inputs!$D$134+N9/Inputs!$E$134)) -> 2.00005 | AZ9: =IF(Q9=1,0,(L9/Inputs!$C$135+M9/Inputs!$D$135+N9/Inputs!$E$135)) -> 0.8889111111 | BA9: =IF(Q9=1,0,L9/Inputs!$C$137+M9/Inputs!$D$137+N9/Inputs!$E$137) -> 1.60004 | BB9: =IF(Q9=1,0,L9/Inputs!$C$138+M9/Inputs!$D$138+N9/Inputs!$E$138) -> 1.777822222 | BC9: 6.266823333 | BE9: =IF(Q9=1,0,L9/Inputs!$C$142) -> 0 | BF9: =IF(Q9=1,0,M9/Inputs!$D$142) -> 0.8889111111 | BG9: =IF(Q9=1,0,N9/Inputs!$E$142) -> 0 | BH9: 0.8889111111 | BI9: 0 | BJ9: 0 | BK9: =IF(Q9=1,0,N9/Inputs!$E$143) -> 0 | BL9: 0 | BM9: =IF(Q9=1,0,L9/Inputs!$C$144) -> 0 | BN9: =IF(Q9=1,0,M9/Inputs!$D$144) -> 1.777822222 | BO9: =IF(Q9=1,0,N9/Inputs!$E$144) -> 0 | BP9: 1.777822222 | BQ9: 2.666733333 | BS9: =IF(Inputs!$B$169=1,Inputs!$G$107*W9*$J9,W9*Inputs!$G$107) -> 0 | BT9: =IF(Inputs!$B$169=1,Inputs!$G$107*X9*$J9,X9*Inputs!$G$107) -> 0 | BU9: =IF(Inputs!$B$169=1,Inputs!$G$107*Y9*$J9,Y9*Inputs!$G$107) -> 0 | BV9: =IF(Inputs!$B$169=1,Inputs!$G$107*Z9*$J9,Z9*Inputs!$G$107) -> 0 | BW9: =IF(Inputs!$B$169=1,Inputs!$G$107*AA9*$J9,AA9*Inputs!$G$107) -> 0 | BX9: =IF(Inputs!$B$169=1,Inputs!$G$107*AB9*$J9,AB9*Inputs!$G$107) -> 0 | BY9: =IF(Inputs!$B$169=1,Inputs!$G$107*AC9*$J9,AC9*Inputs!$G$107) -> 0 | BZ9: =IF(Inputs!$B$169=1,Inputs!$G$107*AD9*$J9,AD9*Inputs!$G$107) -> 505638.2339 | CA9: =IF(Inputs!$B$169=1,Inputs!$G$107*AE9*$J9,AE9*Inputs!$G$107) -> 437828.2739 | CB9: =IF(Inputs!$B$169=1,Inputs!$G$107*AF9*$J9,AF9*Inputs!$G$107) -> 0 | CC9: =IF(Inputs!$B$169=1,Inputs!$G$107*AG9*$J9,AG9*Inputs!$G$107) -> 0 | CD9: =IF(Inputs!$B$169=1,Inputs!$G$107*AH9*$J9,AH9*Inputs!$G$107) -> 0 | CE9: =IF(Inputs!$B$169=1,Inputs!$G$107*AI9*$J9,AI9*Inputs!$G$107) -> 0 | CF9: 0 | CG9: 943466.5078 | CH9: 0 | CI9: 943466.5078 | CJ9: =SUM(CF9:CH9)*Inputs!$E$136 -> 47173.32539 | CK9: 990639.8332 | CM9: =IF(Inputs!$B$169=1,Inputs!$G$107*AO9*$J9,AO9*Inputs!$G$107) -> 0 | CN9: =IF(Inputs!$B$169=1,Inputs!$G$107*AP9*$J9,AP9*Inputs!$G$107) -> 188693.3016 | CO9: =IF(Inputs!$B$169=1,Inputs!$G$107*AQ9*$J9,AQ9*Inputs!$G$107) -> 0 | CP9: 188693.3016 | CQ9: =SUM(CM9:CO9)*Inputs!$E$136 -> 9434.665078 | CR9: 198127.9666 | CT9: =IF(Inputs!$B$169=1,AT9*Inputs!$G$110*$J9,AT9*Inputs!$G$110) -> 0 | CU9: =IF(Inputs!$B$169=1,AU9*Inputs!$G$110*$J9,AU9*Inputs!$G$110) -> 63815.48892 | CV9: =IF(Inputs!$B$169=1,AV9*Inputs!$G$110*$J9,AV9*Inputs!$G$110) -> 0 | CW9: 63815.48892 | CY9: =IF(Inputs!$B$169=1, AY9*Inputs!$G$107*$J9,AY9*Inputs!$G$107) -> 117933.3135 | CZ9: =IF(Inputs!$B$169=1, AZ9*Inputs!$G$107*$J9,AZ9*Inputs!$G$107) -> 52414.80599 | DA9: =IF(Inputs!$B$169=1, BA9*Inputs!$G$109*$J9,BA9*Inputs!$G$109) -> 107977.4765 | DB9: =IF(Q9=1,0,BB9*Inputs!$G$113) -> 44433.85868 | DC9: =SUM(CY9:CZ9)*Inputs!$E$136 -> 8517.405973 | DD9: 331276.8606 | DF9: =IF(Inputs!$B$169=1,BE9*Inputs!$G$105*$J9, BE9*Inputs!$G$105) -> 0 | DG9: =IF(Inputs!$B$169=1, BF9*Inputs!$G$105*$J9, BF9*Inputs!$G$105) -> 59352.84643 | DH9: =IF(Inputs!$B$169=1,BG9*Inputs!$G$105*$J9,BG9*Inputs!$G$105) -> 0 | DI9: 59352.84643 | DJ9: =IF(Inputs!$B$169=1, (BI9*SUM(Inputs!$D$106:$E$106)*$J9 + BI9*Inputs!$F$106), BI9*Inputs!$G$106) -> 0 | DK9: =IF(Inputs!$B$169=1, (BJ9*SUM(Inputs!$D$106:$E$106)*$J9 + BJ9*Inputs!$F$106), BJ9*Inputs!$G$106) -> 0 | DL9: =IF(Inputs!$B$169=1,BK9*Inputs!$G$106*$J9,BK9*Inputs!$G$106) -> 0 | DM9: 0 | DN9: =BM9*Inputs!$G$112 -> 0 | DO9: =BN9*Inputs!$G$112 -> 66410.08045 | DP9: =BO9*Inputs!$G$112 -> 0 | DQ9: 66410.08045 | DR9: 125762.9269 | DT9: =Inputs!$B$156*L9+Inputs!$B$157*M9+Inputs!$B$158*N9 -> 56001.4 | DU9: =Inputs!$B$159*O9 -> 100002.5 | DV9: =Inputs!$B$160*$O9 -> 10000.25 | DW9: =Inputs!$B$161*$O9 -> 40001 | DX9: =Inputs!$B$162*$O9 -> 10000.25 | DY9: =O9*Inputs!$B$163 -> 100002.5 | DZ9: 316007.9 | EB9: =O9/Inputs!$E$146 -> 2.666733333 | EC9: =O9/Inputs!$E$146 -> 2.666733333 | ED9: =IF(Inputs!$B$169=1,EB9*Inputs!$G$107*$J9,EB9*Inputs!$G$107) -> 157244.418 | EE9: =EC9*Inputs!$G$113 -> 66650.78802 | EF9: =ED9*Inputs!$E$136 -> 7862.220898 | EG9: =Inputs!$B$165*O9 -> 4000.1 | EH9: 5.333466667 | EI9: 235757.5269 | EK9: =IF(Q9=1,0,T9/Inputs!$E$147) -> 2.225 | EL9: =IF(Q9=1,0,T9/Inputs!$E$148) -> 2.225 | EM9: =IF(Q9=1,0,T9/Inputs!$E$149) -> 2.225 | EN9: =IF(Q9=1,0,T9/Inputs!$E$150) -> 2.225 | EO9: =IF(Inputs!$B$169=1, EK9*Inputs!$G$107*$J9,EK9*Inputs!$G$107) -> 131197.5313 | EP9: =IF(Inputs!$B$169=1,EL9*Inputs!$G$107*$J9,EL9*Inputs!$G$107) -> 131197.5313 | EQ9: =IF(Inputs!$B$169=1,EM9*Inputs!$G$107*$J9,EM9*Inputs!$G$107) -> 131197.5313 | ER9: =IF(Inputs!$B$169=1,EN9*Inputs!$G$107*$J9,EN9*Inputs!$G$107) -> 131197.5313 | ES9: =SUM(EL9:ER9)*Inputs!$E$136 -> 26239.84001 | ET9: =IF(Q9=1,0,IF(SUM(EK9:EN9)>0,T9*4*Inputs!$B$165,0)) -> 10680 | EU9: 8.9 | EV9: 561709.9652 | EX9: 0.04 | EY9: =IF(Inputs!$B$169=1,EX9*Inputs!$G$107*$J9,EX9*Inputs!$G$107) -> 2358.607304 | EZ9: =EY9*Inputs!$E$136 -> 117.9303652 | FA9: =IF(Q9=1,0,U9*Inputs!$B$165) -> 40 | FB9: 0.04 | FC9: 2516.53767 | FE9: 0 | FF9: =IF(Q9=1,O9/Inputs!$B$97,0) -> 0 | FG9: =IF(Inputs!$B$169=1,FE9*Inputs!$G$106*$J9,FE9*Inputs!$G$106) -> 0 | FH9: =IF(Inputs!$B$169=1,FF9*Inputs!$G$107*$J9,FF9*Inputs!$G$107) -> 0 | FI9: =FH9*Inputs!$E$136 -> 0 | FJ9: 0 | FK9: 0 | FX9: 2025630.976 | FY9: 235757.5269 | FZ9: 561709.9652 | GA9: 2516.53767 | GB9: 0 | GC9: 2825615.006 | GD9: 5063.950842 | GE9: 589.3790827 | GF9: 1404.239807 | GG9: 6.291186894 | GH9: 0 | GI9: 7063.860919
A10: =ADM!A10 -> 001016 | B10: =ADM!B10 -> 001 | C10: =ADM!C10 -> 016 | D10: =ADM!D10 -> Adair County 001 - Adair County Elementary School 016 AADA | E10: =ADM!E10 -> Adair County | F10: =ADM!F10 -> Adair County Elementary School | H10: 2100030 | I10: ADAIR CO SCH DIST | J10: =IF(Inputs!$B$169<>1,1,K10) -> 0.8806509857 | K10: 0.8806509857 | L10: =SUM('Model Student Counts'!I10:N10) -> 411.82 | M10: =SUM('Model Student Counts'!O10:Q10) -> 185.3 | N10: =SUM('Model Student Counts'!R10:U10) -> 0 | O10: 597.12 | Q10: =IF(Inputs!$B$178=1,IF(O10<Inputs!$B$179,1,0),0) -> 0 | S10: =IF(O10=0,0,VLOOKUP(A10,'Special Student Counts'!$A$5:$Q$1377,4,FALSE)) -> 84 | T10: =IF(Inputs!$B$61=1,VLOOKUP(A10,'Special Student Counts'!$A$5:$Q$1377,13),VLOOKUP(A10,'Special Student Counts'!$A$5:$Q$1377,9,FALSE)) -> 434 | U10: =IF(O10=0,0,VLOOKUP(A10,'Special Student Counts'!$A$5:$Q$1377,6,FALSE)) -> 5 | W10: =IF(Q10=1,0,'Model Student Counts'!I10/Inputs!$B$83) -> 4.827333333 | X10: =IF(Q10=1,0,'Model Student Counts'!J10/Inputs!$B$84) -> 4.578 | Y10: =IF(Q10=1,0,'Model Student Counts'!K10/Inputs!$B$85) -> 4.250666667 | Z10: =IF(Q10=1,0,'Model Student Counts'!L10/Inputs!$B$86) -> 3.939333333 | AA10: =IF(Q10=1,0,'Model Student Counts'!M10/Inputs!$B$87) -> 3.2824 | AB10: =IF(Q10=1,0,'Model Student Counts'!N10/Inputs!$B$88) -> 2.6332 | AC10: =IF(Q10=1,0,'Model Student Counts'!O10/Inputs!$B$89) -> 7.412 | AD10: =IF(Q10=1,0,'Model Student Counts'!P10/Inputs!$B$90) -> 0 | AE10: =IF(Q10=1,0,'Model Student Counts'!Q10/Inputs!$B$91) -> 0 | AF10: =IF(Q10=1,0,'Model Student Counts'!R10/Inputs!$B$92) -> 0 | AG10: =IF(Q10=1,0,'Model Student Counts'!S10/Inputs!$B$93) -> 0 | AH10: =IF(Q10=1,0,'Model Student Counts'!T10/Inputs!$B$94) -> 0 | AI10: =IF(Q10=1,0,'Model Student Counts'!U10/Inputs!$B$95) -> 0 | AJ10: 23.51093333 | AK10: 7.412 | AL10: 0 | AM10: 30.92293333 | AO10: =IF(Q10=1,0,Inputs!$B$55*AJ10) -> 4.702186667 | AP10: =IF(Q10=1,0,Inputs!$B$56*AK10) -> 1.4824 | AQ10: =IF(Q10=1,0,Inputs!$B$57*AL10) -> 0 | AR10: 6.184586667 | AT10: =IF(Q10=1,0,L10/Inputs!$C$140) -> 0.9151555556 | AU10: =IF(Q10=1,0,M10/Inputs!$D$140) -> 0.4117777778 | AV10: =IF(Q10=1,0,N10/Inputs!$E$140) -> 0 | AW10: 1.326933333 | AY10: =IF(Q10=1,0,(L10/Inputs!$C$134+M10/Inputs!$D$134+N10/Inputs!$E$134)) -> 2.9856 | AZ10: =IF(Q10=1,0,(L10/Inputs!$C$135+M10/Inputs!$D$135+N10/Inputs!$E$135)) -> 1.326933333 | BA10: =IF(Q10=1,0,L10/Inputs!$C$137+M10/Inputs!$D$137+N10/Inputs!$E$137) -> 1.656355556 | BB10: =IF(Q10=1,0,L10/Inputs!$C$138+M10/Inputs!$D$138+N10/Inputs!$E$138) -> 2.653866667 | BC10: 8.622755556 | BE10: =IF(Q10=1,0,L10/Inputs!$C$142) -> 0.9151555556 | BF10: =IF(Q10=1,0,M10/Inputs!$D$142) -> 0.4117777778 | BG10: =IF(Q10=1,0,N10/Inputs!$E$142) -> 0 | BH10: 1.326933333 | BI10: 0 | BJ10: 0 | BK10: =IF(Q10=1,0,N10/Inputs!$E$143) -> 0 | BL10: 0 | BM10: =IF(Q10=1,0,L10/Inputs!$C$144) -> 1.830311111 | BN10: =IF(Q10=1,0,M10/Inputs!$D$144) -> 0.8235555556 | BO10: =IF(Q10=1,0,N10/Inputs!$E$144) -> 0 | BP10: 2.653866667 | BQ10: 3.9808 | BS10: =IF(Inputs!$B$169=1,Inputs!$G$107*W10*$J10,W10*Inputs!$G$107) -> 284644.5915 | BT10: =IF(Inputs!$B$169=1,Inputs!$G$107*X10*$J10,X10*Inputs!$G$107) -> 269942.606 | BU10: =IF(Inputs!$B$169=1,Inputs!$G$107*Y10*$J10,Y10*Inputs!$G$107) -> 250641.3362 | BV10: =IF(Inputs!$B$169=1,Inputs!$G$107*Z10*$J10,Z10*Inputs!$G$107) -> 232283.5094 | BW10: =IF(Inputs!$B$169=1,Inputs!$G$107*AA10*$J10,AA10*Inputs!$G$107) -> 193547.3154 | BX10: =IF(Inputs!$B$169=1,Inputs!$G$107*AB10*$J10,AB10*Inputs!$G$107) -> 155267.1188 | BY10: =IF(Inputs!$B$169=1,Inputs!$G$107*AC10*$J10,AC10*Inputs!$G$107) -> 437049.9335 | BZ10: =IF(Inputs!$B$169=1,Inputs!$G$107*AD10*$J10,AD10*Inputs!$G$107) -> 0 | CA10: =IF(Inputs!$B$169=1,Inputs!$G$107*AE10*$J10,AE10*Inputs!$G$107) -> 0 | CB10: =IF(Inputs!$B$169=1,Inputs!$G$107*AF10*$J10,AF10*Inputs!$G$107) -> 0 | CC10: =IF(Inputs!$B$169=1,Inputs!$G$107*AG10*$J10,AG10*Inputs!$G$107) -> 0 | CD10: =IF(Inputs!$B$169=1,Inputs!$G$107*AH10*$J10,AH10*Inputs!$G$107) -> 0 | CE10: =IF(Inputs!$B$169=1,Inputs!$G$107*AI10*$J10,AI10*Inputs!$G$107) -> 0 | CF10: 1386326.477 | CG10: 437049.9335 | CH10: 0 | CI10: 1823376.411 | CJ10: =SUM(CF10:CH10)*Inputs!$E$136 -> 91168.82054 | CK10: 1914545.231 | CM10: =IF(Inputs!$B$169=1,Inputs!$G$107*AO10*$J10,AO10*Inputs!$G$107) -> 277265.2955 | CN10: =IF(Inputs!$B$169=1,Inputs!$G$107*AP10*$J10,AP10*Inputs!$G$107) -> 87409.9867 | CO10: =IF(Inputs!$B$169=1,Inputs!$G$107*AQ10*$J10,AQ10*Inputs!$G$107) -> 0 | CP10: 364675.2822 | CQ10: =SUM(CM10:CO10)*Inputs!$E$136 -> 18233.76411 | CR10: 382909.0463 | CT10: =IF(Inputs!$B$169=1,AT10*Inputs!$G$110*$J10,AT10*Inputs!$G$110) -> 65699.59413 | CU10: =IF(Inputs!$B$169=1,AU10*Inputs!$G$110*$J10,AU10*Inputs!$G$110) -> 29561.7862 | CV10: =IF(Inputs!$B$169=1,AV10*Inputs!$G$110*$J10,AV10*Inputs!$G$110) -> 0 | CW10: 95261.38033 | CY10: =IF(Inputs!$B$169=1, AY10*Inputs!$G$107*$J10,AY10*Inputs!$G$107) -> 176046.4492 | CZ10: =IF(Inputs!$B$169=1, AZ10*Inputs!$G$107*$J10,AZ10*Inputs!$G$107) -> 78242.86631 | DA10: =IF(Inputs!$B$169=1, BA10*Inputs!$G$109*$J10,BA10*Inputs!$G$109) -> 111777.8888 | DB10: =IF(Q10=1,0,BB10*Inputs!$G$113) -> 66329.206 | DC10: =SUM(CY10:CZ10)*Inputs!$E$136 -> 12714.46578 | DD10: 445110.876 | DF10: =IF(Inputs!$B$169=1,BE10*Inputs!$G$105*$J10, BE10*Inputs!$G$105) -> 61105.19542 | DG10: =IF(Inputs!$B$169=1, BF10*Inputs!$G$105*$J10, BF10*Inputs!$G$105) -> 27494.51875 | DH10: =IF(Inputs!$B$169=1,BG10*Inputs!$G$105*$J10,BG10*Inputs!$G$105) -> 0 | DI10: 88599.71416 | DJ10: =IF(Inputs!$B$169=1, (BI10*SUM(Inputs!$D$106:$E$106)*$J10 + BI10*Inputs!$F$106), BI10*Inputs!$G$106) -> 0 | DK10: =IF(Inputs!$B$169=1, (BJ10*SUM(Inputs!$D$106:$E$106)*$J10 + BJ10*Inputs!$F$106), BJ10*Inputs!$G$106) -> 0 | DL10: =IF(Inputs!$B$169=1,BK10*Inputs!$G$106*$J10,BK10*Inputs!$G$106) -> 0 | DM10: 0 | DN10: =BM10*Inputs!$G$112 -> 68370.78905 | DO10: =BN10*Inputs!$G$112 -> 30763.70067 | DP10: =BO10*Inputs!$G$112 -> 0 | DQ10: 99134.48973 | DR10: 187734.2039 | DT10: =Inputs!$B$156*L10+Inputs!$B$157*M10+Inputs!$B$158*N10 -> 83596.8 | DU10: =Inputs!$B$159*O10 -> 149280 | DV10: =Inputs!$B$160*$O10 -> 14928 | DW10: =Inputs!$B$161*$O10 -> 59712 | DX10: =Inputs!$B$162*$O10 -> 14928 | DY10: =O10*Inputs!$B$163 -> 149280 | DZ10: 471724.8 | EB10: =O10/Inputs!$E$146 -> 3.9808 | EC10: =O10/Inputs!$E$146 -> 3.9808 | ED10: =IF(Inputs!$B$169=1,EB10*Inputs!$G$107*$J10,EB10*Inputs!$G$107) -> 234728.5989 | EE10: =EC10*Inputs!$G$113 -> 99493.809 | EF10: =ED10*Inputs!$E$136 -> 11736.42995 | EG10: =Inputs!$B$165*O10 -> 5971.2 | EH10: 7.9616 | EI10: 351930.0379 | EK10: =IF(Q10=1,0,T10/Inputs!$E$147) -> 3.616666667 | EL10: =IF(Q10=1,0,T10/Inputs!$E$148) -> 3.616666667 | EM10: =IF(Q10=1,0,T10/Inputs!$E$149) -> 3.616666667 | EN10: =IF(Q10=1,0,T10/Inputs!$E$150) -> 3.616666667 | EO10: =IF(Inputs!$B$169=1, EK10*Inputs!$G$107*$J10,EK10*Inputs!$G$107) -> 213257.4104 | EP10: =IF(Inputs!$B$169=1,EL10*Inputs!$G$107*$J10,EL10*Inputs!$G$107) -> 213257.4104 | EQ10: =IF(Inputs!$B$169=1,EM10*Inputs!$G$107*$J10,EM10*Inputs!$G$107) -> 213257.4104 | ER10: =IF(Inputs!$B$169=1,EN10*Inputs!$G$107*$J10,EN10*Inputs!$G$107) -> 213257.4104 | ES10: =SUM(EL10:ER10)*Inputs!$E$136 -> 42652.02459 | ET10: =IF(Q10=1,0,IF(SUM(EK10:EN10)>0,T10*4*Inputs!$B$165,0)) -> 17360 | EU10: 14.46666667 | EV10: 913041.6663 | EX10: 0.05 | EY10: =IF(Inputs!$B$169=1,EX10*Inputs!$G$107*$J10,EX10*Inputs!$G$107) -> 2948.25913 | EZ10: =EY10*Inputs!$E$136 -> 147.4129565 | FA10: =IF(Q10=1,0,U10*Inputs!$B$165) -> 50 | FB10: 0.05 | FC10: 3145.672087 | FE10: 0 | FF10: =IF(Q10=1,O10/Inputs!$B$97,0) -> 0 | FG10: =IF(Inputs!$B$169=1,FE10*Inputs!$G$106*$J10,FE10*Inputs!$G$106) -> 0 | FH10: =IF(Inputs!$B$169=1,FF10*Inputs!$G$107*$J10,FF10*Inputs!$G$107) -> 0 | FI10: =FH10*Inputs!$E$136 -> 0 | FJ10: 0 | FK10: 0 | FX10: 3497285.538 | FY10: 351930.0379 | FZ10: 913041.6663 | GA10: 3145.672087 | GB10: 0 | GC10: 4765402.914 | GD10: 5856.922458 | GE10: 589.3790827 | GF10: 1529.075674 | GG10: 5.268073565 | GH10: 0 | GI10: 7980.645288
A11: =ADM!A11 -> 001095 | B11: =ADM!B11 -> 001 | C11: =ADM!C11 -> 095 | D11: =ADM!D11 -> Adair County 001 - Colonel William Casey Elementary 095 AADA | E11: =ADM!E11 -> Adair County | F11: =ADM!F11 -> Colonel William Casey Elementary | H11: 2100030 | I11: ADAIR CO SCH DIST | J11: =IF(Inputs!$B$169<>1,1,K11) -> 0.8806509857 | K11: 0.8806509857 | L11: =SUM('Model Student Counts'!I11:N11) -> 411.7 | M11: =SUM('Model Student Counts'!O11:Q11) -> 0 | N11: =SUM('Model Student Counts'!R11:U11) -> 0 | O11: 411.7 | Q11: =IF(Inputs!$B$178=1,IF(O11<Inputs!$B$179,1,0),0) -> 0 | S11: =IF(O11=0,0,VLOOKUP(A11,'Special Student Counts'!$A$5:$Q$1377,4,FALSE)) -> 58 | T11: =IF(Inputs!$B$61=1,VLOOKUP(A11,'Special Student Counts'!$A$5:$Q$1377,13),VLOOKUP(A11,'Special Student Counts'!$A$5:$Q$1377,9,FALSE)) -> 295 | U11: =IF(O11=0,0,VLOOKUP(A11,'Special Student Counts'!$A$5:$Q$1377,6,FALSE)) -> 17 | W11: =IF(Q11=1,0,'Model Student Counts'!I11/Inputs!$B$83) -> 9.856 | X11: =IF(Q11=1,0,'Model Student Counts'!J11/Inputs!$B$84) -> 9.023333333 | Y11: =IF(Q11=1,0,'Model Student Counts'!K11/Inputs!$B$85) -> 8.500666667 | Z11: =IF(Q11=1,0,'Model Student Counts'!L11/Inputs!$B$86) -> 0.06666666667 | AA11: =IF(Q11=1,0,'Model Student Counts'!M11/Inputs!$B$87) -> 0 | AB11: =IF(Q11=1,0,'Model Student Counts'!N11/Inputs!$B$88) -> 0 | AC11: =IF(Q11=1,0,'Model Student Counts'!O11/Inputs!$B$89) -> 0 | AD11: =IF(Q11=1,0,'Model Student Counts'!P11/Inputs!$B$90) -> 0 | AE11: =IF(Q11=1,0,'Model Student Counts'!Q11/Inputs!$B$91) -> 0 | AF11: =IF(Q11=1,0,'Model Student Counts'!R11/Inputs!$B$92) -> 0 | AG11: =IF(Q11=1,0,'Model Student Counts'!S11/Inputs!$B$93) -> 0 | AH11: =IF(Q11=1,0,'Model Student Counts'!T11/Inputs!$B$94) -> 0 | AI11: =IF(Q11=1,0,'Model Student Counts'!U11/Inputs!$B$95) -> 0 | AJ11: 27.44666667 | AK11: 0 | AL11: 0 | AM11: 27.44666667 | AO11: =IF(Q11=1,0,Inputs!$B$55*AJ11) -> 5.489333333 | AP11: =IF(Q11=1,0,Inputs!$B$56*AK11) -> 0 | AQ11: =IF(Q11=1,0,Inputs!$B$57*AL11) -> 0 | AR11: 5.489333333 | AT11: =IF(Q11=1,0,L11/Inputs!$C$140) -> 0.9148888889 | AU11: =IF(Q11=1,0,M11/Inputs!$D$140) -> 0 | AV11: =IF(Q11=1,0,N11/Inputs!$E$140) -> 0 | AW11: 0.9148888889 | AY11: =IF(Q11=1,0,(L11/Inputs!$C$134+M11/Inputs!$D$134+N11/Inputs!$E$134)) -> 2.0585 | AZ11: =IF(Q11=1,0,(L11/Inputs!$C$135+M11/Inputs!$D$135+N11/Inputs!$E$135)) -> 0.9148888889 | BA11: =IF(Q11=1,0,L11/Inputs!$C$137+M11/Inputs!$D$137+N11/Inputs!$E$137) -> 0.9148888889 | BB11: =IF(Q11=1,0,L11/Inputs!$C$138+M11/Inputs!$D$138+N11/Inputs!$E$138) -> 1.829777778 | BC11: 5.718055556 | BE11: =IF(Q11=1,0,L11/Inputs!$C$142) -> 0.9148888889 | BF11: =IF(Q11=1,0,M11/Inputs!$D$142) -> 0 | BG11: =IF(Q11=1,0,N11/Inputs!$E$142) -> 0 | BH11: 0.9148888889 | BI11: 0 | BJ11: 0 | BK11: =IF(Q11=1,0,N11/Inputs!$E$143) -> 0 | BL11: 0 | BM11: =IF(Q11=1,0,L11/Inputs!$C$144) -> 1.829777778 | BN11: =IF(Q11=1,0,M11/Inputs!$D$144) -> 0 | BO11: =IF(Q11=1,0,N11/Inputs!$E$144) -> 0 | BP11: 1.829777778 | BQ11: 2.744666667 | BS11: =IF(Inputs!$B$169=1,Inputs!$G$107*W11*$J11,W11*Inputs!$G$107) -> 581160.8398 | BT11: =IF(Inputs!$B$169=1,Inputs!$G$107*X11*$J11,X11*Inputs!$G$107) -> 532062.4977 | BU11: =IF(Inputs!$B$169=1,Inputs!$G$107*Y11*$J11,Y11*Inputs!$G$107) -> 501243.3623 | BV11: =IF(Inputs!$B$169=1,Inputs!$G$107*Z11*$J11,Z11*Inputs!$G$107) -> 3931.012174 | BW11: =IF(Inputs!$B$169=1,Inputs!$G$107*AA11*$J11,AA11*Inputs!$G$107) -> 0 | BX11: =IF(Inputs!$B$169=1,Inputs!$G$107*AB11*$J11,AB11*Inputs!$G$107) -> 0 | BY11: =IF(Inputs!$B$169=1,Inputs!$G$107*AC11*$J11,AC11*Inputs!$G$107) -> 0 | BZ11: =IF(Inputs!$B$169=1,Inputs!$G$107*AD11*$J11,AD11*Inputs!$G$107) -> 0 | CA11: =IF(Inputs!$B$169=1,Inputs!$G$107*AE11*$J11,AE11*Inputs!$G$107) -> 0 | CB11: =IF(Inputs!$B$169=1,Inputs!$G$107*AF11*$J11,AF11*Inputs!$G$107) -> 0 | CC11: =IF(Inputs!$B$169=1,Inputs!$G$107*AG11*$J11,AG11*Inputs!$G$107) -> 0 | CD11: =IF(Inputs!$B$169=1,Inputs!$G$107*AH11*$J11,AH11*Inputs!$G$107) -> 0 | CE11: =IF(Inputs!$B$169=1,Inputs!$G$107*AI11*$J11,AI11*Inputs!$G$107) -> 0 | CF11: 1618397.712 | CG11: 0 | CH11: 0 | CI11: 1618397.712 | CJ11: =SUM(CF11:CH11)*Inputs!$E$136 -> 80919.8856 | CK11: 1699317.598 | CM11: =IF(Inputs!$B$169=1,Inputs!$G$107*AO11*$J11,AO11*Inputs!$G$107) -> 323679.5424 | CN11: =IF(Inputs!$B$169=1,Inputs!$G$107*AP11*$J11,AP11*Inputs!$G$107) -> 0 | CO11: =IF(Inputs!$B$169=1,Inputs!$G$107*AQ11*$J11,AQ11*Inputs!$G$107) -> 0 | CP11: 323679.5424 | CQ11: =SUM(CM11:CO11)*Inputs!$E$136 -> 16183.97712 | CR11: 339863.5195 | CT11: =IF(Inputs!$B$169=1,AT11*Inputs!$G$110*$J11,AT11*Inputs!$G$110) -> 65680.44996 | CU11: =IF(Inputs!$B$169=1,AU11*Inputs!$G$110*$J11,AU11*Inputs!$G$110) -> 0 | CV11: =IF(Inputs!$B$169=1,AV11*Inputs!$G$110*$J11,AV11*Inputs!$G$110) -> 0 | CW11: 65680.44996 | CY11: =IF(Inputs!$B$169=1, AY11*Inputs!$G$107*$J11,AY11*Inputs!$G$107) -> 121379.8284 | CZ11: =IF(Inputs!$B$169=1, AZ11*Inputs!$G$107*$J11,AZ11*Inputs!$G$107) -> 53946.5904 | DA11: =IF(Inputs!$B$169=1, BA11*Inputs!$G$109*$J11,BA11*Inputs!$G$109) -> 61740.57744 | DB11: =IF(Q11=1,0,BB11*Inputs!$G$113) -> 45732.40573 | DC11: =SUM(CY11:CZ11)*Inputs!$E$136 -> 8766.32094 | DD11: 291565.7229 | DF11: =IF(Inputs!$B$169=1,BE11*Inputs!$G$105*$J11, BE11*Inputs!$G$105) -> 61087.39001 | DG11: =IF(Inputs!$B$169=1, BF11*Inputs!$G$105*$J11, BF11*Inputs!$G$105) -> 0 | DH11: =IF(Inputs!$B$169=1,BG11*Inputs!$G$105*$J11,BG11*Inputs!$G$105) -> 0 | DI11: 61087.39001 | DJ11: =IF(Inputs!$B$169=1, (BI11*SUM(Inputs!$D$106:$E$106)*$J11 + BI11*Inputs!$F$106), BI11*Inputs!$G$106) -> 0 | DK11: =IF(Inputs!$B$169=1, (BJ11*SUM(Inputs!$D$106:$E$106)*$J11 + BJ11*Inputs!$F$106), BJ11*Inputs!$G$106) -> 0 | DL11: =IF(Inputs!$B$169=1,BK11*Inputs!$G$106*$J11,BK11*Inputs!$G$106) -> 0 | DM11: 0 | DN11: =BM11*Inputs!$G$112 -> 68350.86653 | DO11: =BN11*Inputs!$G$112 -> 0 | DP11: =BO11*Inputs!$G$112 -> 0 | DQ11: 68350.86653 | DR11: 129438.2565 | DT11: =Inputs!$B$156*L11+Inputs!$B$157*M11+Inputs!$B$158*N11 -> 57638 | DU11: =Inputs!$B$159*O11 -> 102925 | DV11: =Inputs!$B$160*$O11 -> 10292.5 | DW11: =Inputs!$B$161*$O11 -> 41170 | DX11: =Inputs!$B$162*$O11 -> 10292.5 | DY11: =O11*Inputs!$B$163 -> 102925 | DZ11: 325243 | EB11: =O11/Inputs!$E$146 -> 2.744666667 | EC11: =O11/Inputs!$E$146 -> 2.744666667 | ED11: =IF(Inputs!$B$169=1,EB11*Inputs!$G$107*$J11,EB11*Inputs!$G$107) -> 161839.7712 | EE11: =EC11*Inputs!$G$113 -> 68598.6086 | EF11: =ED11*Inputs!$E$136 -> 8091.98856 | EG11: =Inputs!$B$165*O11 -> 4117 | EH11: 5.489333333 | EI11: 242647.3684 | EK11: =IF(Q11=1,0,T11/Inputs!$E$147) -> 2.458333333 | EL11: =IF(Q11=1,0,T11/Inputs!$E$148) -> 2.458333333 | EM11: =IF(Q11=1,0,T11/Inputs!$E$149) -> 2.458333333 | EN11: =IF(Q11=1,0,T11/Inputs!$E$150) -> 2.458333333 | EO11: =IF(Inputs!$B$169=1, EK11*Inputs!$G$107*$J11,EK11*Inputs!$G$107) -> 144956.0739 | EP11: =IF(Inputs!$B$169=1,EL11*Inputs!$G$107*$J11,EL11*Inputs!$G$107) -> 144956.0739 | EQ11: =IF(Inputs!$B$169=1,EM11*Inputs!$G$107*$J11,EM11*Inputs!$G$107) -> 144956.0739 | ER11: =IF(Inputs!$B$169=1,EN11*Inputs!$G$107*$J11,EN11*Inputs!$G$107) -> 144956.0739 | ES11: =SUM(EL11:ER11)*Inputs!$E$136 -> 28991.58353 | ET11: =IF(Q11=1,0,IF(SUM(EK11:EN11)>0,T11*4*Inputs!$B$165,0)) -> 11800 | EU11: 9.833333333 | EV11: 620615.8792 | EX11: 0.17 | EY11: =IF(Inputs!$B$169=1,EX11*Inputs!$G$107*$J11,EX11*Inputs!$G$107) -> 10024.08104 | EZ11: =EY11*Inputs!$E$136 -> 501.2040522 | FA11: =IF(Q11=1,0,U11*Inputs!$B$165) -> 170 | FB11: 0.17 | FC11: 10695.2851 | FE11: 0 | FF11: =IF(Q11=1,O11/Inputs!$B$97,0) -> 0 | FG11: =IF(Inputs!$B$169=1,FE11*Inputs!$G$106*$J11,FE11*Inputs!$G$106) -> 0 | FH11: =IF(Inputs!$B$169=1,FF11*Inputs!$G$107*$J11,FF11*Inputs!$G$107) -> 0 | FI11: =FH11*Inputs!$E$136 -> 0 | FJ11: 0 | FK11: 0 | FX11: 2851108.547 | FY11: 242647.3684 | FZ11: 620615.8792 | GA11: 10695.2851 | GB11: 0 | GC11: 3725067.079 | GD11: 6925.209003 | GE11: 589.3790827 | GF11: 1507.446877 | GG11: 25.97834612 | GH11: 0 | GI11: 9048.013309
A12: =ADM!A12 -> 005010 | B12: =ADM!B12 -> 005 | C12: =ADM!C12 -> 010 | D12: =ADM!D12 -> Allen County 005 - Allen County Primary Center 010 AADA | E12: =ADM!E12 -> Allen County | F12: =ADM!F12 -> Allen County Primary Center | H12: 2100070 | I12: ALLEN CO SCH DIST | J12: =IF(Inputs!$B$169<>1,1,K12) -> 0.8725128601 | K12: 0.8725128601 | L12: =SUM('Model Student Counts'!I12:N12) -> 897.5633333 | M12: =SUM('Model Student Counts'!O12:Q12) -> 0 | N12: =SUM('Model Student Counts'!R12:U12) -> 0 | O12: 897.5633333 | Q12: =IF(Inputs!$B$178=1,IF(O12<Inputs!$B$179,1,0),0) -> 0 | S12: =IF(O12=0,0,VLOOKUP(A12,'Special Student Counts'!$A$5:$Q$1377,4,FALSE)) -> 131 | T12: =IF(Inputs!$B$61=1,VLOOKUP(A12,'Special Student Counts'!$A$5:$Q$1377,13),VLOOKUP(A12,'Special Student Counts'!$A$5:$Q$1377,9,FALSE)) -> 597 | U12: =IF(O12=0,0,VLOOKUP(A12,'Special Student Counts'!$A$5:$Q$1377,6,FALSE)) -> 14 | W12: =IF(Q12=1,0,'Model Student Counts'!I12/Inputs!$B$83) -> 15.66855556 | X12: =IF(Q12=1,0,'Model Student Counts'!J12/Inputs!$B$84) -> 14.78466667 | Y12: =IF(Q12=1,0,'Model Student Counts'!K12/Inputs!$B$85) -> 14.70677778 | Z12: =IF(Q12=1,0,'Model Student Counts'!L12/Inputs!$B$86) -> 14.67755556 | AA12: =IF(Q12=1,0,'Model Student Counts'!M12/Inputs!$B$87) -> 0 | AB12: =IF(Q12=1,0,'Model Student Counts'!N12/Inputs!$B$88) -> 0 | AC12: =IF(Q12=1,0,'Model Student Counts'!O12/Inputs!$B$89) -> 0 | AD12: =IF(Q12=1,0,'Model Student Counts'!P12/Inputs!$B$90) -> 0 | AE12: =IF(Q12=1,0,'Model Student Counts'!Q12/Inputs!$B$91) -> 0 | AF12: =IF(Q12=1,0,'Model Student Counts'!R12/Inputs!$B$92) -> 0 | AG12: =IF(Q12=1,0,'Model Student Counts'!S12/Inputs!$B$93) -> 0 | AH12: =IF(Q12=1,0,'Model Student Counts'!T12/Inputs!$B$94) -> 0 | AI12: =IF(Q12=1,0,'Model Student Counts'!U12/Inputs!$B$95) -> 0 | AJ12: 59.83755556 | AK12: 0 | AL12: 0 | AM12: 59.83755556 | AO12: =IF(Q12=1,0,Inputs!$B$55*AJ12) -> 11.96751111 | AP12: =IF(Q12=1,0,Inputs!$B$56*AK12) -> 0 | AQ12: =IF(Q12=1,0,Inputs!$B$57*AL12) -> 0 | AR12: 11.96751111 | AT12: =IF(Q12=1,0,L12/Inputs!$C$140) -> 1.994585185 | AU12: =IF(Q12=1,0,M12/Inputs!$D$140) -> 0 | AV12: =IF(Q12=1,0,N12/Inputs!$E$140) -> 0 | AW12: 1.994585185 | AY12: =IF(Q12=1,0,(L12/Inputs!$C$134+M12/Inputs!$D$134+N12/Inputs!$E$134)) -> 4.487816667 | AZ12: =IF(Q12=1,0,(L12/Inputs!$C$135+M12/Inputs!$D$135+N12/Inputs!$E$135)) -> 1.994585185 | BA12: =IF(Q12=1,0,L12/Inputs!$C$137+M12/Inputs!$D$137+N12/Inputs!$E$137) -> 1.994585185 | BB12: =IF(Q12=1,0,L12/Inputs!$C$138+M12/Inputs!$D$138+N12/Inputs!$E$138) -> 3.98917037 | BC12: 12.46615741 | BE12: =IF(Q12=1,0,L12/Inputs!$C$142) -> 1.994585185 | BF12: =IF(Q12=1,0,M12/Inputs!$D$142) -> 0 | BG12: =IF(Q12=1,0,N12/Inputs!$E$142) -> 0 | BH12: 1.994585185 | BI12: 0 | BJ12: 0 | BK12: =IF(Q12=1,0,N12/Inputs!$E$143) -> 0 | BL12: 0 | BM12: =IF(Q12=1,0,L12/Inputs!$C$144) -> 3.98917037 | BN12: =IF(Q12=1,0,M12/Inputs!$D$144) -> 0 | BO12: =IF(Q12=1,0,N12/Inputs!$E$144) -> 0 | BP12: 3.98917037 | BQ12: 5.983755556 | BS12: =IF(Inputs!$B$169=1,Inputs!$G$107*W12*$J12,W12*Inputs!$G$107) -> 915361.4554 | BT12: =IF(Inputs!$B$169=1,Inputs!$G$107*X12*$J12,X12*Inputs!$G$107) -> 863724.416 | BU12: =IF(Inputs!$B$169=1,Inputs!$G$107*Y12*$J12,Y12*Inputs!$G$107) -> 859174.1251 | BV12: =IF(Inputs!$B$169=1,Inputs!$G$107*Z12*$J12,Z12*Inputs!$G$107) -> 857466.9546 | BW12: =IF(Inputs!$B$169=1,Inputs!$G$107*AA12*$J12,AA12*Inputs!$G$107) -> 0 | BX12: =IF(Inputs!$B$169=1,Inputs!$G$107*AB12*$J12,AB12*Inputs!$G$107) -> 0 | BY12: =IF(Inputs!$B$169=1,Inputs!$G$107*AC12*$J12,AC12*Inputs!$G$107) -> 0 | BZ12: =IF(Inputs!$B$169=1,Inputs!$G$107*AD12*$J12,AD12*Inputs!$G$107) -> 0 | CA12: =IF(Inputs!$B$169=1,Inputs!$G$107*AE12*$J12,AE12*Inputs!$G$107) -> 0 | CB12: =IF(Inputs!$B$169=1,Inputs!$G$107*AF12*$J12,AF12*Inputs!$G$107) -> 0 | CC12: =IF(Inputs!$B$169=1,Inputs!$G$107*AG12*$J12,AG12*Inputs!$G$107) -> 0 | CD12: =IF(Inputs!$B$169=1,Inputs!$G$107*AH12*$J12,AH12*Inputs!$G$107) -> 0 | CE12: =IF(Inputs!$B$169=1,Inputs!$G$107*AI12*$J12,AI12*Inputs!$G$107) -> 0 | CF12: 3495726.951 | CG12: 0 | CH12: 0 | CI12: 3495726.951 | CJ12: =SUM(CF12:CH12)*Inputs!$E$136 -> 174786.3476 | CK12: 3670513.299 | CM12: =IF(Inputs!$B$169=1,Inputs!$G$107*AO12*$J12,AO12*Inputs!$G$107) -> 699145.3902 | CN12: =IF(Inputs!$B$169=1,Inputs!$G$107*AP12*$J12,AP12*Inputs!$G$107) -> 0 | CO12: =IF(Inputs!$B$169=1,Inputs!$G$107*AQ12*$J12,AQ12*Inputs!$G$107) -> 0 | CP12: 699145.3902 | CQ12: =SUM(CM12:CO12)*Inputs!$E$136 -> 34957.26951 | CR12: 734102.6597 | CT12: =IF(Inputs!$B$169=1,AT12*Inputs!$G$110*$J12,AT12*Inputs!$G$110) -> 141869.2806 | CU12: =IF(Inputs!$B$169=1,AU12*Inputs!$G$110*$J12,AU12*Inputs!$G$110) -> 0 | CV12: =IF(Inputs!$B$169=1,AV12*Inputs!$G$110*$J12,AV12*Inputs!$G$110) -> 0 | CW12: 141869.2806 | CY12: =IF(Inputs!$B$169=1, AY12*Inputs!$G$107*$J12,AY12*Inputs!$G$107) -> 262179.5213 | CZ12: =IF(Inputs!$B$169=1, AZ12*Inputs!$G$107*$J12,AZ12*Inputs!$G$107) -> 116524.2317 | DA12: =IF(Inputs!$B$169=1, BA12*Inputs!$G$109*$J12,BA12*Inputs!$G$109) -> 133359.1854 | DB12: =IF(Q12=1,0,BB12*Inputs!$G$113) -> 99703.01319 | DC12: =SUM(CY12:CZ12)*Inputs!$E$136 -> 18935.18765 | DD12: 630701.1393 | DF12: =IF(Inputs!$B$169=1,BE12*Inputs!$G$105*$J12, BE12*Inputs!$G$105) -> 131948.3054 | DG12: =IF(Inputs!$B$169=1, BF12*Inputs!$G$105*$J12, BF12*Inputs!$G$105) -> 0 | DH12: =IF(Inputs!$B$169=1,BG12*Inputs!$G$105*$J12,BG12*Inputs!$G$105) -> 0 | DI12: 131948.3054 | DJ12: =IF(Inputs!$B$169=1, (BI12*SUM(Inputs!$D$106:$E$106)*$J12 + BI12*Inputs!$F$106), BI12*Inputs!$G$106) -> 0 | DK12: =IF(Inputs!$B$169=1, (BJ12*SUM(Inputs!$D$106:$E$106)*$J12 + BJ12*Inputs!$F$106), BJ12*Inputs!$G$106) -> 0 | DL12: =IF(Inputs!$B$169=1,BK12*Inputs!$G$106*$J12,BK12*Inputs!$G$106) -> 0 | DM12: 0 | DN12: =BM12*Inputs!$G$112 -> 149014.4076 | DO12: =BN12*Inputs!$G$112 -> 0 | DP12: =BO12*Inputs!$G$112 -> 0 | DQ12: 149014.4076 | DR12: 280962.713 | DT12: =Inputs!$B$156*L12+Inputs!$B$157*M12+Inputs!$B$158*N12 -> 125658.8667 | DU12: =Inputs!$B$159*O12 -> 224390.8333 | DV12: =Inputs!$B$160*$O12 -> 22439.08333 | DW12: =Inputs!$B$161*$O12 -> 89756.33333 | DX12: =Inputs!$B$162*$O12 -> 22439.08333 | DY12: =O12*Inputs!$B$163 -> 224390.8333 | DZ12: 709075.0333 | EB12: =O12/Inputs!$E$146 -> 5.983755556 | EC12: =O12/Inputs!$E$146 -> 5.983755556 | ED12: =IF(Inputs!$B$169=1,EB12*Inputs!$G$107*$J12,EB12*Inputs!$G$107) -> 349572.6951 | EE12: =EC12*Inputs!$G$113 -> 149554.5198 | EF12: =ED12*Inputs!$E$136 -> 17478.63476 | EG12: =Inputs!$B$165*O12 -> 8975.633333 | EH12: 11.96751111 | EI12: 525581.483 | EK12: =IF(Q12=1,0,T12/Inputs!$E$147) -> 4.975 | EL12: =IF(Q12=1,0,T12/Inputs!$E$148) -> 4.975 | EM12: =IF(Q12=1,0,T12/Inputs!$E$149) -> 4.975 | EN12: =IF(Q12=1,0,T12/Inputs!$E$150) -> 4.975 | EO12: =IF(Inputs!$B$169=1, EK12*Inputs!$G$107*$J12,EK12*Inputs!$G$107) -> 290640.9097 | EP12: =IF(Inputs!$B$169=1,EL12*Inputs!$G$107*$J12,EL12*Inputs!$G$107) -> 290640.9097 | EQ12: =IF(Inputs!$B$169=1,EM12*Inputs!$G$107*$J12,EM12*Inputs!$G$107) -> 290640.9097 | ER12: =IF(Inputs!$B$169=1,EN12*Inputs!$G$107*$J12,EN12*Inputs!$G$107) -> 290640.9097 | ES12: =SUM(EL12:ER12)*Inputs!$E$136 -> 58128.92819 | ET12: =IF(Q12=1,0,IF(SUM(EK12:EN12)>0,T12*4*Inputs!$B$165,0)) -> 23880 | EU12: 19.9 | EV12: 1244572.567 | EX12: 0.14 | EY12: =IF(Inputs!$B$169=1,EX12*Inputs!$G$107*$J12,EX12*Inputs!$G$107) -> 8178.83967 | EZ12: =EY12*Inputs!$E$136 -> 408.9419835 | FA12: =IF(Q12=1,0,U12*Inputs!$B$165) -> 140 | FB12: 0.14 | FC12: 8727.781654 | FE12: 0 | FF12: =IF(Q12=1,O12/Inputs!$B$97,0) -> 0 | FG12: =IF(Inputs!$B$169=1,FE12*Inputs!$G$106*$J12,FE12*Inputs!$G$106) -> 0 | FH12: =IF(Inputs!$B$169=1,FF12*Inputs!$G$107*$J12,FF12*Inputs!$G$107) -> 0 | FI12: =FH12*Inputs!$E$136 -> 0 | FJ12: 0 | FK12: 0 | FX12: 6167224.124 | FY12: 525581.483 | FZ12: 1244572.567 | GA12: 8727.781654 | GB12: 0 | GC12: 7946105.956 | GD12: 6871.074046 | GE12: 585.564788 | GF12: 1386.612533 | GG12: 9.723861626 | GH12: 0 | GI12: 8852.975229
A13: =ADM!A13 -> 005015 | B13: =ADM!B13 -> 005 | C13: =ADM!C13 -> 015 | D13: =ADM!D13 -> Allen County 005 - James E Bazzell Middle School 015 AADA | E13: =ADM!E13 -> Allen County | F13: =ADM!F13 -> James E Bazzell Middle School | H13: 2100070 | I13: ALLEN CO SCH DIST | J13: =IF(Inputs!$B$169<>1,1,K13) -> 0.8725128601 | K13: 0.8725128601 | L13: =SUM('Model Student Counts'!I13:N13) -> 0 | M13: =SUM('Model Student Counts'!O13:Q13) -> 473.84 | N13: =SUM('Model Student Counts'!R13:U13) -> 0 | O13: 473.84 | Q13: =IF(Inputs!$B$178=1,IF(O13<Inputs!$B$179,1,0),0) -> 0 | S13: =IF(O13=0,0,VLOOKUP(A13,'Special Student Counts'!$A$5:$Q$1377,4,FALSE)) -> 46 | T13: =IF(Inputs!$B$61=1,VLOOKUP(A13,'Special Student Counts'!$A$5:$Q$1377,13),VLOOKUP(A13,'Special Student Counts'!$A$5:$Q$1377,9,FALSE)) -> 267 | U13: =IF(O13=0,0,VLOOKUP(A13,'Special Student Counts'!$A$5:$Q$1377,6,FALSE)) -> 4 | W13: =IF(Q13=1,0,'Model Student Counts'!I13/Inputs!$B$83) -> 0 | X13: =IF(Q13=1,0,'Model Student Counts'!J13/Inputs!$B$84) -> 0 | Y13: =IF(Q13=1,0,'Model Student Counts'!K13/Inputs!$B$85) -> 0 | Z13: =IF(Q13=1,0,'Model Student Counts'!L13/Inputs!$B$86) -> 0 | AA13: =IF(Q13=1,0,'Model Student Counts'!M13/Inputs!$B$87) -> 0 | AB13: =IF(Q13=1,0,'Model Student Counts'!N13/Inputs!$B$88) -> 0 | AC13: =IF(Q13=1,0,'Model Student Counts'!O13/Inputs!$B$89) -> 0 | AD13: =IF(Q13=1,0,'Model Student Counts'!P13/Inputs!$B$90) -> 10.0784 | AE13: =IF(Q13=1,0,'Model Student Counts'!Q13/Inputs!$B$91) -> 8.8752 | AF13: =IF(Q13=1,0,'Model Student Counts'!R13/Inputs!$B$92) -> 0 | AG13: =IF(Q13=1,0,'Model Student Counts'!S13/Inputs!$B$93) -> 0 | AH13: =IF(Q13=1,0,'Model Student Counts'!T13/Inputs!$B$94) -> 0 | AI13: =IF(Q13=1,0,'Model Student Counts'!U13/Inputs!$B$95) -> 0 | AJ13: 0 | AK13: 18.9536 | AL13: 0 | AM13: 18.9536 | AO13: =IF(Q13=1,0,Inputs!$B$55*AJ13) -> 0 | AP13: =IF(Q13=1,0,Inputs!$B$56*AK13) -> 3.79072 | AQ13: =IF(Q13=1,0,Inputs!$B$57*AL13) -> 0 | AR13: 3.79072 | AT13: =IF(Q13=1,0,L13/Inputs!$C$140) -> 0 | AU13: =IF(Q13=1,0,M13/Inputs!$D$140) -> 1.052977778 | AV13: =IF(Q13=1,0,N13/Inputs!$E$140) -> 0 | AW13: 1.052977778 | AY13: =IF(Q13=1,0,(L13/Inputs!$C$134+M13/Inputs!$D$134+N13/Inputs!$E$134)) -> 2.3692 | AZ13: =IF(Q13=1,0,(L13/Inputs!$C$135+M13/Inputs!$D$135+N13/Inputs!$E$135)) -> 1.052977778 | BA13: =IF(Q13=1,0,L13/Inputs!$C$137+M13/Inputs!$D$137+N13/Inputs!$E$137) -> 1.89536 | BB13: =IF(Q13=1,0,L13/Inputs!$C$138+M13/Inputs!$D$138+N13/Inputs!$E$138) -> 2.105955556 | BC13: 7.423493333 | BE13: =IF(Q13=1,0,L13/Inputs!$C$142) -> 0 | BF13: =IF(Q13=1,0,M13/Inputs!$D$142) -> 1.052977778 | BG13: =IF(Q13=1,0,N13/Inputs!$E$142) -> 0 | BH13: 1.052977778 | BI13: 0 | BJ13: 0 | BK13: =IF(Q13=1,0,N13/Inputs!$E$143) -> 0 | BL13: 0 | BM13: =IF(Q13=1,0,L13/Inputs!$C$144) -> 0 | BN13: =IF(Q13=1,0,M13/Inputs!$D$144) -> 2.105955556 | BO13: =IF(Q13=1,0,N13/Inputs!$E$144) -> 0 | BP13: 2.105955556 | BQ13: 3.158933333 | BS13: =IF(Inputs!$B$169=1,Inputs!$G$107*W13*$J13,W13*Inputs!$G$107) -> 0 | BT13: =IF(Inputs!$B$169=1,Inputs!$G$107*X13*$J13,X13*Inputs!$G$107) -> 0 | BU13: =IF(Inputs!$B$169=1,Inputs!$G$107*Y13*$J13,Y13*Inputs!$G$107) -> 0 | BV13: =IF(Inputs!$B$169=1,Inputs!$G$107*Z13*$J13,Z13*Inputs!$G$107) -> 0 | BW13: =IF(Inputs!$B$169=1,Inputs!$G$107*AA13*$J13,AA13*Inputs!$G$107) -> 0 | BX13: =IF(Inputs!$B$169=1,Inputs!$G$107*AB13*$J13,AB13*Inputs!$G$107) -> 0 | BY13: =IF(Inputs!$B$169=1,Inputs!$G$107*AC13*$J13,AC13*Inputs!$G$107) -> 0 | BZ13: =IF(Inputs!$B$169=1,Inputs!$G$107*AD13*$J13,AD13*Inputs!$G$107) -> 588782.9838 | CA13: =IF(Inputs!$B$169=1,Inputs!$G$107*AE13*$J13,AE13*Inputs!$G$107) -> 518491.6989 | CB13: =IF(Inputs!$B$169=1,Inputs!$G$107*AF13*$J13,AF13*Inputs!$G$107) -> 0 | CC13: =IF(Inputs!$B$169=1,Inputs!$G$107*AG13*$J13,AG13*Inputs!$G$107) -> 0 | CD13: =IF(Inputs!$B$169=1,Inputs!$G$107*AH13*$J13,AH13*Inputs!$G$107) -> 0 | CE13: =IF(Inputs!$B$169=1,Inputs!$G$107*AI13*$J13,AI13*Inputs!$G$107) -> 0 | CF13: 0 | CG13: 1107274.683 | CH13: 0 | CI13: 1107274.683 | CJ13: =SUM(CF13:CH13)*Inputs!$E$136 -> 55363.73413 | CK13: 1162638.417 | CM13: =IF(Inputs!$B$169=1,Inputs!$G$107*AO13*$J13,AO13*Inputs!$G$107) -> 0 | CN13: =IF(Inputs!$B$169=1,Inputs!$G$107*AP13*$J13,AP13*Inputs!$G$107) -> 221454.9365 | CO13: =IF(Inputs!$B$169=1,Inputs!$G$107*AQ13*$J13,AQ13*Inputs!$G$107) -> 0 | CP13: 221454.9365 | CQ13: =SUM(CM13:CO13)*Inputs!$E$136 -> 11072.74683 | CR13: 232527.6834 | CT13: =IF(Inputs!$B$169=1,AT13*Inputs!$G$110*$J13,AT13*Inputs!$G$110) -> 0 | CU13: =IF(Inputs!$B$169=1,AU13*Inputs!$G$110*$J13,AU13*Inputs!$G$110) -> 74895.37218 | CV13: =IF(Inputs!$B$169=1,AV13*Inputs!$G$110*$J13,AV13*Inputs!$G$110) -> 0 | CW13: 74895.37218 | CY13: =IF(Inputs!$B$169=1, AY13*Inputs!$G$107*$J13,AY13*Inputs!$G$107) -> 138409.3353 | CZ13: =IF(Inputs!$B$169=1, AZ13*Inputs!$G$107*$J13,AZ13*Inputs!$G$107) -> 61515.26015 | DA13: =IF(Inputs!$B$169=1, BA13*Inputs!$G$109*$J13,BA13*Inputs!$G$109) -> 126724.9288 | DB13: =IF(Q13=1,0,BB13*Inputs!$G$113) -> 52635.03311 | DC13: =SUM(CY13:CZ13)*Inputs!$E$136 -> 9996.229774 | DD13: 389280.7872 | DF13: =IF(Inputs!$B$169=1,BE13*Inputs!$G$105*$J13, BE13*Inputs!$G$105) -> 0 | DG13: =IF(Inputs!$B$169=1, BF13*Inputs!$G$105*$J13, BF13*Inputs!$G$105) -> 69657.90906 | DH13: =IF(Inputs!$B$169=1,BG13*Inputs!$G$105*$J13,BG13*Inputs!$G$105) -> 0 | DI13: 69657.90906 | DJ13: =IF(Inputs!$B$169=1, (BI13*SUM(Inputs!$D$106:$E$106)*$J13 + BI13*Inputs!$F$106), BI13*Inputs!$G$106) -> 0 | DK13: =IF(Inputs!$B$169=1, (BJ13*SUM(Inputs!$D$106:$E$106)*$J13 + BJ13*Inputs!$F$106), BJ13*Inputs!$G$106) -> 0 | DL13: =IF(Inputs!$B$169=1,BK13*Inputs!$G$106*$J13,BK13*Inputs!$G$106) -> 0 | DM13: 0 | DN13: =BM13*Inputs!$G$112 -> 0 | DO13: =BN13*Inputs!$G$112 -> 78667.41461 | DP13: =BO13*Inputs!$G$112 -> 0 | DQ13: 78667.41461 | DR13: 148325.3237 | DT13: =Inputs!$B$156*L13+Inputs!$B$157*M13+Inputs!$B$158*N13 -> 66337.6 | DU13: =Inputs!$B$159*O13 -> 118460 | DV13: =Inputs!$B$160*$O13 -> 11846 | DW13: =Inputs!$B$161*$O13 -> 47384 | DX13: =Inputs!$B$162*$O13 -> 11846 | DY13: =O13*Inputs!$B$163 -> 118460 | DZ13: 374333.6 | EB13: =O13/Inputs!$E$146 -> 3.158933333 | EC13: =O13/Inputs!$E$146 -> 3.158933333 | ED13: =IF(Inputs!$B$169=1,EB13*Inputs!$G$107*$J13,EB13*Inputs!$G$107) -> 184545.7804 | EE13: =EC13*Inputs!$G$113 -> 78952.54967 | EF13: =ED13*Inputs!$E$136 -> 9227.289022 | EG13: =Inputs!$B$165*O13 -> 4738.4 | EH13: 6.317866667 | EI13: 277464.0191 | EK13: =IF(Q13=1,0,T13/Inputs!$E$147) -> 2.225 | EL13: =IF(Q13=1,0,T13/Inputs!$E$148) -> 2.225 | EM13: =IF(Q13=1,0,T13/Inputs!$E$149) -> 2.225 | EN13: =IF(Q13=1,0,T13/Inputs!$E$150) -> 2.225 | EO13: =IF(Inputs!$B$169=1, EK13*Inputs!$G$107*$J13,EK13*Inputs!$G$107) -> 129985.1305 | EP13: =IF(Inputs!$B$169=1,EL13*Inputs!$G$107*$J13,EL13*Inputs!$G$107) -> 129985.1305 | EQ13: =IF(Inputs!$B$169=1,EM13*Inputs!$G$107*$J13,EM13*Inputs!$G$107) -> 129985.1305 | ER13: =IF(Inputs!$B$169=1,EN13*Inputs!$G$107*$J13,EN13*Inputs!$G$107) -> 129985.1305 | ES13: =SUM(EL13:ER13)*Inputs!$E$136 -> 25997.35984 | ET13: =IF(Q13=1,0,IF(SUM(EK13:EN13)>0,T13*4*Inputs!$B$165,0)) -> 10680 | EU13: 8.9 | EV13: 556617.8817 | EX13: 0.04 | EY13: =IF(Inputs!$B$169=1,EX13*Inputs!$G$107*$J13,EX13*Inputs!$G$107) -> 2336.811334 | EZ13: =EY13*Inputs!$E$136 -> 116.8405667 | FA13: =IF(Q13=1,0,U13*Inputs!$B$165) -> 40 | FB13: 0.04 | FC13: 2493.651901 | FE13: 0 | FF13: =IF(Q13=1,O13/Inputs!$B$97,0) -> 0 | FG13: =IF(Inputs!$B$169=1,FE13*Inputs!$G$106*$J13,FE13*Inputs!$G$106) -> 0 | FH13: =IF(Inputs!$B$169=1,FF13*Inputs!$G$107*$J13,FF13*Inputs!$G$107) -> 0 | FI13: =FH13*Inputs!$E$136 -> 0 | FJ13: 0 | FK13: 0 | FX13: 2382001.183 | FY13: 277464.0191 | FZ13: 556617.8817 | GA13: 2493.651901 | GB13: 0 | GC13: 3218576.736 | GD13: 5027.015835 | GE13: 585.564788 | GF13: 1174.69585 | GG13: 5.26264541 | GH13: 0 | GI13: 6792.539119
A14: =ADM!A14 -> 005020 | B14: =ADM!B14 -> 005 | C14: =ADM!C14 -> 020 | D14: =ADM!D14 -> Allen County 005 - Allen County-Scottsville High School 020 AADA | E14: =ADM!E14 -> Allen County | F14: =ADM!F14 -> Allen County-Scottsville High School | H14: 2100070 | I14: ALLEN CO SCH DIST | J14: =IF(Inputs!$B$169<>1,1,K14) -> 0.8725128601 | K14: 0.8725128601 | L14: =SUM('Model Student Counts'!I14:N14) -> 0 | M14: =SUM('Model Student Counts'!O14:Q14) -> 0 | N14: =SUM('Model Student Counts'!R14:U14) -> 857.488 | O14: 857.488 | Q14: =IF(Inputs!$B$178=1,IF(O14<Inputs!$B$179,1,0),0) -> 0 | S14: =IF(O14=0,0,VLOOKUP(A14,'Special Student Counts'!$A$5:$Q$1377,4,FALSE)) -> 62 | T14: =IF(Inputs!$B$61=1,VLOOKUP(A14,'Special Student Counts'!$A$5:$Q$1377,13),VLOOKUP(A14,'Special Student Counts'!$A$5:$Q$1377,9,FALSE)) -> 442 | U14: =IF(O14=0,0,VLOOKUP(A14,'Special Student Counts'!$A$5:$Q$1377,6,FALSE)) -> 3 | W14: =IF(Q14=1,0,'Model Student Counts'!I14/Inputs!$B$83) -> 0 | X14: =IF(Q14=1,0,'Model Student Counts'!J14/Inputs!$B$84) -> 0 | Y14: =IF(Q14=1,0,'Model Student Counts'!K14/Inputs!$B$85) -> 0 | Z14: =IF(Q14=1,0,'Model Student Counts'!L14/Inputs!$B$86) -> 0 | AA14: =IF(Q14=1,0,'Model Student Counts'!M14/Inputs!$B$87) -> 0 | AB14: =IF(Q14=1,0,'Model Student Counts'!N14/Inputs!$B$88) -> 0 | AC14: =IF(Q14=1,0,'Model Student Counts'!O14/Inputs!$B$89) -> 0 | AD14: =IF(Q14=1,0,'Model Student Counts'!P14/Inputs!$B$90) -> 0 | AE14: =IF(Q14=1,0,'Model Student Counts'!Q14/Inputs!$B$91) -> 0 | AF14: =IF(Q14=1,0,'Model Student Counts'!R14/Inputs!$B$92) -> 8.86464 | AG14: =IF(Q14=1,0,'Model Student Counts'!S14/Inputs!$B$93) -> 8.63828 | AH14: =IF(Q14=1,0,'Model Student Counts'!T14/Inputs!$B$94) -> 8.436733333 | AI14: =IF(Q14=1,0,'Model Student Counts'!U14/Inputs!$B$95) -> 8.359866667 | AJ14: 0 | AK14: 0 | AL14: 34.29952 | AM14: 34.29952 | AO14: =IF(Q14=1,0,Inputs!$B$55*AJ14) -> 0 | AP14: =IF(Q14=1,0,Inputs!$B$56*AK14) -> 0 | AQ14: =IF(Q14=1,0,Inputs!$B$57*AL14) -> 11.43203002 | AR14: 11.43203002 | AT14: =IF(Q14=1,0,L14/Inputs!$C$140) -> 0 | AU14: =IF(Q14=1,0,M14/Inputs!$D$140) -> 0 | AV14: =IF(Q14=1,0,N14/Inputs!$E$140) -> 1.429146667 | AW14: 1.429146667 | AY14: =IF(Q14=1,0,(L14/Inputs!$C$134+M14/Inputs!$D$134+N14/Inputs!$E$134)) -> 4.28744 | AZ14: =IF(Q14=1,0,(L14/Inputs!$C$135+M14/Inputs!$D$135+N14/Inputs!$E$135)) -> 1.429146667 | BA14: =IF(Q14=1,0,L14/Inputs!$C$137+M14/Inputs!$D$137+N14/Inputs!$E$137) -> 3.429952 | BB14: =IF(Q14=1,0,L14/Inputs!$C$138+M14/Inputs!$D$138+N14/Inputs!$E$138) -> 4.28744 | BC14: 13.43397867 | BE14: =IF(Q14=1,0,L14/Inputs!$C$142) -> 0 | BF14: =IF(Q14=1,0,M14/Inputs!$D$142) -> 0 | BG14: =IF(Q14=1,0,N14/Inputs!$E$142) -> 1.429146667 | BH14: 1.429146667 | BI14: 0 | BJ14: 0 | BK14: =IF(Q14=1,0,N14/Inputs!$E$143) -> 1.429146667 | BL14: 1.429146667 | BM14: =IF(Q14=1,0,L14/Inputs!$C$144) -> 0 | BN14: =IF(Q14=1,0,M14/Inputs!$D$144) -> 0 | BO14: =IF(Q14=1,0,N14/Inputs!$E$144) -> 4.28744 | BP14: 4.28744 | BQ14: 7.145733333 | BS14: =IF(Inputs!$B$169=1,Inputs!$G$107*W14*$J14,W14*Inputs!$G$107) -> 0 | BT14: =IF(Inputs!$B$169=1,Inputs!$G$107*X14*$J14,X14*Inputs!$G$107) -> 0 | BU14: =IF(Inputs!$B$169=1,Inputs!$G$107*Y14*$J14,Y14*Inputs!$G$107) -> 0 | BV14: =IF(Inputs!$B$169=1,Inputs!$G$107*Z14*$J14,Z14*Inputs!$G$107) -> 0 | BW14: =IF(Inputs!$B$169=1,Inputs!$G$107*AA14*$J14,AA14*Inputs!$G$107) -> 0 | BX14: =IF(Inputs!$B$169=1,Inputs!$G$107*AB14*$J14,AB14*Inputs!$G$107) -> 0 | BY14: =IF(Inputs!$B$169=1,Inputs!$G$107*AC14*$J14,AC14*Inputs!$G$107) -> 0 | BZ14: =IF(Inputs!$B$169=1,Inputs!$G$107*AD14*$J14,AD14*Inputs!$G$107) -> 0 | CA14: =IF(Inputs!$B$169=1,Inputs!$G$107*AE14*$J14,AE14*Inputs!$G$107) -> 0 | CB14: =IF(Inputs!$B$169=1,Inputs!$G$107*AF14*$J14,AF14*Inputs!$G$107) -> 517874.7807 | CC14: =IF(Inputs!$B$169=1,Inputs!$G$107*AG14*$J14,AG14*Inputs!$G$107) -> 504650.7653 | CD14: =IF(Inputs!$B$169=1,Inputs!$G$107*AH14*$J14,AH14*Inputs!$G$107) -> 492876.352 | CE14: =IF(Inputs!$B$169=1,Inputs!$G$107*AI14*$J14,AI14*Inputs!$G$107) -> 488385.7795 | CF14: 0 | CG14: 0 | CH14: 2003787.677 | CI14: 2003787.677 | CJ14: =SUM(CF14:CH14)*Inputs!$E$136 -> 100189.3839 | CK14: 2103977.061 | CM14: =IF(Inputs!$B$169=1,Inputs!$G$107*AO14*$J14,AO14*Inputs!$G$107) -> 0 | CN14: =IF(Inputs!$B$169=1,Inputs!$G$107*AP14*$J14,AP14*Inputs!$G$107) -> 0 | CO14: =IF(Inputs!$B$169=1,Inputs!$G$107*AQ14*$J14,AQ14*Inputs!$G$107) -> 667862.4329 | CP14: 667862.4329 | CQ14: =SUM(CM14:CO14)*Inputs!$E$136 -> 33393.12164 | CR14: 701255.5545 | CT14: =IF(Inputs!$B$169=1,AT14*Inputs!$G$110*$J14,AT14*Inputs!$G$110) -> 0 | CU14: =IF(Inputs!$B$169=1,AU14*Inputs!$G$110*$J14,AU14*Inputs!$G$110) -> 0 | CV14: =IF(Inputs!$B$169=1,AV14*Inputs!$G$110*$J14,AV14*Inputs!$G$110) -> 101651.216 | CW14: 101651.216 | CY14: =IF(Inputs!$B$169=1, AY14*Inputs!$G$107*$J14,AY14*Inputs!$G$107) -> 250473.4597 | CZ14: =IF(Inputs!$B$169=1, AZ14*Inputs!$G$107*$J14,AZ14*Inputs!$G$107) -> 83491.15323 | DA14: =IF(Inputs!$B$169=1, BA14*Inputs!$G$109*$J14,BA14*Inputs!$G$109) -> 229328.6885 | DB14: =IF(Q14=1,0,BB14*Inputs!$G$113) -> 107157.7915 | DC14: =SUM(CY14:CZ14)*Inputs!$E$136 -> 16698.23065 | DD14: 687149.3236 | DF14: =IF(Inputs!$B$169=1,BE14*Inputs!$G$105*$J14, BE14*Inputs!$G$105) -> 0 | DG14: =IF(Inputs!$B$169=1, BF14*Inputs!$G$105*$J14, BF14*Inputs!$G$105) -> 0 | DH14: =IF(Inputs!$B$169=1,BG14*Inputs!$G$105*$J14,BG14*Inputs!$G$105) -> 94542.70607 | DI14: 94542.70607 | DJ14: =IF(Inputs!$B$169=1, (BI14*SUM(Inputs!$D$106:$E$106)*$J14 + BI14*Inputs!$F$106), BI14*Inputs!$G$106) -> 0 | DK14: =IF(Inputs!$B$169=1, (BJ14*SUM(Inputs!$D$106:$E$106)*$J14 + BJ14*Inputs!$F$106), BJ14*Inputs!$G$106) -> 0 | DL14: =IF(Inputs!$B$169=1,BK14*Inputs!$G$106*$J14,BK14*Inputs!$G$106) -> 92730.02777 | DM14: 92730.02777 | DN14: =BM14*Inputs!$G$112 -> 0 | DO14: =BN14*Inputs!$G$112 -> 0 | DP14: =BO14*Inputs!$G$112 -> 160156.191 | DQ14: 160156.191 | DR14: 347428.9248 | DT14: =Inputs!$B$156*L14+Inputs!$B$157*M14+Inputs!$B$158*N14 -> 150060.4 | DU14: =Inputs!$B$159*O14 -> 214372 | DV14: =Inputs!$B$160*$O14 -> 21437.2 | DW14: =Inputs!$B$161*$O14 -> 85748.8 | DX14: =Inputs!$B$162*$O14 -> 21437.2 | DY14: =O14*Inputs!$B$163 -> 214372 | DZ14: 707427.6 | EB14: =O14/Inputs!$E$146 -> 5.716586667 | EC14: =O14/Inputs!$E$146 -> 5.716586667 | ED14: =IF(Inputs!$B$169=1,EB14*Inputs!$G$107*$J14,EB14*Inputs!$G$107) -> 333964.6129 | EE14: =EC14*Inputs!$G$113 -> 142877.0554 | EF14: =ED14*Inputs!$E$136 -> 16698.23065 | EG14: =Inputs!$B$165*O14 -> 8574.88 | EH14: 11.43317333 | EI14: 502114.7789 | EK14: =IF(Q14=1,0,T14/Inputs!$E$147) -> 3.683333333 | EL14: =IF(Q14=1,0,T14/Inputs!$E$148) -> 3.683333333 | EM14: =IF(Q14=1,0,T14/Inputs!$E$149) -> 3.683333333 | EN14: =IF(Q14=1,0,T14/Inputs!$E$150) -> 3.683333333 | EO14: =IF(Inputs!$B$169=1, EK14*Inputs!$G$107*$J14,EK14*Inputs!$G$107) -> 215181.377 | EP14: =IF(Inputs!$B$169=1,EL14*Inputs!$G$107*$J14,EL14*Inputs!$G$107) -> 215181.377 | EQ14: =IF(Inputs!$B$169=1,EM14*Inputs!$G$107*$J14,EM14*Inputs!$G$107) -> 215181.377 | ER14: =IF(Inputs!$B$169=1,EN14*Inputs!$G$107*$J14,EN14*Inputs!$G$107) -> 215181.377 | ES14: =SUM(EL14:ER14)*Inputs!$E$136 -> 43036.82791 | ET14: =IF(Q14=1,0,IF(SUM(EK14:EN14)>0,T14*4*Inputs!$B$165,0)) -> 17680 | EU14: 14.73333333 | EV14: 921442.3361 | EX14: 0.03 | EY14: =IF(Inputs!$B$169=1,EX14*Inputs!$G$107*$J14,EX14*Inputs!$G$107) -> 1752.608501 | EZ14: =EY14*Inputs!$E$136 -> 87.63042504 | FA14: =IF(Q14=1,0,U14*Inputs!$B$165) -> 30 | FB14: 0.03 | FC14: 1870.238926 | FE14: 0 | FF14: =IF(Q14=1,O14/Inputs!$B$97,0) -> 0 | FG14: =IF(Inputs!$B$169=1,FE14*Inputs!$G$106*$J14,FE14*Inputs!$G$106) -> 0 | FH14: =IF(Inputs!$B$169=1,FF14*Inputs!$G$107*$J14,FF14*Inputs!$G$107) -> 0 | FI14: =FH14*Inputs!$E$136 -> 0 | FJ14: 0 | FK14: 0 | FX14: 4648889.68 | FY14: 502114.7789 | FZ14: 921442.3361 | GA14: 1870.238926 | GB14: 0 | GC14: 6074317.034 | GD14: 5421.521561 | GE14: 585.564788 | GF14: 1074.58336 | GG14: 2.18106717 | GH14: 0 | GI14: 7083.850776
A15: =ADM!A15 -> 005060 | B15: =ADM!B15 -> 005 | C15: =ADM!C15 -> 060 | D15: =ADM!D15 -> Allen County 005 - Allen County Intermediate Center 060 AADA | E15: =ADM!E15 -> Allen County | F15: =ADM!F15 -> Allen County Intermediate Center | H15: 2100070 | I15: ALLEN CO SCH DIST | J15: =IF(Inputs!$B$169<>1,1,K15) -> 0.8725128601 | K15: 0.8725128601 | L15: =SUM('Model Student Counts'!I15:N15) -> 464.3203333 | M15: =SUM('Model Student Counts'!O15:Q15) -> 239.29 | N15: =SUM('Model Student Counts'!R15:U15) -> 0 | O15: 703.6103333 | Q15: =IF(Inputs!$B$178=1,IF(O15<Inputs!$B$179,1,0),0) -> 0 | S15: =IF(O15=0,0,VLOOKUP(A15,'Special Student Counts'!$A$5:$Q$1377,4,FALSE)) -> 66 | T15: =IF(Inputs!$B$61=1,VLOOKUP(A15,'Special Student Counts'!$A$5:$Q$1377,13),VLOOKUP(A15,'Special Student Counts'!$A$5:$Q$1377,9,FALSE)) -> 427 | U15: =IF(O15=0,0,VLOOKUP(A15,'Special Student Counts'!$A$5:$Q$1377,6,FALSE)) -> 4 | W15: =IF(Q15=1,0,'Model Student Counts'!I15/Inputs!$B$83) -> 0 | X15: =IF(Q15=1,0,'Model Student Counts'!J15/Inputs!$B$84) -> 0 | Y15: =IF(Q15=1,0,'Model Student Counts'!K15/Inputs!$B$85) -> 0 | Z15: =IF(Q15=1,0,'Model Student Counts'!L15/Inputs!$B$86) -> 0 | AA15: =IF(Q15=1,0,'Model Student Counts'!M15/Inputs!$B$87) -> 9.243053333 | AB15: =IF(Q15=1,0,'Model Student Counts'!N15/Inputs!$B$88) -> 9.32976 | AC15: =IF(Q15=1,0,'Model Student Counts'!O15/Inputs!$B$89) -> 9.5716 | AD15: =IF(Q15=1,0,'Model Student Counts'!P15/Inputs!$B$90) -> 0 | AE15: =IF(Q15=1,0,'Model Student Counts'!Q15/Inputs!$B$91) -> 0 | AF15: =IF(Q15=1,0,'Model Student Counts'!R15/Inputs!$B$92) -> 0 | AG15: =IF(Q15=1,0,'Model Student Counts'!S15/Inputs!$B$93) -> 0 | AH15: =IF(Q15=1,0,'Model Student Counts'!T15/Inputs!$B$94) -> 0 | AI15: =IF(Q15=1,0,'Model Student Counts'!U15/Inputs!$B$95) -> 0 | AJ15: 18.57281333 | AK15: 9.5716 | AL15: 0 | AM15: 28.14441333 | AO15: =IF(Q15=1,0,Inputs!$B$55*AJ15) -> 3.714562667 | AP15: =IF(Q15=1,0,Inputs!$B$56*AK15) -> 1.91432 | AQ15: =IF(Q15=1,0,Inputs!$B$57*AL15) -> 0 | AR15: 5.628882667 | AT15: =IF(Q15=1,0,L15/Inputs!$C$140) -> 1.031822963 | AU15: =IF(Q15=1,0,M15/Inputs!$D$140) -> 0.5317555556 | AV15: =IF(Q15=1,0,N15/Inputs!$E$140) -> 0 | AW15: 1.563578519 | AY15: =IF(Q15=1,0,(L15/Inputs!$C$134+M15/Inputs!$D$134+N15/Inputs!$E$134)) -> 3.518051667 | AZ15: =IF(Q15=1,0,(L15/Inputs!$C$135+M15/Inputs!$D$135+N15/Inputs!$E$135)) -> 1.563578519 | BA15: =IF(Q15=1,0,L15/Inputs!$C$137+M15/Inputs!$D$137+N15/Inputs!$E$137) -> 1.988982963 | BB15: =IF(Q15=1,0,L15/Inputs!$C$138+M15/Inputs!$D$138+N15/Inputs!$E$138) -> 3.127157037 | BC15: 10.19777019 | BE15: =IF(Q15=1,0,L15/Inputs!$C$142) -> 1.031822963 | BF15: =IF(Q15=1,0,M15/Inputs!$D$142) -> 0.5317555556 | BG15: =IF(Q15=1,0,N15/Inputs!$E$142) -> 0 | BH15: 1.563578519 | BI15: 0 | BJ15: 0 | BK15: =IF(Q15=1,0,N15/Inputs!$E$143) -> 0 | BL15: 0 | BM15: =IF(Q15=1,0,L15/Inputs!$C$144) -> 2.063645926 | BN15: =IF(Q15=1,0,M15/Inputs!$D$144) -> 1.063511111 | BO15: =IF(Q15=1,0,N15/Inputs!$E$144) -> 0 | BP15: 3.127157037 | BQ15: 4.690735556 | BS15: =IF(Inputs!$B$169=1,Inputs!$G$107*W15*$J15,W15*Inputs!$G$107) -> 0 | BT15: =IF(Inputs!$B$169=1,Inputs!$G$107*X15*$J15,X15*Inputs!$G$107) -> 0 | BU15: =IF(Inputs!$B$169=1,Inputs!$G$107*Y15*$J15,Y15*Inputs!$G$107) -> 0 | BV15: =IF(Inputs!$B$169=1,Inputs!$G$107*Z15*$J15,Z15*Inputs!$G$107) -> 0 | BW15: =IF(Inputs!$B$169=1,Inputs!$G$107*AA15*$J15,AA15*Inputs!$G$107) -> 539981.7948 | BX15: =IF(Inputs!$B$169=1,Inputs!$G$107*AB15*$J15,AB15*Inputs!$G$107) -> 545047.2229 | BY15: =IF(Inputs!$B$169=1,Inputs!$G$107*AC15*$J15,AC15*Inputs!$G$107) -> 559175.5842 | BZ15: =IF(Inputs!$B$169=1,Inputs!$G$107*AD15*$J15,AD15*Inputs!$G$107) -> 0 | CA15: =IF(Inputs!$B$169=1,Inputs!$G$107*AE15*$J15,AE15*Inputs!$G$107) -> 0 | CB15: =IF(Inputs!$B$169=1,Inputs!$G$107*AF15*$J15,AF15*Inputs!$G$107) -> 0 | CC15: =IF(Inputs!$B$169=1,Inputs!$G$107*AG15*$J15,AG15*Inputs!$G$107) -> 0 | CD15: =IF(Inputs!$B$169=1,Inputs!$G$107*AH15*$J15,AH15*Inputs!$G$107) -> 0 | CE15: =IF(Inputs!$B$169=1,Inputs!$G$107*AI15*$J15,AI15*Inputs!$G$107) -> 0 | CF15: 1085029.018 | CG15: 559175.5842 | CH15: 0 | CI15: 1644204.602 | CJ15: =SUM(CF15:CH15)*Inputs!$E$136 -> 82210.23009 | CK15: 1726414.832 | CM15: =IF(Inputs!$B$169=1,Inputs!$G$107*AO15*$J15,AO15*Inputs!$G$107) -> 217005.8035 | CN15: =IF(Inputs!$B$169=1,Inputs!$G$107*AP15*$J15,AP15*Inputs!$G$107) -> 111835.1168 | CO15: =IF(Inputs!$B$169=1,Inputs!$G$107*AQ15*$J15,AQ15*Inputs!$G$107) -> 0 | CP15: 328840.9204 | CQ15: =SUM(CM15:CO15)*Inputs!$E$136 -> 16442.04602 | CR15: 345282.9664 | CT15: =IF(Inputs!$B$169=1,AT15*Inputs!$G$110*$J15,AT15*Inputs!$G$110) -> 73390.68921 | CU15: =IF(Inputs!$B$169=1,AU15*Inputs!$G$110*$J15,AU15*Inputs!$G$110) -> 37822.2894 | CV15: =IF(Inputs!$B$169=1,AV15*Inputs!$G$110*$J15,AV15*Inputs!$G$110) -> 0 | CW15: 111212.9786 | CY15: =IF(Inputs!$B$169=1, AY15*Inputs!$G$107*$J15,AY15*Inputs!$G$107) -> 205525.5752 | CZ15: =IF(Inputs!$B$169=1, AZ15*Inputs!$G$107*$J15,AZ15*Inputs!$G$107) -> 91344.7001 | DA15: =IF(Inputs!$B$169=1, BA15*Inputs!$G$109*$J15,BA15*Inputs!$G$109) -> 132984.6174 | DB15: =IF(Q15=1,0,BB15*Inputs!$G$113) -> 78158.35133 | DC15: =SUM(CY15:CZ15)*Inputs!$E$136 -> 14843.51377 | DD15: 522856.7578 | DF15: =IF(Inputs!$B$169=1,BE15*Inputs!$G$105*$J15, BE15*Inputs!$G$105) -> 68258.44917 | DG15: =IF(Inputs!$B$169=1, BF15*Inputs!$G$105*$J15, BF15*Inputs!$G$105) -> 35177.36168 | DH15: =IF(Inputs!$B$169=1,BG15*Inputs!$G$105*$J15,BG15*Inputs!$G$105) -> 0 | DI15: 103435.8108 | DJ15: =IF(Inputs!$B$169=1, (BI15*SUM(Inputs!$D$106:$E$106)*$J15 + BI15*Inputs!$F$106), BI15*Inputs!$G$106) -> 0 | DK15: =IF(Inputs!$B$169=1, (BJ15*SUM(Inputs!$D$106:$E$106)*$J15 + BJ15*Inputs!$F$106), BJ15*Inputs!$G$106) -> 0 | DL15: =IF(Inputs!$B$169=1,BK15*Inputs!$G$106*$J15,BK15*Inputs!$G$106) -> 0 | DM15: 0 | DN15: =BM15*Inputs!$G$112 -> 77086.94955 | DO15: =BN15*Inputs!$G$112 -> 39727.17719 | DP15: =BO15*Inputs!$G$112 -> 0 | DQ15: 116814.1267 | DR15: 220249.9376 | DT15: =Inputs!$B$156*L15+Inputs!$B$157*M15+Inputs!$B$158*N15 -> 98505.44667 | DU15: =Inputs!$B$159*O15 -> 175902.5833 | DV15: =Inputs!$B$160*$O15 -> 17590.25833 | DW15: =Inputs!$B$161*$O15 -> 70361.03333 | DX15: =Inputs!$B$162*$O15 -> 17590.25833 | DY15: =O15*Inputs!$B$163 -> 175902.5833 | DZ15: 555852.1633 | EB15: =O15/Inputs!$E$146 -> 4.690735556 | EC15: =O15/Inputs!$E$146 -> 4.690735556 | ED15: =IF(Inputs!$B$169=1,EB15*Inputs!$G$107*$J15,EB15*Inputs!$G$107) -> 274034.1003 | EE15: =EC15*Inputs!$G$113 -> 117237.527 | EF15: =ED15*Inputs!$E$136 -> 13701.70502 | EG15: =Inputs!$B$165*O15 -> 7036.103333 | EH15: 9.381471111 | EI15: 412009.4357 | EK15: =IF(Q15=1,0,T15/Inputs!$E$147) -> 3.558333333 | EL15: =IF(Q15=1,0,T15/Inputs!$E$148) -> 3.558333333 | EM15: =IF(Q15=1,0,T15/Inputs!$E$149) -> 3.558333333 | EN15: =IF(Q15=1,0,T15/Inputs!$E$150) -> 3.558333333 | EO15: =IF(Inputs!$B$169=1, EK15*Inputs!$G$107*$J15,EK15*Inputs!$G$107) -> 207878.8416 | EP15: =IF(Inputs!$B$169=1,EL15*Inputs!$G$107*$J15,EL15*Inputs!$G$107) -> 207878.8416 | EQ15: =IF(Inputs!$B$169=1,EM15*Inputs!$G$107*$J15,EM15*Inputs!$G$107) -> 207878.8416 | ER15: =IF(Inputs!$B$169=1,EN15*Inputs!$G$107*$J15,EN15*Inputs!$G$107) -> 207878.8416 | ES15: =SUM(EL15:ER15)*Inputs!$E$136 -> 41576.30207 | ET15: =IF(Q15=1,0,IF(SUM(EK15:EN15)>0,T15*4*Inputs!$B$165,0)) -> 17080 | EU15: 14.23333333 | EV15: 890171.6685 | EX15: 0.04 | EY15: =IF(Inputs!$B$169=1,EX15*Inputs!$G$107*$J15,EX15*Inputs!$G$107) -> 2336.811334 | EZ15: =EY15*Inputs!$E$136 -> 116.8405667 | FA15: =IF(Q15=1,0,U15*Inputs!$B$165) -> 40 | FB15: 0.04 | FC15: 2493.651901 | FE15: 0 | FF15: =IF(Q15=1,O15/Inputs!$B$97,0) -> 0 | FG15: =IF(Inputs!$B$169=1,FE15*Inputs!$G$106*$J15,FE15*Inputs!$G$106) -> 0 | FH15: =IF(Inputs!$B$169=1,FF15*Inputs!$G$107*$J15,FF15*Inputs!$G$107) -> 0 | FI15: =FH15*Inputs!$E$136 -> 0 | FJ15: 0 | FK15: 0 | FX15: 3481869.636 | FY15: 412009.4357 | FZ15: 890171.6685 | GA15: 2493.651901 | GB15: 0 | GC15: 4786544.392 | GD15: 4948.576607 | GE15: 585.564788 | GF15: 1265.148657 | GG15: 3.54408084 | GH15: 0 | GI15: 6802.834133
A16: =ADM!A16 -> 006010 | B16: =ADM!B16 -> 006 | C16: =ADM!C16 -> 010 | D16: =ADM!D16 -> Anchorage Independent 006 - Anchorage Independent Public School 010 AADA | E16: =ADM!E16 -> Anchorage Independent | F16: =ADM!F16 -> Anchorage Independent Public School | H16: 2100090 | I16: ANCHORAGE IND SCH DIST | J16: =IF(Inputs!$B$169<>1,1,K16) -> 1.129002165 | K16: 1.129002165 | L16: =SUM('Model Student Counts'!I16:N16) -> 246.47 | M16: =SUM('Model Student Counts'!O16:Q16) -> 129.41 | N16: =SUM('Model Student Counts'!R16:U16) -> 0 | O16: 375.88 | Q16: =IF(Inputs!$B$178=1,IF(O16<Inputs!$B$179,1,0),0) -> 0 | S16: =IF(O16=0,0,VLOOKUP(A16,'Special Student Counts'!$A$5:$Q$1377,4,FALSE)) -> 51 | T16: =IF(Inputs!$B$61=1,VLOOKUP(A16,'Special Student Counts'!$A$5:$Q$1377,13),VLOOKUP(A16,'Special Student Counts'!$A$5:$Q$1377,9,FALSE)) -> 3 | U16: =IF(O16=0,0,VLOOKUP(A16,'Special Student Counts'!$A$5:$Q$1377,6,FALSE)) -> 3 | W16: =IF(Q16=1,0,'Model Student Counts'!I16/Inputs!$B$83) -> 1.896666667 | X16: =IF(Q16=1,0,'Model Student Counts'!J16/Inputs!$B$84) -> 3.22 | Y16: =IF(Q16=1,0,'Model Student Counts'!K16/Inputs!$B$85) -> 2.104 | Z16: =IF(Q16=1,0,'Model Student Counts'!L16/Inputs!$B$86) -> 3.431333333 | AA16: =IF(Q16=1,0,'Model Student Counts'!M16/Inputs!$B$87) -> 1.7136 | AB16: =IF(Q16=1,0,'Model Student Counts'!N16/Inputs!$B$88) -> 1.754 | AC16: =IF(Q16=1,0,'Model Student Counts'!O16/Inputs!$B$89) -> 1.5788 | AD16: =IF(Q16=1,0,'Model Student Counts'!P16/Inputs!$B$90) -> 1.5196 | AE16: =IF(Q16=1,0,'Model Student Counts'!Q16/Inputs!$B$91) -> 2.078 | AF16: =IF(Q16=1,0,'Model Student Counts'!R16/Inputs!$B$92) -> 0 | AG16: =IF(Q16=1,0,'Model Student Counts'!S16/Inputs!$B$93) -> 0 | AH16: =IF(Q16=1,0,'Model Student Counts'!T16/Inputs!$B$94) -> 0 | AI16: =IF(Q16=1,0,'Model Student Counts'!U16/Inputs!$B$95) -> 0 | AJ16: 14.1196 | AK16: 5.1764 | AL16: 0 | AM16: 19.296 | AO16: =IF(Q16=1,0,Inputs!$B$55*AJ16) -> 2.82392 | AP16: =IF(Q16=1,0,Inputs!$B$56*AK16) -> 1.03528 | AQ16: =IF(Q16=1,0,Inputs!$B$57*AL16) -> 0 | AR16: 3.8592 | AT16: =IF(Q16=1,0,L16/Inputs!$C$140) -> 0.5477111111 | AU16: =IF(Q16=1,0,M16/Inputs!$D$140) -> 0.2875777778 | AV16: =IF(Q16=1,0,N16/Inputs!$E$140) -> 0 | AW16: 0.8352888889 | AY16: =IF(Q16=1,0,(L16/Inputs!$C$134+M16/Inputs!$D$134+N16/Inputs!$E$134)) -> 1.8794 | AZ16: =IF(Q16=1,0,(L16/Inputs!$C$135+M16/Inputs!$D$135+N16/Inputs!$E$135)) -> 0.8352888889 | BA16: =IF(Q16=1,0,L16/Inputs!$C$137+M16/Inputs!$D$137+N16/Inputs!$E$137) -> 1.065351111 | BB16: =IF(Q16=1,0,L16/Inputs!$C$138+M16/Inputs!$D$138+N16/Inputs!$E$138) -> 1.670577778 | BC16: 5.450617778 | BE16: =IF(Q16=1,0,L16/Inputs!$C$142) -> 0.5477111111 | BF16: =IF(Q16=1,0,M16/Inputs!$D$142) -> 0.2875777778 | BG16: =IF(Q16=1,0,N16/Inputs!$E$142) -> 0 | BH16: 0.8352888889 | BI16: 0 | BJ16: 0 | BK16: =IF(Q16=1,0,N16/Inputs!$E$143) -> 0 | BL16: 0 | BM16: =IF(Q16=1,0,L16/Inputs!$C$144) -> 1.095422222 | BN16: =IF(Q16=1,0,M16/Inputs!$D$144) -> 0.5751555556 | BO16: =IF(Q16=1,0,N16/Inputs!$E$144) -> 0 | BP16: 1.670577778 | BQ16: 2.505866667 | BS16: =IF(Inputs!$B$169=1,Inputs!$G$107*W16*$J16,W16*Inputs!$G$107) -> 143376.3792 | BT16: =IF(Inputs!$B$169=1,Inputs!$G$107*X16*$J16,X16*Inputs!$G$107) -> 243412.2712 | BU16: =IF(Inputs!$B$169=1,Inputs!$G$107*Y16*$J16,Y16*Inputs!$G$107) -> 159049.5089 | BV16: =IF(Inputs!$B$169=1,Inputs!$G$107*Z16*$J16,Z16*Inputs!$G$107) -> 259387.7764 | BW16: =IF(Inputs!$B$169=1,Inputs!$G$107*AA16*$J16,AA16*Inputs!$G$107) -> 129537.6608 | BX16: =IF(Inputs!$B$169=1,Inputs!$G$107*AB16*$J16,AB16*Inputs!$G$107) -> 132591.6533 | BY16: =IF(Inputs!$B$169=1,Inputs!$G$107*AC16*$J16,AC16*Inputs!$G$107) -> 119347.6068 | BZ16: =IF(Inputs!$B$169=1,Inputs!$G$107*AD16*$J16,AD16*Inputs!$G$107) -> 114872.4495 | CA16: =IF(Inputs!$B$169=1,Inputs!$G$107*AE16*$J16,AE16*Inputs!$G$107) -> 157084.0682 | CB16: =IF(Inputs!$B$169=1,Inputs!$G$107*AF16*$J16,AF16*Inputs!$G$107) -> 0 | CC16: =IF(Inputs!$B$169=1,Inputs!$G$107*AG16*$J16,AG16*Inputs!$G$107) -> 0 | CD16: =IF(Inputs!$B$169=1,Inputs!$G$107*AH16*$J16,AH16*Inputs!$G$107) -> 0 | CE16: =IF(Inputs!$B$169=1,Inputs!$G$107*AI16*$J16,AI16*Inputs!$G$107) -> 0 | CF16: 1067355.25 | CG16: 391304.1244 | CH16: 0 | CI16: 1458659.374 | CJ16: =SUM(CF16:CH16)*Inputs!$E$136 -> 72932.96871 | CK16: 1531592.343 | CM16: =IF(Inputs!$B$169=1,Inputs!$G$107*AO16*$J16,AO16*Inputs!$G$107) -> 213471.05 | CN16: =IF(Inputs!$B$169=1,Inputs!$G$107*AP16*$J16,AP16*Inputs!$G$107) -> 78260.82488 | CO16: =IF(Inputs!$B$169=1,Inputs!$G$107*AQ16*$J16,AQ16*Inputs!$G$107) -> 0 | CP16: 291731.8748 | CQ16: =SUM(CM16:CO16)*Inputs!$E$136 -> 14586.59374 | CR16: 306318.4686 | CT16: =IF(Inputs!$B$169=1,AT16*Inputs!$G$110*$J16,AT16*Inputs!$G$110) -> 50409.25355 | CU16: =IF(Inputs!$B$169=1,AU16*Inputs!$G$110*$J16,AU16*Inputs!$G$110) -> 26467.56807 | CV16: =IF(Inputs!$B$169=1,AV16*Inputs!$G$110*$J16,AV16*Inputs!$G$110) -> 0 | CW16: 76876.82162 | CY16: =IF(Inputs!$B$169=1, AY16*Inputs!$G$107*$J16,AY16*Inputs!$G$107) -> 142071.125 | CZ16: =IF(Inputs!$B$169=1, AZ16*Inputs!$G$107*$J16,AZ16*Inputs!$G$107) -> 63142.72222 | DA16: =IF(Inputs!$B$169=1, BA16*Inputs!$G$109*$J16,BA16*Inputs!$G$109) -> 92169.2484 | DB16: =IF(Q16=1,0,BB16*Inputs!$G$113) -> 41753.45316 | DC16: =SUM(CY16:CZ16)*Inputs!$E$136 -> 10260.69236 | DD16: 349397.2411 | DF16: =IF(Inputs!$B$169=1,BE16*Inputs!$G$105*$J16, BE16*Inputs!$G$105) -> 46884.11443 | DG16: =IF(Inputs!$B$169=1, BF16*Inputs!$G$105*$J16, BF16*Inputs!$G$105) -> 24616.68052 | DH16: =IF(Inputs!$B$169=1,BG16*Inputs!$G$105*$J16,BG16*Inputs!$G$105) -> 0 | DI16: 71500.79495 | DJ16: =IF(Inputs!$B$169=1, (BI16*SUM(Inputs!$D$106:$E$106)*$J16 + BI16*Inputs!$F$106), BI16*Inputs!$G$106) -> 0 | DK16: =IF(Inputs!$B$169=1, (BJ16*SUM(Inputs!$D$106:$E$106)*$J16 + BJ16*Inputs!$F$106), BJ16*Inputs!$G$106) -> 0 | DL16: =IF(Inputs!$B$169=1,BK16*Inputs!$G$106*$J16,BK16*Inputs!$G$106) -> 0 | DM16: 0 | DN16: =BM16*Inputs!$G$112 -> 40919.20834 | DO16: =BN16*Inputs!$G$112 -> 21484.78416 | DP16: =BO16*Inputs!$G$112 -> 0 | DQ16: 62403.99249 | DR16: 133904.7874 | DT16: =Inputs!$B$156*L16+Inputs!$B$157*M16+Inputs!$B$158*N16 -> 52623.2 | DU16: =Inputs!$B$159*O16 -> 93970 | DV16: =Inputs!$B$160*$O16 -> 9397 | DW16: =Inputs!$B$161*$O16 -> 37588 | DX16: =Inputs!$B$162*$O16 -> 9397 | DY16: =O16*Inputs!$B$163 -> 93970 | DZ16: 296945.2 | EB16: =O16/Inputs!$E$146 -> 2.505866667 | EC16: =O16/Inputs!$E$146 -> 2.505866667 | ED16: =IF(Inputs!$B$169=1,EB16*Inputs!$G$107*$J16,EB16*Inputs!$G$107) -> 189428.1667 | EE16: =EC16*Inputs!$G$113 -> 62630.17974 | EF16: =ED16*Inputs!$E$136 -> 9471.408333 | EG16: =Inputs!$B$165*O16 -> 3758.8 | EH16: 5.011733333 | EI16: 265288.5547 | EK16: =IF(Q16=1,0,T16/Inputs!$E$147) -> 0.025 | EL16: =IF(Q16=1,0,T16/Inputs!$E$148) -> 0.025 | EM16: =IF(Q16=1,0,T16/Inputs!$E$149) -> 0.025 | EN16: =IF(Q16=1,0,T16/Inputs!$E$150) -> 0.025 | EO16: =IF(Inputs!$B$169=1, EK16*Inputs!$G$107*$J16,EK16*Inputs!$G$107) -> 1889.846826 | EP16: =IF(Inputs!$B$169=1,EL16*Inputs!$G$107*$J16,EL16*Inputs!$G$107) -> 1889.846826 | EQ16: =IF(Inputs!$B$169=1,EM16*Inputs!$G$107*$J16,EM16*Inputs!$G$107) -> 1889.846826 | ER16: =IF(Inputs!$B$169=1,EN16*Inputs!$G$107*$J16,EN16*Inputs!$G$107) -> 1889.846826 | ES16: =SUM(EL16:ER16)*Inputs!$E$136 -> 377.9731152 | ET16: =IF(Q16=1,0,IF(SUM(EK16:EN16)>0,T16*4*Inputs!$B$165,0)) -> 120 | EU16: 0.1 | EV16: 8057.360419 | EX16: 0.03 | EY16: =IF(Inputs!$B$169=1,EX16*Inputs!$G$107*$J16,EX16*Inputs!$G$107) -> 2267.816191 | EZ16: =EY16*Inputs!$E$136 -> 113.3908096 | FA16: =IF(Q16=1,0,U16*Inputs!$B$165) -> 30 | FB16: 0.03 | FC16: 2411.207001 | FE16: 0 | FF16: =IF(Q16=1,O16/Inputs!$B$97,0) -> 0 | FG16: =IF(Inputs!$B$169=1,FE16*Inputs!$G$106*$J16,FE16*Inputs!$G$106) -> 0 | FH16: =IF(Inputs!$B$169=1,FF16*Inputs!$G$107*$J16,FF16*Inputs!$G$107) -> 0 | FI16: =FH16*Inputs!$E$136 -> 0 | FJ16: 0 | FK16: 0 | FX16: 2695034.862 | FY16: 265288.5547 | FZ16: 8057.360419 | GA16: 2411.207001 | GB16: 0 | GC16: 2970791.984 | GD16: 7169.934186 | GE16: 705.7799158 | GF16: 21.43599133 | GG16: 6.414831863 | GH16: 0 | GI16: 7903.564925
A17: =ADM!A17 -> 011020 | B17: =ADM!B17 -> 011 | C17: =ADM!C17 -> 020 | D17: =ADM!D17 -> Anderson County 011 - Anderson County High School 020 AADA | E17: =ADM!E17 -> Anderson County | F17: =ADM!F17 -> Anderson County High School | H17: 2100120 | I17: ANDERSON CO SCH DIST | J17: =IF(Inputs!$B$169<>1,1,K17) -> 0.9926153177 | K17: 0.9926153177 | L17: =SUM('Model Student Counts'!I17:N17) -> 0 | M17: =SUM('Model Student Counts'!O17:Q17) -> 0.048 | N17: =SUM('Model Student Counts'!R17:U17) -> 1201.484333 | O17: 1201.532333 | Q17: =IF(Inputs!$B$178=1,IF(O17<Inputs!$B$179,1,0),0) -> 0 | S17: =IF(O17=0,0,VLOOKUP(A17,'Special Student Counts'!$A$5:$Q$1377,4,FALSE)) -> 117 | T17: =IF(Inputs!$B$61=1,VLOOKUP(A17,'Special Student Counts'!$A$5:$Q$1377,13),VLOOKUP(A17,'Special Student Counts'!$A$5:$Q$1377,9,FALSE)) -> 460 | U17: =IF(O17=0,0,VLOOKUP(A17,'Special Student Counts'!$A$5:$Q$1377,6,FALSE)) -> 3 | W17: =IF(Q17=1,0,'Model Student Counts'!I17/Inputs!$B$83) -> 0 | X17: =IF(Q17=1,0,'Model Student Counts'!J17/Inputs!$B$84) -> 0 | Y17: =IF(Q17=1,0,'Model Student Counts'!K17/Inputs!$B$85) -> 0 | Z17: =IF(Q17=1,0,'Model Student Counts'!L17/Inputs!$B$86) -> 0 | AA17: =IF(Q17=1,0,'Model Student Counts'!M17/Inputs!$B$87) -> 0 | AB17: =IF(Q17=1,0,'Model Student Counts'!N17/Inputs!$B$88) -> 0 | AC17: =IF(Q17=1,0,'Model Student Counts'!O17/Inputs!$B$89) -> 0 | AD17: =IF(Q17=1,0,'Model Student Counts'!P17/Inputs!$B$90) -> 0 | AE17: =IF(Q17=1,0,'Model Student Counts'!Q17/Inputs!$B$91) -> 0.00192 | AF17: =IF(Q17=1,0,'Model Student Counts'!R17/Inputs!$B$92) -> 13.05102667 | AG17: =IF(Q17=1,0,'Model Student Counts'!S17/Inputs!$B$93) -> 12.40168 | AH17: =IF(Q17=1,0,'Model Student Counts'!T17/Inputs!$B$94) -> 11.8744 | AI17: =IF(Q17=1,0,'Model Student Counts'!U17/Inputs!$B$95) -> 10.73226667 | AJ17: 0 | AK17: 0.00192 | AL17: 48.05937333 | AM17: 48.06129333 | AO17: =IF(Q17=1,0,Inputs!$B$55*AJ17) -> 0 | AP17: =IF(Q17=1,0,Inputs!$B$56*AK17) -> 0.000384 | AQ17: =IF(Q17=1,0,Inputs!$B$57*AL17) -> 16.01818913 | AR17: 16.01857313 | AT17: =IF(Q17=1,0,L17/Inputs!$C$140) -> 0 | AU17: =IF(Q17=1,0,M17/Inputs!$D$140) -> 0.0001066666667 | AV17: =IF(Q17=1,0,N17/Inputs!$E$140) -> 2.002473889 | AW17: 2.002580556 | AY17: =IF(Q17=1,0,(L17/Inputs!$C$134+M17/Inputs!$D$134+N17/Inputs!$E$134)) -> 6.007661667 | AZ17: =IF(Q17=1,0,(L17/Inputs!$C$135+M17/Inputs!$D$135+N17/Inputs!$E$135)) -> 2.002580556 | BA17: =IF(Q17=1,0,L17/Inputs!$C$137+M17/Inputs!$D$137+N17/Inputs!$E$137) -> 4.806129333 | BB17: =IF(Q17=1,0,L17/Inputs!$C$138+M17/Inputs!$D$138+N17/Inputs!$E$138) -> 6.007635 | BC17: 18.82400656 | BE17: =IF(Q17=1,0,L17/Inputs!$C$142) -> 0 | BF17: =IF(Q17=1,0,M17/Inputs!$D$142) -> 0.0001066666667 | BG17: =IF(Q17=1,0,N17/Inputs!$E$142) -> 2.002473889 | BH17: 2.002580556 | BI17: 0 | BJ17: 0 | BK17: =IF(Q17=1,0,N17/Inputs!$E$143) -> 2.002473889 | BL17: 2.002473889 | BM17: =IF(Q17=1,0,L17/Inputs!$C$144) -> 0 | BN17: =IF(Q17=1,0,M17/Inputs!$D$144) -> 0.0002133333333 | BO17: =IF(Q17=1,0,N17/Inputs!$E$144) -> 6.007421667 | BP17: 6.007635 | BQ17: 10.01268944 | BS17: =IF(Inputs!$B$169=1,Inputs!$G$107*W17*$J17,W17*Inputs!$G$107) -> 0 | BT17: =IF(Inputs!$B$169=1,Inputs!$G$107*X17*$J17,X17*Inputs!$G$107) -> 0 | BU17: =IF(Inputs!$B$169=1,Inputs!$G$107*Y17*$J17,Y17*Inputs!$G$107) -> 0 | BV17: =IF(Inputs!$B$169=1,Inputs!$G$107*Z17*$J17,Z17*Inputs!$G$107) -> 0 | BW17: =IF(Inputs!$B$169=1,Inputs!$G$107*AA17*$J17,AA17*Inputs!$G$107) -> 0 | BX17: =IF(Inputs!$B$169=1,Inputs!$G$107*AB17*$J17,AB17*Inputs!$G$107) -> 0 | BY17: =IF(Inputs!$B$169=1,Inputs!$G$107*AC17*$J17,AC17*Inputs!$G$107) -> 0 | BZ17: =IF(Inputs!$B$169=1,Inputs!$G$107*AD17*$J17,AD17*Inputs!$G$107) -> 0 | CA17: =IF(Inputs!$B$169=1,Inputs!$G$107*AE17*$J17,AE17*Inputs!$G$107) -> 127.6068605 | CB17: =IF(Inputs!$B$169=1,Inputs!$G$107*AF17*$J17,AF17*Inputs!$G$107) -> 867396.114 | CC17: =IF(Inputs!$B$169=1,Inputs!$G$107*AG17*$J17,AG17*Inputs!$G$107) -> 824239.2966 | CD17: =IF(Inputs!$B$169=1,Inputs!$G$107*AH17*$J17,AH17*Inputs!$G$107) -> 789195.2625 | CE17: =IF(Inputs!$B$169=1,Inputs!$G$107*AI17*$J17,AI17*Inputs!$G$107) -> 713286.9037 | CF17: 0 | CG17: 127.6068605 | CH17: 3194117.577 | CI17: 3194245.184 | CJ17: =SUM(CF17:CH17)*Inputs!$E$136 -> 159712.2592 | CK17: 3353957.443 | CM17: =IF(Inputs!$B$169=1,Inputs!$G$107*AO17*$J17,AO17*Inputs!$G$107) -> 0 | CN17: =IF(Inputs!$B$169=1,Inputs!$G$107*AP17*$J17,AP17*Inputs!$G$107) -> 25.5213721 | CO17: =IF(Inputs!$B$169=1,Inputs!$G$107*AQ17*$J17,AQ17*Inputs!$G$107) -> 1064599.388 | CP17: 1064624.91 | CQ17: =SUM(CM17:CO17)*Inputs!$E$136 -> 53231.24549 | CR17: 1117856.155 | CT17: =IF(Inputs!$B$169=1,AT17*Inputs!$G$110*$J17,AT17*Inputs!$G$110) -> 0 | CU17: =IF(Inputs!$B$169=1,AU17*Inputs!$G$110*$J17,AU17*Inputs!$G$110) -> 8.631248829 | CV17: =IF(Inputs!$B$169=1,AV17*Inputs!$G$110*$J17,AV17*Inputs!$G$110) -> 162036.0976 | CW17: 162044.7288 | CY17: =IF(Inputs!$B$169=1, AY17*Inputs!$G$107*$J17,AY17*Inputs!$G$107) -> 399280.648 | CZ17: =IF(Inputs!$B$169=1, AZ17*Inputs!$G$107*$J17,AZ17*Inputs!$G$107) -> 133095.3216 | DA17: =IF(Inputs!$B$169=1, BA17*Inputs!$G$109*$J17,BA17*Inputs!$G$109) -> 365573.6918 | DB17: =IF(Q17=1,0,BB17*Inputs!$G$113) -> 150151.3488 | DC17: =SUM(CY17:CZ17)*Inputs!$E$136 -> 26618.79848 | DD17: 1074719.809 | DF17: =IF(Inputs!$B$169=1,BE17*Inputs!$G$105*$J17, BE17*Inputs!$G$105) -> 0 | DG17: =IF(Inputs!$B$169=1, BF17*Inputs!$G$105*$J17, BF17*Inputs!$G$105) -> 8.027662171 | DH17: =IF(Inputs!$B$169=1,BG17*Inputs!$G$105*$J17,BG17*Inputs!$G$105) -> 150704.8489 | DI17: 150712.8766 | DJ17: =IF(Inputs!$B$169=1, (BI17*SUM(Inputs!$D$106:$E$106)*$J17 + BI17*Inputs!$F$106), BI17*Inputs!$G$106) -> 0 | DK17: =IF(Inputs!$B$169=1, (BJ17*SUM(Inputs!$D$106:$E$106)*$J17 + BJ17*Inputs!$F$106), BJ17*Inputs!$G$106) -> 0 | DL17: =IF(Inputs!$B$169=1,BK17*Inputs!$G$106*$J17,BK17*Inputs!$G$106) -> 147815.3673 | DM17: 147815.3673 | DN17: =BM17*Inputs!$G$112 -> 0 | DO17: =BN17*Inputs!$G$112 -> 7.969010428 | DP17: =BO17*Inputs!$G$112 -> 224405.6527 | DQ17: 224413.6217 | DR17: 522941.8656 | DT17: =Inputs!$B$156*L17+Inputs!$B$157*M17+Inputs!$B$158*N17 -> 210266.4783 | DU17: =Inputs!$B$159*O17 -> 300383.0833 | DV17: =Inputs!$B$160*$O17 -> 30038.30833 | DW17: =Inputs!$B$161*$O17 -> 120153.2333 | DX17: =Inputs!$B$162*$O17 -> 30038.30833 | DY17: =O17*Inputs!$B$163 -> 300383.0833 | DZ17: 991262.495 | EB17: =O17/Inputs!$E$146 -> 8.010215556 | EC17: =O17/Inputs!$E$146 -> 8.010215556 | ED17: =IF(Inputs!$B$169=1,EB17*Inputs!$G$107*$J17,EB17*Inputs!$G$107) -> 532374.1973 | EE17: =EC17*Inputs!$G$113 -> 200202.687 | EF17: =ED17*Inputs!$E$136 -> 26618.70986 | EG17: =Inputs!$B$165*O17 -> 12015.32333 | EH17: 16.02043111 | EI17: 771210.9175 | EK17: =IF(Q17=1,0,T17/Inputs!$E$147) -> 3.833333333 | EL17: =IF(Q17=1,0,T17/Inputs!$E$148) -> 3.833333333 | EM17: =IF(Q17=1,0,T17/Inputs!$E$149) -> 3.833333333 | EN17: =IF(Q17=1,0,T17/Inputs!$E$150) -> 3.833333333 | EO17: =IF(Inputs!$B$169=1, EK17*Inputs!$G$107*$J17,EK17*Inputs!$G$107) -> 254770.6416 | EP17: =IF(Inputs!$B$169=1,EL17*Inputs!$G$107*$J17,EL17*Inputs!$G$107) -> 254770.6416 | EQ17: =IF(Inputs!$B$169=1,EM17*Inputs!$G$107*$J17,EM17*Inputs!$G$107) -> 254770.6416 | ER17: =IF(Inputs!$B$169=1,EN17*Inputs!$G$107*$J17,EN17*Inputs!$G$107) -> 254770.6416 | ES17: =SUM(EL17:ER17)*Inputs!$E$136 -> 50954.70332 | ET17: =IF(Q17=1,0,IF(SUM(EK17:EN17)>0,T17*4*Inputs!$B$165,0)) -> 18400 | EU17: 15.33333333 | EV17: 1088437.27 | EX17: 0.03 | EY17: =IF(Inputs!$B$169=1,EX17*Inputs!$G$107*$J17,EX17*Inputs!$G$107) -> 1993.857195 | EZ17: =EY17*Inputs!$E$136 -> 99.69285975 | FA17: =IF(Q17=1,0,U17*Inputs!$B$165) -> 30 | FB17: 0.03 | FC17: 2123.550055 | FE17: 0 | FF17: =IF(Q17=1,O17/Inputs!$B$97,0) -> 0 | FG17: =IF(Inputs!$B$169=1,FE17*Inputs!$G$106*$J17,FE17*Inputs!$G$106) -> 0 | FH17: =IF(Inputs!$B$169=1,FF17*Inputs!$G$107*$J17,FF17*Inputs!$G$107) -> 0 | FI17: =FH17*Inputs!$E$136 -> 0 | FJ17: 0 | FK17: 0 | FX17: 7222782.496 | FY17: 771210.9175 | FZ17: 1088437.27 | GA17: 2123.550055 | GB17: 0 | GC17: 9084554.234 | GD17: 6011.309306 | GE17: 641.85615 | GF17: 905.8743069 | GG17: 1.767368215 | GH17: 0 | GI17: 7560.807131
A18: =ADM!A18 -> 011022 | B18: =ADM!B18 -> 011 | C18: =ADM!C18 -> 022 | D18: =ADM!D18 -> Anderson County 011 - Robert B. Turner Elementary School 022 AADA | E18: =ADM!E18 -> Anderson County | F18: =ADM!F18 -> Robert B. Turner Elementary School | H18: 2100120 | I18: ANDERSON CO SCH DIST | J18: =IF(Inputs!$B$169<>1,1,K18) -> 0.9926153177 | K18: 0.9926153177 | L18: =SUM('Model Student Counts'!I18:N18) -> 550.82 | M18: =SUM('Model Student Counts'!O18:Q18) -> 0 | N18: =SUM('Model Student Counts'!R18:U18) -> 0 | O18: 550.82 | Q18: =IF(Inputs!$B$178=1,IF(O18<Inputs!$B$179,1,0),0) -> 0 | S18: =IF(O18=0,0,VLOOKUP(A18,'Special Student Counts'!$A$5:$Q$1377,4,FALSE)) -> 80 | T18: =IF(Inputs!$B$61=1,VLOOKUP(A18,'Special Student Counts'!$A$5:$Q$1377,13),VLOOKUP(A18,'Special Student Counts'!$A$5:$Q$1377,9,FALSE)) -> 270 | U18: =IF(O18=0,0,VLOOKUP(A18,'Special Student Counts'!$A$5:$Q$1377,6,FALSE)) -> 8 | W18: =IF(Q18=1,0,'Model Student Counts'!I18/Inputs!$B$83) -> 4.779333333 | X18: =IF(Q18=1,0,'Model Student Counts'!J18/Inputs!$B$84) -> 6.403333333 | Y18: =IF(Q18=1,0,'Model Student Counts'!K18/Inputs!$B$85) -> 6.475333333 | Z18: =IF(Q18=1,0,'Model Student Counts'!L18/Inputs!$B$86) -> 6.752 | AA18: =IF(Q18=1,0,'Model Student Counts'!M18/Inputs!$B$87) -> 3.6676 | AB18: =IF(Q18=1,0,'Model Student Counts'!N18/Inputs!$B$88) -> 3.7192 | AC18: =IF(Q18=1,0,'Model Student Counts'!O18/Inputs!$B$89) -> 0 | AD18: =IF(Q18=1,0,'Model Student Counts'!P18/Inputs!$B$90) -> 0 | AE18: =IF(Q18=1,0,'Model Student Counts'!Q18/Inputs!$B$91) -> 0 | AF18: =IF(Q18=1,0,'Model Student Counts'!R18/Inputs!$B$92) -> 0 | AG18: =IF(Q18=1,0,'Model Student Counts'!S18/Inputs!$B$93) -> 0 | AH18: =IF(Q18=1,0,'Model Student Counts'!T18/Inputs!$B$94) -> 0 | AI18: =IF(Q18=1,0,'Model Student Counts'!U18/Inputs!$B$95) -> 0 | AJ18: 31.7968 | AK18: 0 | AL18: 0 | AM18: 31.7968 | AO18: =IF(Q18=1,0,Inputs!$B$55*AJ18) -> 6.35936 | AP18: =IF(Q18=1,0,Inputs!$B$56*AK18) -> 0 | AQ18: =IF(Q18=1,0,Inputs!$B$57*AL18) -> 0 | AR18: 6.35936 | AT18: =IF(Q18=1,0,L18/Inputs!$C$140) -> 1.224044444 | AU18: =IF(Q18=1,0,M18/Inputs!$D$140) -> 0 | AV18: =IF(Q18=1,0,N18/Inputs!$E$140) -> 0 | AW18: 1.224044444 | AY18: =IF(Q18=1,0,(L18/Inputs!$C$134+M18/Inputs!$D$134+N18/Inputs!$E$134)) -> 2.7541 | AZ18: =IF(Q18=1,0,(L18/Inputs!$C$135+M18/Inputs!$D$135+N18/Inputs!$E$135)) -> 1.224044444 | BA18: =IF(Q18=1,0,L18/Inputs!$C$137+M18/Inputs!$D$137+N18/Inputs!$E$137) -> 1.224044444 | BB18: =IF(Q18=1,0,L18/Inputs!$C$138+M18/Inputs!$D$138+N18/Inputs!$E$138) -> 2.448088889 | BC18: 7.650277778 | BE18: =IF(Q18=1,0,L18/Inputs!$C$142) -> 1.224044444 | BF18: =IF(Q18=1,0,M18/Inputs!$D$142) -> 0 | BG18: =IF(Q18=1,0,N18/Inputs!$E$142) -> 0 | BH18: 1.224044444 | BI18: 0 | BJ18: 0 | BK18: =IF(Q18=1,0,N18/Inputs!$E$143) -> 0 | BL18: 0 | BM18: =IF(Q18=1,0,L18/Inputs!$C$144) -> 2.448088889 | BN18: =IF(Q18=1,0,M18/Inputs!$D$144) -> 0 | BO18: =IF(Q18=1,0,N18/Inputs!$E$144) -> 0 | BP18: 2.448088889 | BQ18: 3.672133333 | BS18: =IF(Inputs!$B$169=1,Inputs!$G$107*W18*$J18,W18*Inputs!$G$107) -> 317643.6051 | BT18: =IF(Inputs!$B$169=1,Inputs!$G$107*X18*$J18,X18*Inputs!$G$107) -> 425577.7413 | BU18: =IF(Inputs!$B$169=1,Inputs!$G$107*Y18*$J18,Y18*Inputs!$G$107) -> 430362.9986 | BV18: =IF(Inputs!$B$169=1,Inputs!$G$107*Z18*$J18,Z18*Inputs!$G$107) -> 448750.7927 | BW18: =IF(Inputs!$B$169=1,Inputs!$G$107*AA18*$J18,AA18*Inputs!$G$107) -> 243755.6883 | BX18: =IF(Inputs!$B$169=1,Inputs!$G$107*AB18*$J18,AB18*Inputs!$G$107) -> 247185.1227 | BY18: =IF(Inputs!$B$169=1,Inputs!$G$107*AC18*$J18,AC18*Inputs!$G$107) -> 0 | BZ18: =IF(Inputs!$B$169=1,Inputs!$G$107*AD18*$J18,AD18*Inputs!$G$107) -> 0 | CA18: =IF(Inputs!$B$169=1,Inputs!$G$107*AE18*$J18,AE18*Inputs!$G$107) -> 0 | CB18: =IF(Inputs!$B$169=1,Inputs!$G$107*AF18*$J18,AF18*Inputs!$G$107) -> 0 | CC18: =IF(Inputs!$B$169=1,Inputs!$G$107*AG18*$J18,AG18*Inputs!$G$107) -> 0 | CD18: =IF(Inputs!$B$169=1,Inputs!$G$107*AH18*$J18,AH18*Inputs!$G$107) -> 0 | CE18: =IF(Inputs!$B$169=1,Inputs!$G$107*AI18*$J18,AI18*Inputs!$G$107) -> 0 | CF18: 2113275.949 | CG18: 0 | CH18: 0 | CI18: 2113275.949 | CJ18: =SUM(CF18:CH18)*Inputs!$E$136 -> 105663.7974 | CK18: 2218939.746 | CM18: =IF(Inputs!$B$169=1,Inputs!$G$107*AO18*$J18,AO18*Inputs!$G$107) -> 422655.1897 | CN18: =IF(Inputs!$B$169=1,Inputs!$G$107*AP18*$J18,AP18*Inputs!$G$107) -> 0 | CO18: =IF(Inputs!$B$169=1,Inputs!$G$107*AQ18*$J18,AQ18*Inputs!$G$107) -> 0 | CP18: 422655.1897 | CQ18: =SUM(CM18:CO18)*Inputs!$E$136 -> 21132.75949 | CR18: 443787.9492 | CT18: =IF(Inputs!$B$169=1,AT18*Inputs!$G$110*$J18,AT18*Inputs!$G$110) -> 99047.17667 | CU18: =IF(Inputs!$B$169=1,AU18*Inputs!$G$110*$J18,AU18*Inputs!$G$110) -> 0 | CV18: =IF(Inputs!$B$169=1,AV18*Inputs!$G$110*$J18,AV18*Inputs!$G$110) -> 0 | CW18: 99047.17667 | CY18: =IF(Inputs!$B$169=1, AY18*Inputs!$G$107*$J18,AY18*Inputs!$G$107) -> 183042.7367 | CZ18: =IF(Inputs!$B$169=1, AZ18*Inputs!$G$107*$J18,AZ18*Inputs!$G$107) -> 81352.32742 | DA18: =IF(Inputs!$B$169=1, BA18*Inputs!$G$109*$J18,BA18*Inputs!$G$109) -> 93105.78544 | DB18: =IF(Q18=1,0,BB18*Inputs!$G$113) -> 61186.11544 | DC18: =SUM(CY18:CZ18)*Inputs!$E$136 -> 13219.75321 | DD18: 431906.7182 | DF18: =IF(Inputs!$B$169=1,BE18*Inputs!$G$105*$J18, BE18*Inputs!$G$105) -> 92120.76827 | DG18: =IF(Inputs!$B$169=1, BF18*Inputs!$G$105*$J18, BF18*Inputs!$G$105) -> 0 | DH18: =IF(Inputs!$B$169=1,BG18*Inputs!$G$105*$J18,BG18*Inputs!$G$105) -> 0 | DI18: 92120.76827 | DJ18: =IF(Inputs!$B$169=1, (BI18*SUM(Inputs!$D$106:$E$106)*$J18 + BI18*Inputs!$F$106), BI18*Inputs!$G$106) -> 0 | DK18: =IF(Inputs!$B$169=1, (BJ18*SUM(Inputs!$D$106:$E$106)*$J18 + BJ18*Inputs!$F$106), BJ18*Inputs!$G$106) -> 0 | DL18: =IF(Inputs!$B$169=1,BK18*Inputs!$G$106*$J18,BK18*Inputs!$G$106) -> 0 | DM18: 0 | DN18: =BM18*Inputs!$G$112 -> 91447.71508 | DO18: =BN18*Inputs!$G$112 -> 0 | DP18: =BO18*Inputs!$G$112 -> 0 | DQ18: 91447.71508 | DR18: 183568.4834 | DT18: =Inputs!$B$156*L18+Inputs!$B$157*M18+Inputs!$B$158*N18 -> 77114.8 | DU18: =Inputs!$B$159*O18 -> 137705 | DV18: =Inputs!$B$160*$O18 -> 13770.5 | DW18: =Inputs!$B$161*$O18 -> 55082 | DX18: =Inputs!$B$162*$O18 -> 13770.5 | DY18: =O18*Inputs!$B$163 -> 137705 | DZ18: 435147.8 | EB18: =O18/Inputs!$E$146 -> 3.672133333 | EC18: =O18/Inputs!$E$146 -> 3.672133333 | ED18: =IF(Inputs!$B$169=1,EB18*Inputs!$G$107*$J18,EB18*Inputs!$G$107) -> 244056.9823 | EE18: =EC18*Inputs!$G$113 -> 91779.17316 | EF18: =ED18*Inputs!$E$136 -> 12202.84911 | EG18: =Inputs!$B$165*O18 -> 5508.2 | EH18: 7.344266667 | EI18: 353547.2045 | EK18: =IF(Q18=1,0,T18/Inputs!$E$147) -> 2.25 | EL18: =IF(Q18=1,0,T18/Inputs!$E$148) -> 2.25 | EM18: =IF(Q18=1,0,T18/Inputs!$E$149) -> 2.25 | EN18: =IF(Q18=1,0,T18/Inputs!$E$150) -> 2.25 | EO18: =IF(Inputs!$B$169=1, EK18*Inputs!$G$107*$J18,EK18*Inputs!$G$107) -> 149539.2896 | EP18: =IF(Inputs!$B$169=1,EL18*Inputs!$G$107*$J18,EL18*Inputs!$G$107) -> 149539.2896 | EQ18: =IF(Inputs!$B$169=1,EM18*Inputs!$G$107*$J18,EM18*Inputs!$G$107) -> 149539.2896 | ER18: =IF(Inputs!$B$169=1,EN18*Inputs!$G$107*$J18,EN18*Inputs!$G$107) -> 149539.2896 | ES18: =SUM(EL18:ER18)*Inputs!$E$136 -> 29908.19542 | ET18: =IF(Q18=1,0,IF(SUM(EK18:EN18)>0,T18*4*Inputs!$B$165,0)) -> 10800 | EU18: 9 | EV18: 638865.3539 | EX18: 0.08 | EY18: =IF(Inputs!$B$169=1,EX18*Inputs!$G$107*$J18,EX18*Inputs!$G$107) -> 5316.95252 | EZ18: =EY18*Inputs!$E$136 -> 265.847626 | FA18: =IF(Q18=1,0,U18*Inputs!$B$165) -> 80 | FB18: 0.08 | FC18: 5662.800146 | FE18: 0 | FF18: =IF(Q18=1,O18/Inputs!$B$97,0) -> 0 | FG18: =IF(Inputs!$B$169=1,FE18*Inputs!$G$106*$J18,FE18*Inputs!$G$106) -> 0 | FH18: =IF(Inputs!$B$169=1,FF18*Inputs!$G$107*$J18,FF18*Inputs!$G$107) -> 0 | FI18: =FH18*Inputs!$E$136 -> 0 | FJ18: 0 | FK18: 0 | FX18: 3812397.873 | FY18: 353547.2045 | FZ18: 638865.3539 | GA18: 5662.800146 | GB18: 0 | GC18: 4810473.232 | GD18: 6921.313448 | GE18: 641.85615 | GF18: 1159.844149 | GG18: 10.28067272 | GH18: 0 | GI18: 8733.294419
A19: =ADM!A19 -> 011025 | B19: =ADM!B19 -> 011 | C19: =ADM!C19 -> 025 | D19: =ADM!D19 -> Anderson County 011 - Anderson County Middle School 025 AADA | E19: =ADM!E19 -> Anderson County | F19: =ADM!F19 -> Anderson County Middle School | H19: 2100120 | I19: ANDERSON CO SCH DIST | J19: =IF(Inputs!$B$169<>1,1,K19) -> 0.9926153177 | K19: 0.9926153177 | L19: =SUM('Model Student Counts'!I19:N19) -> 0.03 | M19: =SUM('Model Student Counts'!O19:Q19) -> 876.7043333 | N19: =SUM('Model Student Counts'!R19:U19) -> 0 | O19: 876.7343333 | Q19: =IF(Inputs!$B$178=1,IF(O19<Inputs!$B$179,1,0),0) -> 0 | S19: =IF(O19=0,0,VLOOKUP(A19,'Special Student Counts'!$A$5:$Q$1377,4,FALSE)) -> 97 | T19: =IF(Inputs!$B$61=1,VLOOKUP(A19,'Special Student Counts'!$A$5:$Q$1377,13),VLOOKUP(A19,'Special Student Counts'!$A$5:$Q$1377,9,FALSE)) -> 403 | U19: =IF(O19=0,0,VLOOKUP(A19,'Special Student Counts'!$A$5:$Q$1377,6,FALSE)) -> 7 | W19: =IF(Q19=1,0,'Model Student Counts'!I19/Inputs!$B$83) -> 0 | X19: =IF(Q19=1,0,'Model Student Counts'!J19/Inputs!$B$84) -> 0 | Y19: =IF(Q19=1,0,'Model Student Counts'!K19/Inputs!$B$85) -> 0 | Z19: =IF(Q19=1,0,'Model Student Counts'!L19/Inputs!$B$86) -> 0 | AA19: =IF(Q19=1,0,'Model Student Counts'!M19/Inputs!$B$87) -> 0 | AB19: =IF(Q19=1,0,'Model Student Counts'!N19/Inputs!$B$88) -> 0.0012 | AC19: =IF(Q19=1,0,'Model Student Counts'!O19/Inputs!$B$89) -> 11.66894667 | AD19: =IF(Q19=1,0,'Model Student Counts'!P19/Inputs!$B$90) -> 11.65173333 | AE19: =IF(Q19=1,0,'Model Student Counts'!Q19/Inputs!$B$91) -> 11.74749333 | AF19: =IF(Q19=1,0,'Model Student Counts'!R19/Inputs!$B$92) -> 0 | AG19: =IF(Q19=1,0,'Model Student Counts'!S19/Inputs!$B$93) -> 0 | AH19: =IF(Q19=1,0,'Model Student Counts'!T19/Inputs!$B$94) -> 0 | AI19: =IF(Q19=1,0,'Model Student Counts'!U19/Inputs!$B$95) -> 0 | AJ19: 0.0012 | AK19: 35.06817333 | AL19: 0 | AM19: 35.06937333 | AO19: =IF(Q19=1,0,Inputs!$B$55*AJ19) -> 0.00024 | AP19: =IF(Q19=1,0,Inputs!$B$56*AK19) -> 7.013634667 | AQ19: =IF(Q19=1,0,Inputs!$B$57*AL19) -> 0 | AR19: 7.013874667 | AT19: =IF(Q19=1,0,L19/Inputs!$C$140) -> 6.666666667e-05 | AU19: =IF(Q19=1,0,M19/Inputs!$D$140) -> 1.948231852 | AV19: =IF(Q19=1,0,N19/Inputs!$E$140) -> 0 | AW19: 1.948298519 | AY19: =IF(Q19=1,0,(L19/Inputs!$C$134+M19/Inputs!$D$134+N19/Inputs!$E$134)) -> 4.383671667 | AZ19: =IF(Q19=1,0,(L19/Inputs!$C$135+M19/Inputs!$D$135+N19/Inputs!$E$135)) -> 1.948298519 | BA19: =IF(Q19=1,0,L19/Inputs!$C$137+M19/Inputs!$D$137+N19/Inputs!$E$137) -> 3.506884 | BB19: =IF(Q19=1,0,L19/Inputs!$C$138+M19/Inputs!$D$138+N19/Inputs!$E$138) -> 3.896597037 | BC19: 13.73545122 | BE19: =IF(Q19=1,0,L19/Inputs!$C$142) -> 6.666666667e-05 | BF19: =IF(Q19=1,0,M19/Inputs!$D$142) -> 1.948231852 | BG19: =IF(Q19=1,0,N19/Inputs!$E$142) -> 0 | BH19: 1.948298519 | BI19: 0 | BJ19: 0 | BK19: =IF(Q19=1,0,N19/Inputs!$E$143) -> 0 | BL19: 0 | BM19: =IF(Q19=1,0,L19/Inputs!$C$144) -> 0.0001333333333 | BN19: =IF(Q19=1,0,M19/Inputs!$D$144) -> 3.896463704 | BO19: =IF(Q19=1,0,N19/Inputs!$E$144) -> 0 | BP19: 3.896597037 | BQ19: 5.844895556 | BS19: =IF(Inputs!$B$169=1,Inputs!$G$107*W19*$J19,W19*Inputs!$G$107) -> 0 | BT19: =IF(Inputs!$B$169=1,Inputs!$G$107*X19*$J19,X19*Inputs!$G$107) -> 0 | BU19: =IF(Inputs!$B$169=1,Inputs!$G$107*Y19*$J19,Y19*Inputs!$G$107) -> 0 | BV19: =IF(Inputs!$B$169=1,Inputs!$G$107*Z19*$J19,Z19*Inputs!$G$107) -> 0 | BW19: =IF(Inputs!$B$169=1,Inputs!$G$107*AA19*$J19,AA19*Inputs!$G$107) -> 0 | BX19: =IF(Inputs!$B$169=1,Inputs!$G$107*AB19*$J19,AB19*Inputs!$G$107) -> 79.7542878 | BY19: =IF(Inputs!$B$169=1,Inputs!$G$107*AC19*$J19,AC19*Inputs!$G$107) -> 775540.4423 | BZ19: =IF(Inputs!$B$169=1,Inputs!$G$107*AD19*$J19,AD19*Inputs!$G$107) -> 774396.4114 | CA19: =IF(Inputs!$B$169=1,Inputs!$G$107*AE19*$J19,AE19*Inputs!$G$107) -> 780760.8035 | CB19: =IF(Inputs!$B$169=1,Inputs!$G$107*AF19*$J19,AF19*Inputs!$G$107) -> 0 | CC19: =IF(Inputs!$B$169=1,Inputs!$G$107*AG19*$J19,AG19*Inputs!$G$107) -> 0 | CD19: =IF(Inputs!$B$169=1,Inputs!$G$107*AH19*$J19,AH19*Inputs!$G$107) -> 0 | CE19: =IF(Inputs!$B$169=1,Inputs!$G$107*AI19*$J19,AI19*Inputs!$G$107) -> 0 | CF19: 79.7542878 | CG19: 2330697.657 | CH19: 0 | CI19: 2330777.411 | CJ19: =SUM(CF19:CH19)*Inputs!$E$136 -> 116538.8706 | CK19: 2447316.282 | CM19: =IF(Inputs!$B$169=1,Inputs!$G$107*AO19*$J19,AO19*Inputs!$G$107) -> 15.95085756 | CN19: =IF(Inputs!$B$169=1,Inputs!$G$107*AP19*$J19,AP19*Inputs!$G$107) -> 466139.5314 | CO19: =IF(Inputs!$B$169=1,Inputs!$G$107*AQ19*$J19,AQ19*Inputs!$G$107) -> 0 | CP19: 466155.4823 | CQ19: =SUM(CM19:CO19)*Inputs!$E$136 -> 23307.77411 | CR19: 489463.2564 | CT19: =IF(Inputs!$B$169=1,AT19*Inputs!$G$110*$J19,AT19*Inputs!$G$110) -> 5.394530518 | CU19: =IF(Inputs!$B$169=1,AU19*Inputs!$G$110*$J19,AU19*Inputs!$G$110) -> 157646.9427 | CV19: =IF(Inputs!$B$169=1,AV19*Inputs!$G$110*$J19,AV19*Inputs!$G$110) -> 0 | CW19: 157652.3373 | CY19: =IF(Inputs!$B$169=1, AY19*Inputs!$G$107*$J19,AY19*Inputs!$G$107) -> 291347.1764 | CZ19: =IF(Inputs!$B$169=1, AZ19*Inputs!$G$107*$J19,AZ19*Inputs!$G$107) -> 129487.634 | DA19: =IF(Inputs!$B$169=1, BA19*Inputs!$G$109*$J19,BA19*Inputs!$G$109) -> 266747.8217 | DB19: =IF(Q19=1,0,BB19*Inputs!$G$113) -> 97389.28893 | DC19: =SUM(CY19:CZ19)*Inputs!$E$136 -> 21041.74052 | DD19: 806013.6616 | DF19: =IF(Inputs!$B$169=1,BE19*Inputs!$G$105*$J19, BE19*Inputs!$G$105) -> 5.017288857 | DG19: =IF(Inputs!$B$169=1, BF19*Inputs!$G$105*$J19, BF19*Inputs!$G$105) -> 146622.6294 | DH19: =IF(Inputs!$B$169=1,BG19*Inputs!$G$105*$J19,BG19*Inputs!$G$105) -> 0 | DI19: 146627.6467 | DJ19: =IF(Inputs!$B$169=1, (BI19*SUM(Inputs!$D$106:$E$106)*$J19 + BI19*Inputs!$F$106), BI19*Inputs!$G$106) -> 0 | DK19: =IF(Inputs!$B$169=1, (BJ19*SUM(Inputs!$D$106:$E$106)*$J19 + BJ19*Inputs!$F$106), BJ19*Inputs!$G$106) -> 0 | DL19: =IF(Inputs!$B$169=1,BK19*Inputs!$G$106*$J19,BK19*Inputs!$G$106) -> 0 | DM19: 0 | DN19: =BM19*Inputs!$G$112 -> 4.980631518 | DO19: =BN19*Inputs!$G$112 -> 145551.3745 | DP19: =BO19*Inputs!$G$112 -> 0 | DQ19: 145556.3551 | DR19: 292184.0018 | DT19: =Inputs!$B$156*L19+Inputs!$B$157*M19+Inputs!$B$158*N19 -> 122742.8067 | DU19: =Inputs!$B$159*O19 -> 219183.5833 | DV19: =Inputs!$B$160*$O19 -> 21918.35833 | DW19: =Inputs!$B$161*$O19 -> 87673.43333 | DX19: =Inputs!$B$162*$O19 -> 21918.35833 | DY19: =O19*Inputs!$B$163 -> 219183.5833 | DZ19: 692620.1233 | EB19: =O19/Inputs!$E$146 -> 5.844895556 | EC19: =O19/Inputs!$E$146 -> 5.844895556 | ED19: =IF(Inputs!$B$169=1,EB19*Inputs!$G$107*$J19,EB19*Inputs!$G$107) -> 388462.9019 | EE19: =EC19*Inputs!$G$113 -> 146083.9334 | EF19: =ED19*Inputs!$E$136 -> 19423.1451 | EG19: =Inputs!$B$165*O19 -> 8767.343333 | EH19: 11.68979111 | EI19: 562737.3237 | EK19: =IF(Q19=1,0,T19/Inputs!$E$147) -> 3.358333333 | EL19: =IF(Q19=1,0,T19/Inputs!$E$148) -> 3.358333333 | EM19: =IF(Q19=1,0,T19/Inputs!$E$149) -> 3.358333333 | EN19: =IF(Q19=1,0,T19/Inputs!$E$150) -> 3.358333333 | EO19: =IF(Inputs!$B$169=1, EK19*Inputs!$G$107*$J19,EK19*Inputs!$G$107) -> 223201.236 | EP19: =IF(Inputs!$B$169=1,EL19*Inputs!$G$107*$J19,EL19*Inputs!$G$107) -> 223201.236 | EQ19: =IF(Inputs!$B$169=1,EM19*Inputs!$G$107*$J19,EM19*Inputs!$G$107) -> 223201.236 | ER19: =IF(Inputs!$B$169=1,EN19*Inputs!$G$107*$J19,EN19*Inputs!$G$107) -> 223201.236 | ES19: =SUM(EL19:ER19)*Inputs!$E$136 -> 44640.75095 | ET19: =IF(Q19=1,0,IF(SUM(EK19:EN19)>0,T19*4*Inputs!$B$165,0)) -> 16120 | EU19: 13.43333333 | EV19: 953565.6949 | EX19: 0.07 | EY19: =IF(Inputs!$B$169=1,EX19*Inputs!$G$107*$J19,EX19*Inputs!$G$107) -> 4652.333455 | EZ19: =EY19*Inputs!$E$136 -> 232.6166727 | FA19: =IF(Q19=1,0,U19*Inputs!$B$165) -> 70 | FB19: 0.07 | FC19: 4954.950128 | FE19: 0 | FF19: =IF(Q19=1,O19/Inputs!$B$97,0) -> 0 | FG19: =IF(Inputs!$B$169=1,FE19*Inputs!$G$106*$J19,FE19*Inputs!$G$106) -> 0 | FH19: =IF(Inputs!$B$169=1,FF19*Inputs!$G$107*$J19,FF19*Inputs!$G$107) -> 0 | FI19: =FH19*Inputs!$E$136 -> 0 | FJ19: 0 | FK19: 0 | FX19: 4885249.662 | FY19: 562737.3237 | FZ19: 953565.6949 | GA19: 4954.950128 | GB19: 0 | GC19: 6406507.631 | GD19: 5572.098042 | GE19: 641.85615 | GF19: 1087.633572 | GG19: 5.65159814 | GH19: 0 | GI19: 7307.239363
A20: =ADM!A20 -> 011050 | B20: =ADM!B20 -> 011 | C20: =ADM!C20 -> 050 | D20: =ADM!D20 -> Anderson County 011 - Saffell Street Elementary School 050 AADA | E20: =ADM!E20 -> Anderson County | F20: =ADM!F20 -> Saffell Street Elementary School | H20: 2100120 | I20: ANDERSON CO SCH DIST | J20: =IF(Inputs!$B$169<>1,1,K20) -> 0.9926153177 | K20: 0.9926153177 | L20: =SUM('Model Student Counts'!I20:N20) -> 462.4266667 | M20: =SUM('Model Student Counts'!O20:Q20) -> 0 | N20: =SUM('Model Student Counts'!R20:U20) -> 0 | O20: 462.4266667 | Q20: =IF(Inputs!$B$178=1,IF(O20<Inputs!$B$179,1,0),0) -> 0 | S20: =IF(O20=0,0,VLOOKUP(A20,'Special Student Counts'!$A$5:$Q$1377,4,FALSE)) -> 66 | T20: =IF(Inputs!$B$61=1,VLOOKUP(A20,'Special Student Counts'!$A$5:$Q$1377,13),VLOOKUP(A20,'Special Student Counts'!$A$5:$Q$1377,9,FALSE)) -> 246 | U20: =IF(O20=0,0,VLOOKUP(A20,'Special Student Counts'!$A$5:$Q$1377,6,FALSE)) -> 9 | W20: =IF(Q20=1,0,'Model Student Counts'!I20/Inputs!$B$83) -> 0 | X20: =IF(Q20=1,0,'Model Student Counts'!J20/Inputs!$B$84) -> 6.9288 | Y20: =IF(Q20=1,0,'Model Student Counts'!K20/Inputs!$B$85) -> 6.285933333 | Z20: =IF(Q20=1,0,'Model Student Counts'!L20/Inputs!$B$86) -> 6.202333333 | AA20: =IF(Q20=1,0,'Model Student Counts'!M20/Inputs!$B$87) -> 3.33856 | AB20: =IF(Q20=1,0,'Model Student Counts'!N20/Inputs!$B$88) -> 3.508266667 | AC20: =IF(Q20=1,0,'Model Student Counts'!O20/Inputs!$B$89) -> 0 | AD20: =IF(Q20=1,0,'Model Student Counts'!P20/Inputs!$B$90) -> 0 | AE20: =IF(Q20=1,0,'Model Student Counts'!Q20/Inputs!$B$91) -> 0 | AF20: =IF(Q20=1,0,'Model Student Counts'!R20/Inputs!$B$92) -> 0 | AG20: =IF(Q20=1,0,'Model Student Counts'!S20/Inputs!$B$93) -> 0 | AH20: =IF(Q20=1,0,'Model Student Counts'!T20/Inputs!$B$94) -> 0 | AI20: =IF(Q20=1,0,'Model Student Counts'!U20/Inputs!$B$95) -> 0 | AJ20: 26.26389333 | AK20: 0 | AL20: 0 | AM20: 26.26389333 | AO20: =IF(Q20=1,0,Inputs!$B$55*AJ20) -> 5.252778667 | AP20: =IF(Q20=1,0,Inputs!$B$56*AK20) -> 0 | AQ20: =IF(Q20=1,0,Inputs!$B$57*AL20) -> 0 | AR20: 5.252778667 | AT20: =IF(Q20=1,0,L20/Inputs!$C$140) -> 1.027614815 | AU20: =IF(Q20=1,0,M20/Inputs!$D$140) -> 0 | AV20: =IF(Q20=1,0,N20/Inputs!$E$140) -> 0 | AW20: 1.027614815 | AY20: =IF(Q20=1,0,(L20/Inputs!$C$134+M20/Inputs!$D$134+N20/Inputs!$E$134)) -> 2.312133333 | AZ20: =IF(Q20=1,0,(L20/Inputs!$C$135+M20/Inputs!$D$135+N20/Inputs!$E$135)) -> 1.027614815 | BA20: =IF(Q20=1,0,L20/Inputs!$C$137+M20/Inputs!$D$137+N20/Inputs!$E$137) -> 1.027614815 | BB20: =IF(Q20=1,0,L20/Inputs!$C$138+M20/Inputs!$D$138+N20/Inputs!$E$138) -> 2.05522963 | BC20: 6.422592593 | BE20: =IF(Q20=1,0,L20/Inputs!$C$142) -> 1.027614815 | BF20: =IF(Q20=1,0,M20/Inputs!$D$142) -> 0 | BG20: =IF(Q20=1,0,N20/Inputs!$E$142) -> 0 | BH20: 1.027614815 | BI20: 0 | BJ20: 0 | BK20: =IF(Q20=1,0,N20/Inputs!$E$143) -> 0 | BL20: 0 | BM20: =IF(Q20=1,0,L20/Inputs!$C$144) -> 2.05522963 | BN20: =IF(Q20=1,0,M20/Inputs!$D$144) -> 0 | BO20: =IF(Q20=1,0,N20/Inputs!$E$144) -> 0 | BP20: 2.05522963 | BQ20: 3.082844444 | BS20: =IF(Inputs!$B$169=1,Inputs!$G$107*W20*$J20,W20*Inputs!$G$107) -> 0 | BT20: =IF(Inputs!$B$169=1,Inputs!$G$107*X20*$J20,X20*Inputs!$G$107) -> 460501.2578 | BU20: =IF(Inputs!$B$169=1,Inputs!$G$107*Y20*$J20,Y20*Inputs!$G$107) -> 417775.1135 | BV20: =IF(Inputs!$B$169=1,Inputs!$G$107*Z20*$J20,Z20*Inputs!$G$107) -> 412218.8981 | BW20: =IF(Inputs!$B$169=1,Inputs!$G$107*AA20*$J20,AA20*Inputs!$G$107) -> 221887.0626 | BX20: =IF(Inputs!$B$169=1,Inputs!$G$107*AB20*$J20,AB20*Inputs!$G$107) -> 233166.0912 | BY20: =IF(Inputs!$B$169=1,Inputs!$G$107*AC20*$J20,AC20*Inputs!$G$107) -> 0 | BZ20: =IF(Inputs!$B$169=1,Inputs!$G$107*AD20*$J20,AD20*Inputs!$G$107) -> 0 | CA20: =IF(Inputs!$B$169=1,Inputs!$G$107*AE20*$J20,AE20*Inputs!$G$107) -> 0 | CB20: =IF(Inputs!$B$169=1,Inputs!$G$107*AF20*$J20,AF20*Inputs!$G$107) -> 0 | CC20: =IF(Inputs!$B$169=1,Inputs!$G$107*AG20*$J20,AG20*Inputs!$G$107) -> 0 | CD20: =IF(Inputs!$B$169=1,Inputs!$G$107*AH20*$J20,AH20*Inputs!$G$107) -> 0 | CE20: =IF(Inputs!$B$169=1,Inputs!$G$107*AI20*$J20,AI20*Inputs!$G$107) -> 0 | CF20: 1745548.423 | CG20: 0 | CH20: 0 | CI20: 1745548.423 | CJ20: =SUM(CF20:CH20)*Inputs!$E$136 -> 87277.42115 | CK20: 1832825.844 | CM20: =IF(Inputs!$B$169=1,Inputs!$G$107*AO20*$J20,AO20*Inputs!$G$107) -> 349109.6846 | CN20: =IF(Inputs!$B$169=1,Inputs!$G$107*AP20*$J20,AP20*Inputs!$G$107) -> 0 | CO20: =IF(Inputs!$B$169=1,Inputs!$G$107*AQ20*$J20,AQ20*Inputs!$G$107) -> 0 | CP20: 349109.6846 | CQ20: =SUM(CM20:CO20)*Inputs!$E$136 -> 17455.48423 | CR20: 366565.1688 | CT20: =IF(Inputs!$B$169=1,AT20*Inputs!$G$110*$J20,AT20*Inputs!$G$110) -> 83152.49219 | CU20: =IF(Inputs!$B$169=1,AU20*Inputs!$G$110*$J20,AU20*Inputs!$G$110) -> 0 | CV20: =IF(Inputs!$B$169=1,AV20*Inputs!$G$110*$J20,AV20*Inputs!$G$110) -> 0 | CW20: 83152.49219 | CY20: =IF(Inputs!$B$169=1, AY20*Inputs!$G$107*$J20,AY20*Inputs!$G$107) -> 153668.7894 | CZ20: =IF(Inputs!$B$169=1, AZ20*Inputs!$G$107*$J20,AZ20*Inputs!$G$107) -> 68297.23974 | DA20: =IF(Inputs!$B$169=1, BA20*Inputs!$G$109*$J20,BA20*Inputs!$G$109) -> 78164.55105 | DB20: =IF(Q20=1,0,BB20*Inputs!$G$113) -> 51367.21871 | DC20: =SUM(CY20:CZ20)*Inputs!$E$136 -> 11098.30146 | DD20: 362596.1004 | DF20: =IF(Inputs!$B$169=1,BE20*Inputs!$G$105*$J20, BE20*Inputs!$G$105) -> 77337.60539 | DG20: =IF(Inputs!$B$169=1, BF20*Inputs!$G$105*$J20, BF20*Inputs!$G$105) -> 0 | DH20: =IF(Inputs!$B$169=1,BG20*Inputs!$G$105*$J20,BG20*Inputs!$G$105) -> 0 | DI20: 77337.60539 | DJ20: =IF(Inputs!$B$169=1, (BI20*SUM(Inputs!$D$106:$E$106)*$J20 + BI20*Inputs!$F$106), BI20*Inputs!$G$106) -> 0 | DK20: =IF(Inputs!$B$169=1, (BJ20*SUM(Inputs!$D$106:$E$106)*$J20 + BJ20*Inputs!$F$106), BJ20*Inputs!$G$106) -> 0 | DL20: =IF(Inputs!$B$169=1,BK20*Inputs!$G$106*$J20,BK20*Inputs!$G$106) -> 0 | DM20: 0 | DN20: =BM20*Inputs!$G$112 -> 76772.56102 | DO20: =BN20*Inputs!$G$112 -> 0 | DP20: =BO20*Inputs!$G$112 -> 0 | DQ20: 76772.56102 | DR20: 154110.1664 | DT20: =Inputs!$B$156*L20+Inputs!$B$157*M20+Inputs!$B$158*N20 -> 64739.73333 | DU20: =Inputs!$B$159*O20 -> 115606.6667 | DV20: =Inputs!$B$160*$O20 -> 11560.66667 | DW20: =Inputs!$B$161*$O20 -> 46242.66667 | DX20: =Inputs!$B$162*$O20 -> 11560.66667 | DY20: =O20*Inputs!$B$163 -> 115606.6667 | DZ20: 365317.0667 | EB20: =O20/Inputs!$E$146 -> 3.082844444 | EC20: =O20/Inputs!$E$146 -> 3.082844444 | ED20: =IF(Inputs!$B$169=1,EB20*Inputs!$G$107*$J20,EB20*Inputs!$G$107) -> 204891.7192 | EE20: =EC20*Inputs!$G$113 -> 77050.82806 | EF20: =ED20*Inputs!$E$136 -> 10244.58596 | EG20: =Inputs!$B$165*O20 -> 4624.266667 | EH20: 6.165688889 | EI20: 296811.3999 | EK20: =IF(Q20=1,0,T20/Inputs!$E$147) -> 2.05 | EL20: =IF(Q20=1,0,T20/Inputs!$E$148) -> 2.05 | EM20: =IF(Q20=1,0,T20/Inputs!$E$149) -> 2.05 | EN20: =IF(Q20=1,0,T20/Inputs!$E$150) -> 2.05 | EO20: =IF(Inputs!$B$169=1, EK20*Inputs!$G$107*$J20,EK20*Inputs!$G$107) -> 136246.9083 | EP20: =IF(Inputs!$B$169=1,EL20*Inputs!$G$107*$J20,EL20*Inputs!$G$107) -> 136246.9083 | EQ20: =IF(Inputs!$B$169=1,EM20*Inputs!$G$107*$J20,EM20*Inputs!$G$107) -> 136246.9083 | ER20: =IF(Inputs!$B$169=1,EN20*Inputs!$G$107*$J20,EN20*Inputs!$G$107) -> 136246.9083 | ES20: =SUM(EL20:ER20)*Inputs!$E$136 -> 27249.68916 | ET20: =IF(Q20=1,0,IF(SUM(EK20:EN20)>0,T20*4*Inputs!$B$165,0)) -> 9840 | EU20: 8.2 | EV20: 582077.3225 | EX20: 0.09 | EY20: =IF(Inputs!$B$169=1,EX20*Inputs!$G$107*$J20,EX20*Inputs!$G$107) -> 5981.571585 | EZ20: =EY20*Inputs!$E$136 -> 299.0785792 | FA20: =IF(Q20=1,0,U20*Inputs!$B$165) -> 90 | FB20: 0.09 | FC20: 6370.650164 | FE20: 0 | FF20: =IF(Q20=1,O20/Inputs!$B$97,0) -> 0 | FG20: =IF(Inputs!$B$169=1,FE20*Inputs!$G$106*$J20,FE20*Inputs!$G$106) -> 0 | FH20: =IF(Inputs!$B$169=1,FF20*Inputs!$G$107*$J20,FF20*Inputs!$G$107) -> 0 | FI20: =FH20*Inputs!$E$136 -> 0 | FJ20: 0 | FK20: 0 | FX20: 3164566.839 | FY20: 296811.3999 | FZ20: 582077.3225 | GA20: 6370.650164 | GB20: 0 | GC20: 4049826.211 | GD20: 6843.391756 | GE20: 641.85615 | GF20: 1258.745147 | GG20: 13.77656313 | GH20: 0 | GI20: 8757.769616
A21: =ADM!A21 -> 011110 | B21: =ADM!B21 -> 011 | C21: =ADM!C21 -> 110 | D21: =ADM!D21 -> Anderson County 011 - Emma B. Ward Elementary School 110 AADA | E21: =ADM!E21 -> Anderson County | F21: =ADM!F21 -> Emma B. Ward Elementary School | H21: 2100120 | I21: ANDERSON CO SCH DIST | J21: =IF(Inputs!$B$169<>1,1,K21) -> 0.9926153177 | K21: 0.9926153177 | L21: =SUM('Model Student Counts'!I21:N21) -> 483.081 | M21: =SUM('Model Student Counts'!O21:Q21) -> 0 | N21: =SUM('Model Student Counts'!R21:U21) -> 0 | O21: 483.081 | Q21: =IF(Inputs!$B$178=1,IF(O21<Inputs!$B$179,1,0),0) -> 0 | S21: =IF(O21=0,0,VLOOKUP(A21,'Special Student Counts'!$A$5:$Q$1377,4,FALSE)) -> 71 | T21: =IF(Inputs!$B$61=1,VLOOKUP(A21,'Special Student Counts'!$A$5:$Q$1377,13),VLOOKUP(A21,'Special Student Counts'!$A$5:$Q$1377,9,FALSE)) -> 236 | U21: =IF(O21=0,0,VLOOKUP(A21,'Special Student Counts'!$A$5:$Q$1377,6,FALSE)) -> 8 | W21: =IF(Q21=1,0,'Model Student Counts'!I21/Inputs!$B$83) -> 0 | X21: =IF(Q21=1,0,'Model Student Counts'!J21/Inputs!$B$84) -> 6.800088889 | Y21: =IF(Q21=1,0,'Model Student Counts'!K21/Inputs!$B$85) -> 6.902088889 | Z21: =IF(Q21=1,0,'Model Student Counts'!L21/Inputs!$B$86) -> 6.257688889 | AA21: =IF(Q21=1,0,'Model Student Counts'!M21/Inputs!$B$87) -> 3.731026667 | AB21: =IF(Q21=1,0,'Model Student Counts'!N21/Inputs!$B$88) -> 3.616293333 | AC21: =IF(Q21=1,0,'Model Student Counts'!O21/Inputs!$B$89) -> 0 | AD21: =IF(Q21=1,0,'Model Student Counts'!P21/Inputs!$B$90) -> 0 | AE21: =IF(Q21=1,0,'Model Student Counts'!Q21/Inputs!$B$91) -> 0 | AF21: =IF(Q21=1,0,'Model Student Counts'!R21/Inputs!$B$92) -> 0 | AG21: =IF(Q21=1,0,'Model Student Counts'!S21/Inputs!$B$93) -> 0 | AH21: =IF(Q21=1,0,'Model Student Counts'!T21/Inputs!$B$94) -> 0 | AI21: =IF(Q21=1,0,'Model Student Counts'!U21/Inputs!$B$95) -> 0 | AJ21: 27.30718667 | AK21: 0 | AL21: 0 | AM21: 27.30718667 | AO21: =IF(Q21=1,0,Inputs!$B$55*AJ21) -> 5.461437333 | AP21: =IF(Q21=1,0,Inputs!$B$56*AK21) -> 0 | AQ21: =IF(Q21=1,0,Inputs!$B$57*AL21) -> 0 | AR21: 5.461437333 | AT21: =IF(Q21=1,0,L21/Inputs!$C$140) -> 1.073513333 | AU21: =IF(Q21=1,0,M21/Inputs!$D$140) -> 0 | AV21: =IF(Q21=1,0,N21/Inputs!$E$140) -> 0 | AW21: 1.073513333 | AY21: =IF(Q21=1,0,(L21/Inputs!$C$134+M21/Inputs!$D$134+N21/Inputs!$E$134)) -> 2.415405 | AZ21: =IF(Q21=1,0,(L21/Inputs!$C$135+M21/Inputs!$D$135+N21/Inputs!$E$135)) -> 1.073513333 | BA21: =IF(Q21=1,0,L21/Inputs!$C$137+M21/Inputs!$D$137+N21/Inputs!$E$137) -> 1.073513333 | BB21: =IF(Q21=1,0,L21/Inputs!$C$138+M21/Inputs!$D$138+N21/Inputs!$E$138) -> 2.147026667 | BC21: 6.709458333 | BE21: =IF(Q21=1,0,L21/Inputs!$C$142) -> 1.073513333 | BF21: =IF(Q21=1,0,M21/Inputs!$D$142) -> 0 | BG21: =IF(Q21=1,0,N21/Inputs!$E$142) -> 0 | BH21: 1.073513333 | BI21: 0 | BJ21: 0 | BK21: =IF(Q21=1,0,N21/Inputs!$E$143) -> 0 | BL21: 0 | BM21: =IF(Q21=1,0,L21/Inputs!$C$144) -> 2.147026667 | BN21: =IF(Q21=1,0,M21/Inputs!$D$144) -> 0 | BO21: =IF(Q21=1,0,N21/Inputs!$E$144) -> 0 | BP21: 2.147026667 | BQ21: 3.22054 | BS21: =IF(Inputs!$B$169=1,Inputs!$G$107*W21*$J21,W21*Inputs!$G$107) -> 0 | BT21: =IF(Inputs!$B$169=1,Inputs!$G$107*X21*$J21,X21*Inputs!$G$107) -> 451946.8719 | BU21: =IF(Inputs!$B$169=1,Inputs!$G$107*Y21*$J21,Y21*Inputs!$G$107) -> 458725.9864 | BV21: =IF(Inputs!$B$169=1,Inputs!$G$107*Z21*$J21,Z21*Inputs!$G$107) -> 415897.9338 | BW21: =IF(Inputs!$B$169=1,Inputs!$G$107*AA21*$J21,AA21*Inputs!$G$107) -> 247971.1455 | BX21: =IF(Inputs!$B$169=1,Inputs!$G$107*AB21*$J21,AB21*Inputs!$G$107) -> 240345.7494 | BY21: =IF(Inputs!$B$169=1,Inputs!$G$107*AC21*$J21,AC21*Inputs!$G$107) -> 0 | BZ21: =IF(Inputs!$B$169=1,Inputs!$G$107*AD21*$J21,AD21*Inputs!$G$107) -> 0 | CA21: =IF(Inputs!$B$169=1,Inputs!$G$107*AE21*$J21,AE21*Inputs!$G$107) -> 0 | CB21: =IF(Inputs!$B$169=1,Inputs!$G$107*AF21*$J21,AF21*Inputs!$G$107) -> 0 | CC21: =IF(Inputs!$B$169=1,Inputs!$G$107*AG21*$J21,AG21*Inputs!$G$107) -> 0 | CD21: =IF(Inputs!$B$169=1,Inputs!$G$107*AH21*$J21,AH21*Inputs!$G$107) -> 0 | CE21: =IF(Inputs!$B$169=1,Inputs!$G$107*AI21*$J21,AI21*Inputs!$G$107) -> 0 | CF21: 1814887.687 | CG21: 0 | CH21: 0 | CI21: 1814887.687 | CJ21: =SUM(CF21:CH21)*Inputs!$E$136 -> 90744.38435 | CK21: 1905632.071 | CM21: =IF(Inputs!$B$169=1,Inputs!$G$107*AO21*$J21,AO21*Inputs!$G$107) -> 362977.5374 | CN21: =IF(Inputs!$B$169=1,Inputs!$G$107*AP21*$J21,AP21*Inputs!$G$107) -> 0 | CO21: =IF(Inputs!$B$169=1,Inputs!$G$107*AQ21*$J21,AQ21*Inputs!$G$107) -> 0 | CP21: 362977.5374 | CQ21: =SUM(CM21:CO21)*Inputs!$E$136 -> 18148.87687 | CR21: 381126.4143 | CT21: =IF(Inputs!$B$169=1,AT21*Inputs!$G$110*$J21,AT21*Inputs!$G$110) -> 86866.50658 | CU21: =IF(Inputs!$B$169=1,AU21*Inputs!$G$110*$J21,AU21*Inputs!$G$110) -> 0 | CV21: =IF(Inputs!$B$169=1,AV21*Inputs!$G$110*$J21,AV21*Inputs!$G$110) -> 0 | CW21: 86866.50658 | CY21: =IF(Inputs!$B$169=1, AY21*Inputs!$G$107*$J21,AY21*Inputs!$G$107) -> 160532.4213 | CZ21: =IF(Inputs!$B$169=1, AZ21*Inputs!$G$107*$J21,AZ21*Inputs!$G$107) -> 71347.74279 | DA21: =IF(Inputs!$B$169=1, BA21*Inputs!$G$109*$J21,BA21*Inputs!$G$109) -> 81655.77854 | DB21: =IF(Q21=1,0,BB21*Inputs!$G$113) -> 53661.54067 | DC21: =SUM(CY21:CZ21)*Inputs!$E$136 -> 11594.0082 | DD21: 378791.4915 | DF21: =IF(Inputs!$B$169=1,BE21*Inputs!$G$105*$J21, BE21*Inputs!$G$105) -> 80791.89727 | DG21: =IF(Inputs!$B$169=1, BF21*Inputs!$G$105*$J21, BF21*Inputs!$G$105) -> 0 | DH21: =IF(Inputs!$B$169=1,BG21*Inputs!$G$105*$J21,BG21*Inputs!$G$105) -> 0 | DI21: 80791.89727 | DJ21: =IF(Inputs!$B$169=1, (BI21*SUM(Inputs!$D$106:$E$106)*$J21 + BI21*Inputs!$F$106), BI21*Inputs!$G$106) -> 0 | DK21: =IF(Inputs!$B$169=1, (BJ21*SUM(Inputs!$D$106:$E$106)*$J21 + BJ21*Inputs!$F$106), BJ21*Inputs!$G$106) -> 0 | DL21: =IF(Inputs!$B$169=1,BK21*Inputs!$G$106*$J21,BK21*Inputs!$G$106) -> 0 | DM21: 0 | DN21: =BM21*Inputs!$G$112 -> 80201.61514 | DO21: =BN21*Inputs!$G$112 -> 0 | DP21: =BO21*Inputs!$G$112 -> 0 | DQ21: 80201.61514 | DR21: 160993.5124 | DT21: =Inputs!$B$156*L21+Inputs!$B$157*M21+Inputs!$B$158*N21 -> 67631.34 | DU21: =Inputs!$B$159*O21 -> 120770.25 | DV21: =Inputs!$B$160*$O21 -> 12077.025 | DW21: =Inputs!$B$161*$O21 -> 48308.1 | DX21: =Inputs!$B$162*$O21 -> 12077.025 | DY21: =O21*Inputs!$B$163 -> 120770.25 | DZ21: 381633.99 | EB21: =O21/Inputs!$E$146 -> 3.22054 | EC21: =O21/Inputs!$E$146 -> 3.22054 | ED21: =IF(Inputs!$B$169=1,EB21*Inputs!$G$107*$J21,EB21*Inputs!$G$107) -> 214043.2284 | EE21: =EC21*Inputs!$G$113 -> 80492.31101 | EF21: =ED21*Inputs!$E$136 -> 10702.16142 | EG21: =Inputs!$B$165*O21 -> 4830.81 | EH21: 6.44108 | EI21: 310068.5108 | EK21: =IF(Q21=1,0,T21/Inputs!$E$147) -> 1.966666667 | EL21: =IF(Q21=1,0,T21/Inputs!$E$148) -> 1.966666667 | EM21: =IF(Q21=1,0,T21/Inputs!$E$149) -> 1.966666667 | EN21: =IF(Q21=1,0,T21/Inputs!$E$150) -> 1.966666667 | EO21: =IF(Inputs!$B$169=1, EK21*Inputs!$G$107*$J21,EK21*Inputs!$G$107) -> 130708.4161 | EP21: =IF(Inputs!$B$169=1,EL21*Inputs!$G$107*$J21,EL21*Inputs!$G$107) -> 130708.4161 | EQ21: =IF(Inputs!$B$169=1,EM21*Inputs!$G$107*$J21,EM21*Inputs!$G$107) -> 130708.4161 | ER21: =IF(Inputs!$B$169=1,EN21*Inputs!$G$107*$J21,EN21*Inputs!$G$107) -> 130708.4161 | ES21: =SUM(EL21:ER21)*Inputs!$E$136 -> 26141.97822 | ET21: =IF(Q21=1,0,IF(SUM(EK21:EN21)>0,T21*4*Inputs!$B$165,0)) -> 9440 | EU21: 7.866666667 | EV21: 558415.6427 | EX21: 0.08 | EY21: =IF(Inputs!$B$169=1,EX21*Inputs!$G$107*$J21,EX21*Inputs!$G$107) -> 5316.95252 | EZ21: =EY21*Inputs!$E$136 -> 265.847626 | FA21: =IF(Q21=1,0,U21*Inputs!$B$165) -> 80 | FB21: 0.08 | FC21: 5662.800146 | FE21: 0 | FF21: =IF(Q21=1,O21/Inputs!$B$97,0) -> 0 | FG21: =IF(Inputs!$B$169=1,FE21*Inputs!$G$106*$J21,FE21*Inputs!$G$106) -> 0 | FH21: =IF(Inputs!$B$169=1,FF21*Inputs!$G$107*$J21,FF21*Inputs!$G$107) -> 0 | FI21: =FH21*Inputs!$E$136 -> 0 | FJ21: 0 | FK21: 0 | FX21: 3295043.986 | FY21: 310068.5108 | FZ21: 558415.6427 | GA21: 5662.800146 | GB21: 0 | GC21: 4169190.94 | GD21: 6820.893362 | GE21: 641.85615 | GF21: 1155.946193 | GG21: 11.72225806 | GH21: 0 | GI21: 8630.417962
A22: =ADM!A22 -> 011120 | B22: =ADM!B22 -> 011 | C22: =ADM!C22 -> 120 | D22: =ADM!D22 -> Anderson County 011 - Ezra Sparrow Early Childhood Center 120 AADA | E22: =ADM!E22 -> Anderson County | F22: =ADM!F22 -> Ezra Sparrow Early Childhood Center | H22: 2100120 | I22: ANDERSON CO SCH DIST | J22: =IF(Inputs!$B$169<>1,1,K22) -> 0.9926153177 | K22: 0.9926153177 | L22: =SUM('Model Student Counts'!I22:N22) -> 254.0006667 | M22: =SUM('Model Student Counts'!O22:Q22) -> 0 | N22: =SUM('Model Student Counts'!R22:U22) -> 0 | O22: 254.0006667 | Q22: =IF(Inputs!$B$178=1,IF(O22<Inputs!$B$179,1,0),0) -> 0 | S22: =IF(O22=0,0,VLOOKUP(A22,'Special Student Counts'!$A$5:$Q$1377,4,FALSE)) -> 37 | T22: =IF(Inputs!$B$61=1,VLOOKUP(A22,'Special Student Counts'!$A$5:$Q$1377,13),VLOOKUP(A22,'Special Student Counts'!$A$5:$Q$1377,9,FALSE)) -> 116 | U22: =IF(O22=0,0,VLOOKUP(A22,'Special Student Counts'!$A$5:$Q$1377,6,FALSE)) -> 0 | W22: =IF(Q22=1,0,'Model Student Counts'!I22/Inputs!$B$83) -> 16.93337778 | X22: =IF(Q22=1,0,'Model Student Counts'!J22/Inputs!$B$84) -> 0 | Y22: =IF(Q22=1,0,'Model Student Counts'!K22/Inputs!$B$85) -> 0 | Z22: =IF(Q22=1,0,'Model Student Counts'!L22/Inputs!$B$86) -> 0 | AA22: =IF(Q22=1,0,'Model Student Counts'!M22/Inputs!$B$87) -> 0 | AB22: =IF(Q22=1,0,'Model Student Counts'!N22/Inputs!$B$88) -> 0 | AC22: =IF(Q22=1,0,'Model Student Counts'!O22/Inputs!$B$89) -> 0 | AD22: =IF(Q22=1,0,'Model Student Counts'!P22/Inputs!$B$90) -> 0 | AE22: =IF(Q22=1,0,'Model Student Counts'!Q22/Inputs!$B$91) -> 0 | AF22: =IF(Q22=1,0,'Model Student Counts'!R22/Inputs!$B$92) -> 0 | AG22: =IF(Q22=1,0,'Model Student Counts'!S22/Inputs!$B$93) -> 0 | AH22: =IF(Q22=1,0,'Model Student Counts'!T22/Inputs!$B$94) -> 0 | AI22: =IF(Q22=1,0,'Model Student Counts'!U22/Inputs!$B$95) -> 0 | AJ22: 16.93337778 | AK22: 0 | AL22: 0 | AM22: 16.93337778 | AO22: =IF(Q22=1,0,Inputs!$B$55*AJ22) -> 3.386675556 | AP22: =IF(Q22=1,0,Inputs!$B$56*AK22) -> 0 | AQ22: =IF(Q22=1,0,Inputs!$B$57*AL22) -> 0 | AR22: 3.386675556 | AT22: =IF(Q22=1,0,L22/Inputs!$C$140) -> 0.5644459259 | AU22: =IF(Q22=1,0,M22/Inputs!$D$140) -> 0 | AV22: =IF(Q22=1,0,N22/Inputs!$E$140) -> 0 | AW22: 0.5644459259 | AY22: =IF(Q22=1,0,(L22/Inputs!$C$134+M22/Inputs!$D$134+N22/Inputs!$E$134)) -> 1.270003333 | AZ22: =IF(Q22=1,0,(L22/Inputs!$C$135+M22/Inputs!$D$135+N22/Inputs!$E$135)) -> 0.5644459259 | BA22: =IF(Q22=1,0,L22/Inputs!$C$137+M22/Inputs!$D$137+N22/Inputs!$E$137) -> 0.5644459259 | BB22: =IF(Q22=1,0,L22/Inputs!$C$138+M22/Inputs!$D$138+N22/Inputs!$E$138) -> 1.128891852 | BC22: 3.527787037 | BE22: =IF(Q22=1,0,L22/Inputs!$C$142) -> 0.5644459259 | BF22: =IF(Q22=1,0,M22/Inputs!$D$142) -> 0 | BG22: =IF(Q22=1,0,N22/Inputs!$E$142) -> 0 | BH22: 0.5644459259 | BI22: 0 | BJ22: 0 | BK22: =IF(Q22=1,0,N22/Inputs!$E$143) -> 0 | BL22: 0 | BM22: =IF(Q22=1,0,L22/Inputs!$C$144) -> 1.128891852 | BN22: =IF(Q22=1,0,M22/Inputs!$D$144) -> 0 | BO22: =IF(Q22=1,0,N22/Inputs!$E$144) -> 0 | BP22: 1.128891852 | BQ22: 1.693337778 | BS22: =IF(Inputs!$B$169=1,Inputs!$G$107*W22*$J22,W22*Inputs!$G$107) -> 1125424.571 | BT22: =IF(Inputs!$B$169=1,Inputs!$G$107*X22*$J22,X22*Inputs!$G$107) -> 0 | BU22: =IF(Inputs!$B$169=1,Inputs!$G$107*Y22*$J22,Y22*Inputs!$G$107) -> 0 | BV22: =IF(Inputs!$B$169=1,Inputs!$G$107*Z22*$J22,Z22*Inputs!$G$107) -> 0 | BW22: =IF(Inputs!$B$169=1,Inputs!$G$107*AA22*$J22,AA22*Inputs!$G$107) -> 0 | BX22: =IF(Inputs!$B$169=1,Inputs!$G$107*AB22*$J22,AB22*Inputs!$G$107) -> 0 | BY22: =IF(Inputs!$B$169=1,Inputs!$G$107*AC22*$J22,AC22*Inputs!$G$107) -> 0 | BZ22: =IF(Inputs!$B$169=1,Inputs!$G$107*AD22*$J22,AD22*Inputs!$G$107) -> 0 | CA22: =IF(Inputs!$B$169=1,Inputs!$G$107*AE22*$J22,AE22*Inputs!$G$107) -> 0 | CB22: =IF(Inputs!$B$169=1,Inputs!$G$107*AF22*$J22,AF22*Inputs!$G$107) -> 0 | CC22: =IF(Inputs!$B$169=1,Inputs!$G$107*AG22*$J22,AG22*Inputs!$G$107) -> 0 | CD22: =IF(Inputs!$B$169=1,Inputs!$G$107*AH22*$J22,AH22*Inputs!$G$107) -> 0 | CE22: =IF(Inputs!$B$169=1,Inputs!$G$107*AI22*$J22,AI22*Inputs!$G$107) -> 0 | CF22: 1125424.571 | CG22: 0 | CH22: 0 | CI22: 1125424.571 | CJ22: =SUM(CF22:CH22)*Inputs!$E$136 -> 56271.22853 | CK22: 1181695.799 | CM22: =IF(Inputs!$B$169=1,Inputs!$G$107*AO22*$J22,AO22*Inputs!$G$107) -> 225084.9141 | CN22: =IF(Inputs!$B$169=1,Inputs!$G$107*AP22*$J22,AP22*Inputs!$G$107) -> 0 | CO22: =IF(Inputs!$B$169=1,Inputs!$G$107*AQ22*$J22,AQ22*Inputs!$G$107) -> 0 | CP22: 225084.9141 | CQ22: =SUM(CM22:CO22)*Inputs!$E$136 -> 11254.24571 | CR22: 236339.1598 | CT22: =IF(Inputs!$B$169=1,AT22*Inputs!$G$110*$J22,AT22*Inputs!$G$110) -> 45673.8116 | CU22: =IF(Inputs!$B$169=1,AU22*Inputs!$G$110*$J22,AU22*Inputs!$G$110) -> 0 | CV22: =IF(Inputs!$B$169=1,AV22*Inputs!$G$110*$J22,AV22*Inputs!$G$110) -> 0 | CW22: 45673.8116 | CY22: =IF(Inputs!$B$169=1, AY22*Inputs!$G$107*$J22,AY22*Inputs!$G$107) -> 84406.84279 | CZ22: =IF(Inputs!$B$169=1, AZ22*Inputs!$G$107*$J22,AZ22*Inputs!$G$107) -> 37514.15235 | DA22: =IF(Inputs!$B$169=1, BA22*Inputs!$G$109*$J22,BA22*Inputs!$G$109) -> 42934.04664 | DB22: =IF(Q22=1,0,BB22*Inputs!$G$113) -> 28214.86894 | DC22: =SUM(CY22:CZ22)*Inputs!$E$136 -> 6096.049757 | DD22: 199165.9605 | DF22: =IF(Inputs!$B$169=1,BE22*Inputs!$G$105*$J22, BE22*Inputs!$G$105) -> 42479.82381 | DG22: =IF(Inputs!$B$169=1, BF22*Inputs!$G$105*$J22, BF22*Inputs!$G$105) -> 0 | DH22: =IF(Inputs!$B$169=1,BG22*Inputs!$G$105*$J22,BG22*Inputs!$G$105) -> 0 | DI22: 42479.82381 | DJ22: =IF(Inputs!$B$169=1, (BI22*SUM(Inputs!$D$106:$E$106)*$J22 + BI22*Inputs!$F$106), BI22*Inputs!$G$106) -> 0 | DK22: =IF(Inputs!$B$169=1, (BJ22*SUM(Inputs!$D$106:$E$106)*$J22 + BJ22*Inputs!$F$106), BJ22*Inputs!$G$106) -> 0 | DL22: =IF(Inputs!$B$169=1,BK22*Inputs!$G$106*$J22,BK22*Inputs!$G$106) -> 0 | DM22: 0 | DN22: =BM22*Inputs!$G$112 -> 42169.45753 | DO22: =BN22*Inputs!$G$112 -> 0 | DP22: =BO22*Inputs!$G$112 -> 0 | DQ22: 42169.45753 | DR22: 84649.28134 | DT22: =Inputs!$B$156*L22+Inputs!$B$157*M22+Inputs!$B$158*N22 -> 35560.09333 | DU22: =Inputs!$B$159*O22 -> 63500.16667 | DV22: =Inputs!$B$160*$O22 -> 6350.016667 | DW22: =Inputs!$B$161*$O22 -> 25400.06667 | DX22: =Inputs!$B$162*$O22 -> 6350.016667 | DY22: =O22*Inputs!$B$163 -> 63500.16667 | DZ22: 200660.5267 | EB22: =O22/Inputs!$E$146 -> 1.693337778 | EC22: =O22/Inputs!$E$146 -> 1.693337778 | ED22: =IF(Inputs!$B$169=1,EB22*Inputs!$G$107*$J22,EB22*Inputs!$G$107) -> 112542.4571 | EE22: =EC22*Inputs!$G$113 -> 42322.30342 | EF22: =ED22*Inputs!$E$136 -> 5627.122853 | EG22: =Inputs!$B$165*O22 -> 2540.006667 | EH22: 3.386675556 | EI22: 163031.89 | EK22: =IF(Q22=1,0,T22/Inputs!$E$147) -> 0.9666666667 | EL22: =IF(Q22=1,0,T22/Inputs!$E$148) -> 0.9666666667 | EM22: =IF(Q22=1,0,T22/Inputs!$E$149) -> 0.9666666667 | EN22: =IF(Q22=1,0,T22/Inputs!$E$150) -> 0.9666666667 | EO22: =IF(Inputs!$B$169=1, EK22*Inputs!$G$107*$J22,EK22*Inputs!$G$107) -> 64246.50962 | EP22: =IF(Inputs!$B$169=1,EL22*Inputs!$G$107*$J22,EL22*Inputs!$G$107) -> 64246.50962 | EQ22: =IF(Inputs!$B$169=1,EM22*Inputs!$G$107*$J22,EM22*Inputs!$G$107) -> 64246.50962 | ER22: =IF(Inputs!$B$169=1,EN22*Inputs!$G$107*$J22,EN22*Inputs!$G$107) -> 64246.50962 | ES22: =SUM(EL22:ER22)*Inputs!$E$136 -> 12849.44692 | ET22: =IF(Q22=1,0,IF(SUM(EK22:EN22)>0,T22*4*Inputs!$B$165,0)) -> 4640 | EU22: 3.866666667 | EV22: 274475.4854 | EX22: 0 | EY22: =IF(Inputs!$B$169=1,EX22*Inputs!$G$107*$J22,EX22*Inputs!$G$107) -> 0 | EZ22: =EY22*Inputs!$E$136 -> 0 | FA22: =IF(Q22=1,0,U22*Inputs!$B$165) -> 0 | FB22: 0 | FC22: 0 | FE22: 0 | FF22: =IF(Q22=1,O22/Inputs!$B$97,0) -> 0 | FG22: =IF(Inputs!$B$169=1,FE22*Inputs!$G$106*$J22,FE22*Inputs!$G$106) -> 0 | FH22: =IF(Inputs!$B$169=1,FF22*Inputs!$G$107*$J22,FF22*Inputs!$G$107) -> 0 | FI22: =FH22*Inputs!$E$136 -> 0 | FJ22: 0 | FK22: 0 | FX22: 1948184.539 | FY22: 163031.89 | FZ22: 274475.4854 | GA22: 0 | GB22: 0 | GC22: 2385691.914 | GD22: 7669.997739 | GE22: 641.85615 | GF22: 1080.609311 | GG22: 0 | GH22: 0 | GI22: 9392.4632
A23: =ADM!A23 -> 012010 | B23: =ADM!B23 -> 012 | C23: =ADM!C23 -> 010 | D23: =ADM!D23 -> Ashland Independent 012 - Paul G. Blazer High School 010 AADA | E23: =ADM!E23 -> Ashland Independent | F23: =ADM!F23 -> Paul G. Blazer High School | H23: 2100150 | I23: ASHLAND INDEP SCH DIST | J23: =IF(Inputs!$B$169<>1,1,K23) -> 1.102748571 | K23: 1.102748571 | L23: =SUM('Model Student Counts'!I23:N23) -> 0 | M23: =SUM('Model Student Counts'!O23:Q23) -> 0 | N23: =SUM('Model Student Counts'!R23:U23) -> 899.249 | O23: 899.249 | Q23: =IF(Inputs!$B$178=1,IF(O23<Inputs!$B$179,1,0),0) -> 0 | S23: =IF(O23=0,0,VLOOKUP(A23,'Special Student Counts'!$A$5:$Q$1377,4,FALSE)) -> 77 | T23: =IF(Inputs!$B$61=1,VLOOKUP(A23,'Special Student Counts'!$A$5:$Q$1377,13),VLOOKUP(A23,'Special Student Counts'!$A$5:$Q$1377,9,FALSE)) -> 401 | U23: =IF(O23=0,0,VLOOKUP(A23,'Special Student Counts'!$A$5:$Q$1377,6,FALSE)) -> 1 | W23: =IF(Q23=1,0,'Model Student Counts'!I23/Inputs!$B$83) -> 0 | X23: =IF(Q23=1,0,'Model Student Counts'!J23/Inputs!$B$84) -> 0 | Y23: =IF(Q23=1,0,'Model Student Counts'!K23/Inputs!$B$85) -> 0 | Z23: =IF(Q23=1,0,'Model Student Counts'!L23/Inputs!$B$86) -> 0 | AA23: =IF(Q23=1,0,'Model Student Counts'!M23/Inputs!$B$87) -> 0 | AB23: =IF(Q23=1,0,'Model Student Counts'!N23/Inputs!$B$88) -> 0 | AC23: =IF(Q23=1,0,'Model Student Counts'!O23/Inputs!$B$89) -> 0 | AD23: =IF(Q23=1,0,'Model Student Counts'!P23/Inputs!$B$90) -> 0 | AE23: =IF(Q23=1,0,'Model Student Counts'!Q23/Inputs!$B$91) -> 0 | AF23: =IF(Q23=1,0,'Model Student Counts'!R23/Inputs!$B$92) -> 9.32564 | AG23: =IF(Q23=1,0,'Model Student Counts'!S23/Inputs!$B$93) -> 9.043826667 | AH23: =IF(Q23=1,0,'Model Student Counts'!T23/Inputs!$B$94) -> 9.10188 | AI23: =IF(Q23=1,0,'Model Student Counts'!U23/Inputs!$B$95) -> 8.498613333 | AJ23: 0 | AK23: 0 | AL23: 35.96996 | AM23: 35.96996 | AO23: =IF(Q23=1,0,Inputs!$B$55*AJ23) -> 0 | AP23: =IF(Q23=1,0,Inputs!$B$56*AK23) -> 0 | AQ23: =IF(Q23=1,0,Inputs!$B$57*AL23) -> 11.98878767 | AR23: 11.98878767 | AT23: =IF(Q23=1,0,L23/Inputs!$C$140) -> 0 | AU23: =IF(Q23=1,0,M23/Inputs!$D$140) -> 0 | AV23: =IF(Q23=1,0,N23/Inputs!$E$140) -> 1.498748333 | AW23: 1.498748333 | AY23: =IF(Q23=1,0,(L23/Inputs!$C$134+M23/Inputs!$D$134+N23/Inputs!$E$134)) -> 4.496245 | AZ23: =IF(Q23=1,0,(L23/Inputs!$C$135+M23/Inputs!$D$135+N23/Inputs!$E$135)) -> 1.498748333 | BA23: =IF(Q23=1,0,L23/Inputs!$C$137+M23/Inputs!$D$137+N23/Inputs!$E$137) -> 3.596996 | BB23: =IF(Q23=1,0,L23/Inputs!$C$138+M23/Inputs!$D$138+N23/Inputs!$E$138) -> 4.496245 | BC23: 14.08823433 | BE23: =IF(Q23=1,0,L23/Inputs!$C$142) -> 0 | BF23: =IF(Q23=1,0,M23/Inputs!$D$142) -> 0 | BG23: =IF(Q23=1,0,N23/Inputs!$E$142) -> 1.498748333 | BH23: 1.498748333 | BI23: 0 | BJ23: 0 | BK23: =IF(Q23=1,0,N23/Inputs!$E$143) -> 1.498748333 | BL23: 1.498748333 | BM23: =IF(Q23=1,0,L23/Inputs!$C$144) -> 0 | BN23: =IF(Q23=1,0,M23/Inputs!$D$144) -> 0 | BO23: =IF(Q23=1,0,N23/Inputs!$E$144) -> 4.496245 | BP23: 4.496245 | BQ23: 7.493741667 | BS23: =IF(Inputs!$B$169=1,Inputs!$G$107*W23*$J23,W23*Inputs!$G$107) -> 0 | BT23: =IF(Inputs!$B$169=1,Inputs!$G$107*X23*$J23,X23*Inputs!$G$107) -> 0 | BU23: =IF(Inputs!$B$169=1,Inputs!$G$107*Y23*$J23,Y23*Inputs!$G$107) -> 0 | BV23: =IF(Inputs!$B$169=1,Inputs!$G$107*Z23*$J23,Z23*Inputs!$G$107) -> 0 | BW23: =IF(Inputs!$B$169=1,Inputs!$G$107*AA23*$J23,AA23*Inputs!$G$107) -> 0 | BX23: =IF(Inputs!$B$169=1,Inputs!$G$107*AB23*$J23,AB23*Inputs!$G$107) -> 0 | BY23: =IF(Inputs!$B$169=1,Inputs!$G$107*AC23*$J23,AC23*Inputs!$G$107) -> 0 | BZ23: =IF(Inputs!$B$169=1,Inputs!$G$107*AD23*$J23,AD23*Inputs!$G$107) -> 0 | CA23: =IF(Inputs!$B$169=1,Inputs!$G$107*AE23*$J23,AE23*Inputs!$G$107) -> 0 | CB23: =IF(Inputs!$B$169=1,Inputs!$G$107*AF23*$J23,AF23*Inputs!$G$107) -> 688568.2167 | CC23: =IF(Inputs!$B$169=1,Inputs!$G$107*AG23*$J23,AG23*Inputs!$G$107) -> 667760.2395 | CD23: =IF(Inputs!$B$169=1,Inputs!$G$107*AH23*$J23,AH23*Inputs!$G$107) -> 672046.6671 | CE23: =IF(Inputs!$B$169=1,Inputs!$G$107*AI23*$J23,AI23*Inputs!$G$107) -> 627503.8525 | CF23: 0 | CG23: 0 | CH23: 2655878.976 | CI23: 2655878.976 | CJ23: =SUM(CF23:CH23)*Inputs!$E$136 -> 132793.9488 | CK23: 2788672.925 | CM23: =IF(Inputs!$B$169=1,Inputs!$G$107*AO23*$J23,AO23*Inputs!$G$107) -> 0 | CN23: =IF(Inputs!$B$169=1,Inputs!$G$107*AP23*$J23,AP23*Inputs!$G$107) -> 0 | CO23: =IF(Inputs!$B$169=1,Inputs!$G$107*AQ23*$J23,AQ23*Inputs!$G$107) -> 885204.4626 | CP23: 885204.4626 | CQ23: =SUM(CM23:CO23)*Inputs!$E$136 -> 44260.22313 | CR23: 929464.6858 | CT23: =IF(Inputs!$B$169=1,AT23*Inputs!$G$110*$J23,AT23*Inputs!$G$110) -> 0 | CU23: =IF(Inputs!$B$169=1,AU23*Inputs!$G$110*$J23,AU23*Inputs!$G$110) -> 0 | CV23: =IF(Inputs!$B$169=1,AV23*Inputs!$G$110*$J23,AV23*Inputs!$G$110) -> 134731.5039 | CW23: 134731.5039 | CY23: =IF(Inputs!$B$169=1, AY23*Inputs!$G$107*$J23,AY23*Inputs!$G$107) -> 331984.872 | CZ23: =IF(Inputs!$B$169=1, AZ23*Inputs!$G$107*$J23,AZ23*Inputs!$G$107) -> 110661.624 | DA23: =IF(Inputs!$B$169=1, BA23*Inputs!$G$109*$J23,BA23*Inputs!$G$109) -> 303958.9719 | DB23: =IF(Q23=1,0,BB23*Inputs!$G$113) -> 112376.5427 | DC23: =SUM(CY23:CZ23)*Inputs!$E$136 -> 22132.3248 | DD23: 881114.3354 | DF23: =IF(Inputs!$B$169=1,BE23*Inputs!$G$105*$J23, BE23*Inputs!$G$105) -> 0 | DG23: =IF(Inputs!$B$169=1, BF23*Inputs!$G$105*$J23, BF23*Inputs!$G$105) -> 0 | DH23: =IF(Inputs!$B$169=1,BG23*Inputs!$G$105*$J23,BG23*Inputs!$G$105) -> 125309.6764 | DI23: 125309.6764 | DJ23: =IF(Inputs!$B$169=1, (BI23*SUM(Inputs!$D$106:$E$106)*$J23 + BI23*Inputs!$F$106), BI23*Inputs!$G$106) -> 0 | DK23: =IF(Inputs!$B$169=1, (BJ23*SUM(Inputs!$D$106:$E$106)*$J23 + BJ23*Inputs!$F$106), BJ23*Inputs!$G$106) -> 0 | DL23: =IF(Inputs!$B$169=1,BK23*Inputs!$G$106*$J23,BK23*Inputs!$G$106) -> 122907.0994 | DM23: 122907.0994 | DN23: =BM23*Inputs!$G$112 -> 0 | DO23: =BN23*Inputs!$G$112 -> 0 | DP23: =BO23*Inputs!$G$112 -> 167956.0467 | DQ23: 167956.0467 | DR23: 416172.8224 | DT23: =Inputs!$B$156*L23+Inputs!$B$157*M23+Inputs!$B$158*N23 -> 157368.575 | DU23: =Inputs!$B$159*O23 -> 224812.25 | DV23: =Inputs!$B$160*$O23 -> 22481.225 | DW23: =Inputs!$B$161*$O23 -> 89924.9 | DX23: =Inputs!$B$162*$O23 -> 22481.225 | DY23: =O23*Inputs!$B$163 -> 224812.25 | DZ23: 741880.425 | EB23: =O23/Inputs!$E$146 -> 5.994993333 | EC23: =O23/Inputs!$E$146 -> 5.994993333 | ED23: =IF(Inputs!$B$169=1,EB23*Inputs!$G$107*$J23,EB23*Inputs!$G$107) -> 442646.496 | EE23: =EC23*Inputs!$G$113 -> 149835.3903 | EF23: =ED23*Inputs!$E$136 -> 22132.3248 | EG23: =Inputs!$B$165*O23 -> 8992.49 | EH23: 11.98998667 | EI23: 623606.7011 | EK23: =IF(Q23=1,0,T23/Inputs!$E$147) -> 3.341666667 | EL23: =IF(Q23=1,0,T23/Inputs!$E$148) -> 3.341666667 | EM23: =IF(Q23=1,0,T23/Inputs!$E$149) -> 3.341666667 | EN23: =IF(Q23=1,0,T23/Inputs!$E$150) -> 3.341666667 | EO23: =IF(Inputs!$B$169=1, EK23*Inputs!$G$107*$J23,EK23*Inputs!$G$107) -> 246735.3938 | EP23: =IF(Inputs!$B$169=1,EL23*Inputs!$G$107*$J23,EL23*Inputs!$G$107) -> 246735.3938 | EQ23: =IF(Inputs!$B$169=1,EM23*Inputs!$G$107*$J23,EM23*Inputs!$G$107) -> 246735.3938 | ER23: =IF(Inputs!$B$169=1,EN23*Inputs!$G$107*$J23,EN23*Inputs!$G$107) -> 246735.3938 | ES23: =SUM(EL23:ER23)*Inputs!$E$136 -> 49347.58 | ET23: =IF(Q23=1,0,IF(SUM(EK23:EN23)>0,T23*4*Inputs!$B$165,0)) -> 16040 | EU23: 13.36666667 | EV23: 1052329.155 | EX23: 0.01 | EY23: =IF(Inputs!$B$169=1,EX23*Inputs!$G$107*$J23,EX23*Inputs!$G$107) -> 738.3602806 | EZ23: =EY23*Inputs!$E$136 -> 36.91801403 | FA23: =IF(Q23=1,0,U23*Inputs!$B$165) -> 10 | FB23: 0.01 | FC23: 785.2782946 | FE23: 0 | FF23: =IF(Q23=1,O23/Inputs!$B$97,0) -> 0 | FG23: =IF(Inputs!$B$169=1,FE23*Inputs!$G$106*$J23,FE23*Inputs!$G$106) -> 0 | FH23: =IF(Inputs!$B$169=1,FF23*Inputs!$G$107*$J23,FF23*Inputs!$G$107) -> 0 | FI23: =FH23*Inputs!$E$136 -> 0 | FJ23: 0 | FK23: 0 | FX23: 5892036.697 | FY23: 623606.7011 | FZ23: 1052329.155 | GA23: 785.2782946 | GB23: 0 | GC23: 7568757.832 | GD23: 6552.174867 | GE23: 693.4750009 | GF23: 1170.23111 | GG23: 0.8732601255 | GH23: 0 | GI23: 8416.754238
A24: =ADM!A24 -> 012011 | B24: =ADM!B24 -> 012 | C24: =ADM!C24 -> 011 | D24: =ADM!D24 -> Ashland Independent 012 - Ashland Central School 011 AADA | E24: =ADM!E24 -> Ashland Independent | F24: =ADM!F24 -> Ashland Central School | H24: 2100150 | I24: ASHLAND INDEP SCH DIST | J24: =IF(Inputs!$B$169<>1,1,K24) -> 1.102748571 | K24: 1.102748571 | L24: =SUM('Model Student Counts'!I24:N24) -> 0 | M24: =SUM('Model Student Counts'!O24:Q24) -> 2.87 | N24: =SUM('Model Student Counts'!R24:U24) -> 10.12 | O24: 12.99 | Q24: =IF(Inputs!$B$178=1,IF(O24<Inputs!$B$179,1,0),0) -> 1 | S24: =IF(O24=0,0,VLOOKUP(A24,'Special Student Counts'!$A$5:$Q$1377,4,FALSE)) -> 0 | T24: =IF(Inputs!$B$61=1,VLOOKUP(A24,'Special Student Counts'!$A$5:$Q$1377,13),VLOOKUP(A24,'Special Student Counts'!$A$5:$Q$1377,9,FALSE)) -> 0 | U24: =IF(O24=0,0,VLOOKUP(A24,'Special Student Counts'!$A$5:$Q$1377,6,FALSE)) -> 0 | W24: =IF(Q24=1,0,'Model Student Counts'!I24/Inputs!$B$83) -> 0 | X24: =IF(Q24=1,0,'Model Student Counts'!J24/Inputs!$B$84) -> 0 | Y24: =IF(Q24=1,0,'Model Student Counts'!K24/Inputs!$B$85) -> 0 | Z24: =IF(Q24=1,0,'Model Student Counts'!L24/Inputs!$B$86) -> 0 | AA24: =IF(Q24=1,0,'Model Student Counts'!M24/Inputs!$B$87) -> 0 | AB24: =IF(Q24=1,0,'Model Student Counts'!N24/Inputs!$B$88) -> 0 | AC24: =IF(Q24=1,0,'Model Student Counts'!O24/Inputs!$B$89) -> 0 | AD24: =IF(Q24=1,0,'Model Student Counts'!P24/Inputs!$B$90) -> 0 | AE24: =IF(Q24=1,0,'Model Student Counts'!Q24/Inputs!$B$91) -> 0 | AF24: =IF(Q24=1,0,'Model Student Counts'!R24/Inputs!$B$92) -> 0 | AG24: =IF(Q24=1,0,'Model Student Counts'!S24/Inputs!$B$93) -> 0 | AH24: =IF(Q24=1,0,'Model Student Counts'!T24/Inputs!$B$94) -> 0 | AI24: =IF(Q24=1,0,'Model Student Counts'!U24/Inputs!$B$95) -> 0 | AJ24: 0 | AK24: 0 | AL24: 0 | AM24: 0 | AO24: =IF(Q24=1,0,Inputs!$B$55*AJ24) -> 0 | AP24: =IF(Q24=1,0,Inputs!$B$56*AK24) -> 0 | AQ24: =IF(Q24=1,0,Inputs!$B$57*AL24) -> 0 | AR24: 0 | AT24: =IF(Q24=1,0,L24/Inputs!$C$140) -> 0 | AU24: =IF(Q24=1,0,M24/Inputs!$D$140) -> 0 | AV24: =IF(Q24=1,0,N24/Inputs!$E$140) -> 0 | AW24: 0 | AY24: =IF(Q24=1,0,(L24/Inputs!$C$134+M24/Inputs!$D$134+N24/Inputs!$E$134)) -> 0 | AZ24: =IF(Q24=1,0,(L24/Inputs!$C$135+M24/Inputs!$D$135+N24/Inputs!$E$135)) -> 0 | BA24: =IF(Q24=1,0,L24/Inputs!$C$137+M24/Inputs!$D$137+N24/Inputs!$E$137) -> 0 | BB24: =IF(Q24=1,0,L24/Inputs!$C$138+M24/Inputs!$D$138+N24/Inputs!$E$138) -> 0 | BC24: 0 | BE24: =IF(Q24=1,0,L24/Inputs!$C$142) -> 0 | BF24: =IF(Q24=1,0,M24/Inputs!$D$142) -> 0 | BG24: =IF(Q24=1,0,N24/Inputs!$E$142) -> 0 | BH24: 0 | BI24: 0 | BJ24: 0 | BK24: =IF(Q24=1,0,N24/Inputs!$E$143) -> 0 | BL24: 0 | BM24: =IF(Q24=1,0,L24/Inputs!$C$144) -> 0 | BN24: =IF(Q24=1,0,M24/Inputs!$D$144) -> 0 | BO24: =IF(Q24=1,0,N24/Inputs!$E$144) -> 0 | BP24: 0 | BQ24: 0 | BS24: =IF(Inputs!$B$169=1,Inputs!$G$107*W24*$J24,W24*Inputs!$G$107) -> 0 | BT24: =IF(Inputs!$B$169=1,Inputs!$G$107*X24*$J24,X24*Inputs!$G$107) -> 0 | BU24: =IF(Inputs!$B$169=1,Inputs!$G$107*Y24*$J24,Y24*Inputs!$G$107) -> 0 | BV24: =IF(Inputs!$B$169=1,Inputs!$G$107*Z24*$J24,Z24*Inputs!$G$107) -> 0 | BW24: =IF(Inputs!$B$169=1,Inputs!$G$107*AA24*$J24,AA24*Inputs!$G$107) -> 0 | BX24: =IF(Inputs!$B$169=1,Inputs!$G$107*AB24*$J24,AB24*Inputs!$G$107) -> 0 | BY24: =IF(Inputs!$B$169=1,Inputs!$G$107*AC24*$J24,AC24*Inputs!$G$107) -> 0 | BZ24: =IF(Inputs!$B$169=1,Inputs!$G$107*AD24*$J24,AD24*Inputs!$G$107) -> 0 | CA24: =IF(Inputs!$B$169=1,Inputs!$G$107*AE24*$J24,AE24*Inputs!$G$107) -> 0 | CB24: =IF(Inputs!$B$169=1,Inputs!$G$107*AF24*$J24,AF24*Inputs!$G$107) -> 0 | CC24: =IF(Inputs!$B$169=1,Inputs!$G$107*AG24*$J24,AG24*Inputs!$G$107) -> 0 | CD24: =IF(Inputs!$B$169=1,Inputs!$G$107*AH24*$J24,AH24*Inputs!$G$107) -> 0 | CE24: =IF(Inputs!$B$169=1,Inputs!$G$107*AI24*$J24,AI24*Inputs!$G$107) -> 0 | CF24: 0 | CG24: 0 | CH24: 0 | CI24: 0 | CJ24: =SUM(CF24:CH24)*Inputs!$E$136 -> 0 | CK24: 0 | CM24: =IF(Inputs!$B$169=1,Inputs!$G$107*AO24*$J24,AO24*Inputs!$G$107) -> 0 | CN24: =IF(Inputs!$B$169=1,Inputs!$G$107*AP24*$J24,AP24*Inputs!$G$107) -> 0 | CO24: =IF(Inputs!$B$169=1,Inputs!$G$107*AQ24*$J24,AQ24*Inputs!$G$107) -> 0 | CP24: 0 | CQ24: =SUM(CM24:CO24)*Inputs!$E$136 -> 0 | CR24: 0 | CT24: =IF(Inputs!$B$169=1,AT24*Inputs!$G$110*$J24,AT24*Inputs!$G$110) -> 0 | CU24: =IF(Inputs!$B$169=1,AU24*Inputs!$G$110*$J24,AU24*Inputs!$G$110) -> 0 | CV24: =IF(Inputs!$B$169=1,AV24*Inputs!$G$110*$J24,AV24*Inputs!$G$110) -> 0 | CW24: 0 | CY24: =IF(Inputs!$B$169=1, AY24*Inputs!$G$107*$J24,AY24*Inputs!$G$107) -> 0 | CZ24: =IF(Inputs!$B$169=1, AZ24*Inputs!$G$107*$J24,AZ24*Inputs!$G$107) -> 0 | DA24: =IF(Inputs!$B$169=1, BA24*Inputs!$G$109*$J24,BA24*Inputs!$G$109) -> 0 | DB24: =IF(Q24=1,0,BB24*Inputs!$G$113) -> 0 | DC24: =SUM(CY24:CZ24)*Inputs!$E$136 -> 0 | DD24: 0 | DF24: =IF(Inputs!$B$169=1,BE24*Inputs!$G$105*$J24, BE24*Inputs!$G$105) -> 0 | DG24: =IF(Inputs!$B$169=1, BF24*Inputs!$G$105*$J24, BF24*Inputs!$G$105) -> 0 | DH24: =IF(Inputs!$B$169=1,BG24*Inputs!$G$105*$J24,BG24*Inputs!$G$105) -> 0 | DI24: 0 | DJ24: =IF(Inputs!$B$169=1, (BI24*SUM(Inputs!$D$106:$E$106)*$J24 + BI24*Inputs!$F$106), BI24*Inputs!$G$106) -> 0 | DK24: =IF(Inputs!$B$169=1, (BJ24*SUM(Inputs!$D$106:$E$106)*$J24 + BJ24*Inputs!$F$106), BJ24*Inputs!$G$106) -> 0 | DL24: =IF(Inputs!$B$169=1,BK24*Inputs!$G$106*$J24,BK24*Inputs!$G$106) -> 0 | DM24: 0 | DN24: =BM24*Inputs!$G$112 -> 0 | DO24: =BN24*Inputs!$G$112 -> 0 | DP24: =BO24*Inputs!$G$112 -> 0 | DQ24: 0 | DR24: 0 | DT24: =Inputs!$B$156*L24+Inputs!$B$157*M24+Inputs!$B$158*N24 -> 2172.8 | DU24: =Inputs!$B$159*O24 -> 3247.5 | DV24: =Inputs!$B$160*$O24 -> 324.75 | DW24: =Inputs!$B$161*$O24 -> 1299 | DX24: =Inputs!$B$162*$O24 -> 324.75 | DY24: =O24*Inputs!$B$163 -> 3247.5 | DZ24: 10616.3 | EB24: =O24/Inputs!$E$146 -> 0.0866 | EC24: =O24/Inputs!$E$146 -> 0.0866 | ED24: =IF(Inputs!$B$169=1,EB24*Inputs!$G$107*$J24,EB24*Inputs!$G$107) -> 6394.20003 | EE24: =EC24*Inputs!$G$113 -> 2164.43023 | EF24: =ED24*Inputs!$E$136 -> 319.7100015 | EG24: =Inputs!$B$165*O24 -> 129.9 | EH24: 0.1732 | EI24: 9008.240261 | EK24: =IF(Q24=1,0,T24/Inputs!$E$147) -> 0 | EL24: =IF(Q24=1,0,T24/Inputs!$E$148) -> 0 | EM24: =IF(Q24=1,0,T24/Inputs!$E$149) -> 0 | EN24: =IF(Q24=1,0,T24/Inputs!$E$150) -> 0 | EO24: =IF(Inputs!$B$169=1, EK24*Inputs!$G$107*$J24,EK24*Inputs!$G$107) -> 0 | EP24: =IF(Inputs!$B$169=1,EL24*Inputs!$G$107*$J24,EL24*Inputs!$G$107) -> 0 | EQ24: =IF(Inputs!$B$169=1,EM24*Inputs!$G$107*$J24,EM24*Inputs!$G$107) -> 0 | ER24: =IF(Inputs!$B$169=1,EN24*Inputs!$G$107*$J24,EN24*Inputs!$G$107) -> 0 | ES24: =SUM(EL24:ER24)*Inputs!$E$136 -> 0 | ET24: =IF(Q24=1,0,IF(SUM(EK24:EN24)>0,T24*4*Inputs!$B$165,0)) -> 0 | EU24: 0 | EV24: 0 | EX24: 0 | EY24: =IF(Inputs!$B$169=1,EX24*Inputs!$G$107*$J24,EX24*Inputs!$G$107) -> 0 | EZ24: =EY24*Inputs!$E$136 -> 0 | FA24: =IF(Q24=1,0,U24*Inputs!$B$165) -> 0 | FB24: 0 | FC24: 0 | FE24: 1 | FF24: =IF(Q24=1,O24/Inputs!$B$97,0) -> 1.855714286 | FG24: =IF(Inputs!$B$169=1,FE24*Inputs!$G$106*$J24,FE24*Inputs!$G$106) -> 82006.49611 | FH24: =IF(Inputs!$B$169=1,FF24*Inputs!$G$107*$J24,FF24*Inputs!$G$107) -> 137018.5721 | FI24: =FH24*Inputs!$E$136 -> 6850.928603 | FJ24: 2.855714286 | FK24: 225875.9968 | FX24: 10616.3 | FY24: 9008.240261 | FZ24: 0 | GA24: 0 | GB24: 225875.9968 | GC24: 245500.537 | GD24: 817.2671286 | GE24: 693.4750009 | GF24: 0 | GG24: 0 | GH24: 17388.45241 | GI24: 18899.19454
A25: =ADM!A25 -> 012050 | B25: =ADM!B25 -> 012 | C25: =ADM!C25 -> 050 | D25: =ADM!D25 -> Ashland Independent 012 - George M. Verity Middle School 050 AADA | E25: =ADM!E25 -> Ashland Independent | F25: =ADM!F25 -> George M. Verity Middle School | H25: 2100150 | I25: ASHLAND INDEP SCH DIST | J25: =IF(Inputs!$B$169<>1,1,K25) -> 1.102748571 | K25: 1.102748571 | L25: =SUM('Model Student Counts'!I25:N25) -> 0 | M25: =SUM('Model Student Counts'!O25:Q25) -> 469.7376667 | N25: =SUM('Model Student Counts'!R25:U25) -> 0 | O25: 469.7376667 | Q25: =IF(Inputs!$B$178=1,IF(O25<Inputs!$B$179,1,0),0) -> 0 | S25: =IF(O25=0,0,VLOOKUP(A25,'Special Student Counts'!$A$5:$Q$1377,4,FALSE)) -> 54 | T25: =IF(Inputs!$B$61=1,VLOOKUP(A25,'Special Student Counts'!$A$5:$Q$1377,13),VLOOKUP(A25,'Special Student Counts'!$A$5:$Q$1377,9,FALSE)) -> 224 | U25: =IF(O25=0,0,VLOOKUP(A25,'Special Student Counts'!$A$5:$Q$1377,6,FALSE)) -> 1 | W25: =IF(Q25=1,0,'Model Student Counts'!I25/Inputs!$B$83) -> 0 | X25: =IF(Q25=1,0,'Model Student Counts'!J25/Inputs!$B$84) -> 0 | Y25: =IF(Q25=1,0,'Model Student Counts'!K25/Inputs!$B$85) -> 0 | Z25: =IF(Q25=1,0,'Model Student Counts'!L25/Inputs!$B$86) -> 0 | AA25: =IF(Q25=1,0,'Model Student Counts'!M25/Inputs!$B$87) -> 0 | AB25: =IF(Q25=1,0,'Model Student Counts'!N25/Inputs!$B$88) -> 0 | AC25: =IF(Q25=1,0,'Model Student Counts'!O25/Inputs!$B$89) -> 0 | AD25: =IF(Q25=1,0,'Model Student Counts'!P25/Inputs!$B$90) -> 9.394373333 | AE25: =IF(Q25=1,0,'Model Student Counts'!Q25/Inputs!$B$91) -> 9.395133333 | AF25: =IF(Q25=1,0,'Model Student Counts'!R25/Inputs!$B$92) -> 0 | AG25: =IF(Q25=1,0,'Model Student Counts'!S25/Inputs!$B$93) -> 0 | AH25: =IF(Q25=1,0,'Model Student Counts'!T25/Inputs!$B$94) -> 0 | AI25: =IF(Q25=1,0,'Model Student Counts'!U25/Inputs!$B$95) -> 0 | AJ25: 0 | AK25: 18.78950667 | AL25: 0 | AM25: 18.78950667 | AO25: =IF(Q25=1,0,Inputs!$B$55*AJ25) -> 0 | AP25: =IF(Q25=1,0,Inputs!$B$56*AK25) -> 3.757901333 | AQ25: =IF(Q25=1,0,Inputs!$B$57*AL25) -> 0 | AR25: 3.757901333 | AT25: =IF(Q25=1,0,L25/Inputs!$C$140) -> 0 | AU25: =IF(Q25=1,0,M25/Inputs!$D$140) -> 1.043861481 | AV25: =IF(Q25=1,0,N25/Inputs!$E$140) -> 0 | AW25: 1.043861481 | AY25: =IF(Q25=1,0,(L25/Inputs!$C$134+M25/Inputs!$D$134+N25/Inputs!$E$134)) -> 2.348688333 | AZ25: =IF(Q25=1,0,(L25/Inputs!$C$135+M25/Inputs!$D$135+N25/Inputs!$E$135)) -> 1.043861481 | BA25: =IF(Q25=1,0,L25/Inputs!$C$137+M25/Inputs!$D$137+N25/Inputs!$E$137) -> 1.878950667 | BB25: =IF(Q25=1,0,L25/Inputs!$C$138+M25/Inputs!$D$138+N25/Inputs!$E$138) -> 2.087722963 | BC25: 7.359223444 | BE25: =IF(Q25=1,0,L25/Inputs!$C$142) -> 0 | BF25: =IF(Q25=1,0,M25/Inputs!$D$142) -> 1.043861481 | BG25: =IF(Q25=1,0,N25/Inputs!$E$142) -> 0 | BH25: 1.043861481 | BI25: 0 | BJ25: 0 | BK25: =IF(Q25=1,0,N25/Inputs!$E$143) -> 0 | BL25: 0 | BM25: =IF(Q25=1,0,L25/Inputs!$C$144) -> 0 | BN25: =IF(Q25=1,0,M25/Inputs!$D$144) -> 2.087722963 | BO25: =IF(Q25=1,0,N25/Inputs!$E$144) -> 0 | BP25: 2.087722963 | BQ25: 3.131584444 | BS25: =IF(Inputs!$B$169=1,Inputs!$G$107*W25*$J25,W25*Inputs!$G$107) -> 0 | BT25: =IF(Inputs!$B$169=1,Inputs!$G$107*X25*$J25,X25*Inputs!$G$107) -> 0 | BU25: =IF(Inputs!$B$169=1,Inputs!$G$107*Y25*$J25,Y25*Inputs!$G$107) -> 0 | BV25: =IF(Inputs!$B$169=1,Inputs!$G$107*Z25*$J25,Z25*Inputs!$G$107) -> 0 | BW25: =IF(Inputs!$B$169=1,Inputs!$G$107*AA25*$J25,AA25*Inputs!$G$107) -> 0 | BX25: =IF(Inputs!$B$169=1,Inputs!$G$107*AB25*$J25,AB25*Inputs!$G$107) -> 0 | BY25: =IF(Inputs!$B$169=1,Inputs!$G$107*AC25*$J25,AC25*Inputs!$G$107) -> 0 | BZ25: =IF(Inputs!$B$169=1,Inputs!$G$107*AD25*$J25,AD25*Inputs!$G$107) -> 693643.213 | CA25: =IF(Inputs!$B$169=1,Inputs!$G$107*AE25*$J25,AE25*Inputs!$G$107) -> 693699.3284 | CB25: =IF(Inputs!$B$169=1,Inputs!$G$107*AF25*$J25,AF25*Inputs!$G$107) -> 0 | CC25: =IF(Inputs!$B$169=1,Inputs!$G$107*AG25*$J25,AG25*Inputs!$G$107) -> 0 | CD25: =IF(Inputs!$B$169=1,Inputs!$G$107*AH25*$J25,AH25*Inputs!$G$107) -> 0 | CE25: =IF(Inputs!$B$169=1,Inputs!$G$107*AI25*$J25,AI25*Inputs!$G$107) -> 0 | CF25: 0 | CG25: 1387342.541 | CH25: 0 | CI25: 1387342.541 | CJ25: =SUM(CF25:CH25)*Inputs!$E$136 -> 69367.12707 | CK25: 1456709.669 | CM25: =IF(Inputs!$B$169=1,Inputs!$G$107*AO25*$J25,AO25*Inputs!$G$107) -> 0 | CN25: =IF(Inputs!$B$169=1,Inputs!$G$107*AP25*$J25,AP25*Inputs!$G$107) -> 277468.5083 | CO25: =IF(Inputs!$B$169=1,Inputs!$G$107*AQ25*$J25,AQ25*Inputs!$G$107) -> 0 | CP25: 277468.5083 | CQ25: =SUM(CM25:CO25)*Inputs!$E$136 -> 13873.42541 | CR25: 291341.9337 | CT25: =IF(Inputs!$B$169=1,AT25*Inputs!$G$110*$J25,AT25*Inputs!$G$110) -> 0 | CU25: =IF(Inputs!$B$169=1,AU25*Inputs!$G$110*$J25,AU25*Inputs!$G$110) -> 93838.98829 | CV25: =IF(Inputs!$B$169=1,AV25*Inputs!$G$110*$J25,AV25*Inputs!$G$110) -> 0 | CW25: 93838.98829 | CY25: =IF(Inputs!$B$169=1, AY25*Inputs!$G$107*$J25,AY25*Inputs!$G$107) -> 173417.8177 | CZ25: =IF(Inputs!$B$169=1, AZ25*Inputs!$G$107*$J25,AZ25*Inputs!$G$107) -> 77074.58564 | DA25: =IF(Inputs!$B$169=1, BA25*Inputs!$G$109*$J25,BA25*Inputs!$G$109) -> 158778.0228 | DB25: =IF(Q25=1,0,BB25*Inputs!$G$113) -> 52179.33826 | DC25: =SUM(CY25:CZ25)*Inputs!$E$136 -> 12524.62017 | DD25: 473974.3846 | DF25: =IF(Inputs!$B$169=1,BE25*Inputs!$G$105*$J25, BE25*Inputs!$G$105) -> 0 | DG25: =IF(Inputs!$B$169=1, BF25*Inputs!$G$105*$J25, BF25*Inputs!$G$105) -> 87276.79057 | DH25: =IF(Inputs!$B$169=1,BG25*Inputs!$G$105*$J25,BG25*Inputs!$G$105) -> 0 | DI25: 87276.79057 | DJ25: =IF(Inputs!$B$169=1, (BI25*SUM(Inputs!$D$106:$E$106)*$J25 + BI25*Inputs!$F$106), BI25*Inputs!$G$106) -> 0 | DK25: =IF(Inputs!$B$169=1, (BJ25*SUM(Inputs!$D$106:$E$106)*$J25 + BJ25*Inputs!$F$106), BJ25*Inputs!$G$106) -> 0 | DL25: =IF(Inputs!$B$169=1,BK25*Inputs!$G$106*$J25,BK25*Inputs!$G$106) -> 0 | DM25: 0 | DN25: =BM25*Inputs!$G$112 -> 0 | DO25: =BN25*Inputs!$G$112 -> 77986.34092 | DP25: =BO25*Inputs!$G$112 -> 0 | DQ25: 77986.34092 | DR25: 165263.1315 | DT25: =Inputs!$B$156*L25+Inputs!$B$157*M25+Inputs!$B$158*N25 -> 65763.27333 | DU25: =Inputs!$B$159*O25 -> 117434.4167 | DV25: =Inputs!$B$160*$O25 -> 11743.44167 | DW25: =Inputs!$B$161*$O25 -> 46973.76667 | DX25: =Inputs!$B$162*$O25 -> 11743.44167 | DY25: =O25*Inputs!$B$163 -> 117434.4167 | DZ25: 371092.7567 | EB25: =O25/Inputs!$E$146 -> 3.131584444 | EC25: =O25/Inputs!$E$146 -> 3.131584444 | ED25: =IF(Inputs!$B$169=1,EB25*Inputs!$G$107*$J25,EB25*Inputs!$G$107) -> 231223.7569 | EE25: =EC25*Inputs!$G$113 -> 78269.00738 | EF25: =ED25*Inputs!$E$136 -> 11561.18785 | EG25: =Inputs!$B$165*O25 -> 4697.376667 | EH25: 6.263168889 | EI25: 325751.3288 | EK25: =IF(Q25=1,0,T25/Inputs!$E$147) -> 1.866666667 | EL25: =IF(Q25=1,0,T25/Inputs!$E$148) -> 1.866666667 | EM25: =IF(Q25=1,0,T25/Inputs!$E$149) -> 1.866666667 | EN25: =IF(Q25=1,0,T25/Inputs!$E$150) -> 1.866666667 | EO25: =IF(Inputs!$B$169=1, EK25*Inputs!$G$107*$J25,EK25*Inputs!$G$107) -> 137827.2524 | EP25: =IF(Inputs!$B$169=1,EL25*Inputs!$G$107*$J25,EL25*Inputs!$G$107) -> 137827.2524 | EQ25: =IF(Inputs!$B$169=1,EM25*Inputs!$G$107*$J25,EM25*Inputs!$G$107) -> 137827.2524 | ER25: =IF(Inputs!$B$169=1,EN25*Inputs!$G$107*$J25,EN25*Inputs!$G$107) -> 137827.2524 | ES25: =SUM(EL25:ER25)*Inputs!$E$136 -> 27565.73048 | ET25: =IF(Q25=1,0,IF(SUM(EK25:EN25)>0,T25*4*Inputs!$B$165,0)) -> 8960 | EU25: 7.466666667 | EV25: 587834.74 | EX25: 0.01 | EY25: =IF(Inputs!$B$169=1,EX25*Inputs!$G$107*$J25,EX25*Inputs!$G$107) -> 738.3602806 | EZ25: =EY25*Inputs!$E$136 -> 36.91801403 | FA25: =IF(Q25=1,0,U25*Inputs!$B$165) -> 10 | FB25: 0.01 | FC25: 785.2782946 | FE25: 0 | FF25: =IF(Q25=1,O25/Inputs!$B$97,0) -> 0 | FG25: =IF(Inputs!$B$169=1,FE25*Inputs!$G$106*$J25,FE25*Inputs!$G$106) -> 0 | FH25: =IF(Inputs!$B$169=1,FF25*Inputs!$G$107*$J25,FF25*Inputs!$G$107) -> 0 | FI25: =FH25*Inputs!$E$136 -> 0 | FJ25: 0 | FK25: 0 | FX25: 2852220.863 | FY25: 325751.3288 | FZ25: 587834.74 | GA25: 785.2782946 | GB25: 0 | GC25: 3766592.21 | GD25: 6071.94412 | GE25: 693.4750009 | GF25: 1251.410695 | GG25: 1.671737973 | GH25: 0 | GI25: 8018.501554
A26: =ADM!A26 -> 012070 | B26: =ADM!B26 -> 012 | C26: =ADM!C26 -> 070 | D26: =ADM!D26 -> Ashland Independent 012 - Crabbe Elementary School 070 AADA | E26: =ADM!E26 -> Ashland Independent | F26: =ADM!F26 -> Crabbe Elementary School | H26: 2100150 | I26: ASHLAND INDEP SCH DIST | J26: =IF(Inputs!$B$169<>1,1,K26) -> 1.102748571 | K26: 1.102748571 | L26: =SUM('Model Student Counts'!I26:N26) -> 333.38 | M26: =SUM('Model Student Counts'!O26:Q26) -> 47.41 | N26: =SUM('Model Student Counts'!R26:U26) -> 0 | O26: 380.79 | Q26: =IF(Inputs!$B$178=1,IF(O26<Inputs!$B$179,1,0),0) -> 0 | S26: =IF(O26=0,0,VLOOKUP(A26,'Special Student Counts'!$A$5:$Q$1377,4,FALSE)) -> 73 | T26: =IF(Inputs!$B$61=1,VLOOKUP(A26,'Special Student Counts'!$A$5:$Q$1377,13),VLOOKUP(A26,'Special Student Counts'!$A$5:$Q$1377,9,FALSE)) -> 343 | U26: =IF(O26=0,0,VLOOKUP(A26,'Special Student Counts'!$A$5:$Q$1377,6,FALSE)) -> 1 | W26: =IF(Q26=1,0,'Model Student Counts'!I26/Inputs!$B$83) -> 4.268 | X26: =IF(Q26=1,0,'Model Student Counts'!J26/Inputs!$B$84) -> 4.929333333 | Y26: =IF(Q26=1,0,'Model Student Counts'!K26/Inputs!$B$85) -> 3.562 | Z26: =IF(Q26=1,0,'Model Student Counts'!L26/Inputs!$B$86) -> 3.772666667 | AA26: =IF(Q26=1,0,'Model Student Counts'!M26/Inputs!$B$87) -> 1.7896 | AB26: =IF(Q26=1,0,'Model Student Counts'!N26/Inputs!$B$88) -> 1.6264 | AC26: =IF(Q26=1,0,'Model Student Counts'!O26/Inputs!$B$89) -> 1.8964 | AD26: =IF(Q26=1,0,'Model Student Counts'!P26/Inputs!$B$90) -> 0 | AE26: =IF(Q26=1,0,'Model Student Counts'!Q26/Inputs!$B$91) -> 0 | AF26: =IF(Q26=1,0,'Model Student Counts'!R26/Inputs!$B$92) -> 0 | AG26: =IF(Q26=1,0,'Model Student Counts'!S26/Inputs!$B$93) -> 0 | AH26: =IF(Q26=1,0,'Model Student Counts'!T26/Inputs!$B$94) -> 0 | AI26: =IF(Q26=1,0,'Model Student Counts'!U26/Inputs!$B$95) -> 0 | AJ26: 19.948 | AK26: 1.8964 | AL26: 0 | AM26: 21.8444 | AO26: =IF(Q26=1,0,Inputs!$B$55*AJ26) -> 3.9896 | AP26: =IF(Q26=1,0,Inputs!$B$56*AK26) -> 0.37928 | AQ26: =IF(Q26=1,0,Inputs!$B$57*AL26) -> 0 | AR26: 4.36888 | AT26: =IF(Q26=1,0,L26/Inputs!$C$140) -> 0.7408444444 | AU26: =IF(Q26=1,0,M26/Inputs!$D$140) -> 0.1053555556 | AV26: =IF(Q26=1,0,N26/Inputs!$E$140) -> 0 | AW26: 0.8462 | AY26: =IF(Q26=1,0,(L26/Inputs!$C$134+M26/Inputs!$D$134+N26/Inputs!$E$134)) -> 1.90395 | AZ26: =IF(Q26=1,0,(L26/Inputs!$C$135+M26/Inputs!$D$135+N26/Inputs!$E$135)) -> 0.8462 | BA26: =IF(Q26=1,0,L26/Inputs!$C$137+M26/Inputs!$D$137+N26/Inputs!$E$137) -> 0.9304844444 | BB26: =IF(Q26=1,0,L26/Inputs!$C$138+M26/Inputs!$D$138+N26/Inputs!$E$138) -> 1.6924 | BC26: 5.373034444 | BE26: =IF(Q26=1,0,L26/Inputs!$C$142) -> 0.7408444444 | BF26: =IF(Q26=1,0,M26/Inputs!$D$142) -> 0.1053555556 | BG26: =IF(Q26=1,0,N26/Inputs!$E$142) -> 0 | BH26: 0.8462 | BI26: 0 | BJ26: 0 | BK26: =IF(Q26=1,0,N26/Inputs!$E$143) -> 0 | BL26: 0 | BM26: =IF(Q26=1,0,L26/Inputs!$C$144) -> 1.481688889 | BN26: =IF(Q26=1,0,M26/Inputs!$D$144) -> 0.2107111111 | BO26: =IF(Q26=1,0,N26/Inputs!$E$144) -> 0 | BP26: 1.6924 | BQ26: 2.5386 | BS26: =IF(Inputs!$B$169=1,Inputs!$G$107*W26*$J26,W26*Inputs!$G$107) -> 315132.1678 | BT26: =IF(Inputs!$B$169=1,Inputs!$G$107*X26*$J26,X26*Inputs!$G$107) -> 363962.3943 | BU26: =IF(Inputs!$B$169=1,Inputs!$G$107*Y26*$J26,Y26*Inputs!$G$107) -> 263003.9319 | BV26: =IF(Inputs!$B$169=1,Inputs!$G$107*Z26*$J26,Z26*Inputs!$G$107) -> 278558.7219 | BW26: =IF(Inputs!$B$169=1,Inputs!$G$107*AA26*$J26,AA26*Inputs!$G$107) -> 132136.9558 | BX26: =IF(Inputs!$B$169=1,Inputs!$G$107*AB26*$J26,AB26*Inputs!$G$107) -> 120086.916 | BY26: =IF(Inputs!$B$169=1,Inputs!$G$107*AC26*$J26,AC26*Inputs!$G$107) -> 140022.6436 | BZ26: =IF(Inputs!$B$169=1,Inputs!$G$107*AD26*$J26,AD26*Inputs!$G$107) -> 0 | CA26: =IF(Inputs!$B$169=1,Inputs!$G$107*AE26*$J26,AE26*Inputs!$G$107) -> 0 | CB26: =IF(Inputs!$B$169=1,Inputs!$G$107*AF26*$J26,AF26*Inputs!$G$107) -> 0 | CC26: =IF(Inputs!$B$169=1,Inputs!$G$107*AG26*$J26,AG26*Inputs!$G$107) -> 0 | CD26: =IF(Inputs!$B$169=1,Inputs!$G$107*AH26*$J26,AH26*Inputs!$G$107) -> 0 | CE26: =IF(Inputs!$B$169=1,Inputs!$G$107*AI26*$J26,AI26*Inputs!$G$107) -> 0 | CF26: 1472881.088 | CG26: 140022.6436 | CH26: 0 | CI26: 1612903.731 | CJ26: =SUM(CF26:CH26)*Inputs!$E$136 -> 80645.18657 | CK26: 1693548.918 | CM26: =IF(Inputs!$B$169=1,Inputs!$G$107*AO26*$J26,AO26*Inputs!$G$107) -> 294576.2175 | CN26: =IF(Inputs!$B$169=1,Inputs!$G$107*AP26*$J26,AP26*Inputs!$G$107) -> 28004.52872 | CO26: =IF(Inputs!$B$169=1,Inputs!$G$107*AQ26*$J26,AQ26*Inputs!$G$107) -> 0 | CP26: 322580.7463 | CQ26: =SUM(CM26:CO26)*Inputs!$E$136 -> 16129.03731 | CR26: 338709.7836 | CT26: =IF(Inputs!$B$169=1,AT26*Inputs!$G$110*$J26,AT26*Inputs!$G$110) -> 66598.96393 | CU26: =IF(Inputs!$B$169=1,AU26*Inputs!$G$110*$J26,AU26*Inputs!$G$110) -> 9471.044693 | CV26: =IF(Inputs!$B$169=1,AV26*Inputs!$G$110*$J26,AV26*Inputs!$G$110) -> 0 | CW26: 76070.00862 | CY26: =IF(Inputs!$B$169=1, AY26*Inputs!$G$107*$J26,AY26*Inputs!$G$107) -> 140580.1056 | CZ26: =IF(Inputs!$B$169=1, AZ26*Inputs!$G$107*$J26,AZ26*Inputs!$G$107) -> 62480.04694 | DA26: =IF(Inputs!$B$169=1, BA26*Inputs!$G$109*$J26,BA26*Inputs!$G$109) -> 78629.24928 | DB26: =IF(Q26=1,0,BB26*Inputs!$G$113) -> 42298.86514 | DC26: =SUM(CY26:CZ26)*Inputs!$E$136 -> 10153.00763 | DD26: 334141.2746 | DF26: =IF(Inputs!$B$169=1,BE26*Inputs!$G$105*$J26, BE26*Inputs!$G$105) -> 61941.67193 | DG26: =IF(Inputs!$B$169=1, BF26*Inputs!$G$105*$J26, BF26*Inputs!$G$105) -> 8808.730776 | DH26: =IF(Inputs!$B$169=1,BG26*Inputs!$G$105*$J26,BG26*Inputs!$G$105) -> 0 | DI26: 70750.4027 | DJ26: =IF(Inputs!$B$169=1, (BI26*SUM(Inputs!$D$106:$E$106)*$J26 + BI26*Inputs!$F$106), BI26*Inputs!$G$106) -> 0 | DK26: =IF(Inputs!$B$169=1, (BJ26*SUM(Inputs!$D$106:$E$106)*$J26 + BJ26*Inputs!$F$106), BJ26*Inputs!$G$106) -> 0 | DL26: =IF(Inputs!$B$169=1,BK26*Inputs!$G$106*$J26,BK26*Inputs!$G$106) -> 0 | DM26: 0 | DN26: =BM26*Inputs!$G$112 -> 55348.09784 | DO26: =BN26*Inputs!$G$112 -> 7871.058008 | DP26: =BO26*Inputs!$G$112 -> 0 | DQ26: 63219.15585 | DR26: 133969.5586 | DT26: =Inputs!$B$156*L26+Inputs!$B$157*M26+Inputs!$B$158*N26 -> 53310.6 | DU26: =Inputs!$B$159*O26 -> 95197.5 | DV26: =Inputs!$B$160*$O26 -> 9519.75 | DW26: =Inputs!$B$161*$O26 -> 38079 | DX26: =Inputs!$B$162*$O26 -> 9519.75 | DY26: =O26*Inputs!$B$163 -> 95197.5 | DZ26: 300824.1 | EB26: =O26/Inputs!$E$146 -> 2.5386 | EC26: =O26/Inputs!$E$146 -> 2.5386 | ED26: =IF(Inputs!$B$169=1,EB26*Inputs!$G$107*$J26,EB26*Inputs!$G$107) -> 187440.1408 | EE26: =EC26*Inputs!$G$113 -> 63448.29771 | EF26: =ED26*Inputs!$E$136 -> 9372.007041 | EG26: =Inputs!$B$165*O26 -> 3807.9 | EH26: 5.0772 | EI26: 264068.3456 | EK26: =IF(Q26=1,0,T26/Inputs!$E$147) -> 2.858333333 | EL26: =IF(Q26=1,0,T26/Inputs!$E$148) -> 2.858333333 | EM26: =IF(Q26=1,0,T26/Inputs!$E$149) -> 2.858333333 | EN26: =IF(Q26=1,0,T26/Inputs!$E$150) -> 2.858333333 | EO26: =IF(Inputs!$B$169=1, EK26*Inputs!$G$107*$J26,EK26*Inputs!$G$107) -> 211047.9802 | EP26: =IF(Inputs!$B$169=1,EL26*Inputs!$G$107*$J26,EL26*Inputs!$G$107) -> 211047.9802 | EQ26: =IF(Inputs!$B$169=1,EM26*Inputs!$G$107*$J26,EM26*Inputs!$G$107) -> 211047.9802 | ER26: =IF(Inputs!$B$169=1,EN26*Inputs!$G$107*$J26,EN26*Inputs!$G$107) -> 211047.9802 | ES26: =SUM(EL26:ER26)*Inputs!$E$136 -> 42210.02479 | ET26: =IF(Q26=1,0,IF(SUM(EK26:EN26)>0,T26*4*Inputs!$B$165,0)) -> 13720 | EU26: 11.43333333 | EV26: 900121.9456 | EX26: 0.01 | EY26: =IF(Inputs!$B$169=1,EX26*Inputs!$G$107*$J26,EX26*Inputs!$G$107) -> 738.3602806 | EZ26: =EY26*Inputs!$E$136 -> 36.91801403 | FA26: =IF(Q26=1,0,U26*Inputs!$B$165) -> 10 | FB26: 0.01 | FC26: 785.2782946 | FE26: 0 | FF26: =IF(Q26=1,O26/Inputs!$B$97,0) -> 0 | FG26: =IF(Inputs!$B$169=1,FE26*Inputs!$G$106*$J26,FE26*Inputs!$G$106) -> 0 | FH26: =IF(Inputs!$B$169=1,FF26*Inputs!$G$107*$J26,FF26*Inputs!$G$107) -> 0 | FI26: =FH26*Inputs!$E$136 -> 0 | FJ26: 0 | FK26: 0 | FX26: 2877263.643 | FY26: 264068.3456 | FZ26: 900121.9456 | GA26: 785.2782946 | GB26: 0 | GC26: 4042239.213 | GD26: 7556.037825 | GE26: 693.4750009 | GF26: 2363.827689 | GG26: 2.062234551 | GH26: 0 | GI26: 10615.40275
A27: =ADM!A27 -> 012080 | B27: =ADM!B27 -> 012 | C27: =ADM!C27 -> 080 | D27: =ADM!D27 -> Ashland Independent 012 - Hager Elementary School 080 AADA | E27: =ADM!E27 -> Ashland Independent | F27: =ADM!F27 -> Hager Elementary School | H27: 2100150 | I27: ASHLAND INDEP SCH DIST | J27: =IF(Inputs!$B$169<>1,1,K27) -> 1.102748571 | K27: 1.102748571 | L27: =SUM('Model Student Counts'!I27:N27) -> 287.48 | M27: =SUM('Model Student Counts'!O27:Q27) -> 49.87 | N27: =SUM('Model Student Counts'!R27:U27) -> 0 | O27: 337.35 | Q27: =IF(Inputs!$B$178=1,IF(O27<Inputs!$B$179,1,0),0) -> 0 | S27: =IF(O27=0,0,VLOOKUP(A27,'Special Student Counts'!$A$5:$Q$1377,4,FALSE)) -> 44 | T27: =IF(Inputs!$B$61=1,VLOOKUP(A27,'Special Student Counts'!$A$5:$Q$1377,13),VLOOKUP(A27,'Special Student Counts'!$A$5:$Q$1377,9,FALSE)) -> 150 | U27: =IF(O27=0,0,VLOOKUP(A27,'Special Student Counts'!$A$5:$Q$1377,6,FALSE)) -> 0 | W27: =IF(Q27=1,0,'Model Student Counts'!I27/Inputs!$B$83) -> 3.044 | X27: =IF(Q27=1,0,'Model Student Counts'!J27/Inputs!$B$84) -> 3.459333333 | Y27: =IF(Q27=1,0,'Model Student Counts'!K27/Inputs!$B$85) -> 2.737333333 | Z27: =IF(Q27=1,0,'Model Student Counts'!L27/Inputs!$B$86) -> 3.172 | AA27: =IF(Q27=1,0,'Model Student Counts'!M27/Inputs!$B$87) -> 1.89 | AB27: =IF(Q27=1,0,'Model Student Counts'!N27/Inputs!$B$88) -> 2.1616 | AC27: =IF(Q27=1,0,'Model Student Counts'!O27/Inputs!$B$89) -> 1.9948 | AD27: =IF(Q27=1,0,'Model Student Counts'!P27/Inputs!$B$90) -> 0 | AE27: =IF(Q27=1,0,'Model Student Counts'!Q27/Inputs!$B$91) -> 0 | AF27: =IF(Q27=1,0,'Model Student Counts'!R27/Inputs!$B$92) -> 0 | AG27: =IF(Q27=1,0,'Model Student Counts'!S27/Inputs!$B$93) -> 0 | AH27: =IF(Q27=1,0,'Model Student Counts'!T27/Inputs!$B$94) -> 0 | AI27: =IF(Q27=1,0,'Model Student Counts'!U27/Inputs!$B$95) -> 0 | AJ27: 16.46426667 | AK27: 1.9948 | AL27: 0 | AM27: 18.45906667 | AO27: =IF(Q27=1,0,Inputs!$B$55*AJ27) -> 3.292853333 | AP27: =IF(Q27=1,0,Inputs!$B$56*AK27) -> 0.39896 | AQ27: =IF(Q27=1,0,Inputs!$B$57*AL27) -> 0 | AR27: 3.691813333 | AT27: =IF(Q27=1,0,L27/Inputs!$C$140) -> 0.6388444444 | AU27: =IF(Q27=1,0,M27/Inputs!$D$140) -> 0.1108222222 | AV27: =IF(Q27=1,0,N27/Inputs!$E$140) -> 0 | AW27: 0.7496666667 | AY27: =IF(Q27=1,0,(L27/Inputs!$C$134+M27/Inputs!$D$134+N27/Inputs!$E$134)) -> 1.68675 | AZ27: =IF(Q27=1,0,(L27/Inputs!$C$135+M27/Inputs!$D$135+N27/Inputs!$E$135)) -> 0.7496666667 | BA27: =IF(Q27=1,0,L27/Inputs!$C$137+M27/Inputs!$D$137+N27/Inputs!$E$137) -> 0.8383244444 | BB27: =IF(Q27=1,0,L27/Inputs!$C$138+M27/Inputs!$D$138+N27/Inputs!$E$138) -> 1.499333333 | BC27: 4.774074444 | BE27: =IF(Q27=1,0,L27/Inputs!$C$142) -> 0.6388444444 | BF27: =IF(Q27=1,0,M27/Inputs!$D$142) -> 0.1108222222 | BG27: =IF(Q27=1,0,N27/Inputs!$E$142) -> 0 | BH27: 0.7496666667 | BI27: 0 | BJ27: 0 | BK27: =IF(Q27=1,0,N27/Inputs!$E$143) -> 0 | BL27: 0 | BM27: =IF(Q27=1,0,L27/Inputs!$C$144) -> 1.277688889 | BN27: =IF(Q27=1,0,M27/Inputs!$D$144) -> 0.2216444444 | BO27: =IF(Q27=1,0,N27/Inputs!$E$144) -> 0 | BP27: 1.499333333 | BQ27: 2.249 | BS27: =IF(Inputs!$B$169=1,Inputs!$G$107*W27*$J27,W27*Inputs!$G$107) -> 224756.8694 | BT27: =IF(Inputs!$B$169=1,Inputs!$G$107*X27*$J27,X27*Inputs!$G$107) -> 255423.4331 | BU27: =IF(Inputs!$B$169=1,Inputs!$G$107*Y27*$J27,Y27*Inputs!$G$107) -> 202113.8208 | BV27: =IF(Inputs!$B$169=1,Inputs!$G$107*Z27*$J27,Z27*Inputs!$G$107) -> 234207.881 | BW27: =IF(Inputs!$B$169=1,Inputs!$G$107*AA27*$J27,AA27*Inputs!$G$107) -> 139550.093 | BX27: =IF(Inputs!$B$169=1,Inputs!$G$107*AB27*$J27,AB27*Inputs!$G$107) -> 159603.9583 | BY27: =IF(Inputs!$B$169=1,Inputs!$G$107*AC27*$J27,AC27*Inputs!$G$107) -> 147288.1088 | BZ27: =IF(Inputs!$B$169=1,Inputs!$G$107*AD27*$J27,AD27*Inputs!$G$107) -> 0 | CA27: =IF(Inputs!$B$169=1,Inputs!$G$107*AE27*$J27,AE27*Inputs!$G$107) -> 0 | CB27: =IF(Inputs!$B$169=1,Inputs!$G$107*AF27*$J27,AF27*Inputs!$G$107) -> 0 | CC27: =IF(Inputs!$B$169=1,Inputs!$G$107*AG27*$J27,AG27*Inputs!$G$107) -> 0 | CD27: =IF(Inputs!$B$169=1,Inputs!$G$107*AH27*$J27,AH27*Inputs!$G$107) -> 0 | CE27: =IF(Inputs!$B$169=1,Inputs!$G$107*AI27*$J27,AI27*Inputs!$G$107) -> 0 | CF27: 1215656.056 | CG27: 147288.1088 | CH27: 0 | CI27: 1362944.164 | CJ27: =SUM(CF27:CH27)*Inputs!$E$136 -> 68147.20822 | CK27: 1431091.373 | CM27: =IF(Inputs!$B$169=1,Inputs!$G$107*AO27*$J27,AO27*Inputs!$G$107) -> 243131.2111 | CN27: =IF(Inputs!$B$169=1,Inputs!$G$107*AP27*$J27,AP27*Inputs!$G$107) -> 29457.62175 | CO27: =IF(Inputs!$B$169=1,Inputs!$G$107*AQ27*$J27,AQ27*Inputs!$G$107) -> 0 | CP27: 272588.8329 | CQ27: =SUM(CM27:CO27)*Inputs!$E$136 -> 13629.44164 | CR27: 286218.2745 | CT27: =IF(Inputs!$B$169=1,AT27*Inputs!$G$110*$J27,AT27*Inputs!$G$110) -> 57429.57031 | CU27: =IF(Inputs!$B$169=1,AU27*Inputs!$G$110*$J27,AU27*Inputs!$G$110) -> 9962.476247 | CV27: =IF(Inputs!$B$169=1,AV27*Inputs!$G$110*$J27,AV27*Inputs!$G$110) -> 0 | CW27: 67392.04656 | CY27: =IF(Inputs!$B$169=1, AY27*Inputs!$G$107*$J27,AY27*Inputs!$G$107) -> 124542.9203 | CZ27: =IF(Inputs!$B$169=1, AZ27*Inputs!$G$107*$J27,AZ27*Inputs!$G$107) -> 55352.40903 | DA27: =IF(Inputs!$B$169=1, BA27*Inputs!$G$109*$J27,BA27*Inputs!$G$109) -> 70841.40107 | DB27: =IF(Q27=1,0,BB27*Inputs!$G$113) -> 37473.46872 | DC27: =SUM(CY27:CZ27)*Inputs!$E$136 -> 8994.766468 | DD27: 297204.9656 | DF27: =IF(Inputs!$B$169=1,BE27*Inputs!$G$105*$J27, BE27*Inputs!$G$105) -> 53413.49765 | DG27: =IF(Inputs!$B$169=1, BF27*Inputs!$G$105*$J27, BF27*Inputs!$G$105) -> 9265.796326 | DH27: =IF(Inputs!$B$169=1,BG27*Inputs!$G$105*$J27,BG27*Inputs!$G$105) -> 0 | DI27: 62679.29397 | DJ27: =IF(Inputs!$B$169=1, (BI27*SUM(Inputs!$D$106:$E$106)*$J27 + BI27*Inputs!$F$106), BI27*Inputs!$G$106) -> 0 | DK27: =IF(Inputs!$B$169=1, (BJ27*SUM(Inputs!$D$106:$E$106)*$J27 + BJ27*Inputs!$F$106), BJ27*Inputs!$G$106) -> 0 | DL27: =IF(Inputs!$B$169=1,BK27*Inputs!$G$106*$J27,BK27*Inputs!$G$106) -> 0 | DM27: 0 | DN27: =BM27*Inputs!$G$112 -> 47727.73162 | DO27: =BN27*Inputs!$G$112 -> 8279.469793 | DP27: =BO27*Inputs!$G$112 -> 0 | DQ27: 56007.20142 | DR27: 118686.4954 | DT27: =Inputs!$B$156*L27+Inputs!$B$157*M27+Inputs!$B$158*N27 -> 47229 | DU27: =Inputs!$B$159*O27 -> 84337.5 | DV27: =Inputs!$B$160*$O27 -> 8433.75 | DW27: =Inputs!$B$161*$O27 -> 33735 | DX27: =Inputs!$B$162*$O27 -> 8433.75 | DY27: =O27*Inputs!$B$163 -> 84337.5 | DZ27: 266506.5 | EB27: =O27/Inputs!$E$146 -> 2.249 | EC27: =O27/Inputs!$E$146 -> 2.249 | ED27: =IF(Inputs!$B$169=1,EB27*Inputs!$G$107*$J27,EB27*Inputs!$G$107) -> 166057.2271 | EE27: =EC27*Inputs!$G$113 -> 56210.20309 | EF27: =ED27*Inputs!$E$136 -> 8302.861355 | EG27: =Inputs!$B$165*O27 -> 3373.5 | EH27: 4.498 | EI27: 233943.7915 | EK27: =IF(Q27=1,0,T27/Inputs!$E$147) -> 1.25 | EL27: =IF(Q27=1,0,T27/Inputs!$E$148) -> 1.25 | EM27: =IF(Q27=1,0,T27/Inputs!$E$149) -> 1.25 | EN27: =IF(Q27=1,0,T27/Inputs!$E$150) -> 1.25 | EO27: =IF(Inputs!$B$169=1, EK27*Inputs!$G$107*$J27,EK27*Inputs!$G$107) -> 92295.03507 | EP27: =IF(Inputs!$B$169=1,EL27*Inputs!$G$107*$J27,EL27*Inputs!$G$107) -> 92295.03507 | EQ27: =IF(Inputs!$B$169=1,EM27*Inputs!$G$107*$J27,EM27*Inputs!$G$107) -> 92295.03507 | ER27: =IF(Inputs!$B$169=1,EN27*Inputs!$G$107*$J27,EN27*Inputs!$G$107) -> 92295.03507 | ES27: =SUM(EL27:ER27)*Inputs!$E$136 -> 18459.19451 | ET27: =IF(Q27=1,0,IF(SUM(EK27:EN27)>0,T27*4*Inputs!$B$165,0)) -> 6000 | EU27: 5 | EV27: 393639.3348 | EX27: 0 | EY27: =IF(Inputs!$B$169=1,EX27*Inputs!$G$107*$J27,EX27*Inputs!$G$107) -> 0 | EZ27: =EY27*Inputs!$E$136 -> 0 | FA27: =IF(Q27=1,0,U27*Inputs!$B$165) -> 0 | FB27: 0 | FC27: 0 | FE27: 0 | FF27: =IF(Q27=1,O27/Inputs!$B$97,0) -> 0 | FG27: =IF(Inputs!$B$169=1,FE27*Inputs!$G$106*$J27,FE27*Inputs!$G$106) -> 0 | FH27: =IF(Inputs!$B$169=1,FF27*Inputs!$G$107*$J27,FF27*Inputs!$G$107) -> 0 | FI27: =FH27*Inputs!$E$136 -> 0 | FJ27: 0 | FK27: 0 | FX27: 2467099.655 | FY27: 233943.7915 | FZ27: 393639.3348 | GA27: 0 | GB27: 0 | GC27: 3094682.781 | GD27: 7313.175203 | GE27: 693.4750009 | GF27: 1166.857373 | GG27: 0 | GH27: 0 | GI27: 9173.507577
A28: =ADM!A28 -> 012100 | B28: =ADM!B28 -> 012 | C28: =ADM!C28 -> 100 | D28: =ADM!D28 -> Ashland Independent 012 - Oakview Elementary School 100 AADA | E28: =ADM!E28 -> Ashland Independent | F28: =ADM!F28 -> Oakview Elementary School | H28: 2100150 | I28: ASHLAND INDEP SCH DIST | J28: =IF(Inputs!$B$169<>1,1,K28) -> 1.102748571 | K28: 1.102748571 | L28: =SUM('Model Student Counts'!I28:N28) -> 370.7953333 | M28: =SUM('Model Student Counts'!O28:Q28) -> 68.39366667 | N28: =SUM('Model Student Counts'!R28:U28) -> 0 | O28: 439.189 | Q28: =IF(Inputs!$B$178=1,IF(O28<Inputs!$B$179,1,0),0) -> 0 | S28: =IF(O28=0,0,VLOOKUP(A28,'Special Student Counts'!$A$5:$Q$1377,4,FALSE)) -> 72 | T28: =IF(Inputs!$B$61=1,VLOOKUP(A28,'Special Student Counts'!$A$5:$Q$1377,13),VLOOKUP(A28,'Special Student Counts'!$A$5:$Q$1377,9,FALSE)) -> 231 | U28: =IF(O28=0,0,VLOOKUP(A28,'Special Student Counts'!$A$5:$Q$1377,6,FALSE)) -> 0 | W28: =IF(Q28=1,0,'Model Student Counts'!I28/Inputs!$B$83) -> 4.075288889 | X28: =IF(Q28=1,0,'Model Student Counts'!J28/Inputs!$B$84) -> 3.9758 | Y28: =IF(Q28=1,0,'Model Student Counts'!K28/Inputs!$B$85) -> 3.970511111 | Z28: =IF(Q28=1,0,'Model Student Counts'!L28/Inputs!$B$86) -> 4.181911111 | AA28: =IF(Q28=1,0,'Model Student Counts'!M28/Inputs!$B$87) -> 2.601333333 | AB28: =IF(Q28=1,0,'Model Student Counts'!N28/Inputs!$B$88) -> 2.508373333 | AC28: =IF(Q28=1,0,'Model Student Counts'!O28/Inputs!$B$89) -> 2.735746667 | AD28: =IF(Q28=1,0,'Model Student Counts'!P28/Inputs!$B$90) -> 0 | AE28: =IF(Q28=1,0,'Model Student Counts'!Q28/Inputs!$B$91) -> 0 | AF28: =IF(Q28=1,0,'Model Student Counts'!R28/Inputs!$B$92) -> 0 | AG28: =IF(Q28=1,0,'Model Student Counts'!S28/Inputs!$B$93) -> 0 | AH28: =IF(Q28=1,0,'Model Student Counts'!T28/Inputs!$B$94) -> 0 | AI28: =IF(Q28=1,0,'Model Student Counts'!U28/Inputs!$B$95) -> 0 | AJ28: 21.31321778 | AK28: 2.735746667 | AL28: 0 | AM28: 24.04896444 | AO28: =IF(Q28=1,0,Inputs!$B$55*AJ28) -> 4.262643556 | AP28: =IF(Q28=1,0,Inputs!$B$56*AK28) -> 0.5471493333 | AQ28: =IF(Q28=1,0,Inputs!$B$57*AL28) -> 0 | AR28: 4.809792889 | AT28: =IF(Q28=1,0,L28/Inputs!$C$140) -> 0.8239896296 | AU28: =IF(Q28=1,0,M28/Inputs!$D$140) -> 0.1519859259 | AV28: =IF(Q28=1,0,N28/Inputs!$E$140) -> 0 | AW28: 0.9759755556 | AY28: =IF(Q28=1,0,(L28/Inputs!$C$134+M28/Inputs!$D$134+N28/Inputs!$E$134)) -> 2.195945 | AZ28: =IF(Q28=1,0,(L28/Inputs!$C$135+M28/Inputs!$D$135+N28/Inputs!$E$135)) -> 0.9759755556 | BA28: =IF(Q28=1,0,L28/Inputs!$C$137+M28/Inputs!$D$137+N28/Inputs!$E$137) -> 1.097564296 | BB28: =IF(Q28=1,0,L28/Inputs!$C$138+M28/Inputs!$D$138+N28/Inputs!$E$138) -> 1.951951111 | BC28: 6.221435963 | BE28: =IF(Q28=1,0,L28/Inputs!$C$142) -> 0.8239896296 | BF28: =IF(Q28=1,0,M28/Inputs!$D$142) -> 0.1519859259 | BG28: =IF(Q28=1,0,N28/Inputs!$E$142) -> 0 | BH28: 0.9759755556 | BI28: 0 | BJ28: 0 | BK28: =IF(Q28=1,0,N28/Inputs!$E$143) -> 0 | BL28: 0 | BM28: =IF(Q28=1,0,L28/Inputs!$C$144) -> 1.647979259 | BN28: =IF(Q28=1,0,M28/Inputs!$D$144) -> 0.3039718519 | BO28: =IF(Q28=1,0,N28/Inputs!$E$144) -> 0 | BP28: 1.951951111 | BQ28: 2.927926667 | BS28: =IF(Inputs!$B$169=1,Inputs!$G$107*W28*$J28,W28*Inputs!$G$107) -> 300903.1447 | BT28: =IF(Inputs!$B$169=1,Inputs!$G$107*X28*$J28,X28*Inputs!$G$107) -> 293557.2804 | BU28: =IF(Inputs!$B$169=1,Inputs!$G$107*Y28*$J28,Y28*Inputs!$G$107) -> 293166.7698 | BV28: =IF(Inputs!$B$169=1,Inputs!$G$107*Z28*$J28,Z28*Inputs!$G$107) -> 308775.7061 | BW28: =IF(Inputs!$B$169=1,Inputs!$G$107*AA28*$J28,AA28*Inputs!$G$107) -> 192072.121 | BX28: =IF(Inputs!$B$169=1,Inputs!$G$107*AB28*$J28,AB28*Inputs!$G$107) -> 185208.3238 | BY28: =IF(Inputs!$B$169=1,Inputs!$G$107*AC28*$J28,AC28*Inputs!$G$107) -> 201996.6676 | BZ28: =IF(Inputs!$B$169=1,Inputs!$G$107*AD28*$J28,AD28*Inputs!$G$107) -> 0 | CA28: =IF(Inputs!$B$169=1,Inputs!$G$107*AE28*$J28,AE28*Inputs!$G$107) -> 0 | CB28: =IF(Inputs!$B$169=1,Inputs!$G$107*AF28*$J28,AF28*Inputs!$G$107) -> 0 | CC28: =IF(Inputs!$B$169=1,Inputs!$G$107*AG28*$J28,AG28*Inputs!$G$107) -> 0 | CD28: =IF(Inputs!$B$169=1,Inputs!$G$107*AH28*$J28,AH28*Inputs!$G$107) -> 0 | CE28: =IF(Inputs!$B$169=1,Inputs!$G$107*AI28*$J28,AI28*Inputs!$G$107) -> 0 | CF28: 1573683.346 | CG28: 201996.6676 | CH28: 0 | CI28: 1775680.013 | CJ28: =SUM(CF28:CH28)*Inputs!$E$136 -> 88784.00067 | CK28: 1864464.014 | CM28: =IF(Inputs!$B$169=1,Inputs!$G$107*AO28*$J28,AO28*Inputs!$G$107) -> 314736.6692 | CN28: =IF(Inputs!$B$169=1,Inputs!$G$107*AP28*$J28,AP28*Inputs!$G$107) -> 40399.33353 | CO28: =IF(Inputs!$B$169=1,Inputs!$G$107*AQ28*$J28,AQ28*Inputs!$G$107) -> 0 | CP28: 355136.0027 | CQ28: =SUM(CM28:CO28)*Inputs!$E$136 -> 17756.80013 | CR28: 372892.8028 | CT28: =IF(Inputs!$B$169=1,AT28*Inputs!$G$110*$J28,AT28*Inputs!$G$110) -> 74073.38481 | CU28: =IF(Inputs!$B$169=1,AU28*Inputs!$G$110*$J28,AU28*Inputs!$G$110) -> 13662.92921 | CV28: =IF(Inputs!$B$169=1,AV28*Inputs!$G$110*$J28,AV28*Inputs!$G$110) -> 0 | CW28: 87736.31402 | CY28: =IF(Inputs!$B$169=1, AY28*Inputs!$G$107*$J28,AY28*Inputs!$G$107) -> 162139.8566 | CZ28: =IF(Inputs!$B$169=1, AZ28*Inputs!$G$107*$J28,AZ28*Inputs!$G$107) -> 72062.1585 | DA28: =IF(Inputs!$B$169=1, BA28*Inputs!$G$109*$J28,BA28*Inputs!$G$109) -> 92748.09178 | DB28: =IF(Q28=1,0,BB28*Inputs!$G$113) -> 48785.93525 | DC28: =SUM(CY28:CZ28)*Inputs!$E$136 -> 11710.10076 | DD28: 387446.1429 | DF28: =IF(Inputs!$B$169=1,BE28*Inputs!$G$105*$J28, BE28*Inputs!$G$105) -> 68893.40359 | DG28: =IF(Inputs!$B$169=1, BF28*Inputs!$G$105*$J28, BF28*Inputs!$G$105) -> 12707.47514 | DH28: =IF(Inputs!$B$169=1,BG28*Inputs!$G$105*$J28,BG28*Inputs!$G$105) -> 0 | DI28: 81600.87873 | DJ28: =IF(Inputs!$B$169=1, (BI28*SUM(Inputs!$D$106:$E$106)*$J28 + BI28*Inputs!$F$106), BI28*Inputs!$G$106) -> 0 | DK28: =IF(Inputs!$B$169=1, (BJ28*SUM(Inputs!$D$106:$E$106)*$J28 + BJ28*Inputs!$F$106), BJ28*Inputs!$G$106) -> 0 | DL28: =IF(Inputs!$B$169=1,BK28*Inputs!$G$106*$J28,BK28*Inputs!$G$106) -> 0 | DM28: 0 | DN28: =BM28*Inputs!$G$112 -> 61559.83079 | DO28: =BN28*Inputs!$G$112 -> 11354.78839 | DP28: =BO28*Inputs!$G$112 -> 0 | DQ28: 72914.61919 | DR28: 154515.4979 | DT28: =Inputs!$B$156*L28+Inputs!$B$157*M28+Inputs!$B$158*N28 -> 61486.46 | DU28: =Inputs!$B$159*O28 -> 109797.25 | DV28: =Inputs!$B$160*$O28 -> 10979.725 | DW28: =Inputs!$B$161*$O28 -> 43918.9 | DX28: =Inputs!$B$162*$O28 -> 10979.725 | DY28: =O28*Inputs!$B$163 -> 109797.25 | DZ28: 346959.31 | EB28: =O28/Inputs!$E$146 -> 2.927926667 | EC28: =O28/Inputs!$E$146 -> 2.927926667 | ED28: =IF(Inputs!$B$169=1,EB28*Inputs!$G$107*$J28,EB28*Inputs!$G$107) -> 216186.4755 | EE28: =EC28*Inputs!$G$113 -> 73178.90287 | EF28: =ED28*Inputs!$E$136 -> 10809.32378 | EG28: =Inputs!$B$165*O28 -> 4391.89 | EH28: 5.855853333 | EI28: 304566.5922 | EK28: =IF(Q28=1,0,T28/Inputs!$E$147) -> 1.925 | EL28: =IF(Q28=1,0,T28/Inputs!$E$148) -> 1.925 | EM28: =IF(Q28=1,0,T28/Inputs!$E$149) -> 1.925 | EN28: =IF(Q28=1,0,T28/Inputs!$E$150) -> 1.925 | EO28: =IF(Inputs!$B$169=1, EK28*Inputs!$G$107*$J28,EK28*Inputs!$G$107) -> 142134.354 | EP28: =IF(Inputs!$B$169=1,EL28*Inputs!$G$107*$J28,EL28*Inputs!$G$107) -> 142134.354 | EQ28: =IF(Inputs!$B$169=1,EM28*Inputs!$G$107*$J28,EM28*Inputs!$G$107) -> 142134.354 | ER28: =IF(Inputs!$B$169=1,EN28*Inputs!$G$107*$J28,EN28*Inputs!$G$107) -> 142134.354 | ES28: =SUM(EL28:ER28)*Inputs!$E$136 -> 28427.15955 | ET28: =IF(Q28=1,0,IF(SUM(EK28:EN28)>0,T28*4*Inputs!$B$165,0)) -> 9240 | EU28: 7.7 | EV28: 606204.5756 | EX28: 0 | EY28: =IF(Inputs!$B$169=1,EX28*Inputs!$G$107*$J28,EX28*Inputs!$G$107) -> 0 | EZ28: =EY28*Inputs!$E$136 -> 0 | FA28: =IF(Q28=1,0,U28*Inputs!$B$165) -> 0 | FB28: 0 | FC28: 0 | FE28: 0 | FF28: =IF(Q28=1,O28/Inputs!$B$97,0) -> 0 | FG28: =IF(Inputs!$B$169=1,FE28*Inputs!$G$106*$J28,FE28*Inputs!$G$106) -> 0 | FH28: =IF(Inputs!$B$169=1,FF28*Inputs!$G$107*$J28,FF28*Inputs!$G$107) -> 0 | FI28: =FH28*Inputs!$E$136 -> 0 | FJ28: 0 | FK28: 0 | FX28: 3214014.082 | FY28: 304566.5922 | FZ28: 606204.5756 | GA28: 0 | GB28: 0 | GC28: 4124785.25 | GD28: 7318.065985 | GE28: 693.4750009 | GF28: 1380.281782 | GG28: 0 | GH28: 0 | GI28: 9391.822768
A29: =ADM!A29 -> 012110 | B29: =ADM!B29 -> 012 | C29: =ADM!C29 -> 110 | D29: =ADM!D29 -> Ashland Independent 012 - Poage Elementary School 110 AADA | E29: =ADM!E29 -> Ashland Independent | F29: =ADM!F29 -> Poage Elementary School | H29: 2100150 | I29: ASHLAND INDEP SCH DIST | J29: =IF(Inputs!$B$169<>1,1,K29) -> 1.102748571 | K29: 1.102748571 | L29: =SUM('Model Student Counts'!I29:N29) -> 224.74 | M29: =SUM('Model Student Counts'!O29:Q29) -> 26.01 | N29: =SUM('Model Student Counts'!R29:U29) -> 0 | O29: 250.75 | Q29: =IF(Inputs!$B$178=1,IF(O29<Inputs!$B$179,1,0),0) -> 0 | S29: =IF(O29=0,0,VLOOKUP(A29,'Special Student Counts'!$A$5:$Q$1377,4,FALSE)) -> 58 | T29: =IF(Inputs!$B$61=1,VLOOKUP(A29,'Special Student Counts'!$A$5:$Q$1377,13),VLOOKUP(A29,'Special Student Counts'!$A$5:$Q$1377,9,FALSE)) -> 161 | U29: =IF(O29=0,0,VLOOKUP(A29,'Special Student Counts'!$A$5:$Q$1377,6,FALSE)) -> 0 | W29: =IF(Q29=1,0,'Model Student Counts'!I29/Inputs!$B$83) -> 2.975333333 | X29: =IF(Q29=1,0,'Model Student Counts'!J29/Inputs!$B$84) -> 3.247333333 | Y29: =IF(Q29=1,0,'Model Student Counts'!K29/Inputs!$B$85) -> 2.660666667 | Z29: =IF(Q29=1,0,'Model Student Counts'!L29/Inputs!$B$86) -> 2.369333333 | AA29: =IF(Q29=1,0,'Model Student Counts'!M29/Inputs!$B$87) -> 0.9616 | AB29: =IF(Q29=1,0,'Model Student Counts'!N29/Inputs!$B$88) -> 1.2764 | AC29: =IF(Q29=1,0,'Model Student Counts'!O29/Inputs!$B$89) -> 1.0404 | AD29: =IF(Q29=1,0,'Model Student Counts'!P29/Inputs!$B$90) -> 0 | AE29: =IF(Q29=1,0,'Model Student Counts'!Q29/Inputs!$B$91) -> 0 | AF29: =IF(Q29=1,0,'Model Student Counts'!R29/Inputs!$B$92) -> 0 | AG29: =IF(Q29=1,0,'Model Student Counts'!S29/Inputs!$B$93) -> 0 | AH29: =IF(Q29=1,0,'Model Student Counts'!T29/Inputs!$B$94) -> 0 | AI29: =IF(Q29=1,0,'Model Student Counts'!U29/Inputs!$B$95) -> 0 | AJ29: 13.49066667 | AK29: 1.0404 | AL29: 0 | AM29: 14.53106667 | AO29: =IF(Q29=1,0,Inputs!$B$55*AJ29) -> 2.698133333 | AP29: =IF(Q29=1,0,Inputs!$B$56*AK29) -> 0.20808 | AQ29: =IF(Q29=1,0,Inputs!$B$57*AL29) -> 0 | AR29: 2.906213333 | AT29: =IF(Q29=1,0,L29/Inputs!$C$140) -> 0.4994222222 | AU29: =IF(Q29=1,0,M29/Inputs!$D$140) -> 0.0578 | AV29: =IF(Q29=1,0,N29/Inputs!$E$140) -> 0 | AW29: 0.5572222222 | AY29: =IF(Q29=1,0,(L29/Inputs!$C$134+M29/Inputs!$D$134+N29/Inputs!$E$134)) -> 1.25375 | AZ29: =IF(Q29=1,0,(L29/Inputs!$C$135+M29/Inputs!$D$135+N29/Inputs!$E$135)) -> 0.5572222222 | BA29: =IF(Q29=1,0,L29/Inputs!$C$137+M29/Inputs!$D$137+N29/Inputs!$E$137) -> 0.6034622222 | BB29: =IF(Q29=1,0,L29/Inputs!$C$138+M29/Inputs!$D$138+N29/Inputs!$E$138) -> 1.114444444 | BC29: 3.528878889 | BE29: =IF(Q29=1,0,L29/Inputs!$C$142) -> 0.4994222222 | BF29: =IF(Q29=1,0,M29/Inputs!$D$142) -> 0.0578 | BG29: =IF(Q29=1,0,N29/Inputs!$E$142) -> 0 | BH29: 0.5572222222 | BI29: 0 | BJ29: 0 | BK29: =IF(Q29=1,0,N29/Inputs!$E$143) -> 0 | BL29: 0 | BM29: =IF(Q29=1,0,L29/Inputs!$C$144) -> 0.9988444444 | BN29: =IF(Q29=1,0,M29/Inputs!$D$144) -> 0.1156 | BO29: =IF(Q29=1,0,N29/Inputs!$E$144) -> 0 | BP29: 1.114444444 | BQ29: 1.671666667 | BS29: =IF(Inputs!$B$169=1,Inputs!$G$107*W29*$J29,W29*Inputs!$G$107) -> 219686.7955 | BT29: =IF(Inputs!$B$169=1,Inputs!$G$107*X29*$J29,X29*Inputs!$G$107) -> 239770.1951 | BU29: =IF(Inputs!$B$169=1,Inputs!$G$107*Y29*$J29,Y29*Inputs!$G$107) -> 196453.0587 | BV29: =IF(Inputs!$B$169=1,Inputs!$G$107*Z29*$J29,Z29*Inputs!$G$107) -> 174942.1625 | BW29: =IF(Inputs!$B$169=1,Inputs!$G$107*AA29*$J29,AA29*Inputs!$G$107) -> 71000.72458 | BX29: =IF(Inputs!$B$169=1,Inputs!$G$107*AB29*$J29,AB29*Inputs!$G$107) -> 94244.30621 | BY29: =IF(Inputs!$B$169=1,Inputs!$G$107*AC29*$J29,AC29*Inputs!$G$107) -> 76819.00359 | BZ29: =IF(Inputs!$B$169=1,Inputs!$G$107*AD29*$J29,AD29*Inputs!$G$107) -> 0 | CA29: =IF(Inputs!$B$169=1,Inputs!$G$107*AE29*$J29,AE29*Inputs!$G$107) -> 0 | CB29: =IF(Inputs!$B$169=1,Inputs!$G$107*AF29*$J29,AF29*Inputs!$G$107) -> 0 | CC29: =IF(Inputs!$B$169=1,Inputs!$G$107*AG29*$J29,AG29*Inputs!$G$107) -> 0 | CD29: =IF(Inputs!$B$169=1,Inputs!$G$107*AH29*$J29,AH29*Inputs!$G$107) -> 0 | CE29: =IF(Inputs!$B$169=1,Inputs!$G$107*AI29*$J29,AI29*Inputs!$G$107) -> 0 | CF29: 996097.2425 | CG29: 76819.00359 | CH29: 0 | CI29: 1072916.246 | CJ29: =SUM(CF29:CH29)*Inputs!$E$136 -> 53645.81231 | CK29: 1126562.058 | CM29: =IF(Inputs!$B$169=1,Inputs!$G$107*AO29*$J29,AO29*Inputs!$G$107) -> 199219.4485 | CN29: =IF(Inputs!$B$169=1,Inputs!$G$107*AP29*$J29,AP29*Inputs!$G$107) -> 15363.80072 | CO29: =IF(Inputs!$B$169=1,Inputs!$G$107*AQ29*$J29,AQ29*Inputs!$G$107) -> 0 | CP29: 214583.2492 | CQ29: =SUM(CM29:CO29)*Inputs!$E$136 -> 10729.16246 | CR29: 225312.4117 | CT29: =IF(Inputs!$B$169=1,AT29*Inputs!$G$110*$J29,AT29*Inputs!$G$110) -> 44896.06801 | CU29: =IF(Inputs!$B$169=1,AU29*Inputs!$G$110*$J29,AU29*Inputs!$G$110) -> 5195.989717 | CV29: =IF(Inputs!$B$169=1,AV29*Inputs!$G$110*$J29,AV29*Inputs!$G$110) -> 0 | CW29: 50092.05773 | CY29: =IF(Inputs!$B$169=1, AY29*Inputs!$G$107*$J29,AY29*Inputs!$G$107) -> 92571.92018 | CZ29: =IF(Inputs!$B$169=1, AZ29*Inputs!$G$107*$J29,AZ29*Inputs!$G$107) -> 41143.07563 | DA29: =IF(Inputs!$B$169=1, BA29*Inputs!$G$109*$J29,BA29*Inputs!$G$109) -> 50994.70688 | DB29: =IF(Q29=1,0,BB29*Inputs!$G$113) -> 27853.77881 | DC29: =SUM(CY29:CZ29)*Inputs!$E$136 -> 6685.749791 | DD29: 219249.2313 | DF29: =IF(Inputs!$B$169=1,BE29*Inputs!$G$105*$J29, BE29*Inputs!$G$105) -> 41756.46814 | DG29: =IF(Inputs!$B$169=1, BF29*Inputs!$G$105*$J29, BF29*Inputs!$G$105) -> 4832.632092 | DH29: =IF(Inputs!$B$169=1,BG29*Inputs!$G$105*$J29,BG29*Inputs!$G$105) -> 0 | DI29: 46589.10023 | DJ29: =IF(Inputs!$B$169=1, (BI29*SUM(Inputs!$D$106:$E$106)*$J29 + BI29*Inputs!$F$106), BI29*Inputs!$G$106) -> 0 | DK29: =IF(Inputs!$B$169=1, (BJ29*SUM(Inputs!$D$106:$E$106)*$J29 + BJ29*Inputs!$F$106), BJ29*Inputs!$G$106) -> 0 | DL29: =IF(Inputs!$B$169=1,BK29*Inputs!$G$106*$J29,BK29*Inputs!$G$106) -> 0 | DM29: 0 | DN29: =BM29*Inputs!$G$112 -> 37311.57091 | DO29: =BN29*Inputs!$G$112 -> 4318.207526 | DP29: =BO29*Inputs!$G$112 -> 0 | DQ29: 41629.77843 | DR29: 88218.87867 | DT29: =Inputs!$B$156*L29+Inputs!$B$157*M29+Inputs!$B$158*N29 -> 35105 | DU29: =Inputs!$B$159*O29 -> 62687.5 | DV29: =Inputs!$B$160*$O29 -> 6268.75 | DW29: =Inputs!$B$161*$O29 -> 25075 | DX29: =Inputs!$B$162*$O29 -> 6268.75 | DY29: =O29*Inputs!$B$163 -> 62687.5 | DZ29: 198092.5 | EB29: =O29/Inputs!$E$146 -> 1.671666667 | EC29: =O29/Inputs!$E$146 -> 1.671666667 | ED29: =IF(Inputs!$B$169=1,EB29*Inputs!$G$107*$J29,EB29*Inputs!$G$107) -> 123429.2269 | EE29: =EC29*Inputs!$G$113 -> 41780.66822 | EF29: =ED29*Inputs!$E$136 -> 6171.461345 | EG29: =Inputs!$B$165*O29 -> 2507.5 | EH29: 3.343333333 | EI29: 173888.8565 | EK29: =IF(Q29=1,0,T29/Inputs!$E$147) -> 1.341666667 | EL29: =IF(Q29=1,0,T29/Inputs!$E$148) -> 1.341666667 | EM29: =IF(Q29=1,0,T29/Inputs!$E$149) -> 1.341666667 | EN29: =IF(Q29=1,0,T29/Inputs!$E$150) -> 1.341666667 | EO29: =IF(Inputs!$B$169=1, EK29*Inputs!$G$107*$J29,EK29*Inputs!$G$107) -> 99063.33764 | EP29: =IF(Inputs!$B$169=1,EL29*Inputs!$G$107*$J29,EL29*Inputs!$G$107) -> 99063.33764 | EQ29: =IF(Inputs!$B$169=1,EM29*Inputs!$G$107*$J29,EM29*Inputs!$G$107) -> 99063.33764 | ER29: =IF(Inputs!$B$169=1,EN29*Inputs!$G$107*$J29,EN29*Inputs!$G$107) -> 99063.33764 | ES29: =SUM(EL29:ER29)*Inputs!$E$136 -> 19812.86878 | ET29: =IF(Q29=1,0,IF(SUM(EK29:EN29)>0,T29*4*Inputs!$B$165,0)) -> 6440 | EU29: 5.366666667 | EV29: 422506.2194 | EX29: 0 | EY29: =IF(Inputs!$B$169=1,EX29*Inputs!$G$107*$J29,EX29*Inputs!$G$107) -> 0 | EZ29: =EY29*Inputs!$E$136 -> 0 | FA29: =IF(Q29=1,0,U29*Inputs!$B$165) -> 0 | FB29: 0 | FC29: 0 | FE29: 0 | FF29: =IF(Q29=1,O29/Inputs!$B$97,0) -> 0 | FG29: =IF(Inputs!$B$169=1,FE29*Inputs!$G$106*$J29,FE29*Inputs!$G$106) -> 0 | FH29: =IF(Inputs!$B$169=1,FF29*Inputs!$G$107*$J29,FF29*Inputs!$G$107) -> 0 | FI29: =FH29*Inputs!$E$136 -> 0 | FJ29: 0 | FK29: 0 | FX29: 1907527.138 | FY29: 173888.8565 | FZ29: 422506.2194 | GA29: 0 | GB29: 0 | GC29: 2503922.214 | GD29: 7607.286691 | GE29: 693.4750009 | GF29: 1684.969968 | GG29: 0 | GH29: 0 | GI29: 9985.73166
A30: =ADM!A30 -> 012130 | B30: =ADM!B30 -> 012 | C30: =ADM!C30 -> 130 | D30: =ADM!D30 -> Ashland Independent 012 - Charles Russell Elementary School 130 AADA | E30: =ADM!E30 -> Ashland Independent | F30: =ADM!F30 -> Charles Russell Elementary School | H30: 2100150 | I30: ASHLAND INDEP SCH DIST | J30: =IF(Inputs!$B$169<>1,1,K30) -> 1.102748571 | K30: 1.102748571 | L30: =SUM('Model Student Counts'!I30:N30) -> 271.61 | M30: =SUM('Model Student Counts'!O30:Q30) -> 50.18 | N30: =SUM('Model Student Counts'!R30:U30) -> 0 | O30: 321.79 | Q30: =IF(Inputs!$B$178=1,IF(O30<Inputs!$B$179,1,0),0) -> 0 | S30: =IF(O30=0,0,VLOOKUP(A30,'Special Student Counts'!$A$5:$Q$1377,4,FALSE)) -> 35 | T30: =IF(Inputs!$B$61=1,VLOOKUP(A30,'Special Student Counts'!$A$5:$Q$1377,13),VLOOKUP(A30,'Special Student Counts'!$A$5:$Q$1377,9,FALSE)) -> 185 | U30: =IF(O30=0,0,VLOOKUP(A30,'Special Student Counts'!$A$5:$Q$1377,6,FALSE)) -> 1 | W30: =IF(Q30=1,0,'Model Student Counts'!I30/Inputs!$B$83) -> 3.178 | X30: =IF(Q30=1,0,'Model Student Counts'!J30/Inputs!$B$84) -> 4.512 | Y30: =IF(Q30=1,0,'Model Student Counts'!K30/Inputs!$B$85) -> 2.426666667 | Z30: =IF(Q30=1,0,'Model Student Counts'!L30/Inputs!$B$86) -> 3.196 | AA30: =IF(Q30=1,0,'Model Student Counts'!M30/Inputs!$B$87) -> 1.6916 | AB30: =IF(Q30=1,0,'Model Student Counts'!N30/Inputs!$B$88) -> 1.1852 | AC30: =IF(Q30=1,0,'Model Student Counts'!O30/Inputs!$B$89) -> 2.0072 | AD30: =IF(Q30=1,0,'Model Student Counts'!P30/Inputs!$B$90) -> 0 | AE30: =IF(Q30=1,0,'Model Student Counts'!Q30/Inputs!$B$91) -> 0 | AF30: =IF(Q30=1,0,'Model Student Counts'!R30/Inputs!$B$92) -> 0 | AG30: =IF(Q30=1,0,'Model Student Counts'!S30/Inputs!$B$93) -> 0 | AH30: =IF(Q30=1,0,'Model Student Counts'!T30/Inputs!$B$94) -> 0 | AI30: =IF(Q30=1,0,'Model Student Counts'!U30/Inputs!$B$95) -> 0 | AJ30: 16.18946667 | AK30: 2.0072 | AL30: 0 | AM30: 18.19666667 | AO30: =IF(Q30=1,0,Inputs!$B$55*AJ30) -> 3.237893333 | AP30: =IF(Q30=1,0,Inputs!$B$56*AK30) -> 0.40144 | AQ30: =IF(Q30=1,0,Inputs!$B$57*AL30) -> 0 | AR30: 3.639333333 | AT30: =IF(Q30=1,0,L30/Inputs!$C$140) -> 0.6035777778 | AU30: =IF(Q30=1,0,M30/Inputs!$D$140) -> 0.1115111111 | AV30: =IF(Q30=1,0,N30/Inputs!$E$140) -> 0 | AW30: 0.7150888889 | AY30: =IF(Q30=1,0,(L30/Inputs!$C$134+M30/Inputs!$D$134+N30/Inputs!$E$134)) -> 1.60895 | AZ30: =IF(Q30=1,0,(L30/Inputs!$C$135+M30/Inputs!$D$135+N30/Inputs!$E$135)) -> 0.7150888889 | BA30: =IF(Q30=1,0,L30/Inputs!$C$137+M30/Inputs!$D$137+N30/Inputs!$E$137) -> 0.8042977778 | BB30: =IF(Q30=1,0,L30/Inputs!$C$138+M30/Inputs!$D$138+N30/Inputs!$E$138) -> 1.430177778 | BC30: 4.558514444 | BE30: =IF(Q30=1,0,L30/Inputs!$C$142) -> 0.6035777778 | BF30: =IF(Q30=1,0,M30/Inputs!$D$142) -> 0.1115111111 | BG30: =IF(Q30=1,0,N30/Inputs!$E$142) -> 0 | BH30: 0.7150888889 | BI30: 0 | BJ30: 0 | BK30: =IF(Q30=1,0,N30/Inputs!$E$143) -> 0 | BL30: 0 | BM30: =IF(Q30=1,0,L30/Inputs!$C$144) -> 1.207155556 | BN30: =IF(Q30=1,0,M30/Inputs!$D$144) -> 0.2230222222 | BO30: =IF(Q30=1,0,N30/Inputs!$E$144) -> 0 | BP30: 1.430177778 | BQ30: 2.145266667 | BS30: =IF(Inputs!$B$169=1,Inputs!$G$107*W30*$J30,W30*Inputs!$G$107) -> 234650.8972 | BT30: =IF(Inputs!$B$169=1,Inputs!$G$107*X30*$J30,X30*Inputs!$G$107) -> 333148.1586 | BU30: =IF(Inputs!$B$169=1,Inputs!$G$107*Y30*$J30,Y30*Inputs!$G$107) -> 179175.4281 | BV30: =IF(Inputs!$B$169=1,Inputs!$G$107*Z30*$J30,Z30*Inputs!$G$107) -> 235979.9457 | BW30: =IF(Inputs!$B$169=1,Inputs!$G$107*AA30*$J30,AA30*Inputs!$G$107) -> 124901.0251 | BX30: =IF(Inputs!$B$169=1,Inputs!$G$107*AB30*$J30,AB30*Inputs!$G$107) -> 87510.46045 | BY30: =IF(Inputs!$B$169=1,Inputs!$G$107*AC30*$J30,AC30*Inputs!$G$107) -> 148203.6755 | BZ30: =IF(Inputs!$B$169=1,Inputs!$G$107*AD30*$J30,AD30*Inputs!$G$107) -> 0 | CA30: =IF(Inputs!$B$169=1,Inputs!$G$107*AE30*$J30,AE30*Inputs!$G$107) -> 0 | CB30: =IF(Inputs!$B$169=1,Inputs!$G$107*AF30*$J30,AF30*Inputs!$G$107) -> 0 | CC30: =IF(Inputs!$B$169=1,Inputs!$G$107*AG30*$J30,AG30*Inputs!$G$107) -> 0 | CD30: =IF(Inputs!$B$169=1,Inputs!$G$107*AH30*$J30,AH30*Inputs!$G$107) -> 0 | CE30: =IF(Inputs!$B$169=1,Inputs!$G$107*AI30*$J30,AI30*Inputs!$G$107) -> 0 | CF30: 1195365.915 | CG30: 148203.6755 | CH30: 0 | CI30: 1343569.591 | CJ30: =SUM(CF30:CH30)*Inputs!$E$136 -> 67178.47953 | CK30: 1410748.07 | CM30: =IF(Inputs!$B$169=1,Inputs!$G$107*AO30*$J30,AO30*Inputs!$G$107) -> 239073.183 | CN30: =IF(Inputs!$B$169=1,Inputs!$G$107*AP30*$J30,AP30*Inputs!$G$107) -> 29640.7351 | CO30: =IF(Inputs!$B$169=1,Inputs!$G$107*AQ30*$J30,AQ30*Inputs!$G$107) -> 0 | CP30: 268713.9181 | CQ30: =SUM(CM30:CO30)*Inputs!$E$136 -> 13435.69591 | CR30: 282149.614 | CT30: =IF(Inputs!$B$169=1,AT30*Inputs!$G$110*$J30,AT30*Inputs!$G$110) -> 54259.23748 | CU30: =IF(Inputs!$B$169=1,AU30*Inputs!$G$110*$J30,AU30*Inputs!$G$110) -> 10024.40461 | CV30: =IF(Inputs!$B$169=1,AV30*Inputs!$G$110*$J30,AV30*Inputs!$G$110) -> 0 | CW30: 64283.6421 | CY30: =IF(Inputs!$B$169=1, AY30*Inputs!$G$107*$J30,AY30*Inputs!$G$107) -> 118798.4773 | CZ30: =IF(Inputs!$B$169=1, AZ30*Inputs!$G$107*$J30,AZ30*Inputs!$G$107) -> 52799.32326 | DA30: =IF(Inputs!$B$169=1, BA30*Inputs!$G$109*$J30,BA30*Inputs!$G$109) -> 67966.02656 | DB30: =IF(Q30=1,0,BB30*Inputs!$G$113) -> 35745.03483 | DC30: =SUM(CY30:CZ30)*Inputs!$E$136 -> 8579.89003 | DD30: 283888.752 | DF30: =IF(Inputs!$B$169=1,BE30*Inputs!$G$105*$J30, BE30*Inputs!$G$105) -> 50464.86746 | DG30: =IF(Inputs!$B$169=1, BF30*Inputs!$G$105*$J30, BF30*Inputs!$G$105) -> 9323.394017 | DH30: =IF(Inputs!$B$169=1,BG30*Inputs!$G$105*$J30,BG30*Inputs!$G$105) -> 0 | DI30: 59788.26147 | DJ30: =IF(Inputs!$B$169=1, (BI30*SUM(Inputs!$D$106:$E$106)*$J30 + BI30*Inputs!$F$106), BI30*Inputs!$G$106) -> 0 | DK30: =IF(Inputs!$B$169=1, (BJ30*SUM(Inputs!$D$106:$E$106)*$J30 + BJ30*Inputs!$F$106), BJ30*Inputs!$G$106) -> 0 | DL30: =IF(Inputs!$B$169=1,BK30*Inputs!$G$106*$J30,BK30*Inputs!$G$106) -> 0 | DM30: 0 | DN30: =BM30*Inputs!$G$112 -> 45092.97755 | DO30: =BN30*Inputs!$G$112 -> 8330.936318 | DP30: =BO30*Inputs!$G$112 -> 0 | DQ30: 53423.91387 | DR30: 113212.1753 | DT30: =Inputs!$B$156*L30+Inputs!$B$157*M30+Inputs!$B$158*N30 -> 45050.6 | DU30: =Inputs!$B$159*O30 -> 80447.5 | DV30: =Inputs!$B$160*$O30 -> 8044.75 | DW30: =Inputs!$B$161*$O30 -> 32179 | DX30: =Inputs!$B$162*$O30 -> 8044.75 | DY30: =O30*Inputs!$B$163 -> 80447.5 | DZ30: 254214.1 | EB30: =O30/Inputs!$E$146 -> 2.145266667 | EC30: =O30/Inputs!$E$146 -> 2.145266667 | ED30: =IF(Inputs!$B$169=1,EB30*Inputs!$G$107*$J30,EB30*Inputs!$G$107) -> 158397.9698 | EE30: =EC30*Inputs!$G$113 -> 53617.55225 | EF30: =ED30*Inputs!$E$136 -> 7919.89849 | EG30: =Inputs!$B$165*O30 -> 3217.9 | EH30: 4.290533333 | EI30: 223153.3205 | EK30: =IF(Q30=1,0,T30/Inputs!$E$147) -> 1.541666667 | EL30: =IF(Q30=1,0,T30/Inputs!$E$148) -> 1.541666667 | EM30: =IF(Q30=1,0,T30/Inputs!$E$149) -> 1.541666667 | EN30: =IF(Q30=1,0,T30/Inputs!$E$150) -> 1.541666667 | EO30: =IF(Inputs!$B$169=1, EK30*Inputs!$G$107*$J30,EK30*Inputs!$G$107) -> 113830.5433 | EP30: =IF(Inputs!$B$169=1,EL30*Inputs!$G$107*$J30,EL30*Inputs!$G$107) -> 113830.5433 | EQ30: =IF(Inputs!$B$169=1,EM30*Inputs!$G$107*$J30,EM30*Inputs!$G$107) -> 113830.5433 | ER30: =IF(Inputs!$B$169=1,EN30*Inputs!$G$107*$J30,EN30*Inputs!$G$107) -> 113830.5433 | ES30: =SUM(EL30:ER30)*Inputs!$E$136 -> 22766.3399 | ET30: =IF(Q30=1,0,IF(SUM(EK30:EN30)>0,T30*4*Inputs!$B$165,0)) -> 7400 | EU30: 6.166666667 | EV30: 485488.5129 | EX30: 0.01 | EY30: =IF(Inputs!$B$169=1,EX30*Inputs!$G$107*$J30,EX30*Inputs!$G$107) -> 738.3602806 | EZ30: =EY30*Inputs!$E$136 -> 36.91801403 | FA30: =IF(Q30=1,0,U30*Inputs!$B$165) -> 10 | FB30: 0.01 | FC30: 785.2782946 | FE30: 0 | FF30: =IF(Q30=1,O30/Inputs!$B$97,0) -> 0 | FG30: =IF(Inputs!$B$169=1,FE30*Inputs!$G$106*$J30,FE30*Inputs!$G$106) -> 0 | FH30: =IF(Inputs!$B$169=1,FF30*Inputs!$G$107*$J30,FF30*Inputs!$G$107) -> 0 | FI30: =FH30*Inputs!$E$136 -> 0 | FJ30: 0 | FK30: 0 | FX30: 2408496.354 | FY30: 223153.3205 | FZ30: 485488.5129 | GA30: 785.2782946 | GB30: 0 | GC30: 3117923.465 | GD30: 7484.683656 | GE30: 693.4750009 | GF30: 1508.712244 | GG30: 2.440343996 | GH30: 0 | GI30: 9689.311244
A31: =ADM!A31 -> 013011 | B31: =ADM!B31 -> 013 | C31: =ADM!C31 -> 011 | D31: =ADM!D31 -> Augusta Independent 013 - Augusta Independent School 011 AADA | E31: =ADM!E31 -> Augusta Independent | F31: =ADM!F31 -> Augusta Independent School | H31: 2100180 | I31: AUGUSTA INDEP SCH DIST | J31: =IF(Inputs!$B$169<>1,1,K31) -> 1.20461349 | K31: 1.20461349 | L31: =SUM('Model Student Counts'!I31:N31) -> 124.2216667 | M31: =SUM('Model Student Counts'!O31:Q31) -> 57.23266667 | N31: =SUM('Model Student Counts'!R31:U31) -> 110.798 | O31: 292.2523333 | Q31: =IF(Inputs!$B$178=1,IF(O31<Inputs!$B$179,1,0),0) -> 0 | S31: =IF(O31=0,0,VLOOKUP(A31,'Special Student Counts'!$A$5:$Q$1377,4,FALSE)) -> 41 | T31: =IF(Inputs!$B$61=1,VLOOKUP(A31,'Special Student Counts'!$A$5:$Q$1377,13),VLOOKUP(A31,'Special Student Counts'!$A$5:$Q$1377,9,FALSE)) -> 196 | U31: =IF(O31=0,0,VLOOKUP(A31,'Special Student Counts'!$A$5:$Q$1377,6,FALSE)) -> 0 | W31: =IF(Q31=1,0,'Model Student Counts'!I31/Inputs!$B$83) -> 1.580933333 | X31: =IF(Q31=1,0,'Model Student Counts'!J31/Inputs!$B$84) -> 1.327977778 | Y31: =IF(Q31=1,0,'Model Student Counts'!K31/Inputs!$B$85) -> 1.394333333 | Z31: =IF(Q31=1,0,'Model Student Counts'!L31/Inputs!$B$86) -> 1.372244444 | AA31: =IF(Q31=1,0,'Model Student Counts'!M31/Inputs!$B$87) -> 0.7767466667 | AB31: =IF(Q31=1,0,'Model Student Counts'!N31/Inputs!$B$88) -> 0.7868266667 | AC31: =IF(Q31=1,0,'Model Student Counts'!O31/Inputs!$B$89) -> 0.7627333333 | AD31: =IF(Q31=1,0,'Model Student Counts'!P31/Inputs!$B$90) -> 0.67596 | AE31: =IF(Q31=1,0,'Model Student Counts'!Q31/Inputs!$B$91) -> 0.8506133333 | AF31: =IF(Q31=1,0,'Model Student Counts'!R31/Inputs!$B$92) -> 1.170093333 | AG31: =IF(Q31=1,0,'Model Student Counts'!S31/Inputs!$B$93) -> 1.10608 | AH31: =IF(Q31=1,0,'Model Student Counts'!T31/Inputs!$B$94) -> 1.063986667 | AI31: =IF(Q31=1,0,'Model Student Counts'!U31/Inputs!$B$95) -> 1.09176 | AJ31: 7.239062222 | AK31: 2.289306667 | AL31: 4.43192 | AM31: 13.96028889 | AO31: =IF(Q31=1,0,Inputs!$B$55*AJ31) -> 1.447812444 | AP31: =IF(Q31=1,0,Inputs!$B$56*AK31) -> 0.4578613333 | AQ31: =IF(Q31=1,0,Inputs!$B$57*AL31) -> 1.477158936 | AR31: 3.382832714 | AT31: =IF(Q31=1,0,L31/Inputs!$C$140) -> 0.2760481481 | AU31: =IF(Q31=1,0,M31/Inputs!$D$140) -> 0.1271837037 | AV31: =IF(Q31=1,0,N31/Inputs!$E$140) -> 0.1846633333 | AW31: 0.5878951852 | AY31: =IF(Q31=1,0,(L31/Inputs!$C$134+M31/Inputs!$D$134+N31/Inputs!$E$134)) -> 1.461261667 | AZ31: =IF(Q31=1,0,(L31/Inputs!$C$135+M31/Inputs!$D$135+N31/Inputs!$E$135)) -> 0.5878951852 | BA31: =IF(Q31=1,0,L31/Inputs!$C$137+M31/Inputs!$D$137+N31/Inputs!$E$137) -> 0.9481708148 | BB31: =IF(Q31=1,0,L31/Inputs!$C$138+M31/Inputs!$D$138+N31/Inputs!$E$138) -> 1.360453704 | BC31: 4.35778137 | BE31: =IF(Q31=1,0,L31/Inputs!$C$142) -> 0.2760481481 | BF31: =IF(Q31=1,0,M31/Inputs!$D$142) -> 0.1271837037 | BG31: =IF(Q31=1,0,N31/Inputs!$E$142) -> 0.1846633333 | BH31: 0.5878951852 | BI31: 0 | BJ31: 0 | BK31: =IF(Q31=1,0,N31/Inputs!$E$143) -> 0.1846633333 | BL31: 0.1846633333 | BM31: =IF(Q31=1,0,L31/Inputs!$C$144) -> 0.5520962963 | BN31: =IF(Q31=1,0,M31/Inputs!$D$144) -> 0.2543674074 | BO31: =IF(Q31=1,0,N31/Inputs!$E$144) -> 0.55399 | BP31: 1.360453704 | BQ31: 2.133012222 | BS31: =IF(Inputs!$B$169=1,Inputs!$G$107*W31*$J31,W31*Inputs!$G$107) -> 127512.6 | BT31: =IF(Inputs!$B$169=1,Inputs!$G$107*X31*$J31,X31*Inputs!$G$107) -> 107110.0821 | BU31: =IF(Inputs!$B$169=1,Inputs!$G$107*Y31*$J31,Y31*Inputs!$G$107) -> 112462.0911 | BV31: =IF(Inputs!$B$169=1,Inputs!$G$107*Z31*$J31,Z31*Inputs!$G$107) -> 110680.4779 | BW31: =IF(Inputs!$B$169=1,Inputs!$G$107*AA31*$J31,AA31*Inputs!$G$107) -> 62649.69236 | BX31: =IF(Inputs!$B$169=1,Inputs!$G$107*AB31*$J31,AB31*Inputs!$G$107) -> 63462.7102 | BY31: =IF(Inputs!$B$169=1,Inputs!$G$107*AC31*$J31,AC31*Inputs!$G$107) -> 61519.42549 | BZ31: =IF(Inputs!$B$169=1,Inputs!$G$107*AD31*$J31,AD31*Inputs!$G$107) -> 54520.58936 | CA31: =IF(Inputs!$B$169=1,Inputs!$G$107*AE31*$J31,AE31*Inputs!$G$107) -> 68607.52152 | CB31: =IF(Inputs!$B$169=1,Inputs!$G$107*AF31*$J31,AF31*Inputs!$G$107) -> 94375.67036 | CC31: =IF(Inputs!$B$169=1,Inputs!$G$107*AG31*$J31,AG31*Inputs!$G$107) -> 89212.57689 | CD31: =IF(Inputs!$B$169=1,Inputs!$G$107*AH31*$J31,AH31*Inputs!$G$107) -> 85817.4746 | CE31: =IF(Inputs!$B$169=1,Inputs!$G$107*AI31*$J31,AI31*Inputs!$G$107) -> 88057.57535 | CF31: 583877.6536 | CG31: 184647.5364 | CH31: 357463.2972 | CI31: 1125988.487 | CJ31: =SUM(CF31:CH31)*Inputs!$E$136 -> 56299.42436 | CK31: 1182287.912 | CM31: =IF(Inputs!$B$169=1,Inputs!$G$107*AO31*$J31,AO31*Inputs!$G$107) -> 116775.5307 | CN31: =IF(Inputs!$B$169=1,Inputs!$G$107*AP31*$J31,AP31*Inputs!$G$107) -> 36929.50727 | CO31: =IF(Inputs!$B$169=1,Inputs!$G$107*AQ31*$J31,AQ31*Inputs!$G$107) -> 119142.517 | CP31: 272847.555 | CQ31: =SUM(CM31:CO31)*Inputs!$E$136 -> 13642.37775 | CR31: 286489.9327 | CT31: =IF(Inputs!$B$169=1,AT31*Inputs!$G$110*$J31,AT31*Inputs!$G$110) -> 27107.93907 | CU31: =IF(Inputs!$B$169=1,AU31*Inputs!$G$110*$J31,AU31*Inputs!$G$110) -> 12489.44474 | CV31: =IF(Inputs!$B$169=1,AV31*Inputs!$G$110*$J31,AV31*Inputs!$G$110) -> 18133.94664 | CW31: 57731.33046 | CY31: =IF(Inputs!$B$169=1, AY31*Inputs!$G$107*$J31,AY31*Inputs!$G$107) -> 117860.2983 | CZ31: =IF(Inputs!$B$169=1, AZ31*Inputs!$G$107*$J31,AZ31*Inputs!$G$107) -> 47417.5868 | DA31: =IF(Inputs!$B$169=1, BA31*Inputs!$G$109*$J31,BA31*Inputs!$G$109) -> 87525.13995 | DB31: =IF(Q31=1,0,BB31*Inputs!$G$113) -> 34002.39172 | DC31: =SUM(CY31:CZ31)*Inputs!$E$136 -> 8263.894257 | DD31: 295069.3111 | DF31: =IF(Inputs!$B$169=1,BE31*Inputs!$G$105*$J31, BE31*Inputs!$G$105) -> 25212.27013 | DG31: =IF(Inputs!$B$169=1, BF31*Inputs!$G$105*$J31, BF31*Inputs!$G$105) -> 11616.05291 | DH31: =IF(Inputs!$B$169=1,BG31*Inputs!$G$105*$J31,BG31*Inputs!$G$105) -> 16865.83255 | DI31: 53694.15559 | DJ31: =IF(Inputs!$B$169=1, (BI31*SUM(Inputs!$D$106:$E$106)*$J31 + BI31*Inputs!$F$106), BI31*Inputs!$G$106) -> 0 | DK31: =IF(Inputs!$B$169=1, (BJ31*SUM(Inputs!$D$106:$E$106)*$J31 + BJ31*Inputs!$F$106), BJ31*Inputs!$G$106) -> 0 | DL31: =IF(Inputs!$B$169=1,BK31*Inputs!$G$106*$J31,BK31*Inputs!$G$106) -> 16542.46198 | DM31: 16542.46198 | DN31: =BM31*Inputs!$G$112 -> 20623.41161 | DO31: =BN31*Inputs!$G$112 -> 9501.827448 | DP31: =BO31*Inputs!$G$112 -> 20694.15041 | DQ31: 50819.38946 | DR31: 121056.007 | DT31: =Inputs!$B$156*L31+Inputs!$B$157*M31+Inputs!$B$158*N31 -> 44793.25667 | DU31: =Inputs!$B$159*O31 -> 73063.08333 | DV31: =Inputs!$B$160*$O31 -> 7306.308333 | DW31: =Inputs!$B$161*$O31 -> 29225.23333 | DX31: =Inputs!$B$162*$O31 -> 7306.308333 | DY31: =O31*Inputs!$B$163 -> 73063.08333 | DZ31: 234757.2733 | EB31: =O31/Inputs!$E$146 -> 1.948348889 | EC31: =O31/Inputs!$E$146 -> 1.948348889 | ED31: =IF(Inputs!$B$169=1,EB31*Inputs!$G$107*$J31,EB31*Inputs!$G$107) -> 157147.0645 | EE31: =EC31*Inputs!$G$113 -> 48695.90339 | EF31: =ED31*Inputs!$E$136 -> 7857.353223 | EG31: =Inputs!$B$165*O31 -> 2922.523333 | EH31: 3.896697778 | EI31: 216622.8444 | EK31: =IF(Q31=1,0,T31/Inputs!$E$147) -> 1.633333333 | EL31: =IF(Q31=1,0,T31/Inputs!$E$148) -> 1.633333333 | EM31: =IF(Q31=1,0,T31/Inputs!$E$149) -> 1.633333333 | EN31: =IF(Q31=1,0,T31/Inputs!$E$150) -> 1.633333333 | EO31: =IF(Inputs!$B$169=1, EK31*Inputs!$G$107*$J31,EK31*Inputs!$G$107) -> 131739.0022 | EP31: =IF(Inputs!$B$169=1,EL31*Inputs!$G$107*$J31,EL31*Inputs!$G$107) -> 131739.0022 | EQ31: =IF(Inputs!$B$169=1,EM31*Inputs!$G$107*$J31,EM31*Inputs!$G$107) -> 131739.0022 | ER31: =IF(Inputs!$B$169=1,EN31*Inputs!$G$107*$J31,EN31*Inputs!$G$107) -> 131739.0022 | ES31: =SUM(EL31:ER31)*Inputs!$E$136 -> 26348.04545 | ET31: =IF(Q31=1,0,IF(SUM(EK31:EN31)>0,T31*4*Inputs!$B$165,0)) -> 7840 | EU31: 6.533333333 | EV31: 561144.0544 | EX31: 0 | EY31: =IF(Inputs!$B$169=1,EX31*Inputs!$G$107*$J31,EX31*Inputs!$G$107) -> 0 | EZ31: =EY31*Inputs!$E$136 -> 0 | FA31: =IF(Q31=1,0,U31*Inputs!$B$165) -> 0 | FB31: 0 | FC31: 0 | FE31: 0 | FF31: =IF(Q31=1,O31/Inputs!$B$97,0) -> 0 | FG31: =IF(Inputs!$B$169=1,FE31*Inputs!$G$106*$J31,FE31*Inputs!$G$106) -> 0 | FH31: =IF(Inputs!$B$169=1,FF31*Inputs!$G$107*$J31,FF31*Inputs!$G$107) -> 0 | FI31: =FH31*Inputs!$E$136 -> 0 | FJ31: 0 | FK31: 0 | FX31: 2177391.766 | FY31: 216622.8444 | FZ31: 561144.0544 | GA31: 0 | GB31: 0 | GC31: 2955158.665 | GD31: 7450.38283 | GE31: 741.2185283 | GF31: 1920.066978 | GG31: 0 | GH31: 0 | GI31: 10111.66834
A32: =ADM!A32 -> 015005 | B32: =ADM!B32 -> 015 | C32: =ADM!C32 -> 005 | D32: =ADM!D32 -> Ballard County 015 - Ballard County Middle School 005 AADA | E32: =ADM!E32 -> Ballard County | F32: =ADM!F32 -> Ballard County Middle School | H32: 2100210 | I32: BALLARD CO SCH DIST | J32: =IF(Inputs!$B$169<>1,1,K32) -> 0.9815311906 | K32: 0.9815311906 | L32: =SUM('Model Student Counts'!I32:N32) -> 0 | M32: =SUM('Model Student Counts'!O32:Q32) -> 341.89 | N32: =SUM('Model Student Counts'!R32:U32) -> 0 | O32: 341.89 | Q32: =IF(Inputs!$B$178=1,IF(O32<Inputs!$B$179,1,0),0) -> 0 | S32: =IF(O32=0,0,VLOOKUP(A32,'Special Student Counts'!$A$5:$Q$1377,4,FALSE)) -> 33 | T32: =IF(Inputs!$B$61=1,VLOOKUP(A32,'Special Student Counts'!$A$5:$Q$1377,13),VLOOKUP(A32,'Special Student Counts'!$A$5:$Q$1377,9,FALSE)) -> 201 | U32: =IF(O32=0,0,VLOOKUP(A32,'Special Student Counts'!$A$5:$Q$1377,6,FALSE)) -> 0 | W32: =IF(Q32=1,0,'Model Student Counts'!I32/Inputs!$B$83) -> 0 | X32: =IF(Q32=1,0,'Model Student Counts'!J32/Inputs!$B$84) -> 0 | Y32: =IF(Q32=1,0,'Model Student Counts'!K32/Inputs!$B$85) -> 0 | Z32: =IF(Q32=1,0,'Model Student Counts'!L32/Inputs!$B$86) -> 0 | AA32: =IF(Q32=1,0,'Model Student Counts'!M32/Inputs!$B$87) -> 0 | AB32: =IF(Q32=1,0,'Model Student Counts'!N32/Inputs!$B$88) -> 0 | AC32: =IF(Q32=1,0,'Model Student Counts'!O32/Inputs!$B$89) -> 4.6808 | AD32: =IF(Q32=1,0,'Model Student Counts'!P32/Inputs!$B$90) -> 4.2792 | AE32: =IF(Q32=1,0,'Model Student Counts'!Q32/Inputs!$B$91) -> 4.7156 | AF32: =IF(Q32=1,0,'Model Student Counts'!R32/Inputs!$B$92) -> 0 | AG32: =IF(Q32=1,0,'Model Student Counts'!S32/Inputs!$B$93) -> 0 | AH32: =IF(Q32=1,0,'Model Student Counts'!T32/Inputs!$B$94) -> 0 | AI32: =IF(Q32=1,0,'Model Student Counts'!U32/Inputs!$B$95) -> 0 | AJ32: 0 | AK32: 13.6756 | AL32: 0 | AM32: 13.6756 | AO32: =IF(Q32=1,0,Inputs!$B$55*AJ32) -> 0 | AP32: =IF(Q32=1,0,Inputs!$B$56*AK32) -> 2.73512 | AQ32: =IF(Q32=1,0,Inputs!$B$57*AL32) -> 0 | AR32: 2.73512 | AT32: =IF(Q32=1,0,L32/Inputs!$C$140) -> 0 | AU32: =IF(Q32=1,0,M32/Inputs!$D$140) -> 0.7597555556 | AV32: =IF(Q32=1,0,N32/Inputs!$E$140) -> 0 | AW32: 0.7597555556 | AY32: =IF(Q32=1,0,(L32/Inputs!$C$134+M32/Inputs!$D$134+N32/Inputs!$E$134)) -> 1.70945 | AZ32: =IF(Q32=1,0,(L32/Inputs!$C$135+M32/Inputs!$D$135+N32/Inputs!$E$135)) -> 0.7597555556 | BA32: =IF(Q32=1,0,L32/Inputs!$C$137+M32/Inputs!$D$137+N32/Inputs!$E$137) -> 1.36756 | BB32: =IF(Q32=1,0,L32/Inputs!$C$138+M32/Inputs!$D$138+N32/Inputs!$E$138) -> 1.519511111 | BC32: 5.356276667 | BE32: =IF(Q32=1,0,L32/Inputs!$C$142) -> 0 | BF32: =IF(Q32=1,0,M32/Inputs!$D$142) -> 0.7597555556 | BG32: =IF(Q32=1,0,N32/Inputs!$E$142) -> 0 | BH32: 0.7597555556 | BI32: 0 | BJ32: 0 | BK32: =IF(Q32=1,0,N32/Inputs!$E$143) -> 0 | BL32: 0 | BM32: =IF(Q32=1,0,L32/Inputs!$C$144) -> 0 | BN32: =IF(Q32=1,0,M32/Inputs!$D$144) -> 1.519511111 | BO32: =IF(Q32=1,0,N32/Inputs!$E$144) -> 0 | BP32: 1.519511111 | BQ32: 2.279266667 | BS32: =IF(Inputs!$B$169=1,Inputs!$G$107*W32*$J32,W32*Inputs!$G$107) -> 0 | BT32: =IF(Inputs!$B$169=1,Inputs!$G$107*X32*$J32,X32*Inputs!$G$107) -> 0 | BU32: =IF(Inputs!$B$169=1,Inputs!$G$107*Y32*$J32,Y32*Inputs!$G$107) -> 0 | BV32: =IF(Inputs!$B$169=1,Inputs!$G$107*Z32*$J32,Z32*Inputs!$G$107) -> 0 | BW32: =IF(Inputs!$B$169=1,Inputs!$G$107*AA32*$J32,AA32*Inputs!$G$107) -> 0 | BX32: =IF(Inputs!$B$169=1,Inputs!$G$107*AB32*$J32,AB32*Inputs!$G$107) -> 0 | BY32: =IF(Inputs!$B$169=1,Inputs!$G$107*AC32*$J32,AC32*Inputs!$G$107) -> 307621.0232 | BZ32: =IF(Inputs!$B$169=1,Inputs!$G$107*AD32*$J32,AD32*Inputs!$G$107) -> 281227.9701 | CA32: =IF(Inputs!$B$169=1,Inputs!$G$107*AE32*$J32,AE32*Inputs!$G$107) -> 309908.0706 | CB32: =IF(Inputs!$B$169=1,Inputs!$G$107*AF32*$J32,AF32*Inputs!$G$107) -> 0 | CC32: =IF(Inputs!$B$169=1,Inputs!$G$107*AG32*$J32,AG32*Inputs!$G$107) -> 0 | CD32: =IF(Inputs!$B$169=1,Inputs!$G$107*AH32*$J32,AH32*Inputs!$G$107) -> 0 | CE32: =IF(Inputs!$B$169=1,Inputs!$G$107*AI32*$J32,AI32*Inputs!$G$107) -> 0 | CF32: 0 | CG32: 898757.064 | CH32: 0 | CI32: 898757.064 | CJ32: =SUM(CF32:CH32)*Inputs!$E$136 -> 44937.8532 | CK32: 943694.9172 | CM32: =IF(Inputs!$B$169=1,Inputs!$G$107*AO32*$J32,AO32*Inputs!$G$107) -> 0 | CN32: =IF(Inputs!$B$169=1,Inputs!$G$107*AP32*$J32,AP32*Inputs!$G$107) -> 179751.4128 | CO32: =IF(Inputs!$B$169=1,Inputs!$G$107*AQ32*$J32,AQ32*Inputs!$G$107) -> 0 | CP32: 179751.4128 | CQ32: =SUM(CM32:CO32)*Inputs!$E$136 -> 8987.57064 | CR32: 188738.9834 | CT32: =IF(Inputs!$B$169=1,AT32*Inputs!$G$110*$J32,AT32*Inputs!$G$110) -> 0 | CU32: =IF(Inputs!$B$169=1,AU32*Inputs!$G$110*$J32,AU32*Inputs!$G$110) -> 60791.36989 | CV32: =IF(Inputs!$B$169=1,AV32*Inputs!$G$110*$J32,AV32*Inputs!$G$110) -> 0 | CW32: 60791.36989 | CY32: =IF(Inputs!$B$169=1, AY32*Inputs!$G$107*$J32,AY32*Inputs!$G$107) -> 112344.633 | CZ32: =IF(Inputs!$B$169=1, AZ32*Inputs!$G$107*$J32,AZ32*Inputs!$G$107) -> 49930.948 | DA32: =IF(Inputs!$B$169=1, BA32*Inputs!$G$109*$J32,BA32*Inputs!$G$109) -> 102860.588 | DB32: =IF(Q32=1,0,BB32*Inputs!$G$113) -> 37977.78041 | DC32: =SUM(CY32:CZ32)*Inputs!$E$136 -> 8113.77905 | DD32: 311227.7285 | DF32: =IF(Inputs!$B$169=1,BE32*Inputs!$G$105*$J32, BE32*Inputs!$G$105) -> 0 | DG32: =IF(Inputs!$B$169=1, BF32*Inputs!$G$105*$J32, BF32*Inputs!$G$105) -> 56540.20525 | DH32: =IF(Inputs!$B$169=1,BG32*Inputs!$G$105*$J32,BG32*Inputs!$G$105) -> 0 | DI32: 56540.20525 | DJ32: =IF(Inputs!$B$169=1, (BI32*SUM(Inputs!$D$106:$E$106)*$J32 + BI32*Inputs!$F$106), BI32*Inputs!$G$106) -> 0 | DK32: =IF(Inputs!$B$169=1, (BJ32*SUM(Inputs!$D$106:$E$106)*$J32 + BJ32*Inputs!$F$106), BJ32*Inputs!$G$106) -> 0 | DL32: =IF(Inputs!$B$169=1,BK32*Inputs!$G$106*$J32,BK32*Inputs!$G$106) -> 0 | DM32: 0 | DN32: =BM32*Inputs!$G$112 -> 0 | DO32: =BN32*Inputs!$G$112 -> 56760.93699 | DP32: =BO32*Inputs!$G$112 -> 0 | DQ32: 56760.93699 | DR32: 113301.1422 | DT32: =Inputs!$B$156*L32+Inputs!$B$157*M32+Inputs!$B$158*N32 -> 47864.6 | DU32: =Inputs!$B$159*O32 -> 85472.5 | DV32: =Inputs!$B$160*$O32 -> 8547.25 | DW32: =Inputs!$B$161*$O32 -> 34189 | DX32: =Inputs!$B$162*$O32 -> 8547.25 | DY32: =O32*Inputs!$B$163 -> 85472.5 | DZ32: 270093.1 | EB32: =O32/Inputs!$E$146 -> 2.279266667 | EC32: =O32/Inputs!$E$146 -> 2.279266667 | ED32: =IF(Inputs!$B$169=1,EB32*Inputs!$G$107*$J32,EB32*Inputs!$G$107) -> 149792.844 | EE32: =EC32*Inputs!$G$113 -> 56966.67062 | EF32: =ED32*Inputs!$E$136 -> 7489.6422 | EG32: =Inputs!$B$165*O32 -> 3418.9 | EH32: 4.558533333 | EI32: 217668.0568 | EK32: =IF(Q32=1,0,T32/Inputs!$E$147) -> 1.675 | EL32: =IF(Q32=1,0,T32/Inputs!$E$148) -> 1.675 | EM32: =IF(Q32=1,0,T32/Inputs!$E$149) -> 1.675 | EN32: =IF(Q32=1,0,T32/Inputs!$E$150) -> 1.675 | EO32: =IF(Inputs!$B$169=1, EK32*Inputs!$G$107*$J32,EK32*Inputs!$G$107) -> 110080.5875 | EP32: =IF(Inputs!$B$169=1,EL32*Inputs!$G$107*$J32,EL32*Inputs!$G$107) -> 110080.5875 | EQ32: =IF(Inputs!$B$169=1,EM32*Inputs!$G$107*$J32,EM32*Inputs!$G$107) -> 110080.5875 | ER32: =IF(Inputs!$B$169=1,EN32*Inputs!$G$107*$J32,EN32*Inputs!$G$107) -> 110080.5875 | ES32: =SUM(EL32:ER32)*Inputs!$E$136 -> 22016.36875 | ET32: =IF(Q32=1,0,IF(SUM(EK32:EN32)>0,T32*4*Inputs!$B$165,0)) -> 8040 | EU32: 6.7 | EV32: 470378.7187 | EX32: 0 | EY32: =IF(Inputs!$B$169=1,EX32*Inputs!$G$107*$J32,EX32*Inputs!$G$107) -> 0 | EZ32: =EY32*Inputs!$E$136 -> 0 | FA32: =IF(Q32=1,0,U32*Inputs!$B$165) -> 0 | FB32: 0 | FC32: 0 | FE32: 0 | FF32: =IF(Q32=1,O32/Inputs!$B$97,0) -> 0 | FG32: =IF(Inputs!$B$169=1,FE32*Inputs!$G$106*$J32,FE32*Inputs!$G$106) -> 0 | FH32: =IF(Inputs!$B$169=1,FF32*Inputs!$G$107*$J32,FF32*Inputs!$G$107) -> 0 | FI32: =FH32*Inputs!$E$136 -> 0 | FJ32: 0 | FK32: 0 | FX32: 1887847.241 | FY32: 217668.0568 | FZ32: 470378.7187 | GA32: 0 | GB32: 0 | GC32: 2575894.017 | GD32: 5521.79719 | GE32: 636.6610805 | GF32: 1375.818885 | GG32: 0 | GH32: 0 | GI32: 7534.277156
A33: =ADM!A33 -> 015010 | B33: =ADM!B33 -> 015 | C33: =ADM!C33 -> 010 | D33: =ADM!D33 -> Ballard County 015 - Ballard Memorial High School 010 AADA | E33: =ADM!E33 -> Ballard County | F33: =ADM!F33 -> Ballard Memorial High School | H33: 2100210 | I33: BALLARD CO SCH DIST | J33: =IF(Inputs!$B$169<>1,1,K33) -> 0.9815311906 | K33: 0.9815311906 | L33: =SUM('Model Student Counts'!I33:N33) -> 0 | M33: =SUM('Model Student Counts'!O33:Q33) -> 0 | N33: =SUM('Model Student Counts'!R33:U33) -> 415.9006667 | O33: 415.9006667 | Q33: =IF(Inputs!$B$178=1,IF(O33<Inputs!$B$179,1,0),0) -> 0 | S33: =IF(O33=0,0,VLOOKUP(A33,'Special Student Counts'!$A$5:$Q$1377,4,FALSE)) -> 20 | T33: =IF(Inputs!$B$61=1,VLOOKUP(A33,'Special Student Counts'!$A$5:$Q$1377,13),VLOOKUP(A33,'Special Student Counts'!$A$5:$Q$1377,9,FALSE)) -> 191 | U33: =IF(O33=0,0,VLOOKUP(A33,'Special Student Counts'!$A$5:$Q$1377,6,FALSE)) -> 1 | W33: =IF(Q33=1,0,'Model Student Counts'!I33/Inputs!$B$83) -> 0 | X33: =IF(Q33=1,0,'Model Student Counts'!J33/Inputs!$B$84) -> 0 | Y33: =IF(Q33=1,0,'Model Student Counts'!K33/Inputs!$B$85) -> 0 | Z33: =IF(Q33=1,0,'Model Student Counts'!L33/Inputs!$B$86) -> 0 | AA33: =IF(Q33=1,0,'Model Student Counts'!M33/Inputs!$B$87) -> 0 | AB33: =IF(Q33=1,0,'Model Student Counts'!N33/Inputs!$B$88) -> 0 | AC33: =IF(Q33=1,0,'Model Student Counts'!O33/Inputs!$B$89) -> 0 | AD33: =IF(Q33=1,0,'Model Student Counts'!P33/Inputs!$B$90) -> 0 | AE33: =IF(Q33=1,0,'Model Student Counts'!Q33/Inputs!$B$91) -> 0 | AF33: =IF(Q33=1,0,'Model Student Counts'!R33/Inputs!$B$92) -> 4.488466667 | AG33: =IF(Q33=1,0,'Model Student Counts'!S33/Inputs!$B$93) -> 4.298066667 | AH33: =IF(Q33=1,0,'Model Student Counts'!T33/Inputs!$B$94) -> 3.971013333 | AI33: =IF(Q33=1,0,'Model Student Counts'!U33/Inputs!$B$95) -> 3.87848 | AJ33: 0 | AK33: 0 | AL33: 16.63602667 | AM33: 16.63602667 | AO33: =IF(Q33=1,0,Inputs!$B$55*AJ33) -> 0 | AP33: =IF(Q33=1,0,Inputs!$B$56*AK33) -> 0 | AQ33: =IF(Q33=1,0,Inputs!$B$57*AL33) -> 5.544787688 | AR33: 5.544787688 | AT33: =IF(Q33=1,0,L33/Inputs!$C$140) -> 0 | AU33: =IF(Q33=1,0,M33/Inputs!$D$140) -> 0 | AV33: =IF(Q33=1,0,N33/Inputs!$E$140) -> 0.6931677778 | AW33: 0.6931677778 | AY33: =IF(Q33=1,0,(L33/Inputs!$C$134+M33/Inputs!$D$134+N33/Inputs!$E$134)) -> 2.079503333 | AZ33: =IF(Q33=1,0,(L33/Inputs!$C$135+M33/Inputs!$D$135+N33/Inputs!$E$135)) -> 0.6931677778 | BA33: =IF(Q33=1,0,L33/Inputs!$C$137+M33/Inputs!$D$137+N33/Inputs!$E$137) -> 1.663602667 | BB33: =IF(Q33=1,0,L33/Inputs!$C$138+M33/Inputs!$D$138+N33/Inputs!$E$138) -> 2.079503333 | BC33: 6.515777111 | BE33: =IF(Q33=1,0,L33/Inputs!$C$142) -> 0 | BF33: =IF(Q33=1,0,M33/Inputs!$D$142) -> 0 | BG33: =IF(Q33=1,0,N33/Inputs!$E$142) -> 0.6931677778 | BH33: 0.6931677778 | BI33: 0 | BJ33: 0 | BK33: =IF(Q33=1,0,N33/Inputs!$E$143) -> 0.6931677778 | BL33: 0.6931677778 | BM33: =IF(Q33=1,0,L33/Inputs!$C$144) -> 0 | BN33: =IF(Q33=1,0,M33/Inputs!$D$144) -> 0 | BO33: =IF(Q33=1,0,N33/Inputs!$E$144) -> 2.079503333 | BP33: 2.079503333 | BQ33: 3.465838889 | BS33: =IF(Inputs!$B$169=1,Inputs!$G$107*W33*$J33,W33*Inputs!$G$107) -> 0 | BT33: =IF(Inputs!$B$169=1,Inputs!$G$107*X33*$J33,X33*Inputs!$G$107) -> 0 | BU33: =IF(Inputs!$B$169=1,Inputs!$G$107*Y33*$J33,Y33*Inputs!$G$107) -> 0 | BV33: =IF(Inputs!$B$169=1,Inputs!$G$107*Z33*$J33,Z33*Inputs!$G$107) -> 0 | BW33: =IF(Inputs!$B$169=1,Inputs!$G$107*AA33*$J33,AA33*Inputs!$G$107) -> 0 | BX33: =IF(Inputs!$B$169=1,Inputs!$G$107*AB33*$J33,AB33*Inputs!$G$107) -> 0 | BY33: =IF(Inputs!$B$169=1,Inputs!$G$107*AC33*$J33,AC33*Inputs!$G$107) -> 0 | BZ33: =IF(Inputs!$B$169=1,Inputs!$G$107*AD33*$J33,AD33*Inputs!$G$107) -> 0 | CA33: =IF(Inputs!$B$169=1,Inputs!$G$107*AE33*$J33,AE33*Inputs!$G$107) -> 0 | CB33: =IF(Inputs!$B$169=1,Inputs!$G$107*AF33*$J33,AF33*Inputs!$G$107) -> 294980.9239 | CC33: =IF(Inputs!$B$169=1,Inputs!$G$107*AG33*$J33,AG33*Inputs!$G$107) -> 282467.8828 | CD33: =IF(Inputs!$B$169=1,Inputs!$G$107*AH33*$J33,AH33*Inputs!$G$107) -> 260974.0183 | CE33: =IF(Inputs!$B$169=1,Inputs!$G$107*AI33*$J33,AI33*Inputs!$G$107) -> 254892.7504 | CF33: 0 | CG33: 0 | CH33: 1093315.575 | CI33: 1093315.575 | CJ33: =SUM(CF33:CH33)*Inputs!$E$136 -> 54665.77877 | CK33: 1147981.354 | CM33: =IF(Inputs!$B$169=1,Inputs!$G$107*AO33*$J33,AO33*Inputs!$G$107) -> 0 | CN33: =IF(Inputs!$B$169=1,Inputs!$G$107*AP33*$J33,AP33*Inputs!$G$107) -> 0 | CO33: =IF(Inputs!$B$169=1,Inputs!$G$107*AQ33*$J33,AQ33*Inputs!$G$107) -> 364402.0813 | CP33: 364402.0813 | CQ33: =SUM(CM33:CO33)*Inputs!$E$136 -> 18220.10406 | CR33: 382622.1853 | CT33: =IF(Inputs!$B$169=1,AT33*Inputs!$G$110*$J33,AT33*Inputs!$G$110) -> 0 | CU33: =IF(Inputs!$B$169=1,AU33*Inputs!$G$110*$J33,AU33*Inputs!$G$110) -> 0 | CV33: =IF(Inputs!$B$169=1,AV33*Inputs!$G$110*$J33,AV33*Inputs!$G$110) -> 55463.39012 | CW33: 55463.39012 | CY33: =IF(Inputs!$B$169=1, AY33*Inputs!$G$107*$J33,AY33*Inputs!$G$107) -> 136664.4469 | CZ33: =IF(Inputs!$B$169=1, AZ33*Inputs!$G$107*$J33,AZ33*Inputs!$G$107) -> 45554.81564 | DA33: =IF(Inputs!$B$169=1, BA33*Inputs!$G$109*$J33,BA33*Inputs!$G$109) -> 125127.3425 | DB33: =IF(Q33=1,0,BB33*Inputs!$G$113) -> 51973.9016 | DC33: =SUM(CY33:CZ33)*Inputs!$E$136 -> 9110.963128 | DD33: 368431.4698 | DF33: =IF(Inputs!$B$169=1,BE33*Inputs!$G$105*$J33, BE33*Inputs!$G$105) -> 0 | DG33: =IF(Inputs!$B$169=1, BF33*Inputs!$G$105*$J33, BF33*Inputs!$G$105) -> 0 | DH33: =IF(Inputs!$B$169=1,BG33*Inputs!$G$105*$J33,BG33*Inputs!$G$105) -> 51584.81322 | DI33: 51584.81322 | DJ33: =IF(Inputs!$B$169=1, (BI33*SUM(Inputs!$D$106:$E$106)*$J33 + BI33*Inputs!$F$106), BI33*Inputs!$G$106) -> 0 | DK33: =IF(Inputs!$B$169=1, (BJ33*SUM(Inputs!$D$106:$E$106)*$J33 + BJ33*Inputs!$F$106), BJ33*Inputs!$G$106) -> 0 | DL33: =IF(Inputs!$B$169=1,BK33*Inputs!$G$106*$J33,BK33*Inputs!$G$106) -> 50595.7716 | DM33: 50595.7716 | DN33: =BM33*Inputs!$G$112 -> 0 | DO33: =BN33*Inputs!$G$112 -> 0 | DP33: =BO33*Inputs!$G$112 -> 77679.29882 | DQ33: 77679.29882 | DR33: 179859.8836 | DT33: =Inputs!$B$156*L33+Inputs!$B$157*M33+Inputs!$B$158*N33 -> 72782.61667 | DU33: =Inputs!$B$159*O33 -> 103975.1667 | DV33: =Inputs!$B$160*$O33 -> 10397.51667 | DW33: =Inputs!$B$161*$O33 -> 41590.06667 | DX33: =Inputs!$B$162*$O33 -> 10397.51667 | DY33: =O33*Inputs!$B$163 -> 103975.1667 | DZ33: 343118.05 | EB33: =O33/Inputs!$E$146 -> 2.772671111 | EC33: =O33/Inputs!$E$146 -> 2.772671111 | ED33: =IF(Inputs!$B$169=1,EB33*Inputs!$G$107*$J33,EB33*Inputs!$G$107) -> 182219.2626 | EE33: =EC33*Inputs!$G$113 -> 69298.53546 | EF33: =ED33*Inputs!$E$136 -> 9110.963128 | EG33: =Inputs!$B$165*O33 -> 4159.006667 | EH33: 5.545342222 | EI33: 264787.7678 | EK33: =IF(Q33=1,0,T33/Inputs!$E$147) -> 1.591666667 | EL33: =IF(Q33=1,0,T33/Inputs!$E$148) -> 1.591666667 | EM33: =IF(Q33=1,0,T33/Inputs!$E$149) -> 1.591666667 | EN33: =IF(Q33=1,0,T33/Inputs!$E$150) -> 1.591666667 | EO33: =IF(Inputs!$B$169=1, EK33*Inputs!$G$107*$J33,EK33*Inputs!$G$107) -> 104603.9413 | EP33: =IF(Inputs!$B$169=1,EL33*Inputs!$G$107*$J33,EL33*Inputs!$G$107) -> 104603.9413 | EQ33: =IF(Inputs!$B$169=1,EM33*Inputs!$G$107*$J33,EM33*Inputs!$G$107) -> 104603.9413 | ER33: =IF(Inputs!$B$169=1,EN33*Inputs!$G$107*$J33,EN33*Inputs!$G$107) -> 104603.9413 | ES33: =SUM(EL33:ER33)*Inputs!$E$136 -> 20921.02702 | ET33: =IF(Q33=1,0,IF(SUM(EK33:EN33)>0,T33*4*Inputs!$B$165,0)) -> 7640 | EU33: 6.366666667 | EV33: 446976.7924 | EX33: 0.01 | EY33: =IF(Inputs!$B$169=1,EX33*Inputs!$G$107*$J33,EX33*Inputs!$G$107) -> 657.1975372 | EZ33: =EY33*Inputs!$E$136 -> 32.85987686 | FA33: =IF(Q33=1,0,U33*Inputs!$B$165) -> 10 | FB33: 0.01 | FC33: 700.0574141 | FE33: 0 | FF33: =IF(Q33=1,O33/Inputs!$B$97,0) -> 0 | FG33: =IF(Inputs!$B$169=1,FE33*Inputs!$G$106*$J33,FE33*Inputs!$G$106) -> 0 | FH33: =IF(Inputs!$B$169=1,FF33*Inputs!$G$107*$J33,FF33*Inputs!$G$107) -> 0 | FI33: =FH33*Inputs!$E$136 -> 0 | FJ33: 0 | FK33: 0 | FX33: 2477476.333 | FY33: 264787.7678 | FZ33: 446976.7924 | GA33: 700.0574141 | GB33: 0 | GC33: 3189940.951 | GD33: 5956.894354 | GE33: 636.6610805 | GF33: 1074.720067 | GG33: 1.683232248 | GH33: 0 | GI33: 7669.958734
A34: =ADM!A34 -> 015050 | B34: =ADM!B34 -> 015 | C34: =ADM!C34 -> 050 | D34: =ADM!D34 -> Ballard County 015 - Ballard County Elementary School 050 AADA | E34: =ADM!E34 -> Ballard County | F34: =ADM!F34 -> Ballard County Elementary School | H34: 2100210 | I34: BALLARD CO SCH DIST | J34: =IF(Inputs!$B$169<>1,1,K34) -> 0.9815311906 | K34: 0.9815311906 | L34: =SUM('Model Student Counts'!I34:N34) -> 576.4016667 | M34: =SUM('Model Student Counts'!O34:Q34) -> 0 | N34: =SUM('Model Student Counts'!R34:U34) -> 0 | O34: 576.4016667 | Q34: =IF(Inputs!$B$178=1,IF(O34<Inputs!$B$179,1,0),0) -> 0 | S34: =IF(O34=0,0,VLOOKUP(A34,'Special Student Counts'!$A$5:$Q$1377,4,FALSE)) -> 77 | T34: =IF(Inputs!$B$61=1,VLOOKUP(A34,'Special Student Counts'!$A$5:$Q$1377,13),VLOOKUP(A34,'Special Student Counts'!$A$5:$Q$1377,9,FALSE)) -> 353 | U34: =IF(O34=0,0,VLOOKUP(A34,'Special Student Counts'!$A$5:$Q$1377,6,FALSE)) -> 0 | W34: =IF(Q34=1,0,'Model Student Counts'!I34/Inputs!$B$83) -> 5.807777778 | X34: =IF(Q34=1,0,'Model Student Counts'!J34/Inputs!$B$84) -> 5.962511111 | Y34: =IF(Q34=1,0,'Model Student Counts'!K34/Inputs!$B$85) -> 6.462755556 | Z34: =IF(Q34=1,0,'Model Student Counts'!L34/Inputs!$B$86) -> 6.634244444 | AA34: =IF(Q34=1,0,'Model Student Counts'!M34/Inputs!$B$87) -> 4.04688 | AB34: =IF(Q34=1,0,'Model Student Counts'!N34/Inputs!$B$88) -> 4.088813333 | AC34: =IF(Q34=1,0,'Model Student Counts'!O34/Inputs!$B$89) -> 0 | AD34: =IF(Q34=1,0,'Model Student Counts'!P34/Inputs!$B$90) -> 0 | AE34: =IF(Q34=1,0,'Model Student Counts'!Q34/Inputs!$B$91) -> 0 | AF34: =IF(Q34=1,0,'Model Student Counts'!R34/Inputs!$B$92) -> 0 | AG34: =IF(Q34=1,0,'Model Student Counts'!S34/Inputs!$B$93) -> 0 | AH34: =IF(Q34=1,0,'Model Student Counts'!T34/Inputs!$B$94) -> 0 | AI34: =IF(Q34=1,0,'Model Student Counts'!U34/Inputs!$B$95) -> 0 | AJ34: 33.00298222 | AK34: 0 | AL34: 0 | AM34: 33.00298222 | AO34: =IF(Q34=1,0,Inputs!$B$55*AJ34) -> 6.600596444 | AP34: =IF(Q34=1,0,Inputs!$B$56*AK34) -> 0 | AQ34: =IF(Q34=1,0,Inputs!$B$57*AL34) -> 0 | AR34: 6.600596444 | AT34: =IF(Q34=1,0,L34/Inputs!$C$140) -> 1.280892593 | AU34: =IF(Q34=1,0,M34/Inputs!$D$140) -> 0 | AV34: =IF(Q34=1,0,N34/Inputs!$E$140) -> 0 | AW34: 1.280892593 | AY34: =IF(Q34=1,0,(L34/Inputs!$C$134+M34/Inputs!$D$134+N34/Inputs!$E$134)) -> 2.882008333 | AZ34: =IF(Q34=1,0,(L34/Inputs!$C$135+M34/Inputs!$D$135+N34/Inputs!$E$135)) -> 1.280892593 | BA34: =IF(Q34=1,0,L34/Inputs!$C$137+M34/Inputs!$D$137+N34/Inputs!$E$137) -> 1.280892593 | BB34: =IF(Q34=1,0,L34/Inputs!$C$138+M34/Inputs!$D$138+N34/Inputs!$E$138) -> 2.561785185 | BC34: 8.005578704 | BE34: =IF(Q34=1,0,L34/Inputs!$C$142) -> 1.280892593 | BF34: =IF(Q34=1,0,M34/Inputs!$D$142) -> 0 | BG34: =IF(Q34=1,0,N34/Inputs!$E$142) -> 0 | BH34: 1.280892593 | BI34: 0 | BJ34: 0 | BK34: =IF(Q34=1,0,N34/Inputs!$E$143) -> 0 | BL34: 0 | BM34: =IF(Q34=1,0,L34/Inputs!$C$144) -> 2.561785185 | BN34: =IF(Q34=1,0,M34/Inputs!$D$144) -> 0 | BO34: =IF(Q34=1,0,N34/Inputs!$E$144) -> 0 | BP34: 2.561785185 | BQ34: 3.842677778 | BS34: =IF(Inputs!$B$169=1,Inputs!$G$107*W34*$J34,W34*Inputs!$G$107) -> 381685.7252 | BT34: =IF(Inputs!$B$169=1,Inputs!$G$107*X34*$J34,X34*Inputs!$G$107) -> 391854.7618 | BU34: =IF(Inputs!$B$169=1,Inputs!$G$107*Y34*$J34,Y34*Inputs!$G$107) -> 424730.7035 | BV34: =IF(Inputs!$B$169=1,Inputs!$G$107*Z34*$J34,Z34*Inputs!$G$107) -> 436000.911 | BW34: =IF(Inputs!$B$169=1,Inputs!$G$107*AA34*$J34,AA34*Inputs!$G$107) -> 265959.9569 | BX34: =IF(Inputs!$B$169=1,Inputs!$G$107*AB34*$J34,AB34*Inputs!$G$107) -> 268715.8053 | BY34: =IF(Inputs!$B$169=1,Inputs!$G$107*AC34*$J34,AC34*Inputs!$G$107) -> 0 | BZ34: =IF(Inputs!$B$169=1,Inputs!$G$107*AD34*$J34,AD34*Inputs!$G$107) -> 0 | CA34: =IF(Inputs!$B$169=1,Inputs!$G$107*AE34*$J34,AE34*Inputs!$G$107) -> 0 | CB34: =IF(Inputs!$B$169=1,Inputs!$G$107*AF34*$J34,AF34*Inputs!$G$107) -> 0 | CC34: =IF(Inputs!$B$169=1,Inputs!$G$107*AG34*$J34,AG34*Inputs!$G$107) -> 0 | CD34: =IF(Inputs!$B$169=1,Inputs!$G$107*AH34*$J34,AH34*Inputs!$G$107) -> 0 | CE34: =IF(Inputs!$B$169=1,Inputs!$G$107*AI34*$J34,AI34*Inputs!$G$107) -> 0 | CF34: 2168947.864 | CG34: 0 | CH34: 0 | CI34: 2168947.864 | CJ34: =SUM(CF34:CH34)*Inputs!$E$136 -> 108447.3932 | CK34: 2277395.257 | CM34: =IF(Inputs!$B$169=1,Inputs!$G$107*AO34*$J34,AO34*Inputs!$G$107) -> 433789.5727 | CN34: =IF(Inputs!$B$169=1,Inputs!$G$107*AP34*$J34,AP34*Inputs!$G$107) -> 0 | CO34: =IF(Inputs!$B$169=1,Inputs!$G$107*AQ34*$J34,AQ34*Inputs!$G$107) -> 0 | CP34: 433789.5727 | CQ34: =SUM(CM34:CO34)*Inputs!$E$136 -> 21689.47864 | CR34: 455479.0514 | CT34: =IF(Inputs!$B$169=1,AT34*Inputs!$G$110*$J34,AT34*Inputs!$G$110) -> 102489.8269 | CU34: =IF(Inputs!$B$169=1,AU34*Inputs!$G$110*$J34,AU34*Inputs!$G$110) -> 0 | CV34: =IF(Inputs!$B$169=1,AV34*Inputs!$G$110*$J34,AV34*Inputs!$G$110) -> 0 | CW34: 102489.8269 | CY34: =IF(Inputs!$B$169=1, AY34*Inputs!$G$107*$J34,AY34*Inputs!$G$107) -> 189404.8779 | CZ34: =IF(Inputs!$B$169=1, AZ34*Inputs!$G$107*$J34,AZ34*Inputs!$G$107) -> 84179.94573 | DA34: =IF(Inputs!$B$169=1, BA34*Inputs!$G$109*$J34,BA34*Inputs!$G$109) -> 96341.9267 | DB34: =IF(Q34=1,0,BB34*Inputs!$G$113) -> 64027.7748 | DC34: =SUM(CY34:CZ34)*Inputs!$E$136 -> 13679.24118 | DD34: 447633.7663 | DF34: =IF(Inputs!$B$169=1,BE34*Inputs!$G$105*$J34, BE34*Inputs!$G$105) -> 95322.67262 | DG34: =IF(Inputs!$B$169=1, BF34*Inputs!$G$105*$J34, BF34*Inputs!$G$105) -> 0 | DH34: =IF(Inputs!$B$169=1,BG34*Inputs!$G$105*$J34,BG34*Inputs!$G$105) -> 0 | DI34: 95322.67262 | DJ34: =IF(Inputs!$B$169=1, (BI34*SUM(Inputs!$D$106:$E$106)*$J34 + BI34*Inputs!$F$106), BI34*Inputs!$G$106) -> 0 | DK34: =IF(Inputs!$B$169=1, (BJ34*SUM(Inputs!$D$106:$E$106)*$J34 + BJ34*Inputs!$F$106), BJ34*Inputs!$G$106) -> 0 | DL34: =IF(Inputs!$B$169=1,BK34*Inputs!$G$106*$J34,BK34*Inputs!$G$106) -> 0 | DM34: 0 | DN34: =BM34*Inputs!$G$112 -> 95694.81026 | DO34: =BN34*Inputs!$G$112 -> 0 | DP34: =BO34*Inputs!$G$112 -> 0 | DQ34: 95694.81026 | DR34: 191017.4829 | DT34: =Inputs!$B$156*L34+Inputs!$B$157*M34+Inputs!$B$158*N34 -> 80696.23333 | DU34: =Inputs!$B$159*O34 -> 144100.4167 | DV34: =Inputs!$B$160*$O34 -> 14410.04167 | DW34: =Inputs!$B$161*$O34 -> 57640.16667 | DX34: =Inputs!$B$162*$O34 -> 14410.04167 | DY34: =O34*Inputs!$B$163 -> 144100.4167 | DZ34: 455357.3167 | EB34: =O34/Inputs!$E$146 -> 3.842677778 | EC34: =O34/Inputs!$E$146 -> 3.842677778 | ED34: =IF(Inputs!$B$169=1,EB34*Inputs!$G$107*$J34,EB34*Inputs!$G$107) -> 252539.8372 | EE34: =EC34*Inputs!$G$113 -> 96041.6622 | EF34: =ED34*Inputs!$E$136 -> 12626.99186 | EG34: =Inputs!$B$165*O34 -> 5764.016667 | EH34: 7.685355556 | EI34: 366972.5079 | EK34: =IF(Q34=1,0,T34/Inputs!$E$147) -> 2.941666667 | EL34: =IF(Q34=1,0,T34/Inputs!$E$148) -> 2.941666667 | EM34: =IF(Q34=1,0,T34/Inputs!$E$149) -> 2.941666667 | EN34: =IF(Q34=1,0,T34/Inputs!$E$150) -> 2.941666667 | EO34: =IF(Inputs!$B$169=1, EK34*Inputs!$G$107*$J34,EK34*Inputs!$G$107) -> 193325.6089 | EP34: =IF(Inputs!$B$169=1,EL34*Inputs!$G$107*$J34,EL34*Inputs!$G$107) -> 193325.6089 | EQ34: =IF(Inputs!$B$169=1,EM34*Inputs!$G$107*$J34,EM34*Inputs!$G$107) -> 193325.6089 | ER34: =IF(Inputs!$B$169=1,EN34*Inputs!$G$107*$J34,EN34*Inputs!$G$107) -> 193325.6089 | ES34: =SUM(EL34:ER34)*Inputs!$E$136 -> 38665.56302 | ET34: =IF(Q34=1,0,IF(SUM(EK34:EN34)>0,T34*4*Inputs!$B$165,0)) -> 14120 | EU34: 11.76666667 | EV34: 826087.9985 | EX34: 0 | EY34: =IF(Inputs!$B$169=1,EX34*Inputs!$G$107*$J34,EX34*Inputs!$G$107) -> 0 | EZ34: =EY34*Inputs!$E$136 -> 0 | FA34: =IF(Q34=1,0,U34*Inputs!$B$165) -> 0 | FB34: 0 | FC34: 0 | FE34: 0 | FF34: =IF(Q34=1,O34/Inputs!$B$97,0) -> 0 | FG34: =IF(Inputs!$B$169=1,FE34*Inputs!$G$106*$J34,FE34*Inputs!$G$106) -> 0 | FH34: =IF(Inputs!$B$169=1,FF34*Inputs!$G$107*$J34,FF34*Inputs!$G$107) -> 0 | FI34: =FH34*Inputs!$E$136 -> 0 | FJ34: 0 | FK34: 0 | FX34: 3929372.701 | FY34: 366972.5079 | FZ34: 826087.9985 | GA34: 0 | GB34: 0 | GC34: 5122433.207 | GD34: 6817.073802 | GE34: 636.6610805 | GF34: 1433.181141 | GG34: 0 | GH34: 0 | GI34: 8886.916023
A35: =ADM!A35 -> 016011 | B35: =ADM!B35 -> 016 | C35: =ADM!C35 -> 011 | D35: =ADM!D35 -> Barbourville Independent 016 - Barbourville City School 011 AADA | E35: =ADM!E35 -> Barbourville Independent | F35: =ADM!F35 -> Barbourville City School | H35: 2100240 | I35: BARBOURVILLE IND SCH D | J35: =IF(Inputs!$B$169<>1,1,K35) -> 0.8878695031 | K35: 0.8878695031 | L35: =SUM('Model Student Counts'!I35:N35) -> 302.3116667 | M35: =SUM('Model Student Counts'!O35:Q35) -> 166.8766667 | N35: =SUM('Model Student Counts'!R35:U35) -> 193.8286667 | O35: 663.017 | Q35: =IF(Inputs!$B$178=1,IF(O35<Inputs!$B$179,1,0),0) -> 0 | S35: =IF(O35=0,0,VLOOKUP(A35,'Special Student Counts'!$A$5:$Q$1377,4,FALSE)) -> 58 | T35: =IF(Inputs!$B$61=1,VLOOKUP(A35,'Special Student Counts'!$A$5:$Q$1377,13),VLOOKUP(A35,'Special Student Counts'!$A$5:$Q$1377,9,FALSE)) -> 419 | U35: =IF(O35=0,0,VLOOKUP(A35,'Special Student Counts'!$A$5:$Q$1377,6,FALSE)) -> 1 | W35: =IF(Q35=1,0,'Model Student Counts'!I35/Inputs!$B$83) -> 3.498666667 | X35: =IF(Q35=1,0,'Model Student Counts'!J35/Inputs!$B$84) -> 3.177 | Y35: =IF(Q35=1,0,'Model Student Counts'!K35/Inputs!$B$85) -> 3.124311111 | Z35: =IF(Q35=1,0,'Model Student Counts'!L35/Inputs!$B$86) -> 3.676577778 | AA35: =IF(Q35=1,0,'Model Student Counts'!M35/Inputs!$B$87) -> 2.057413333 | AB35: =IF(Q35=1,0,'Model Student Counts'!N35/Inputs!$B$88) -> 1.94912 | AC35: =IF(Q35=1,0,'Model Student Counts'!O35/Inputs!$B$89) -> 2.15148 | AD35: =IF(Q35=1,0,'Model Student Counts'!P35/Inputs!$B$90) -> 2.31508 | AE35: =IF(Q35=1,0,'Model Student Counts'!Q35/Inputs!$B$91) -> 2.208506667 | AF35: =IF(Q35=1,0,'Model Student Counts'!R35/Inputs!$B$92) -> 2.08056 | AG35: =IF(Q35=1,0,'Model Student Counts'!S35/Inputs!$B$93) -> 1.82216 | AH35: =IF(Q35=1,0,'Model Student Counts'!T35/Inputs!$B$94) -> 1.9744 | AI35: =IF(Q35=1,0,'Model Student Counts'!U35/Inputs!$B$95) -> 1.876026667 | AJ35: 17.48308889 | AK35: 6.675066667 | AL35: 7.753146667 | AM35: 31.91130222 | AO35: =IF(Q35=1,0,Inputs!$B$55*AJ35) -> 3.496617778 | AP35: =IF(Q35=1,0,Inputs!$B$56*AK35) -> 1.335013333 | AQ35: =IF(Q35=1,0,Inputs!$B$57*AL35) -> 2.584123784 | AR35: 7.415754895 | AT35: =IF(Q35=1,0,L35/Inputs!$C$140) -> 0.6718037037 | AU35: =IF(Q35=1,0,M35/Inputs!$D$140) -> 0.370837037 | AV35: =IF(Q35=1,0,N35/Inputs!$E$140) -> 0.3230477778 | AW35: 1.365688519 | AY35: =IF(Q35=1,0,(L35/Inputs!$C$134+M35/Inputs!$D$134+N35/Inputs!$E$134)) -> 3.315085 | AZ35: =IF(Q35=1,0,(L35/Inputs!$C$135+M35/Inputs!$D$135+N35/Inputs!$E$135)) -> 1.365688519 | BA35: =IF(Q35=1,0,L35/Inputs!$C$137+M35/Inputs!$D$137+N35/Inputs!$E$137) -> 2.114625037 | BB35: =IF(Q35=1,0,L35/Inputs!$C$138+M35/Inputs!$D$138+N35/Inputs!$E$138) -> 3.054424815 | BC35: 9.84982337 | BE35: =IF(Q35=1,0,L35/Inputs!$C$142) -> 0.6718037037 | BF35: =IF(Q35=1,0,M35/Inputs!$D$142) -> 0.370837037 | BG35: =IF(Q35=1,0,N35/Inputs!$E$142) -> 0.3230477778 | BH35: 1.365688519 | BI35: 0 | BJ35: 0 | BK35: =IF(Q35=1,0,N35/Inputs!$E$143) -> 0.3230477778 | BL35: 0.3230477778 | BM35: =IF(Q35=1,0,L35/Inputs!$C$144) -> 1.343607407 | BN35: =IF(Q35=1,0,M35/Inputs!$D$144) -> 0.7416740741 | BO35: =IF(Q35=1,0,N35/Inputs!$E$144) -> 0.9691433333 | BP35: 3.054424815 | BQ35: 4.743161111 | BS35: =IF(Inputs!$B$169=1,Inputs!$G$107*W35*$J35,W35*Inputs!$G$107) -> 207990.5142 | BT35: =IF(Inputs!$B$169=1,Inputs!$G$107*X35*$J35,X35*Inputs!$G$107) -> 188867.9107 | BU35: =IF(Inputs!$B$169=1,Inputs!$G$107*Y35*$J35,Y35*Inputs!$G$107) -> 185735.6348 | BV35: =IF(Inputs!$B$169=1,Inputs!$G$107*Z35*$J35,Z35*Inputs!$G$107) -> 218567.0643 | BW35: =IF(Inputs!$B$169=1,Inputs!$G$107*AA35*$J35,AA35*Inputs!$G$107) -> 122310.1535 | BX35: =IF(Inputs!$B$169=1,Inputs!$G$107*AB35*$J35,AB35*Inputs!$G$107) -> 115872.2764 | BY35: =IF(Inputs!$B$169=1,Inputs!$G$107*AC35*$J35,AC35*Inputs!$G$107) -> 127902.2765 | BZ35: =IF(Inputs!$B$169=1,Inputs!$G$107*AD35*$J35,AD35*Inputs!$G$107) -> 137628.0525 | CA35: =IF(Inputs!$B$169=1,Inputs!$G$107*AE35*$J35,AE35*Inputs!$G$107) -> 131292.4268 | CB35: =IF(Inputs!$B$169=1,Inputs!$G$107*AF35*$J35,AF35*Inputs!$G$107) -> 123686.1883 | CC35: =IF(Inputs!$B$169=1,Inputs!$G$107*AG35*$J35,AG35*Inputs!$G$107) -> 108324.6938 | CD35: =IF(Inputs!$B$169=1,Inputs!$G$107*AH35*$J35,AH35*Inputs!$G$107) -> 117375.1347 | CE35: =IF(Inputs!$B$169=1,Inputs!$G$107*AI35*$J35,AI35*Inputs!$G$107) -> 111526.9868 | CF35: 1039343.554 | CG35: 396822.7558 | CH35: 460913.0035 | CI35: 1897079.313 | CJ35: =SUM(CF35:CH35)*Inputs!$E$136 -> 94853.96566 | CK35: 1991933.279 | CM35: =IF(Inputs!$B$169=1,Inputs!$G$107*AO35*$J35,AO35*Inputs!$G$107) -> 207868.7108 | CN35: =IF(Inputs!$B$169=1,Inputs!$G$107*AP35*$J35,AP35*Inputs!$G$107) -> 79364.55115 | CO35: =IF(Inputs!$B$169=1,Inputs!$G$107*AQ35*$J35,AQ35*Inputs!$G$107) -> 153622.3041 | CP35: 440855.566 | CQ35: =SUM(CM35:CO35)*Inputs!$E$136 -> 22042.7783 | CR35: 462898.3443 | CT35: =IF(Inputs!$B$169=1,AT35*Inputs!$G$110*$J35,AT35*Inputs!$G$110) -> 48624.53636 | CU35: =IF(Inputs!$B$169=1,AU35*Inputs!$G$110*$J35,AU35*Inputs!$G$110) -> 26840.84487 | CV35: =IF(Inputs!$B$169=1,AV35*Inputs!$G$110*$J35,AV35*Inputs!$G$110) -> 23381.90208 | CW35: 98847.28331 | CY35: =IF(Inputs!$B$169=1, AY35*Inputs!$G$107*$J35,AY35*Inputs!$G$107) -> 197076.858 | CZ35: =IF(Inputs!$B$169=1, AZ35*Inputs!$G$107*$J35,AZ35*Inputs!$G$107) -> 81188.14515 | DA35: =IF(Inputs!$B$169=1, BA35*Inputs!$G$109*$J35,BA35*Inputs!$G$109) -> 143873.569 | DB35: =IF(Q35=1,0,BB35*Inputs!$G$113) -> 76340.5243 | DC35: =SUM(CY35:CZ35)*Inputs!$E$136 -> 13913.25016 | DD35: 512392.3466 | DF35: =IF(Inputs!$B$169=1,BE35*Inputs!$G$105*$J35, BE35*Inputs!$G$105) -> 45224.20322 | DG35: =IF(Inputs!$B$169=1, BF35*Inputs!$G$105*$J35, BF35*Inputs!$G$105) -> 24963.85393 | DH35: =IF(Inputs!$B$169=1,BG35*Inputs!$G$105*$J35,BG35*Inputs!$G$105) -> 21746.79638 | DI35: 91934.85353 | DJ35: =IF(Inputs!$B$169=1, (BI35*SUM(Inputs!$D$106:$E$106)*$J35 + BI35*Inputs!$F$106), BI35*Inputs!$G$106) -> 0 | DK35: =IF(Inputs!$B$169=1, (BJ35*SUM(Inputs!$D$106:$E$106)*$J35 + BJ35*Inputs!$F$106), BJ35*Inputs!$G$106) -> 0 | DL35: =IF(Inputs!$B$169=1,BK35*Inputs!$G$106*$J35,BK35*Inputs!$G$106) -> 21329.84253 | DM35: 21329.84253 | DN35: =BM35*Inputs!$G$112 -> 50190.1005 | DO35: =BN35*Inputs!$G$112 -> 27705.03952 | DP35: =BO35*Inputs!$G$112 -> 36202.09373 | DQ35: 114097.2338 | DR35: 227361.9298 | DT35: =Inputs!$B$156*L35+Inputs!$B$157*M35+Inputs!$B$158*N35 -> 99606.38333 | DU35: =Inputs!$B$159*O35 -> 165754.25 | DV35: =Inputs!$B$160*$O35 -> 16575.425 | DW35: =Inputs!$B$161*$O35 -> 66301.7 | DX35: =Inputs!$B$162*$O35 -> 16575.425 | DY35: =O35*Inputs!$B$163 -> 165754.25 | DZ35: 530567.4333 | EB35: =O35/Inputs!$E$146 -> 4.420113333 | EC35: =O35/Inputs!$E$146 -> 4.420113333 | ED35: =IF(Inputs!$B$169=1,EB35*Inputs!$G$107*$J35,EB35*Inputs!$G$107) -> 262769.1439 | EE35: =EC35*Inputs!$G$113 -> 110473.7519 | EF35: =ED35*Inputs!$E$136 -> 13138.4572 | EG35: =Inputs!$B$165*O35 -> 6630.17 | EH35: 8.840226667 | EI35: 393011.5231 | EK35: =IF(Q35=1,0,T35/Inputs!$E$147) -> 3.491666667 | EL35: =IF(Q35=1,0,T35/Inputs!$E$148) -> 3.491666667 | EM35: =IF(Q35=1,0,T35/Inputs!$E$149) -> 3.491666667 | EN35: =IF(Q35=1,0,T35/Inputs!$E$150) -> 3.491666667 | EO35: =IF(Inputs!$B$169=1, EK35*Inputs!$G$107*$J35,EK35*Inputs!$G$107) -> 207574.3746 | EP35: =IF(Inputs!$B$169=1,EL35*Inputs!$G$107*$J35,EL35*Inputs!$G$107) -> 207574.3746 | EQ35: =IF(Inputs!$B$169=1,EM35*Inputs!$G$107*$J35,EM35*Inputs!$G$107) -> 207574.3746 | ER35: =IF(Inputs!$B$169=1,EN35*Inputs!$G$107*$J35,EN35*Inputs!$G$107) -> 207574.3746 | ES35: =SUM(EL35:ER35)*Inputs!$E$136 -> 41515.39867 | ET35: =IF(Q35=1,0,IF(SUM(EK35:EN35)>0,T35*4*Inputs!$B$165,0)) -> 16760 | EU35: 13.96666667 | EV35: 888572.8972 | EX35: 0.01 | EY35: =IF(Inputs!$B$169=1,EX35*Inputs!$G$107*$J35,EX35*Inputs!$G$107) -> 594.4850824 | EZ35: =EY35*Inputs!$E$136 -> 29.72425412 | FA35: =IF(Q35=1,0,U35*Inputs!$B$165) -> 10 | FB35: 0.01 | FC35: 634.2093366 | FE35: 0 | FF35: =IF(Q35=1,O35/Inputs!$B$97,0) -> 0 | FG35: =IF(Inputs!$B$169=1,FE35*Inputs!$G$106*$J35,FE35*Inputs!$G$106) -> 0 | FH35: =IF(Inputs!$B$169=1,FF35*Inputs!$G$107*$J35,FF35*Inputs!$G$107) -> 0 | FI35: =FH35*Inputs!$E$136 -> 0 | FJ35: 0 | FK35: 0 | FX35: 3824000.616 | FY35: 393011.5231 | FZ35: 888572.8972 | GA35: 634.2093366 | GB35: 0 | GC35: 5106219.246 | GD35: 5767.575517 | GE35: 592.7623622 | GF35: 1340.19625 | GG35: 0.9565506413 | GH35: 0 | GI35: 7701.490679
A36: =ADM!A36 -> 017010 | B36: =ADM!B36 -> 017 | C36: =ADM!C36 -> 010 | D36: =ADM!D36 -> Bardstown Independent 017 - Bardstown Elementary School 010 AADA | E36: =ADM!E36 -> Bardstown Independent | F36: =ADM!F36 -> Bardstown Elementary School | H36: 2100270 | I36: BARDSTOWN IND SCH DIST | J36: =IF(Inputs!$B$169<>1,1,K36) -> 1.129002165 | K36: 1.129002165 | L36: =SUM('Model Student Counts'!I36:N36) -> 639.06 | M36: =SUM('Model Student Counts'!O36:Q36) -> 0 | N36: =SUM('Model Student Counts'!R36:U36) -> 0 | O36: 639.06 | Q36: =IF(Inputs!$B$178=1,IF(O36<Inputs!$B$179,1,0),0) -> 0 | S36: =IF(O36=0,0,VLOOKUP(A36,'Special Student Counts'!$A$5:$Q$1377,4,FALSE)) -> 92 | T36: =IF(Inputs!$B$61=1,VLOOKUP(A36,'Special Student Counts'!$A$5:$Q$1377,13),VLOOKUP(A36,'Special Student Counts'!$A$5:$Q$1377,9,FALSE)) -> 408 | U36: =IF(O36=0,0,VLOOKUP(A36,'Special Student Counts'!$A$5:$Q$1377,6,FALSE)) -> 17 | W36: =IF(Q36=1,0,'Model Student Counts'!I36/Inputs!$B$83) -> 0 | X36: =IF(Q36=1,0,'Model Student Counts'!J36/Inputs!$B$84) -> 0 | Y36: =IF(Q36=1,0,'Model Student Counts'!K36/Inputs!$B$85) -> 0 | Z36: =IF(Q36=1,0,'Model Student Counts'!L36/Inputs!$B$86) -> 15.92466667 | AA36: =IF(Q36=1,0,'Model Student Counts'!M36/Inputs!$B$87) -> 8.4244 | AB36: =IF(Q36=1,0,'Model Student Counts'!N36/Inputs!$B$88) -> 7.5832 | AC36: =IF(Q36=1,0,'Model Student Counts'!O36/Inputs!$B$89) -> 0 | AD36: =IF(Q36=1,0,'Model Student Counts'!P36/Inputs!$B$90) -> 0 | AE36: =IF(Q36=1,0,'Model Student Counts'!Q36/Inputs!$B$91) -> 0 | AF36: =IF(Q36=1,0,'Model Student Counts'!R36/Inputs!$B$92) -> 0 | AG36: =IF(Q36=1,0,'Model Student Counts'!S36/Inputs!$B$93) -> 0 | AH36: =IF(Q36=1,0,'Model Student Counts'!T36/Inputs!$B$94) -> 0 | AI36: =IF(Q36=1,0,'Model Student Counts'!U36/Inputs!$B$95) -> 0 | AJ36: 31.93226667 | AK36: 0 | AL36: 0 | AM36: 31.93226667 | AO36: =IF(Q36=1,0,Inputs!$B$55*AJ36) -> 6.386453333 | AP36: =IF(Q36=1,0,Inputs!$B$56*AK36) -> 0 | AQ36: =IF(Q36=1,0,Inputs!$B$57*AL36) -> 0 | AR36: 6.386453333 | AT36: =IF(Q36=1,0,L36/Inputs!$C$140) -> 1.420133333 | AU36: =IF(Q36=1,0,M36/Inputs!$D$140) -> 0 | AV36: =IF(Q36=1,0,N36/Inputs!$E$140) -> 0 | AW36: 1.420133333 | AY36: =IF(Q36=1,0,(L36/Inputs!$C$134+M36/Inputs!$D$134+N36/Inputs!$E$134)) -> 3.1953 | AZ36: =IF(Q36=1,0,(L36/Inputs!$C$135+M36/Inputs!$D$135+N36/Inputs!$E$135)) -> 1.420133333 | BA36: =IF(Q36=1,0,L36/Inputs!$C$137+M36/Inputs!$D$137+N36/Inputs!$E$137) -> 1.420133333 | BB36: =IF(Q36=1,0,L36/Inputs!$C$138+M36/Inputs!$D$138+N36/Inputs!$E$138) -> 2.840266667 | BC36: 8.875833333 | BE36: =IF(Q36=1,0,L36/Inputs!$C$142) -> 1.420133333 | BF36: =IF(Q36=1,0,M36/Inputs!$D$142) -> 0 | BG36: =IF(Q36=1,0,N36/Inputs!$E$142) -> 0 | BH36: 1.420133333 | BI36: 0 | BJ36: 0 | BK36: =IF(Q36=1,0,N36/Inputs!$E$143) -> 0 | BL36: 0 | BM36: =IF(Q36=1,0,L36/Inputs!$C$144) -> 2.840266667 | BN36: =IF(Q36=1,0,M36/Inputs!$D$144) -> 0 | BO36: =IF(Q36=1,0,N36/Inputs!$E$144) -> 0 | BP36: 2.840266667 | BQ36: 4.2604 | BS36: =IF(Inputs!$B$169=1,Inputs!$G$107*W36*$J36,W36*Inputs!$G$107) -> 0 | BT36: =IF(Inputs!$B$169=1,Inputs!$G$107*X36*$J36,X36*Inputs!$G$107) -> 0 | BU36: =IF(Inputs!$B$169=1,Inputs!$G$107*Y36*$J36,Y36*Inputs!$G$107) -> 0 | BV36: =IF(Inputs!$B$169=1,Inputs!$G$107*Z36*$J36,Z36*Inputs!$G$107) -> 1203807.23 | BW36: =IF(Inputs!$B$169=1,Inputs!$G$107*AA36*$J36,AA36*Inputs!$G$107) -> 636833.024 | BX36: =IF(Inputs!$B$169=1,Inputs!$G$107*AB36*$J36,AB36*Inputs!$G$107) -> 573243.458 | BY36: =IF(Inputs!$B$169=1,Inputs!$G$107*AC36*$J36,AC36*Inputs!$G$107) -> 0 | BZ36: =IF(Inputs!$B$169=1,Inputs!$G$107*AD36*$J36,AD36*Inputs!$G$107) -> 0 | CA36: =IF(Inputs!$B$169=1,Inputs!$G$107*AE36*$J36,AE36*Inputs!$G$107) -> 0 | CB36: =IF(Inputs!$B$169=1,Inputs!$G$107*AF36*$J36,AF36*Inputs!$G$107) -> 0 | CC36: =IF(Inputs!$B$169=1,Inputs!$G$107*AG36*$J36,AG36*Inputs!$G$107) -> 0 | CD36: =IF(Inputs!$B$169=1,Inputs!$G$107*AH36*$J36,AH36*Inputs!$G$107) -> 0 | CE36: =IF(Inputs!$B$169=1,Inputs!$G$107*AI36*$J36,AI36*Inputs!$G$107) -> 0 | CF36: 2413883.712 | CG36: 0 | CH36: 0 | CI36: 2413883.712 | CJ36: =SUM(CF36:CH36)*Inputs!$E$136 -> 120694.1856 | CK36: 2534577.898 | CM36: =IF(Inputs!$B$169=1,Inputs!$G$107*AO36*$J36,AO36*Inputs!$G$107) -> 482776.7425 | CN36: =IF(Inputs!$B$169=1,Inputs!$G$107*AP36*$J36,AP36*Inputs!$G$107) -> 0 | CO36: =IF(Inputs!$B$169=1,Inputs!$G$107*AQ36*$J36,AQ36*Inputs!$G$107) -> 0 | CP36: 482776.7425 | CQ36: =SUM(CM36:CO36)*Inputs!$E$136 -> 24138.83712 | CR36: 506915.5796 | CT36: =IF(Inputs!$B$169=1,AT36*Inputs!$G$110*$J36,AT36*Inputs!$G$110) -> 130703.6863 | CU36: =IF(Inputs!$B$169=1,AU36*Inputs!$G$110*$J36,AU36*Inputs!$G$110) -> 0 | CV36: =IF(Inputs!$B$169=1,AV36*Inputs!$G$110*$J36,AV36*Inputs!$G$110) -> 0 | CW36: 130703.6863 | CY36: =IF(Inputs!$B$169=1, AY36*Inputs!$G$107*$J36,AY36*Inputs!$G$107) -> 241545.1025 | CZ36: =IF(Inputs!$B$169=1, AZ36*Inputs!$G$107*$J36,AZ36*Inputs!$G$107) -> 107353.3789 | DA36: =IF(Inputs!$B$169=1, BA36*Inputs!$G$109*$J36,BA36*Inputs!$G$109) -> 122863.3646 | DB36: =IF(Q36=1,0,BB36*Inputs!$G$113) -> 70987.97962 | DC36: =SUM(CY36:CZ36)*Inputs!$E$136 -> 17444.92407 | DD36: 560194.7497 | DF36: =IF(Inputs!$B$169=1,BE36*Inputs!$G$105*$J36, BE36*Inputs!$G$105) -> 121563.5256 | DG36: =IF(Inputs!$B$169=1, BF36*Inputs!$G$105*$J36, BF36*Inputs!$G$105) -> 0 | DH36: =IF(Inputs!$B$169=1,BG36*Inputs!$G$105*$J36,BG36*Inputs!$G$105) -> 0 | DI36: 121563.5256 | DJ36: =IF(Inputs!$B$169=1, (BI36*SUM(Inputs!$D$106:$E$106)*$J36 + BI36*Inputs!$F$106), BI36*Inputs!$G$106) -> 0 | DK36: =IF(Inputs!$B$169=1, (BJ36*SUM(Inputs!$D$106:$E$106)*$J36 + BJ36*Inputs!$F$106), BJ36*Inputs!$G$106) -> 0 | DL36: =IF(Inputs!$B$169=1,BK36*Inputs!$G$106*$J36,BK36*Inputs!$G$106) -> 0 | DM36: 0 | DN36: =BM36*Inputs!$G$112 -> 106097.4126 | DO36: =BN36*Inputs!$G$112 -> 0 | DP36: =BO36*Inputs!$G$112 -> 0 | DQ36: 106097.4126 | DR36: 227660.9382 | DT36: =Inputs!$B$156*L36+Inputs!$B$157*M36+Inputs!$B$158*N36 -> 89468.4 | DU36: =Inputs!$B$159*O36 -> 159765 | DV36: =Inputs!$B$160*$O36 -> 15976.5 | DW36: =Inputs!$B$161*$O36 -> 63906 | DX36: =Inputs!$B$162*$O36 -> 15976.5 | DY36: =O36*Inputs!$B$163 -> 159765 | DZ36: 504857.4 | EB36: =O36/Inputs!$E$146 -> 4.2604 | EC36: =O36/Inputs!$E$146 -> 4.2604 | ED36: =IF(Inputs!$B$169=1,EB36*Inputs!$G$107*$J36,EB36*Inputs!$G$107) -> 322060.1367 | EE36: =EC36*Inputs!$G$113 -> 106481.9694 | EF36: =ED36*Inputs!$E$136 -> 16103.00684 | EG36: =Inputs!$B$165*O36 -> 6390.6 | EH36: 8.5208 | EI36: 451035.713 | EK36: =IF(Q36=1,0,T36/Inputs!$E$147) -> 3.4 | EL36: =IF(Q36=1,0,T36/Inputs!$E$148) -> 3.4 | EM36: =IF(Q36=1,0,T36/Inputs!$E$149) -> 3.4 | EN36: =IF(Q36=1,0,T36/Inputs!$E$150) -> 3.4 | EO36: =IF(Inputs!$B$169=1, EK36*Inputs!$G$107*$J36,EK36*Inputs!$G$107) -> 257019.1683 | EP36: =IF(Inputs!$B$169=1,EL36*Inputs!$G$107*$J36,EL36*Inputs!$G$107) -> 257019.1683 | EQ36: =IF(Inputs!$B$169=1,EM36*Inputs!$G$107*$J36,EM36*Inputs!$G$107) -> 257019.1683 | ER36: =IF(Inputs!$B$169=1,EN36*Inputs!$G$107*$J36,EN36*Inputs!$G$107) -> 257019.1683 | ES36: =SUM(EL36:ER36)*Inputs!$E$136 -> 51404.34367 | ET36: =IF(Q36=1,0,IF(SUM(EK36:EN36)>0,T36*4*Inputs!$B$165,0)) -> 16320 | EU36: 13.6 | EV36: 1095801.017 | EX36: 0.17 | EY36: =IF(Inputs!$B$169=1,EX36*Inputs!$G$107*$J36,EX36*Inputs!$G$107) -> 12850.95842 | EZ36: =EY36*Inputs!$E$136 -> 642.5479208 | FA36: =IF(Q36=1,0,U36*Inputs!$B$165) -> 170 | FB36: 0.17 | FC36: 13663.50634 | FE36: 0 | FF36: =IF(Q36=1,O36/Inputs!$B$97,0) -> 0 | FG36: =IF(Inputs!$B$169=1,FE36*Inputs!$G$106*$J36,FE36*Inputs!$G$106) -> 0 | FH36: =IF(Inputs!$B$169=1,FF36*Inputs!$G$107*$J36,FF36*Inputs!$G$107) -> 0 | FI36: =FH36*Inputs!$E$136 -> 0 | FJ36: 0 | FK36: 0 | FX36: 4464910.252 | FY36: 451035.713 | FZ36: 1095801.017 | GA36: 13663.50634 | GB36: 0 | GC36: 6025410.488 | GD36: 6986.68396 | GE36: 705.7799158 | GF36: 1714.707566 | GG36: 21.38063146 | GH36: 0 | GI36: 9428.552073
A37: =ADM!A37 -> 017012 | B37: =ADM!B37 -> 017 | C37: =ADM!C37 -> 012 | D37: =ADM!D37 -> Bardstown Independent 017 - Bardstown Primary School 012 AADA | E37: =ADM!E37 -> Bardstown Independent | F37: =ADM!F37 -> Bardstown Primary School | H37: 2100270 | I37: BARDSTOWN IND SCH DIST | J37: =IF(Inputs!$B$169<>1,1,K37) -> 1.129002165 | K37: 1.129002165 | L37: =SUM('Model Student Counts'!I37:N37) -> 694.1913333 | M37: =SUM('Model Student Counts'!O37:Q37) -> 0 | N37: =SUM('Model Student Counts'!R37:U37) -> 0 | O37: 694.1913333 | Q37: =IF(Inputs!$B$178=1,IF(O37<Inputs!$B$179,1,0),0) -> 0 | S37: =IF(O37=0,0,VLOOKUP(A37,'Special Student Counts'!$A$5:$Q$1377,4,FALSE)) -> 121 | T37: =IF(Inputs!$B$61=1,VLOOKUP(A37,'Special Student Counts'!$A$5:$Q$1377,13),VLOOKUP(A37,'Special Student Counts'!$A$5:$Q$1377,9,FALSE)) -> 442 | U37: =IF(O37=0,0,VLOOKUP(A37,'Special Student Counts'!$A$5:$Q$1377,6,FALSE)) -> 33 | W37: =IF(Q37=1,0,'Model Student Counts'!I37/Inputs!$B$83) -> 15.73004444 | X37: =IF(Q37=1,0,'Model Student Counts'!J37/Inputs!$B$84) -> 15.73604444 | Y37: =IF(Q37=1,0,'Model Student Counts'!K37/Inputs!$B$85) -> 14.81333333 | Z37: =IF(Q37=1,0,'Model Student Counts'!L37/Inputs!$B$86) -> 0 | AA37: =IF(Q37=1,0,'Model Student Counts'!M37/Inputs!$B$87) -> 0 | AB37: =IF(Q37=1,0,'Model Student Counts'!N37/Inputs!$B$88) -> 0 | AC37: =IF(Q37=1,0,'Model Student Counts'!O37/Inputs!$B$89) -> 0 | AD37: =IF(Q37=1,0,'Model Student Counts'!P37/Inputs!$B$90) -> 0 | AE37: =IF(Q37=1,0,'Model Student Counts'!Q37/Inputs!$B$91) -> 0 | AF37: =IF(Q37=1,0,'Model Student Counts'!R37/Inputs!$B$92) -> 0 | AG37: =IF(Q37=1,0,'Model Student Counts'!S37/Inputs!$B$93) -> 0 | AH37: =IF(Q37=1,0,'Model Student Counts'!T37/Inputs!$B$94) -> 0 | AI37: =IF(Q37=1,0,'Model Student Counts'!U37/Inputs!$B$95) -> 0 | AJ37: 46.27942222 | AK37: 0 | AL37: 0 | AM37: 46.27942222 | AO37: =IF(Q37=1,0,Inputs!$B$55*AJ37) -> 9.255884444 | AP37: =IF(Q37=1,0,Inputs!$B$56*AK37) -> 0 | AQ37: =IF(Q37=1,0,Inputs!$B$57*AL37) -> 0 | AR37: 9.255884444 | AT37: =IF(Q37=1,0,L37/Inputs!$C$140) -> 1.542647407 | AU37: =IF(Q37=1,0,M37/Inputs!$D$140) -> 0 | AV37: =IF(Q37=1,0,N37/Inputs!$E$140) -> 0 | AW37: 1.542647407 | AY37: =IF(Q37=1,0,(L37/Inputs!$C$134+M37/Inputs!$D$134+N37/Inputs!$E$134)) -> 3.470956667 | AZ37: =IF(Q37=1,0,(L37/Inputs!$C$135+M37/Inputs!$D$135+N37/Inputs!$E$135)) -> 1.542647407 | BA37: =IF(Q37=1,0,L37/Inputs!$C$137+M37/Inputs!$D$137+N37/Inputs!$E$137) -> 1.542647407 | BB37: =IF(Q37=1,0,L37/Inputs!$C$138+M37/Inputs!$D$138+N37/Inputs!$E$138) -> 3.085294815 | BC37: 9.641546296 | BE37: =IF(Q37=1,0,L37/Inputs!$C$142) -> 1.542647407 | BF37: =IF(Q37=1,0,M37/Inputs!$D$142) -> 0 | BG37: =IF(Q37=1,0,N37/Inputs!$E$142) -> 0 | BH37: 1.542647407 | BI37: 0 | BJ37: 0 | BK37: =IF(Q37=1,0,N37/Inputs!$E$143) -> 0 | BL37: 0 | BM37: =IF(Q37=1,0,L37/Inputs!$C$144) -> 3.085294815 | BN37: =IF(Q37=1,0,M37/Inputs!$D$144) -> 0 | BO37: =IF(Q37=1,0,N37/Inputs!$E$144) -> 0 | BP37: 3.085294815 | BQ37: 4.627942222 | BS37: =IF(Inputs!$B$169=1,Inputs!$G$107*W37*$J37,W37*Inputs!$G$107) -> 1189094.983 | BT37: =IF(Inputs!$B$169=1,Inputs!$G$107*X37*$J37,X37*Inputs!$G$107) -> 1189548.546 | BU37: =IF(Inputs!$B$169=1,Inputs!$G$107*Y37*$J37,Y37*Inputs!$G$107) -> 1119797.239 | BV37: =IF(Inputs!$B$169=1,Inputs!$G$107*Z37*$J37,Z37*Inputs!$G$107) -> 0 | BW37: =IF(Inputs!$B$169=1,Inputs!$G$107*AA37*$J37,AA37*Inputs!$G$107) -> 0 | BX37: =IF(Inputs!$B$169=1,Inputs!$G$107*AB37*$J37,AB37*Inputs!$G$107) -> 0 | BY37: =IF(Inputs!$B$169=1,Inputs!$G$107*AC37*$J37,AC37*Inputs!$G$107) -> 0 | BZ37: =IF(Inputs!$B$169=1,Inputs!$G$107*AD37*$J37,AD37*Inputs!$G$107) -> 0 | CA37: =IF(Inputs!$B$169=1,Inputs!$G$107*AE37*$J37,AE37*Inputs!$G$107) -> 0 | CB37: =IF(Inputs!$B$169=1,Inputs!$G$107*AF37*$J37,AF37*Inputs!$G$107) -> 0 | CC37: =IF(Inputs!$B$169=1,Inputs!$G$107*AG37*$J37,AG37*Inputs!$G$107) -> 0 | CD37: =IF(Inputs!$B$169=1,Inputs!$G$107*AH37*$J37,AH37*Inputs!$G$107) -> 0 | CE37: =IF(Inputs!$B$169=1,Inputs!$G$107*AI37*$J37,AI37*Inputs!$G$107) -> 0 | CF37: 3498440.768 | CG37: 0 | CH37: 0 | CI37: 3498440.768 | CJ37: =SUM(CF37:CH37)*Inputs!$E$136 -> 174922.0384 | CK37: 3673362.806 | CM37: =IF(Inputs!$B$169=1,Inputs!$G$107*AO37*$J37,AO37*Inputs!$G$107) -> 699688.1536 | CN37: =IF(Inputs!$B$169=1,Inputs!$G$107*AP37*$J37,AP37*Inputs!$G$107) -> 0 | CO37: =IF(Inputs!$B$169=1,Inputs!$G$107*AQ37*$J37,AQ37*Inputs!$G$107) -> 0 | CP37: 699688.1536 | CQ37: =SUM(CM37:CO37)*Inputs!$E$136 -> 34984.40768 | CR37: 734672.5613 | CT37: =IF(Inputs!$B$169=1,AT37*Inputs!$G$110*$J37,AT37*Inputs!$G$110) -> 141979.4171 | CU37: =IF(Inputs!$B$169=1,AU37*Inputs!$G$110*$J37,AU37*Inputs!$G$110) -> 0 | CV37: =IF(Inputs!$B$169=1,AV37*Inputs!$G$110*$J37,AV37*Inputs!$G$110) -> 0 | CW37: 141979.4171 | CY37: =IF(Inputs!$B$169=1, AY37*Inputs!$G$107*$J37,AY37*Inputs!$G$107) -> 262383.0576 | CZ37: =IF(Inputs!$B$169=1, AZ37*Inputs!$G$107*$J37,AZ37*Inputs!$G$107) -> 116614.6923 | DA37: =IF(Inputs!$B$169=1, BA37*Inputs!$G$109*$J37,BA37*Inputs!$G$109) -> 133462.7153 | DB37: =IF(Q37=1,0,BB37*Inputs!$G$113) -> 77112.0712 | DC37: =SUM(CY37:CZ37)*Inputs!$E$136 -> 18949.88749 | DD37: 608522.4239 | DF37: =IF(Inputs!$B$169=1,BE37*Inputs!$G$105*$J37, BE37*Inputs!$G$105) -> 132050.7401 | DG37: =IF(Inputs!$B$169=1, BF37*Inputs!$G$105*$J37, BF37*Inputs!$G$105) -> 0 | DH37: =IF(Inputs!$B$169=1,BG37*Inputs!$G$105*$J37,BG37*Inputs!$G$105) -> 0 | DI37: 132050.7401 | DJ37: =IF(Inputs!$B$169=1, (BI37*SUM(Inputs!$D$106:$E$106)*$J37 + BI37*Inputs!$F$106), BI37*Inputs!$G$106) -> 0 | DK37: =IF(Inputs!$B$169=1, (BJ37*SUM(Inputs!$D$106:$E$106)*$J37 + BJ37*Inputs!$F$106), BJ37*Inputs!$G$106) -> 0 | DL37: =IF(Inputs!$B$169=1,BK37*Inputs!$G$106*$J37,BK37*Inputs!$G$106) -> 0 | DM37: 0 | DN37: =BM37*Inputs!$G$112 -> 115250.3745 | DO37: =BN37*Inputs!$G$112 -> 0 | DP37: =BO37*Inputs!$G$112 -> 0 | DQ37: 115250.3745 | DR37: 247301.1145 | DT37: =Inputs!$B$156*L37+Inputs!$B$157*M37+Inputs!$B$158*N37 -> 97186.78667 | DU37: =Inputs!$B$159*O37 -> 173547.8333 | DV37: =Inputs!$B$160*$O37 -> 17354.78333 | DW37: =Inputs!$B$161*$O37 -> 69419.13333 | DX37: =Inputs!$B$162*$O37 -> 17354.78333 | DY37: =O37*Inputs!$B$163 -> 173547.8333 | DZ37: 548411.1533 | EB37: =O37/Inputs!$E$146 -> 4.627942222 | EC37: =O37/Inputs!$E$146 -> 4.627942222 | ED37: =IF(Inputs!$B$169=1,EB37*Inputs!$G$107*$J37,EB37*Inputs!$G$107) -> 349844.0768 | EE37: =EC37*Inputs!$G$113 -> 115668.1068 | EF37: =ED37*Inputs!$E$136 -> 17492.20384 | EG37: =Inputs!$B$165*O37 -> 6941.913333 | EH37: 9.255884444 | EI37: 489946.3008 | EK37: =IF(Q37=1,0,T37/Inputs!$E$147) -> 3.683333333 | EL37: =IF(Q37=1,0,T37/Inputs!$E$148) -> 3.683333333 | EM37: =IF(Q37=1,0,T37/Inputs!$E$149) -> 3.683333333 | EN37: =IF(Q37=1,0,T37/Inputs!$E$150) -> 3.683333333 | EO37: =IF(Inputs!$B$169=1, EK37*Inputs!$G$107*$J37,EK37*Inputs!$G$107) -> 278437.4324 | EP37: =IF(Inputs!$B$169=1,EL37*Inputs!$G$107*$J37,EL37*Inputs!$G$107) -> 278437.4324 | EQ37: =IF(Inputs!$B$169=1,EM37*Inputs!$G$107*$J37,EM37*Inputs!$G$107) -> 278437.4324 | ER37: =IF(Inputs!$B$169=1,EN37*Inputs!$G$107*$J37,EN37*Inputs!$G$107) -> 278437.4324 | ES37: =SUM(EL37:ER37)*Inputs!$E$136 -> 55688.03897 | ET37: =IF(Q37=1,0,IF(SUM(EK37:EN37)>0,T37*4*Inputs!$B$165,0)) -> 17680 | EU37: 14.73333333 | EV37: 1187117.768 | EX37: 0.33 | EY37: =IF(Inputs!$B$169=1,EX37*Inputs!$G$107*$J37,EX37*Inputs!$G$107) -> 24945.9781 | EZ37: =EY37*Inputs!$E$136 -> 1247.298905 | FA37: =IF(Q37=1,0,U37*Inputs!$B$165) -> 330 | FB37: 0.33 | FC37: 26523.27701 | FE37: 0 | FF37: =IF(Q37=1,O37/Inputs!$B$97,0) -> 0 | FG37: =IF(Inputs!$B$169=1,FE37*Inputs!$G$106*$J37,FE37*Inputs!$G$106) -> 0 | FH37: =IF(Inputs!$B$169=1,FF37*Inputs!$G$107*$J37,FF37*Inputs!$G$107) -> 0 | FI37: =FH37*Inputs!$E$136 -> 0 | FJ37: 0 | FK37: 0 | FX37: 5954249.476 | FY37: 489946.3008 | FZ37: 1187117.768 | GA37: 26523.27701 | GB37: 0 | GC37: 7657836.823 | GD37: 8577.24548 | GE37: 705.7799158 | GF37: 1710.072874 | GG37: 38.20744474 | GH37: 0 | GI37: 11031.30571
